Workbook

Sheet Open_Sections
A1: Welcome to Golden West College's Open Course list
A2: Open_Sections | B2: =MID('Faculty Searchable'!H4,25,99)&"." -> . | F2: Click a "linked" text to sort
A3: Classes are listed by Term (SUM, FAL, WNT, SPR) and then alphabetically
A4: ="Course (updated "&IFERROR(MID(VLOOKUP("*Data current as"&"*",'Faculty Searchable'!H:H,1,FALSE),47,20),"")&")" -> Course (updated 04/01/22 12:17pm) | B4: CRN | C4: Units | D4: Time | E4: Days | F4: Location | G4: Faculty (Click to email) | H4: % Full | I4: CSU GE Area | J4: IGETC GE Area | K4: Textbook Cost? | L4: Term | M4: When does it meet? | N4: Trend | O4: Prior (prereq) or concurrent (co-req) class requirements
A5: =IF(PDF!AH5="","",IFERROR(IF(PDF!A5="","",INDIRECT("'Faculty Searchable'!H"&PDF!AH5)&": "&LEFT(INDIRECT("'Faculty Searchable'!BA"&PDF!AH5),30)),"")) -> ACCT G163: Accounting for Small Business | B5: =IFERROR(IF(A5="","",INDIRECT("'Faculty Searchable'!I"&PDF!$AH5)),"") -> 43611 | C5: =IFERROR(IF(B5="","",INDIRECT("'Faculty Searchable'!BB"&PDF!$AH5)),"") -> 1.5 | D5: =IFERROR(IF(A5="","",INDIRECT("'Faculty Searchable'!AE"&PDF!$AH5)),"") -> 3.4 hours arranged | E5: =IFERROR(IF(A5="","",IF(D5="Online","",SUBSTITUTE(INDIRECT("'Faculty Searchable'!AF"&PDF!$AH5),"0","--"))),"") ->  | F5: =IFERROR(IF(A5="","",INDIRECT("'Faculty Searchable'!EB"&PDF!$AH5)),"") -> Online | G5: =IFERROR(IF(A5="","",IFERROR(INDIRECT("'Faculty Searchable'!FG"&PDF!$AH5),INDIRECT("'Faculty Searchable'!FG"&PDF!$AH5))),"") -> [Nguyen A T] | H5: =IFERROR(IF(A5="","",IF(TEXT(INDIRECT("'Faculty Searchable'!G"&PDF!$AH5),"##%")="%","",TEXT(INDIRECT("'Faculty Searchable'!G"&PDF!$AH5),"##%"))),"") -> 82% | I5: =IFERROR(IF(A5="","",IF(RIGHT(INDIRECT("'Faculty Searchable'!FO"&PDF!$AH5),5)="Major","--",RIGHT(INDIRECT("'Faculty Searchable'!FO"&PDF!$AH5),2))),"--") -> -- | J5: =IFERROR(IF(A5="","",RIGHT(INDIRECT("'Faculty Searchable'!FP"&PDF!$AH5),2)),"") ->  | K5: =IFERROR(IF(A5="","",IFERROR(VLOOKUP(B5,'Student Searchable'!A:B,2,FALSE),"")),"") ->  | L5: =IFERROR(LEFT(IF(A5="","",IF(INDIRECT("'Faculty Searchable'!CK"&PDF!$AH5)="","16-week-term",INDIRECT("'Faculty Searchable'!CK"&PDF!$AH5))),5),"") -> 1-SPR | M5: =IFERROR(MID(IF(A5="","",IF(INDIRECT("'Faculty Searchable'!CK"&PDF!$AH5)="","16-week-term",INDIRECT("'Faculty Searchable'!CK"&PDF!$AH5))),7,20),"") -> Apr 4 for 8 weeks | N5: =IF(B5="","",_xlfn.XLOOKUP(B5,Tracking!O:O,Tracking!A:A,"")) -> 0.04 | O5: =IF(PDF!AH5="","",IFERROR(INDIRECT("'Faculty Searchable'!FN"&PDF!$AH5),ROW())) -> 
A6: =IF(PDF!AH6="","",IFERROR(IF(PDF!A6="","",INDIRECT("'Faculty Searchable'!H"&PDF!AH6)&": "&LEFT(INDIRECT("'Faculty Searchable'!BA"&PDF!AH6),30)),"")) -> ACCT G215: Internal Control Compliance | B6: =IFERROR(IF(A6="","",INDIRECT("'Faculty Searchable'!I"&PDF!$AH6)),"") -> 47607 | C6: =IFERROR(IF(B6="","",INDIRECT("'Faculty Searchable'!BB"&PDF!$AH6)),"") -> 3 | D6: =IFERROR(IF(A6="","",INDIRECT("'Faculty Searchable'!AE"&PDF!$AH6)),"") -> 6.8 hours arranged | E6: =IFERROR(IF(A6="","",IF(D6="Online","",SUBSTITUTE(INDIRECT("'Faculty Searchable'!AF"&PDF!$AH6),"0","--"))),"") ->  | F6: =IFERROR(IF(A6="","",INDIRECT("'Faculty Searchable'!EB"&PDF!$AH6)),"") -> Online | G6: =IFERROR(IF(A6="","",IFERROR(INDIRECT("'Faculty Searchable'!FG"&PDF!$AH6),INDIRECT("'Faculty Searchable'!FG"&PDF!$AH6))),"") -> [Hoang M D] | H6: =IFERROR(IF(A6="","",IF(TEXT(INDIRECT("'Faculty Searchable'!G"&PDF!$AH6),"##%")="%","",TEXT(INDIRECT("'Faculty Searchable'!G"&PDF!$AH6),"##%"))),"") -> 47% | I6: =IFERROR(IF(A6="","",IF(RIGHT(INDIRECT("'Faculty Searchable'!FO"&PDF!$AH6),5)="Major","--",RIGHT(INDIRECT("'Faculty Searchable'!FO"&PDF!$AH6),2))),"--") -> -- | J6: =IFERROR(IF(A6="","",RIGHT(INDIRECT("'Faculty Searchable'!FP"&PDF!$AH6),2)),"") ->  | K6: =IFERROR(IF(A6="","",IFERROR(VLOOKUP(B6,'Student Searchable'!A:B,2,FALSE),"")),"") ->  | L6: =IFERROR(LEFT(IF(A6="","",IF(INDIRECT("'Faculty Searchable'!CK"&PDF!$AH6)="","16-week-term",INDIRECT("'Faculty Searchable'!CK"&PDF!$AH6))),5),"") -> 1-SPR | M6: =IFERROR(MID(IF(A6="","",IF(INDIRECT("'Faculty Searchable'!CK"&PDF!$AH6)="","16-week-term",INDIRECT("'Faculty Searchable'!CK"&PDF!$AH6))),7,20),"") -> Apr 4 for 8 weeks | N6: =IF(B6="","",_xlfn.XLOOKUP(B6,Tracking!O:O,Tracking!A:A,"")) -> 0.06 | O6: =IF(PDF!AH6="","",IFERROR(INDIRECT("'Faculty Searchable'!FN"&PDF!$AH6),ROW())) -> 
A7: =IF(PDF!AH7="","",IFERROR(IF(PDF!A7="","",INDIRECT("'Faculty Searchable'!H"&PDF!AH7)&": "&LEFT(INDIRECT("'Faculty Searchable'!BA"&PDF!AH7),30)),"")) -> AUTO G101: Intro To Automotive Technology | B7: =IFERROR(IF(A7="","",INDIRECT("'Faculty Searchable'!I"&PDF!$AH7)),"") -> 43209 | C7: =IFERROR(IF(B7="","",INDIRECT("'Faculty Searchable'!BB"&PDF!$AH7)),"") -> 3 | D7: =IFERROR(IF(A7="","",INDIRECT("'Faculty Searchable'!AE"&PDF!$AH7)),"") -> 1:00pm - 2:05pm | E7: =IFERROR(IF(A7="","",IF(D7="Online","",SUBSTITUTE(INDIRECT("'Faculty Searchable'!AF"&PDF!$AH7),"0","--"))),"") -> MW | F7: =IFERROR(IF(A7="","",INDIRECT("'Faculty Searchable'!EB"&PDF!$AH7)),"") -> Onground | G7: =IFERROR(IF(A7="","",IFERROR(INDIRECT("'Faculty Searchable'!FG"&PDF!$AH7),INDIRECT("'Faculty Searchable'!FG"&PDF!$AH7))),"") -> [Brinkman-Marh M] | H7: =IFERROR(IF(A7="","",IF(TEXT(INDIRECT("'Faculty Searchable'!G"&PDF!$AH7),"##%")="%","",TEXT(INDIRECT("'Faculty Searchable'!G"&PDF!$AH7),"##%"))),"") -> 82% | I7: =IFERROR(IF(A7="","",IF(RIGHT(INDIRECT("'Faculty Searchable'!FO"&PDF!$AH7),5)="Major","--",RIGHT(INDIRECT("'Faculty Searchable'!FO"&PDF!$AH7),2))),"--") -> -- | J7: =IFERROR(IF(A7="","",RIGHT(INDIRECT("'Faculty Searchable'!FP"&PDF!$AH7),2)),"") ->  | K7: =IFERROR(IF(A7="","",IFERROR(VLOOKUP(B7,'Student Searchable'!A:B,2,FALSE),"")),"") ->  | L7: =IFERROR(LEFT(IF(A7="","",IF(INDIRECT("'Faculty Searchable'!CK"&PDF!$AH7)="","16-week-term",INDIRECT("'Faculty Searchable'!CK"&PDF!$AH7))),5),"") -> 1-SPR | M7: =IFERROR(MID(IF(A7="","",IF(INDIRECT("'Faculty Searchable'!CK"&PDF!$AH7)="","16-week-term",INDIRECT("'Faculty Searchable'!CK"&PDF!$AH7))),7,20),"") -> Apr 4 for 8 weeks | N7: =IF(B7="","",_xlfn.XLOOKUP(B7,Tracking!O:O,Tracking!A:A,"")) -> 0.07 | O7: =IF(PDF!AH7="","",IFERROR(INDIRECT("'Faculty Searchable'!FN"&PDF!$AH7),ROW())) -> 
A8: =IF(PDF!AH8="","",IFERROR(IF(PDF!A8="","",INDIRECT("'Faculty Searchable'!H"&PDF!AH8)&": "&LEFT(INDIRECT("'Faculty Searchable'!BA"&PDF!AH8),30)),"")) -> BUS G139: Business Communication | B8: =IFERROR(IF(A8="","",INDIRECT("'Faculty Searchable'!I"&PDF!$AH8)),"") -> 42716 | C8: =IFERROR(IF(B8="","",INDIRECT("'Faculty Searchable'!BB"&PDF!$AH8)),"") -> 3 | D8: =IFERROR(IF(A8="","",INDIRECT("'Faculty Searchable'!AE"&PDF!$AH8)),"") -> 6:00pm - 9:10pm | E8: =IFERROR(IF(A8="","",IF(D8="Online","",SUBSTITUTE(INDIRECT("'Faculty Searchable'!AF"&PDF!$AH8),"0","--"))),"") -> W | F8: =IFERROR(IF(A8="","",INDIRECT("'Faculty Searchable'!EB"&PDF!$AH8)),"") -> LiveOnline | G8: =IFERROR(IF(A8="","",IFERROR(INDIRECT("'Faculty Searchable'!FG"&PDF!$AH8),INDIRECT("'Faculty Searchable'!FG"&PDF!$AH8))),"") -> [Moore A L] | H8: =IFERROR(IF(A8="","",IF(TEXT(INDIRECT("'Faculty Searchable'!G"&PDF!$AH8),"##%")="%","",TEXT(INDIRECT("'Faculty Searchable'!G"&PDF!$AH8),"##%"))),"") -> 69% | I8: =IFERROR(IF(A8="","",IF(RIGHT(INDIRECT("'Faculty Searchable'!FO"&PDF!$AH8),5)="Major","--",RIGHT(INDIRECT("'Faculty Searchable'!FO"&PDF!$AH8),2))),"--") -> -- | J8: =IFERROR(IF(A8="","",RIGHT(INDIRECT("'Faculty Searchable'!FP"&PDF!$AH8),2)),"") ->  | K8: =IFERROR(IF(A8="","",IFERROR(VLOOKUP(B8,'Student Searchable'!A:B,2,FALSE),"")),"") ->  | L8: =IFERROR(LEFT(IF(A8="","",IF(INDIRECT("'Faculty Searchable'!CK"&PDF!$AH8)="","16-week-term",INDIRECT("'Faculty Searchable'!CK"&PDF!$AH8))),5),"") -> 1-SPR | M8: =IFERROR(MID(IF(A8="","",IF(INDIRECT("'Faculty Searchable'!CK"&PDF!$AH8)="","16-week-term",INDIRECT("'Faculty Searchable'!CK"&PDF!$AH8))),7,20),"") -> Apr 4 for 8 weeks | N8: =IF(B8="","",_xlfn.XLOOKUP(B8,Tracking!O:O,Tracking!A:A,"")) -> 0 | O8: =IF(PDF!AH8="","",IFERROR(INDIRECT("'Faculty Searchable'!FN"&PDF!$AH8),ROW())) -> 
A9: =IF(PDF!AH9="","",IFERROR(IF(PDF!A9="","",INDIRECT("'Faculty Searchable'!H"&PDF!AH9)&": "&LEFT(INDIRECT("'Faculty Searchable'!BA"&PDF!AH9),30)),"")) -> BUS G153: Writing An Effective Bus Plan | B9: =IFERROR(IF(A9="","",INDIRECT("'Faculty Searchable'!I"&PDF!$AH9)),"") -> 43435 | C9: =IFERROR(IF(B9="","",INDIRECT("'Faculty Searchable'!BB"&PDF!$AH9)),"") -> 1.5 | D9: =IFERROR(IF(A9="","",INDIRECT("'Faculty Searchable'!AE"&PDF!$AH9)),"") -> 3.4 hours arranged | E9: =IFERROR(IF(A9="","",IF(D9="Online","",SUBSTITUTE(INDIRECT("'Faculty Searchable'!AF"&PDF!$AH9),"0","--"))),"") ->  | F9: =IFERROR(IF(A9="","",INDIRECT("'Faculty Searchable'!EB"&PDF!$AH9)),"") -> Online | G9: =IFERROR(IF(A9="","",IFERROR(INDIRECT("'Faculty Searchable'!FG"&PDF!$AH9),INDIRECT("'Faculty Searchable'!FG"&PDF!$AH9))),"") -> [Moore A L] | H9: =IFERROR(IF(A9="","",IF(TEXT(INDIRECT("'Faculty Searchable'!G"&PDF!$AH9),"##%")="%","",TEXT(INDIRECT("'Faculty Searchable'!G"&PDF!$AH9),"##%"))),"") -> 42% | I9: =IFERROR(IF(A9="","",IF(RIGHT(INDIRECT("'Faculty Searchable'!FO"&PDF!$AH9),5)="Major","--",RIGHT(INDIRECT("'Faculty Searchable'!FO"&PDF!$AH9),2))),"--") -> -- | J9: =IFERROR(IF(A9="","",RIGHT(INDIRECT("'Faculty Searchable'!FP"&PDF!$AH9),2)),"") ->  | K9: =IFERROR(IF(A9="","",IFERROR(VLOOKUP(B9,'Student Searchable'!A:B,2,FALSE),"")),"") ->  | L9: =IFERROR(LEFT(IF(A9="","",IF(INDIRECT("'Faculty Searchable'!CK"&PDF!$AH9)="","16-week-term",INDIRECT("'Faculty Searchable'!CK"&PDF!$AH9))),5),"") -> 1-SPR | M9: =IFERROR(MID(IF(A9="","",IF(INDIRECT("'Faculty Searchable'!CK"&PDF!$AH9)="","16-week-term",INDIRECT("'Faculty Searchable'!CK"&PDF!$AH9))),7,20),"") -> Apr 4 for 8 weeks | N9: =IF(B9="","",_xlfn.XLOOKUP(B9,Tracking!O:O,Tracking!A:A,"")) -> -0.02 | O9: =IF(PDF!AH9="","",IFERROR(INDIRECT("'Faculty Searchable'!FN"&PDF!$AH9),ROW())) -> 
A10: =IF(PDF!AH10="","",IFERROR(IF(PDF!A10="","",INDIRECT("'Faculty Searchable'!H"&PDF!AH10)&": "&LEFT(INDIRECT("'Faculty Searchable'!BA"&PDF!AH10),30)),"")) -> BUS G158: Raise Money to Start/Grow Bus | B10: =IFERROR(IF(A10="","",INDIRECT("'Faculty Searchable'!I"&PDF!$AH10)),"") -> 46062 | C10: =IFERROR(IF(B10="","",INDIRECT("'Faculty Searchable'!BB"&PDF!$AH10)),"") -> 1.5 | D10: =IFERROR(IF(A10="","",INDIRECT("'Faculty Searchable'!AE"&PDF!$AH10)),"") -> 3.4 hours arranged | E10: =IFERROR(IF(A10="","",IF(D10="Online","",SUBSTITUTE(INDIRECT("'Faculty Searchable'!AF"&PDF!$AH10),"0","--"))),"") ->  | F10: =IFERROR(IF(A10="","",INDIRECT("'Faculty Searchable'!EB"&PDF!$AH10)),"") -> Online | G10: =IFERROR(IF(A10="","",IFERROR(INDIRECT("'Faculty Searchable'!FG"&PDF!$AH10),INDIRECT("'Faculty Searchable'!FG"&PDF!$AH10))),"") -> [Baumgartner B E] | H10: =IFERROR(IF(A10="","",IF(TEXT(INDIRECT("'Faculty Searchable'!G"&PDF!$AH10),"##%")="%","",TEXT(INDIRECT("'Faculty Searchable'!G"&PDF!$AH10),"##%"))),"") -> 38% | I10: =IFERROR(IF(A10="","",IF(RIGHT(INDIRECT("'Faculty Searchable'!FO"&PDF!$AH10),5)="Major","--",RIGHT(INDIRECT("'Faculty Searchable'!FO"&PDF!$AH10),2))),"--") -> -- | J10: =IFERROR(IF(A10="","",RIGHT(INDIRECT("'Faculty Searchable'!FP"&PDF!$AH10),2)),"") ->  | K10: =IFERROR(IF(A10="","",IFERROR(VLOOKUP(B10,'Student Searchable'!A:B,2,FALSE),"")),"") ->  | L10: =IFERROR(LEFT(IF(A10="","",IF(INDIRECT("'Faculty Searchable'!CK"&PDF!$AH10)="","16-week-term",INDIRECT("'Faculty Searchable'!CK"&PDF!$AH10))),5),"") -> 1-SPR | M10: =IFERROR(MID(IF(A10="","",IF(INDIRECT("'Faculty Searchable'!CK"&PDF!$AH10)="","16-week-term",INDIRECT("'Faculty Searchable'!CK"&PDF!$AH10))),7,20),"") -> Apr 4 for 8 weeks | N10: =IF(B10="","",_xlfn.XLOOKUP(B10,Tracking!O:O,Tracking!A:A,"")) -> 0.02 | O10: =IF(PDF!AH10="","",IFERROR(INDIRECT("'Faculty Searchable'!FN"&PDF!$AH10),ROW())) -> 
A11: =IF(PDF!AH11="","",IFERROR(IF(PDF!A11="","",INDIRECT("'Faculty Searchable'!H"&PDF!AH11)&": "&LEFT(INDIRECT("'Faculty Searchable'!BA"&PDF!AH11),30)),"")) -> CJ G046: Civilian Supvsry, Law Enforce | B11: =IFERROR(IF(A11="","",INDIRECT("'Faculty Searchable'!I"&PDF!$AH11)),"") -> 43558 | C11: =IFERROR(IF(B11="","",INDIRECT("'Faculty Searchable'!BB"&PDF!$AH11)),"") -> 4 | D11: =IFERROR(IF(A11="","",INDIRECT("'Faculty Searchable'!AE"&PDF!$AH11)),"") -> 8:00am - 12:00pm | E11: =IFERROR(IF(A11="","",IF(D11="Online","",SUBSTITUTE(INDIRECT("'Faculty Searchable'!AF"&PDF!$AH11),"0","--"))),"") -> MTWThF | F11: =IFERROR(IF(A11="","",INDIRECT("'Faculty Searchable'!EB"&PDF!$AH11)),"") -> Onground | G11: =IFERROR(IF(A11="","",IFERROR(INDIRECT("'Faculty Searchable'!FG"&PDF!$AH11),INDIRECT("'Faculty Searchable'!FG"&PDF!$AH11))),"") -> [Garrard V K] | H11: =IFERROR(IF(A11="","",IF(TEXT(INDIRECT("'Faculty Searchable'!G"&PDF!$AH11),"##%")="%","",TEXT(INDIRECT("'Faculty Searchable'!G"&PDF!$AH11),"##%"))),"") -> 85% | I11: =IFERROR(IF(A11="","",IF(RIGHT(INDIRECT("'Faculty Searchable'!FO"&PDF!$AH11),5)="Major","--",RIGHT(INDIRECT("'Faculty Searchable'!FO"&PDF!$AH11),2))),"--") -> -- | J11: =IFERROR(IF(A11="","",RIGHT(INDIRECT("'Faculty Searchable'!FP"&PDF!$AH11),2)),"") ->  | K11: =IFERROR(IF(A11="","",IFERROR(VLOOKUP(B11,'Student Searchable'!A:B,2,FALSE),"")),"") ->  | L11: =IFERROR(LEFT(IF(A11="","",IF(INDIRECT("'Faculty Searchable'!CK"&PDF!$AH11)="","16-week-term",INDIRECT("'Faculty Searchable'!CK"&PDF!$AH11))),5),"") -> 1-SPR | M11: =IFERROR(MID(IF(A11="","",IF(INDIRECT("'Faculty Searchable'!CK"&PDF!$AH11)="","16-week-term",INDIRECT("'Faculty Searchable'!CK"&PDF!$AH11))),7,20),"") -> Apr 25 for 2 weeks | N11: =IF(B11="","",_xlfn.XLOOKUP(B11,Tracking!O:O,Tracking!A:A,"")) -> 0.01 | O11: =IF(PDF!AH11="","",IFERROR(INDIRECT("'Faculty Searchable'!FN"&PDF!$AH11),ROW())) -> 
A12: =IF(PDF!AH12="","",IFERROR(IF(PDF!A12="","",INDIRECT("'Faculty Searchable'!H"&PDF!AH12)&": "&LEFT(INDIRECT("'Faculty Searchable'!BA"&PDF!AH12),30)),"")) -> CJ G054: Pol Acad Reg Basic Cours Orien | B12: =IFERROR(IF(A12="","",INDIRECT("'Faculty Searchable'!I"&PDF!$AH12)),"") -> 46543 | C12: =IFERROR(IF(B12="","",INDIRECT("'Faculty Searchable'!BB"&PDF!$AH12)),"") -> 2 | D12: =IFERROR(IF(A12="","",INDIRECT("'Faculty Searchable'!AE"&PDF!$AH12)),"") -> 7.5 hours arranged | E12: =IFERROR(IF(A12="","",IF(D12="Online","",SUBSTITUTE(INDIRECT("'Faculty Searchable'!AF"&PDF!$AH12),"0","--"))),"") ->  | F12: =IFERROR(IF(A12="","",INDIRECT("'Faculty Searchable'!EB"&PDF!$AH12)),"") -> Onground | G12: =IFERROR(IF(A12="","",IFERROR(INDIRECT("'Faculty Searchable'!FG"&PDF!$AH12),INDIRECT("'Faculty Searchable'!FG"&PDF!$AH12))),"") -> [Triplett W R] | H12: =IFERROR(IF(A12="","",IF(TEXT(INDIRECT("'Faculty Searchable'!G"&PDF!$AH12),"##%")="%","",TEXT(INDIRECT("'Faculty Searchable'!G"&PDF!$AH12),"##%"))),"") -> 29% | I12: =IFERROR(IF(A12="","",IF(RIGHT(INDIRECT("'Faculty Searchable'!FO"&PDF!$AH12),5)="Major","--",RIGHT(INDIRECT("'Faculty Searchable'!FO"&PDF!$AH12),2))),"--") -> -- | J12: =IFERROR(IF(A12="","",RIGHT(INDIRECT("'Faculty Searchable'!FP"&PDF!$AH12),2)),"") ->  | K12: =IFERROR(IF(A12="","",IFERROR(VLOOKUP(B12,'Student Searchable'!A:B,2,FALSE),"")),"") ->  | L12: =IFERROR(LEFT(IF(A12="","",IF(INDIRECT("'Faculty Searchable'!CK"&PDF!$AH12)="","16-week-term",INDIRECT("'Faculty Searchable'!CK"&PDF!$AH12))),5),"") -> 2-SUM | M12: =IFERROR(MID(IF(A12="","",IF(INDIRECT("'Faculty Searchable'!CK"&PDF!$AH12)="","16-week-term",INDIRECT("'Faculty Searchable'!CK"&PDF!$AH12))),7,20),"") -> May 16 for 4 weeks | N12: =IF(B12="","",_xlfn.XLOOKUP(B12,Tracking!O:O,Tracking!A:A,"")) -> 0 | O12: =IF(PDF!AH12="","",IFERROR(INDIRECT("'Faculty Searchable'!FN"&PDF!$AH12),ROW())) -> 
A13: =IF(PDF!AH13="","",IFERROR(IF(PDF!A13="","",INDIRECT("'Faculty Searchable'!H"&PDF!AH13)&": "&LEFT(INDIRECT("'Faculty Searchable'!BA"&PDF!AH13),30)),"")) -> CJ G220: Forensic Accounting, Intro | B13: =IFERROR(IF(A13="","",INDIRECT("'Faculty Searchable'!I"&PDF!$AH13)),"") -> 46506 | C13: =IFERROR(IF(B13="","",INDIRECT("'Faculty Searchable'!BB"&PDF!$AH13)),"") -> 3 | D13: =IFERROR(IF(A13="","",INDIRECT("'Faculty Searchable'!AE"&PDF!$AH13)),"") -> 6.8 hours arranged | E13: =IFERROR(IF(A13="","",IF(D13="Online","",SUBSTITUTE(INDIRECT("'Faculty Searchable'!AF"&PDF!$AH13),"0","--"))),"") ->  | F13: =IFERROR(IF(A13="","",INDIRECT("'Faculty Searchable'!EB"&PDF!$AH13)),"") -> Online | G13: =IFERROR(IF(A13="","",IFERROR(INDIRECT("'Faculty Searchable'!FG"&PDF!$AH13),INDIRECT("'Faculty Searchable'!FG"&PDF!$AH13))),"") -> [STAFF] | H13: =IFERROR(IF(A13="","",IF(TEXT(INDIRECT("'Faculty Searchable'!G"&PDF!$AH13),"##%")="%","",TEXT(INDIRECT("'Faculty Searchable'!G"&PDF!$AH13),"##%"))),"") -> 8% | I13: =IFERROR(IF(A13="","",IF(RIGHT(INDIRECT("'Faculty Searchable'!FO"&PDF!$AH13),5)="Major","--",RIGHT(INDIRECT("'Faculty Searchable'!FO"&PDF!$AH13),2))),"--") -> -- | J13: =IFERROR(IF(A13="","",RIGHT(INDIRECT("'Faculty Searchable'!FP"&PDF!$AH13),2)),"") ->  | K13: =IFERROR(IF(A13="","",IFERROR(VLOOKUP(B13,'Student Searchable'!A:B,2,FALSE),"")),"") ->  | L13: =IFERROR(LEFT(IF(A13="","",IF(INDIRECT("'Faculty Searchable'!CK"&PDF!$AH13)="","16-week-term",INDIRECT("'Faculty Searchable'!CK"&PDF!$AH13))),5),"") -> 1-SPR | M13: =IFERROR(MID(IF(A13="","",IF(INDIRECT("'Faculty Searchable'!CK"&PDF!$AH13)="","16-week-term",INDIRECT("'Faculty Searchable'!CK"&PDF!$AH13))),7,20),"") -> Apr 4 for 8 weeks | N13: =IF(B13="","",_xlfn.XLOOKUP(B13,Tracking!O:O,Tracking!A:A,"")) ->  | O13: =IF(PDF!AH13="","",IFERROR(INDIRECT("'Faculty Searchable'!FN"&PDF!$AH13),ROW())) -> 
A14: =IF(PDF!AH14="","",IFERROR(IF(PDF!A14="","",INDIRECT("'Faculty Searchable'!H"&PDF!AH14)&": "&LEFT(INDIRECT("'Faculty Searchable'!BA"&PDF!AH14),30)),"")) -> COMM G110: Public Speaking | B14: =IFERROR(IF(A14="","",INDIRECT("'Faculty Searchable'!I"&PDF!$AH14)),"") -> 43692 | C14: =IFERROR(IF(B14="","",INDIRECT("'Faculty Searchable'!BB"&PDF!$AH14)),"") -> 3 | D14: =IFERROR(IF(A14="","",INDIRECT("'Faculty Searchable'!AE"&PDF!$AH14)),"") -> 6.8 hours arranged | E14: =IFERROR(IF(A14="","",IF(D14="Online","",SUBSTITUTE(INDIRECT("'Faculty Searchable'!AF"&PDF!$AH14),"0","--"))),"") ->  | F14: =IFERROR(IF(A14="","",INDIRECT("'Faculty Searchable'!EB"&PDF!$AH14)),"") -> Online | G14: =IFERROR(IF(A14="","",IFERROR(INDIRECT("'Faculty Searchable'!FG"&PDF!$AH14),INDIRECT("'Faculty Searchable'!FG"&PDF!$AH14))),"") -> [Lyon M K] | H14: =IFERROR(IF(A14="","",IF(TEXT(INDIRECT("'Faculty Searchable'!G"&PDF!$AH14),"##%")="%","",TEXT(INDIRECT("'Faculty Searchable'!G"&PDF!$AH14),"##%"))),"") -> 97% | I14: =IFERROR(IF(A14="","",IF(RIGHT(INDIRECT("'Faculty Searchable'!FO"&PDF!$AH14),5)="Major","--",RIGHT(INDIRECT("'Faculty Searchable'!FO"&PDF!$AH14),2))),"--") -> A1 | J14: =IFERROR(IF(A14="","",RIGHT(INDIRECT("'Faculty Searchable'!FP"&PDF!$AH14),2)),"") -> 1C | K14: =IFERROR(IF(A14="","",IFERROR(VLOOKUP(B14,'Student Searchable'!A:B,2,FALSE),"")),"") -> Free! | L14: =IFERROR(LEFT(IF(A14="","",IF(INDIRECT("'Faculty Searchable'!CK"&PDF!$AH14)="","16-week-term",INDIRECT("'Faculty Searchable'!CK"&PDF!$AH14))),5),"") -> 1-SPR | M14: =IFERROR(MID(IF(A14="","",IF(INDIRECT("'Faculty Searchable'!CK"&PDF!$AH14)="","16-week-term",INDIRECT("'Faculty Searchable'!CK"&PDF!$AH14))),7,20),"") -> Apr 4 for 8 weeks | N14: =IF(B14="","",_xlfn.XLOOKUP(B14,Tracking!O:O,Tracking!A:A,"")) ->  | O14: =IF(PDF!AH14="","",IFERROR(INDIRECT("'Faculty Searchable'!FN"&PDF!$AH14),ROW())) -> 
A15: =IF(PDF!AH15="","",IFERROR(IF(PDF!A15="","",INDIRECT("'Faculty Searchable'!H"&PDF!AH15)&": "&LEFT(INDIRECT("'Faculty Searchable'!BA"&PDF!AH15),30)),"")) -> DART G135: Digital Illustration | B15: =IFERROR(IF(A15="","",INDIRECT("'Faculty Searchable'!I"&PDF!$AH15)),"") -> 43323 | C15: =IFERROR(IF(B15="","",INDIRECT("'Faculty Searchable'!BB"&PDF!$AH15)),"") -> 3 | D15: =IFERROR(IF(A15="","",INDIRECT("'Faculty Searchable'!AE"&PDF!$AH15)),"") -> 4.5 hours arranged | E15: =IFERROR(IF(A15="","",IF(D15="Online","",SUBSTITUTE(INDIRECT("'Faculty Searchable'!AF"&PDF!$AH15),"0","--"))),"") ->  | F15: =IFERROR(IF(A15="","",INDIRECT("'Faculty Searchable'!EB"&PDF!$AH15)),"") -> Online | G15: =IFERROR(IF(A15="","",IFERROR(INDIRECT("'Faculty Searchable'!FG"&PDF!$AH15),INDIRECT("'Faculty Searchable'!FG"&PDF!$AH15))),"") -> [Caldwell A L] | H15: =IFERROR(IF(A15="","",IF(TEXT(INDIRECT("'Faculty Searchable'!G"&PDF!$AH15),"##%")="%","",TEXT(INDIRECT("'Faculty Searchable'!G"&PDF!$AH15),"##%"))),"") -> 68% | I15: =IFERROR(IF(A15="","",IF(RIGHT(INDIRECT("'Faculty Searchable'!FO"&PDF!$AH15),5)="Major","--",RIGHT(INDIRECT("'Faculty Searchable'!FO"&PDF!$AH15),2))),"--") -> -- | J15: =IFERROR(IF(A15="","",RIGHT(INDIRECT("'Faculty Searchable'!FP"&PDF!$AH15),2)),"") ->  | K15: =IFERROR(IF(A15="","",IFERROR(VLOOKUP(B15,'Student Searchable'!A:B,2,FALSE),"")),"") ->  | L15: =IFERROR(LEFT(IF(A15="","",IF(INDIRECT("'Faculty Searchable'!CK"&PDF!$AH15)="","16-week-term",INDIRECT("'Faculty Searchable'!CK"&PDF!$AH15))),5),"") -> 1-SPR | M15: =IFERROR(MID(IF(A15="","",IF(INDIRECT("'Faculty Searchable'!CK"&PDF!$AH15)="","16-week-term",INDIRECT("'Faculty Searchable'!CK"&PDF!$AH15))),7,20),"") -> Apr 4 for 8 weeks | N15: =IF(B15="","",_xlfn.XLOOKUP(B15,Tracking!O:O,Tracking!A:A,"")) -> -0.02 | O15: =IF(PDF!AH15="","",IFERROR(INDIRECT("'Faculty Searchable'!FN"&PDF!$AH15),ROW())) -> 
A16: =IF(PDF!AH16="","",IFERROR(IF(PDF!A16="","",INDIRECT("'Faculty Searchable'!H"&PDF!AH16)&": "&LEFT(INDIRECT("'Faculty Searchable'!BA"&PDF!AH16),30)),"")) -> DART G152: Digital Imaging II | B16: =IFERROR(IF(A16="","",INDIRECT("'Faculty Searchable'!I"&PDF!$AH16)),"") -> 46105 | C16: =IFERROR(IF(B16="","",INDIRECT("'Faculty Searchable'!BB"&PDF!$AH16)),"") -> 3 | D16: =IFERROR(IF(A16="","",INDIRECT("'Faculty Searchable'!AE"&PDF!$AH16)),"") -> 4.5 hours arranged | E16: =IFERROR(IF(A16="","",IF(D16="Online","",SUBSTITUTE(INDIRECT("'Faculty Searchable'!AF"&PDF!$AH16),"0","--"))),"") ->  | F16: =IFERROR(IF(A16="","",INDIRECT("'Faculty Searchable'!EB"&PDF!$AH16)),"") -> Online | G16: =IFERROR(IF(A16="","",IFERROR(INDIRECT("'Faculty Searchable'!FG"&PDF!$AH16),INDIRECT("'Faculty Searchable'!FG"&PDF!$AH16))),"") -> [Caldwell A L] | H16: =IFERROR(IF(A16="","",IF(TEXT(INDIRECT("'Faculty Searchable'!G"&PDF!$AH16),"##%")="%","",TEXT(INDIRECT("'Faculty Searchable'!G"&PDF!$AH16),"##%"))),"") -> 28% | I16: =IFERROR(IF(A16="","",IF(RIGHT(INDIRECT("'Faculty Searchable'!FO"&PDF!$AH16),5)="Major","--",RIGHT(INDIRECT("'Faculty Searchable'!FO"&PDF!$AH16),2))),"--") -> -- | J16: =IFERROR(IF(A16="","",RIGHT(INDIRECT("'Faculty Searchable'!FP"&PDF!$AH16),2)),"") ->  | K16: =IFERROR(IF(A16="","",IFERROR(VLOOKUP(B16,'Student Searchable'!A:B,2,FALSE),"")),"") ->  | L16: =IFERROR(LEFT(IF(A16="","",IF(INDIRECT("'Faculty Searchable'!CK"&PDF!$AH16)="","16-week-term",INDIRECT("'Faculty Searchable'!CK"&PDF!$AH16))),5),"") -> 1-SPR | M16: =IFERROR(MID(IF(A16="","",IF(INDIRECT("'Faculty Searchable'!CK"&PDF!$AH16)="","16-week-term",INDIRECT("'Faculty Searchable'!CK"&PDF!$AH16))),7,20),"") -> Apr 4 for 8 weeks | N16: =IF(B16="","",_xlfn.XLOOKUP(B16,Tracking!O:O,Tracking!A:A,"")) -> 0.02 | O16: =IF(PDF!AH16="","",IFERROR(INDIRECT("'Faculty Searchable'!FN"&PDF!$AH16),ROW())) -> 
A17: =IF(PDF!AH17="","",IFERROR(IF(PDF!A17="","",INDIRECT("'Faculty Searchable'!H"&PDF!AH17)&": "&LEFT(INDIRECT("'Faculty Searchable'!BA"&PDF!AH17),30)),"")) -> ELL G015N: Grammar for Fluency 1 | B17: =IFERROR(IF(A17="","",INDIRECT("'Faculty Searchable'!I"&PDF!$AH17)),"") -> 43936 | C17: =IFERROR(IF(B17="","",INDIRECT("'Faculty Searchable'!BB"&PDF!$AH17)),"") -> 0 | D17: =IFERROR(IF(A17="","",INDIRECT("'Faculty Searchable'!AE"&PDF!$AH17)),"") -> 8:50am - 10:05am | E17: =IFERROR(IF(A17="","",IF(D17="Online","",SUBSTITUTE(INDIRECT("'Faculty Searchable'!AF"&PDF!$AH17),"0","--"))),"") -> TTh | F17: =IFERROR(IF(A17="","",INDIRECT("'Faculty Searchable'!EB"&PDF!$AH17)),"") -> Onground | G17: =IFERROR(IF(A17="","",IFERROR(INDIRECT("'Faculty Searchable'!FG"&PDF!$AH17),INDIRECT("'Faculty Searchable'!FG"&PDF!$AH17))),"") -> [Flood J E] | H17: =IFERROR(IF(A17="","",IF(TEXT(INDIRECT("'Faculty Searchable'!G"&PDF!$AH17),"##%")="%","",TEXT(INDIRECT("'Faculty Searchable'!G"&PDF!$AH17),"##%"))),"") -> 87% | I17: =IFERROR(IF(A17="","",IF(RIGHT(INDIRECT("'Faculty Searchable'!FO"&PDF!$AH17),5)="Major","--",RIGHT(INDIRECT("'Faculty Searchable'!FO"&PDF!$AH17),2))),"--") -> -- | J17: =IFERROR(IF(A17="","",RIGHT(INDIRECT("'Faculty Searchable'!FP"&PDF!$AH17),2)),"") ->  | K17: =IFERROR(IF(A17="","",IFERROR(VLOOKUP(B17,'Student Searchable'!A:B,2,FALSE),"")),"") ->  | L17: =IFERROR(LEFT(IF(A17="","",IF(INDIRECT("'Faculty Searchable'!CK"&PDF!$AH17)="","16-week-term",INDIRECT("'Faculty Searchable'!CK"&PDF!$AH17))),5),"") -> 1-SPR | M17: =IFERROR(MID(IF(A17="","",IF(INDIRECT("'Faculty Searchable'!CK"&PDF!$AH17)="","16-week-term",INDIRECT("'Faculty Searchable'!CK"&PDF!$AH17))),7,20),"") -> Apr 4 for 8 weeks | N17: =IF(B17="","",_xlfn.XLOOKUP(B17,Tracking!O:O,Tracking!A:A,"")) -> -0.02 | O17: =IF(PDF!AH17="","",IFERROR(INDIRECT("'Faculty Searchable'!FN"&PDF!$AH17),ROW())) -> 
A18: =IF(PDF!AH18="","",IFERROR(IF(PDF!A18="","",INDIRECT("'Faculty Searchable'!H"&PDF!AH18)&": "&LEFT(INDIRECT("'Faculty Searchable'!BA"&PDF!AH18),30)),"")) -> ELL G016N: Pronunciation for Fluency 1 | B18: =IFERROR(IF(A18="","",INDIRECT("'Faculty Searchable'!I"&PDF!$AH18)),"") -> 43940 | C18: =IFERROR(IF(B18="","",INDIRECT("'Faculty Searchable'!BB"&PDF!$AH18)),"") -> 0 | D18: =IFERROR(IF(A18="","",INDIRECT("'Faculty Searchable'!AE"&PDF!$AH18)),"") -> 10:20am - 11:35am | E18: =IFERROR(IF(A18="","",IF(D18="Online","",SUBSTITUTE(INDIRECT("'Faculty Searchable'!AF"&PDF!$AH18),"0","--"))),"") -> TTh | F18: =IFERROR(IF(A18="","",INDIRECT("'Faculty Searchable'!EB"&PDF!$AH18)),"") -> Onground | G18: =IFERROR(IF(A18="","",IFERROR(INDIRECT("'Faculty Searchable'!FG"&PDF!$AH18),INDIRECT("'Faculty Searchable'!FG"&PDF!$AH18))),"") -> [Sattler T M] | H18: =IFERROR(IF(A18="","",IF(TEXT(INDIRECT("'Faculty Searchable'!G"&PDF!$AH18),"##%")="%","",TEXT(INDIRECT("'Faculty Searchable'!G"&PDF!$AH18),"##%"))),"") -> 96% | I18: =IFERROR(IF(A18="","",IF(RIGHT(INDIRECT("'Faculty Searchable'!FO"&PDF!$AH18),5)="Major","--",RIGHT(INDIRECT("'Faculty Searchable'!FO"&PDF!$AH18),2))),"--") -> -- | J18: =IFERROR(IF(A18="","",RIGHT(INDIRECT("'Faculty Searchable'!FP"&PDF!$AH18),2)),"") ->  | K18: =IFERROR(IF(A18="","",IFERROR(VLOOKUP(B18,'Student Searchable'!A:B,2,FALSE),"")),"") ->  | L18: =IFERROR(LEFT(IF(A18="","",IF(INDIRECT("'Faculty Searchable'!CK"&PDF!$AH18)="","16-week-term",INDIRECT("'Faculty Searchable'!CK"&PDF!$AH18))),5),"") -> 1-SPR | M18: =IFERROR(MID(IF(A18="","",IF(INDIRECT("'Faculty Searchable'!CK"&PDF!$AH18)="","16-week-term",INDIRECT("'Faculty Searchable'!CK"&PDF!$AH18))),7,20),"") -> Apr 4 for 8 weeks | N18: =IF(B18="","",_xlfn.XLOOKUP(B18,Tracking!O:O,Tracking!A:A,"")) -> 0.03 | O18: =IF(PDF!AH18="","",IFERROR(INDIRECT("'Faculty Searchable'!FN"&PDF!$AH18),ROW())) -> 
A19: =IF(PDF!AH19="","",IFERROR(IF(PDF!A19="","",INDIRECT("'Faculty Searchable'!H"&PDF!AH19)&": "&LEFT(INDIRECT("'Faculty Searchable'!BA"&PDF!AH19),30)),"")) -> ELL G025N: Grammar for Fluency 2 | B19: =IFERROR(IF(A19="","",INDIRECT("'Faculty Searchable'!I"&PDF!$AH19)),"") -> 43949 | C19: =IFERROR(IF(B19="","",INDIRECT("'Faculty Searchable'!BB"&PDF!$AH19)),"") -> 0 | D19: =IFERROR(IF(A19="","",INDIRECT("'Faculty Searchable'!AE"&PDF!$AH19)),"") -> 8:50am - 10:05am | E19: =IFERROR(IF(A19="","",IF(D19="Online","",SUBSTITUTE(INDIRECT("'Faculty Searchable'!AF"&PDF!$AH19),"0","--"))),"") -> TTh | F19: =IFERROR(IF(A19="","",INDIRECT("'Faculty Searchable'!EB"&PDF!$AH19)),"") -> Onground | G19: =IFERROR(IF(A19="","",IFERROR(INDIRECT("'Faculty Searchable'!FG"&PDF!$AH19),INDIRECT("'Faculty Searchable'!FG"&PDF!$AH19))),"") -> [Nguyen T X] | H19: =IFERROR(IF(A19="","",IF(TEXT(INDIRECT("'Faculty Searchable'!G"&PDF!$AH19),"##%")="%","",TEXT(INDIRECT("'Faculty Searchable'!G"&PDF!$AH19),"##%"))),"") -> 73% | I19: =IFERROR(IF(A19="","",IF(RIGHT(INDIRECT("'Faculty Searchable'!FO"&PDF!$AH19),5)="Major","--",RIGHT(INDIRECT("'Faculty Searchable'!FO"&PDF!$AH19),2))),"--") -> -- | J19: =IFERROR(IF(A19="","",RIGHT(INDIRECT("'Faculty Searchable'!FP"&PDF!$AH19),2)),"") ->  | K19: =IFERROR(IF(A19="","",IFERROR(VLOOKUP(B19,'Student Searchable'!A:B,2,FALSE),"")),"") ->  | L19: =IFERROR(LEFT(IF(A19="","",IF(INDIRECT("'Faculty Searchable'!CK"&PDF!$AH19)="","16-week-term",INDIRECT("'Faculty Searchable'!CK"&PDF!$AH19))),5),"") -> 1-SPR | M19: =IFERROR(MID(IF(A19="","",IF(INDIRECT("'Faculty Searchable'!CK"&PDF!$AH19)="","16-week-term",INDIRECT("'Faculty Searchable'!CK"&PDF!$AH19))),7,20),"") -> Apr 4 for 8 weeks | N19: =IF(B19="","",_xlfn.XLOOKUP(B19,Tracking!O:O,Tracking!A:A,"")) -> 0.02 | O19: =IF(PDF!AH19="","",IFERROR(INDIRECT("'Faculty Searchable'!FN"&PDF!$AH19),ROW())) -> 
A20: =IF(PDF!AH20="","",IFERROR(IF(PDF!A20="","",INDIRECT("'Faculty Searchable'!H"&PDF!AH20)&": "&LEFT(INDIRECT("'Faculty Searchable'!BA"&PDF!AH20),30)),"")) -> ELL G026N: Pronunciation for Fluency 2 | B20: =IFERROR(IF(A20="","",INDIRECT("'Faculty Searchable'!I"&PDF!$AH20)),"") -> 46485 | C20: =IFERROR(IF(B20="","",INDIRECT("'Faculty Searchable'!BB"&PDF!$AH20)),"") -> 0 | D20: =IFERROR(IF(A20="","",INDIRECT("'Faculty Searchable'!AE"&PDF!$AH20)),"") -> 7:20pm - 8:35pm | E20: =IFERROR(IF(A20="","",IF(D20="Online","",SUBSTITUTE(INDIRECT("'Faculty Searchable'!AF"&PDF!$AH20),"0","--"))),"") -> MW | F20: =IFERROR(IF(A20="","",INDIRECT("'Faculty Searchable'!EB"&PDF!$AH20)),"") -> LiveOnline | G20: =IFERROR(IF(A20="","",IFERROR(INDIRECT("'Faculty Searchable'!FG"&PDF!$AH20),INDIRECT("'Faculty Searchable'!FG"&PDF!$AH20))),"") -> [Henel S] | H20: =IFERROR(IF(A20="","",IF(TEXT(INDIRECT("'Faculty Searchable'!G"&PDF!$AH20),"##%")="%","",TEXT(INDIRECT("'Faculty Searchable'!G"&PDF!$AH20),"##%"))),"") -> 87% | I20: =IFERROR(IF(A20="","",IF(RIGHT(INDIRECT("'Faculty Searchable'!FO"&PDF!$AH20),5)="Major","--",RIGHT(INDIRECT("'Faculty Searchable'!FO"&PDF!$AH20),2))),"--") -> -- | J20: =IFERROR(IF(A20="","",RIGHT(INDIRECT("'Faculty Searchable'!FP"&PDF!$AH20),2)),"") ->  | K20: =IFERROR(IF(A20="","",IFERROR(VLOOKUP(B20,'Student Searchable'!A:B,2,FALSE),"")),"") ->  | L20: =IFERROR(LEFT(IF(A20="","",IF(INDIRECT("'Faculty Searchable'!CK"&PDF!$AH20)="","16-week-term",INDIRECT("'Faculty Searchable'!CK"&PDF!$AH20))),5),"") -> 1-SPR | M20: =IFERROR(MID(IF(A20="","",IF(INDIRECT("'Faculty Searchable'!CK"&PDF!$AH20)="","16-week-term",INDIRECT("'Faculty Searchable'!CK"&PDF!$AH20))),7,20),"") -> Apr 4 for 8 weeks | N20: =IF(B20="","",_xlfn.XLOOKUP(B20,Tracking!O:O,Tracking!A:A,"")) -> 0.05 | O20: =IF(PDF!AH20="","",IFERROR(INDIRECT("'Faculty Searchable'!FN"&PDF!$AH20),ROW())) -> 
A21: =IF(PDF!AH21="","",IFERROR(IF(PDF!A21="","",INDIRECT("'Faculty Searchable'!H"&PDF!AH21)&": "&LEFT(INDIRECT("'Faculty Searchable'!BA"&PDF!AH21),30)),"")) -> ELL G026N: Pronunciation for Fluency 2 | B21: =IFERROR(IF(A21="","",INDIRECT("'Faculty Searchable'!I"&PDF!$AH21)),"") -> 43954 | C21: =IFERROR(IF(B21="","",INDIRECT("'Faculty Searchable'!BB"&PDF!$AH21)),"") -> 0 | D21: =IFERROR(IF(A21="","",INDIRECT("'Faculty Searchable'!AE"&PDF!$AH21)),"") -> 10:20am - 11:35am | E21: =IFERROR(IF(A21="","",IF(D21="Online","",SUBSTITUTE(INDIRECT("'Faculty Searchable'!AF"&PDF!$AH21),"0","--"))),"") -> TTh | F21: =IFERROR(IF(A21="","",INDIRECT("'Faculty Searchable'!EB"&PDF!$AH21)),"") -> Onground | G21: =IFERROR(IF(A21="","",IFERROR(INDIRECT("'Faculty Searchable'!FG"&PDF!$AH21),INDIRECT("'Faculty Searchable'!FG"&PDF!$AH21))),"") -> [Nguyen T X] | H21: =IFERROR(IF(A21="","",IF(TEXT(INDIRECT("'Faculty Searchable'!G"&PDF!$AH21),"##%")="%","",TEXT(INDIRECT("'Faculty Searchable'!G"&PDF!$AH21),"##%"))),"") -> 87% | I21: =IFERROR(IF(A21="","",IF(RIGHT(INDIRECT("'Faculty Searchable'!FO"&PDF!$AH21),5)="Major","--",RIGHT(INDIRECT("'Faculty Searchable'!FO"&PDF!$AH21),2))),"--") -> -- | J21: =IFERROR(IF(A21="","",RIGHT(INDIRECT("'Faculty Searchable'!FP"&PDF!$AH21),2)),"") ->  | K21: =IFERROR(IF(A21="","",IFERROR(VLOOKUP(B21,'Student Searchable'!A:B,2,FALSE),"")),"") ->  | L21: =IFERROR(LEFT(IF(A21="","",IF(INDIRECT("'Faculty Searchable'!CK"&PDF!$AH21)="","16-week-term",INDIRECT("'Faculty Searchable'!CK"&PDF!$AH21))),5),"") -> 1-SPR | M21: =IFERROR(MID(IF(A21="","",IF(INDIRECT("'Faculty Searchable'!CK"&PDF!$AH21)="","16-week-term",INDIRECT("'Faculty Searchable'!CK"&PDF!$AH21))),7,20),"") -> Apr 4 for 8 weeks | N21: =IF(B21="","",_xlfn.XLOOKUP(B21,Tracking!O:O,Tracking!A:A,"")) -> 0.03 | O21: =IF(PDF!AH21="","",IFERROR(INDIRECT("'Faculty Searchable'!FN"&PDF!$AH21),ROW())) -> 
A22: =IF(PDF!AH22="","",IFERROR(IF(PDF!A22="","",INDIRECT("'Faculty Searchable'!H"&PDF!AH22)&": "&LEFT(INDIRECT("'Faculty Searchable'!BA"&PDF!AH22),30)),"")) -> ELL G028N: Listen & Speak Citizenship | B22: =IFERROR(IF(A22="","",INDIRECT("'Faculty Searchable'!I"&PDF!$AH22)),"") -> 45659 | C22: =IFERROR(IF(B22="","",INDIRECT("'Faculty Searchable'!BB"&PDF!$AH22)),"") -> 0 | D22: =IFERROR(IF(A22="","",INDIRECT("'Faculty Searchable'!AE"&PDF!$AH22)),"") -> 12:10pm - 2:15pm | E22: =IFERROR(IF(A22="","",IF(D22="Online","",SUBSTITUTE(INDIRECT("'Faculty Searchable'!AF"&PDF!$AH22),"0","--"))),"") -> MTW | F22: =IFERROR(IF(A22="","",INDIRECT("'Faculty Searchable'!EB"&PDF!$AH22)),"") -> Onground | G22: =IFERROR(IF(A22="","",IFERROR(INDIRECT("'Faculty Searchable'!FG"&PDF!$AH22),INDIRECT("'Faculty Searchable'!FG"&PDF!$AH22))),"") -> [Nguyen T X] | H22: =IFERROR(IF(A22="","",IF(TEXT(INDIRECT("'Faculty Searchable'!G"&PDF!$AH22),"##%")="%","",TEXT(INDIRECT("'Faculty Searchable'!G"&PDF!$AH22),"##%"))),"") -> 96% | I22: =IFERROR(IF(A22="","",IF(RIGHT(INDIRECT("'Faculty Searchable'!FO"&PDF!$AH22),5)="Major","--",RIGHT(INDIRECT("'Faculty Searchable'!FO"&PDF!$AH22),2))),"--") -> -- | J22: =IFERROR(IF(A22="","",RIGHT(INDIRECT("'Faculty Searchable'!FP"&PDF!$AH22),2)),"") ->  | K22: =IFERROR(IF(A22="","",IFERROR(VLOOKUP(B22,'Student Searchable'!A:B,2,FALSE),"")),"") ->  | L22: =IFERROR(LEFT(IF(A22="","",IF(INDIRECT("'Faculty Searchable'!CK"&PDF!$AH22)="","16-week-term",INDIRECT("'Faculty Searchable'!CK"&PDF!$AH22))),5),"") -> 1-SPR | M22: =IFERROR(MID(IF(A22="","",IF(INDIRECT("'Faculty Searchable'!CK"&PDF!$AH22)="","16-week-term",INDIRECT("'Faculty Searchable'!CK"&PDF!$AH22))),7,20),"") -> Apr 4 for 8 weeks | N22: =IF(B22="","",_xlfn.XLOOKUP(B22,Tracking!O:O,Tracking!A:A,"")) -> 0.03 | O22: =IF(PDF!AH22="","",IFERROR(INDIRECT("'Faculty Searchable'!FN"&PDF!$AH22),ROW())) -> 
A23: =IF(PDF!AH23="","",IFERROR(IF(PDF!A23="","",INDIRECT("'Faculty Searchable'!H"&PDF!AH23)&": "&LEFT(INDIRECT("'Faculty Searchable'!BA"&PDF!AH23),30)),"")) -> ELL G035N: Grammar for Fluency 3 | B23: =IFERROR(IF(A23="","",INDIRECT("'Faculty Searchable'!I"&PDF!$AH23)),"") -> 43960 | C23: =IFERROR(IF(B23="","",INDIRECT("'Faculty Searchable'!BB"&PDF!$AH23)),"") -> 0 | D23: =IFERROR(IF(A23="","",INDIRECT("'Faculty Searchable'!AE"&PDF!$AH23)),"") -> 5:50pm - 7:05pm | E23: =IFERROR(IF(A23="","",IF(D23="Online","",SUBSTITUTE(INDIRECT("'Faculty Searchable'!AF"&PDF!$AH23),"0","--"))),"") -> MW | F23: =IFERROR(IF(A23="","",INDIRECT("'Faculty Searchable'!EB"&PDF!$AH23)),"") -> LiveOnline | G23: =IFERROR(IF(A23="","",IFERROR(INDIRECT("'Faculty Searchable'!FG"&PDF!$AH23),INDIRECT("'Faculty Searchable'!FG"&PDF!$AH23))),"") -> [Lao T] | H23: =IFERROR(IF(A23="","",IF(TEXT(INDIRECT("'Faculty Searchable'!G"&PDF!$AH23),"##%")="%","",TEXT(INDIRECT("'Faculty Searchable'!G"&PDF!$AH23),"##%"))),"") -> 91% | I23: =IFERROR(IF(A23="","",IF(RIGHT(INDIRECT("'Faculty Searchable'!FO"&PDF!$AH23),5)="Major","--",RIGHT(INDIRECT("'Faculty Searchable'!FO"&PDF!$AH23),2))),"--") -> -- | J23: =IFERROR(IF(A23="","",RIGHT(INDIRECT("'Faculty Searchable'!FP"&PDF!$AH23),2)),"") ->  | K23: =IFERROR(IF(A23="","",IFERROR(VLOOKUP(B23,'Student Searchable'!A:B,2,FALSE),"")),"") ->  | L23: =IFERROR(LEFT(IF(A23="","",IF(INDIRECT("'Faculty Searchable'!CK"&PDF!$AH23)="","16-week-term",INDIRECT("'Faculty Searchable'!CK"&PDF!$AH23))),5),"") -> 1-SPR | M23: =IFERROR(MID(IF(A23="","",IF(INDIRECT("'Faculty Searchable'!CK"&PDF!$AH23)="","16-week-term",INDIRECT("'Faculty Searchable'!CK"&PDF!$AH23))),7,20),"") -> Apr 4 for 8 weeks | N23: =IF(B23="","",_xlfn.XLOOKUP(B23,Tracking!O:O,Tracking!A:A,"")) -> 0 | O23: =IF(PDF!AH23="","",IFERROR(INDIRECT("'Faculty Searchable'!FN"&PDF!$AH23),ROW())) -> 
A24: =IF(PDF!AH24="","",IFERROR(IF(PDF!A24="","",INDIRECT("'Faculty Searchable'!H"&PDF!AH24)&": "&LEFT(INDIRECT("'Faculty Searchable'!BA"&PDF!AH24),30)),"")) -> ELL G036N: Pronunciation for Fluency 3 | B24: =IFERROR(IF(A24="","",INDIRECT("'Faculty Searchable'!I"&PDF!$AH24)),"") -> 46473 | C24: =IFERROR(IF(B24="","",INDIRECT("'Faculty Searchable'!BB"&PDF!$AH24)),"") -> 0 | D24: =IFERROR(IF(A24="","",INDIRECT("'Faculty Searchable'!AE"&PDF!$AH24)),"") -> 7:20pm - 8:35pm | E24: =IFERROR(IF(A24="","",IF(D24="Online","",SUBSTITUTE(INDIRECT("'Faculty Searchable'!AF"&PDF!$AH24),"0","--"))),"") -> MW | F24: =IFERROR(IF(A24="","",INDIRECT("'Faculty Searchable'!EB"&PDF!$AH24)),"") -> LiveOnline | G24: =IFERROR(IF(A24="","",IFERROR(INDIRECT("'Faculty Searchable'!FG"&PDF!$AH24),INDIRECT("'Faculty Searchable'!FG"&PDF!$AH24))),"") -> [Youn M S] | H24: =IFERROR(IF(A24="","",IF(TEXT(INDIRECT("'Faculty Searchable'!G"&PDF!$AH24),"##%")="%","",TEXT(INDIRECT("'Faculty Searchable'!G"&PDF!$AH24),"##%"))),"") -> 87% | I24: =IFERROR(IF(A24="","",IF(RIGHT(INDIRECT("'Faculty Searchable'!FO"&PDF!$AH24),5)="Major","--",RIGHT(INDIRECT("'Faculty Searchable'!FO"&PDF!$AH24),2))),"--") -> -- | J24: =IFERROR(IF(A24="","",RIGHT(INDIRECT("'Faculty Searchable'!FP"&PDF!$AH24),2)),"") ->  | K24: =IFERROR(IF(A24="","",IFERROR(VLOOKUP(B24,'Student Searchable'!A:B,2,FALSE),"")),"") ->  | L24: =IFERROR(LEFT(IF(A24="","",IF(INDIRECT("'Faculty Searchable'!CK"&PDF!$AH24)="","16-week-term",INDIRECT("'Faculty Searchable'!CK"&PDF!$AH24))),5),"") -> 1-SPR | M24: =IFERROR(MID(IF(A24="","",IF(INDIRECT("'Faculty Searchable'!CK"&PDF!$AH24)="","16-week-term",INDIRECT("'Faculty Searchable'!CK"&PDF!$AH24))),7,20),"") -> Apr 4 for 8 weeks | N24: =IF(B24="","",_xlfn.XLOOKUP(B24,Tracking!O:O,Tracking!A:A,"")) -> 0 | O24: =IF(PDF!AH24="","",IFERROR(INDIRECT("'Faculty Searchable'!FN"&PDF!$AH24),ROW())) -> 
A25: =IF(PDF!AH25="","",IFERROR(IF(PDF!A25="","",INDIRECT("'Faculty Searchable'!H"&PDF!AH25)&": "&LEFT(INDIRECT("'Faculty Searchable'!BA"&PDF!AH25),30)),"")) -> ENGL G100: Freshman Composition | B25: =IFERROR(IF(A25="","",INDIRECT("'Faculty Searchable'!I"&PDF!$AH25)),"") -> 43321 | C25: =IFERROR(IF(B25="","",INDIRECT("'Faculty Searchable'!BB"&PDF!$AH25)),"") -> 4 | D25: =IFERROR(IF(A25="","",INDIRECT("'Faculty Searchable'!AE"&PDF!$AH25)),"") -> 6:00pm - 8:05pm | E25: =IFERROR(IF(A25="","",IF(D25="Online","",SUBSTITUTE(INDIRECT("'Faculty Searchable'!AF"&PDF!$AH25),"0","--"))),"") -> MW | F25: =IFERROR(IF(A25="","",INDIRECT("'Faculty Searchable'!EB"&PDF!$AH25)),"") -> Onground | G25: =IFERROR(IF(A25="","",IFERROR(INDIRECT("'Faculty Searchable'!FG"&PDF!$AH25),INDIRECT("'Faculty Searchable'!FG"&PDF!$AH25))),"") -> [Allen S E] | H25: =IFERROR(IF(A25="","",IF(TEXT(INDIRECT("'Faculty Searchable'!G"&PDF!$AH25),"##%")="%","",TEXT(INDIRECT("'Faculty Searchable'!G"&PDF!$AH25),"##%"))),"") -> 63% | I25: =IFERROR(IF(A25="","",IF(RIGHT(INDIRECT("'Faculty Searchable'!FO"&PDF!$AH25),5)="Major","--",RIGHT(INDIRECT("'Faculty Searchable'!FO"&PDF!$AH25),2))),"--") -> A2 | J25: =IFERROR(IF(A25="","",RIGHT(INDIRECT("'Faculty Searchable'!FP"&PDF!$AH25),2)),"") -> 1A | K25: =IFERROR(IF(A25="","",IFERROR(VLOOKUP(B25,'Student Searchable'!A:B,2,FALSE),"")),"") ->  | L25: =IFERROR(LEFT(IF(A25="","",IF(INDIRECT("'Faculty Searchable'!CK"&PDF!$AH25)="","16-week-term",INDIRECT("'Faculty Searchable'!CK"&PDF!$AH25))),5),"") -> 1-SPR | M25: =IFERROR(MID(IF(A25="","",IF(INDIRECT("'Faculty Searchable'!CK"&PDF!$AH25)="","16-week-term",INDIRECT("'Faculty Searchable'!CK"&PDF!$AH25))),7,20),"") -> Apr 4 for 8 weeks | N25: =IF(B25="","",_xlfn.XLOOKUP(B25,Tracking!O:O,Tracking!A:A,"")) -> 0 | O25: =IF(PDF!AH25="","",IFERROR(INDIRECT("'Faculty Searchable'!FN"&PDF!$AH25),ROW())) -> 
A26: =IF(PDF!AH26="","",IFERROR(IF(PDF!A26="","",INDIRECT("'Faculty Searchable'!H"&PDF!AH26)&": "&LEFT(INDIRECT("'Faculty Searchable'!BA"&PDF!AH26),30)),"")) -> ENGL G100: Freshman Composition | B26: =IFERROR(IF(A26="","",INDIRECT("'Faculty Searchable'!I"&PDF!$AH26)),"") -> 46241 | C26: =IFERROR(IF(B26="","",INDIRECT("'Faculty Searchable'!BB"&PDF!$AH26)),"") -> 4 | D26: =IFERROR(IF(A26="","",INDIRECT("'Faculty Searchable'!AE"&PDF!$AH26)),"") -> 6:00pm - 8:05pm | E26: =IFERROR(IF(A26="","",IF(D26="Online","",SUBSTITUTE(INDIRECT("'Faculty Searchable'!AF"&PDF!$AH26),"0","--"))),"") -> TTh | F26: =IFERROR(IF(A26="","",INDIRECT("'Faculty Searchable'!EB"&PDF!$AH26)),"") -> Onground | G26: =IFERROR(IF(A26="","",IFERROR(INDIRECT("'Faculty Searchable'!FG"&PDF!$AH26),INDIRECT("'Faculty Searchable'!FG"&PDF!$AH26))),"") -> [Nesbitt S S] | H26: =IFERROR(IF(A26="","",IF(TEXT(INDIRECT("'Faculty Searchable'!G"&PDF!$AH26),"##%")="%","",TEXT(INDIRECT("'Faculty Searchable'!G"&PDF!$AH26),"##%"))),"") -> 53% | I26: =IFERROR(IF(A26="","",IF(RIGHT(INDIRECT("'Faculty Searchable'!FO"&PDF!$AH26),5)="Major","--",RIGHT(INDIRECT("'Faculty Searchable'!FO"&PDF!$AH26),2))),"--") -> A2 | J26: =IFERROR(IF(A26="","",RIGHT(INDIRECT("'Faculty Searchable'!FP"&PDF!$AH26),2)),"") -> 1A | K26: =IFERROR(IF(A26="","",IFERROR(VLOOKUP(B26,'Student Searchable'!A:B,2,FALSE),"")),"") ->  | L26: =IFERROR(LEFT(IF(A26="","",IF(INDIRECT("'Faculty Searchable'!CK"&PDF!$AH26)="","16-week-term",INDIRECT("'Faculty Searchable'!CK"&PDF!$AH26))),5),"") -> 1-SPR | M26: =IFERROR(MID(IF(A26="","",IF(INDIRECT("'Faculty Searchable'!CK"&PDF!$AH26)="","16-week-term",INDIRECT("'Faculty Searchable'!CK"&PDF!$AH26))),7,20),"") -> Apr 4 for 8 weeks | N26: =IF(B26="","",_xlfn.XLOOKUP(B26,Tracking!O:O,Tracking!A:A,"")) -> 0 | O26: =IF(PDF!AH26="","",IFERROR(INDIRECT("'Faculty Searchable'!FN"&PDF!$AH26),ROW())) -> 
A27: =IF(PDF!AH27="","",IFERROR(IF(PDF!A27="","",INDIRECT("'Faculty Searchable'!H"&PDF!AH27)&": "&LEFT(INDIRECT("'Faculty Searchable'!BA"&PDF!AH27),30)),"")) -> ENGL G100: Freshman Composition | B27: =IFERROR(IF(A27="","",INDIRECT("'Faculty Searchable'!I"&PDF!$AH27)),"") -> 47587 | C27: =IFERROR(IF(B27="","",INDIRECT("'Faculty Searchable'!BB"&PDF!$AH27)),"") -> 4 | D27: =IFERROR(IF(A27="","",INDIRECT("'Faculty Searchable'!AE"&PDF!$AH27)),"") -> 6:00pm - 8:05pm | E27: =IFERROR(IF(A27="","",IF(D27="Online","",SUBSTITUTE(INDIRECT("'Faculty Searchable'!AF"&PDF!$AH27),"0","--"))),"") -> TTh | F27: =IFERROR(IF(A27="","",INDIRECT("'Faculty Searchable'!EB"&PDF!$AH27)),"") -> LiveOnline | G27: =IFERROR(IF(A27="","",IFERROR(INDIRECT("'Faculty Searchable'!FG"&PDF!$AH27),INDIRECT("'Faculty Searchable'!FG"&PDF!$AH27))),"") -> [Vo C T] | H27: =IFERROR(IF(A27="","",IF(TEXT(INDIRECT("'Faculty Searchable'!G"&PDF!$AH27),"##%")="%","",TEXT(INDIRECT("'Faculty Searchable'!G"&PDF!$AH27),"##%"))),"") -> 70% | I27: =IFERROR(IF(A27="","",IF(RIGHT(INDIRECT("'Faculty Searchable'!FO"&PDF!$AH27),5)="Major","--",RIGHT(INDIRECT("'Faculty Searchable'!FO"&PDF!$AH27),2))),"--") -> A2 | J27: =IFERROR(IF(A27="","",RIGHT(INDIRECT("'Faculty Searchable'!FP"&PDF!$AH27),2)),"") -> 1A | K27: =IFERROR(IF(A27="","",IFERROR(VLOOKUP(B27,'Student Searchable'!A:B,2,FALSE),"")),"") ->  | L27: =IFERROR(LEFT(IF(A27="","",IF(INDIRECT("'Faculty Searchable'!CK"&PDF!$AH27)="","16-week-term",INDIRECT("'Faculty Searchable'!CK"&PDF!$AH27))),5),"") -> 1-SPR | M27: =IFERROR(MID(IF(A27="","",IF(INDIRECT("'Faculty Searchable'!CK"&PDF!$AH27)="","16-week-term",INDIRECT("'Faculty Searchable'!CK"&PDF!$AH27))),7,20),"") -> Apr 4 for 8 weeks | N27: =IF(B27="","",_xlfn.XLOOKUP(B27,Tracking!O:O,Tracking!A:A,"")) -> 0.07 | O27: =IF(PDF!AH27="","",IFERROR(INDIRECT("'Faculty Searchable'!FN"&PDF!$AH27),ROW())) -> 
A28: =IF(PDF!AH28="","",IFERROR(IF(PDF!A28="","",INDIRECT("'Faculty Searchable'!H"&PDF!AH28)&": "&LEFT(INDIRECT("'Faculty Searchable'!BA"&PDF!AH28),30)),"")) -> ENGL G100: Freshman Composition | B28: =IFERROR(IF(A28="","",INDIRECT("'Faculty Searchable'!I"&PDF!$AH28)),"") -> 47671 | C28: =IFERROR(IF(B28="","",INDIRECT("'Faculty Searchable'!BB"&PDF!$AH28)),"") -> 4 | D28: =IFERROR(IF(A28="","",INDIRECT("'Faculty Searchable'!AE"&PDF!$AH28)),"") -> 9 hours arranged | E28: =IFERROR(IF(A28="","",IF(D28="Online","",SUBSTITUTE(INDIRECT("'Faculty Searchable'!AF"&PDF!$AH28),"0","--"))),"") ->  | F28: =IFERROR(IF(A28="","",INDIRECT("'Faculty Searchable'!EB"&PDF!$AH28)),"") -> Online | G28: =IFERROR(IF(A28="","",IFERROR(INDIRECT("'Faculty Searchable'!FG"&PDF!$AH28),INDIRECT("'Faculty Searchable'!FG"&PDF!$AH28))),"") -> [Pham J N] | H28: =IFERROR(IF(A28="","",IF(TEXT(INDIRECT("'Faculty Searchable'!G"&PDF!$AH28),"##%")="%","",TEXT(INDIRECT("'Faculty Searchable'!G"&PDF!$AH28),"##%"))),"") -> 70% | I28: =IFERROR(IF(A28="","",IF(RIGHT(INDIRECT("'Faculty Searchable'!FO"&PDF!$AH28),5)="Major","--",RIGHT(INDIRECT("'Faculty Searchable'!FO"&PDF!$AH28),2))),"--") -> A2 | J28: =IFERROR(IF(A28="","",RIGHT(INDIRECT("'Faculty Searchable'!FP"&PDF!$AH28),2)),"") -> 1A | K28: =IFERROR(IF(A28="","",IFERROR(VLOOKUP(B28,'Student Searchable'!A:B,2,FALSE),"")),"") ->  | L28: =IFERROR(LEFT(IF(A28="","",IF(INDIRECT("'Faculty Searchable'!CK"&PDF!$AH28)="","16-week-term",INDIRECT("'Faculty Searchable'!CK"&PDF!$AH28))),5),"") -> 1-SPR | M28: =IFERROR(MID(IF(A28="","",IF(INDIRECT("'Faculty Searchable'!CK"&PDF!$AH28)="","16-week-term",INDIRECT("'Faculty Searchable'!CK"&PDF!$AH28))),7,20),"") -> Apr 4 for 8 weeks | N28: =IF(B28="","",_xlfn.XLOOKUP(B28,Tracking!O:O,Tracking!A:A,"")) -> -0.03 | O28: =IF(PDF!AH28="","",IFERROR(INDIRECT("'Faculty Searchable'!FN"&PDF!$AH28),ROW())) -> 
A29: =IF(PDF!AH29="","",IFERROR(IF(PDF!A29="","",INDIRECT("'Faculty Searchable'!H"&PDF!AH29)&": "&LEFT(INDIRECT("'Faculty Searchable'!BA"&PDF!AH29),30)),"")) -> ENGL G100: Freshman Composition | B29: =IFERROR(IF(A29="","",INDIRECT("'Faculty Searchable'!I"&PDF!$AH29)),"") -> 47558 | C29: =IFERROR(IF(B29="","",INDIRECT("'Faculty Searchable'!BB"&PDF!$AH29)),"") -> 4 | D29: =IFERROR(IF(A29="","",INDIRECT("'Faculty Searchable'!AE"&PDF!$AH29)),"") -> 9 hours arranged | E29: =IFERROR(IF(A29="","",IF(D29="Online","",SUBSTITUTE(INDIRECT("'Faculty Searchable'!AF"&PDF!$AH29),"0","--"))),"") ->  | F29: =IFERROR(IF(A29="","",INDIRECT("'Faculty Searchable'!EB"&PDF!$AH29)),"") -> Online | G29: =IFERROR(IF(A29="","",IFERROR(INDIRECT("'Faculty Searchable'!FG"&PDF!$AH29),INDIRECT("'Faculty Searchable'!FG"&PDF!$AH29))),"") -> [Hernandez Rio C] | H29: =IFERROR(IF(A29="","",IF(TEXT(INDIRECT("'Faculty Searchable'!G"&PDF!$AH29),"##%")="%","",TEXT(INDIRECT("'Faculty Searchable'!G"&PDF!$AH29),"##%"))),"") -> 97% | I29: =IFERROR(IF(A29="","",IF(RIGHT(INDIRECT("'Faculty Searchable'!FO"&PDF!$AH29),5)="Major","--",RIGHT(INDIRECT("'Faculty Searchable'!FO"&PDF!$AH29),2))),"--") -> A2 | J29: =IFERROR(IF(A29="","",RIGHT(INDIRECT("'Faculty Searchable'!FP"&PDF!$AH29),2)),"") -> 1A | K29: =IFERROR(IF(A29="","",IFERROR(VLOOKUP(B29,'Student Searchable'!A:B,2,FALSE),"")),"") ->  | L29: =IFERROR(LEFT(IF(A29="","",IF(INDIRECT("'Faculty Searchable'!CK"&PDF!$AH29)="","16-week-term",INDIRECT("'Faculty Searchable'!CK"&PDF!$AH29))),5),"") -> 1-SPR | M29: =IFERROR(MID(IF(A29="","",IF(INDIRECT("'Faculty Searchable'!CK"&PDF!$AH29)="","16-week-term",INDIRECT("'Faculty Searchable'!CK"&PDF!$AH29))),7,20),"") -> Apr 4 for 8 weeks | N29: =IF(B29="","",_xlfn.XLOOKUP(B29,Tracking!O:O,Tracking!A:A,"")) ->  | O29: =IF(PDF!AH29="","",IFERROR(INDIRECT("'Faculty Searchable'!FN"&PDF!$AH29),ROW())) -> 
A30: =IF(PDF!AH30="","",IFERROR(IF(PDF!A30="","",INDIRECT("'Faculty Searchable'!H"&PDF!AH30)&": "&LEFT(INDIRECT("'Faculty Searchable'!BA"&PDF!AH30),30)),"")) -> ENGL G100: Freshman Composition | B30: =IFERROR(IF(A30="","",INDIRECT("'Faculty Searchable'!I"&PDF!$AH30)),"") -> 47560 | C30: =IFERROR(IF(B30="","",INDIRECT("'Faculty Searchable'!BB"&PDF!$AH30)),"") -> 4 | D30: =IFERROR(IF(A30="","",INDIRECT("'Faculty Searchable'!AE"&PDF!$AH30)),"") -> 9 hours arranged | E30: =IFERROR(IF(A30="","",IF(D30="Online","",SUBSTITUTE(INDIRECT("'Faculty Searchable'!AF"&PDF!$AH30),"0","--"))),"") ->  | F30: =IFERROR(IF(A30="","",INDIRECT("'Faculty Searchable'!EB"&PDF!$AH30)),"") -> Online | G30: =IFERROR(IF(A30="","",IFERROR(INDIRECT("'Faculty Searchable'!FG"&PDF!$AH30),INDIRECT("'Faculty Searchable'!FG"&PDF!$AH30))),"") -> [Caputo D A] | H30: =IFERROR(IF(A30="","",IF(TEXT(INDIRECT("'Faculty Searchable'!G"&PDF!$AH30),"##%")="%","",TEXT(INDIRECT("'Faculty Searchable'!G"&PDF!$AH30),"##%"))),"") -> 97% | I30: =IFERROR(IF(A30="","",IF(RIGHT(INDIRECT("'Faculty Searchable'!FO"&PDF!$AH30),5)="Major","--",RIGHT(INDIRECT("'Faculty Searchable'!FO"&PDF!$AH30),2))),"--") -> A2 | J30: =IFERROR(IF(A30="","",RIGHT(INDIRECT("'Faculty Searchable'!FP"&PDF!$AH30),2)),"") -> 1A | K30: =IFERROR(IF(A30="","",IFERROR(VLOOKUP(B30,'Student Searchable'!A:B,2,FALSE),"")),"") ->  | L30: =IFERROR(LEFT(IF(A30="","",IF(INDIRECT("'Faculty Searchable'!CK"&PDF!$AH30)="","16-week-term",INDIRECT("'Faculty Searchable'!CK"&PDF!$AH30))),5),"") -> 1-SPR | M30: =IFERROR(MID(IF(A30="","",IF(INDIRECT("'Faculty Searchable'!CK"&PDF!$AH30)="","16-week-term",INDIRECT("'Faculty Searchable'!CK"&PDF!$AH30))),7,20),"") -> Apr 4 for 8 weeks | N30: =IF(B30="","",_xlfn.XLOOKUP(B30,Tracking!O:O,Tracking!A:A,"")) ->  | O30: =IF(PDF!AH30="","",IFERROR(INDIRECT("'Faculty Searchable'!FN"&PDF!$AH30),ROW())) -> 
A31: =IF(PDF!AH31="","",IFERROR(IF(PDF!A31="","",INDIRECT("'Faculty Searchable'!H"&PDF!AH31)&": "&LEFT(INDIRECT("'Faculty Searchable'!BA"&PDF!AH31),30)),"")) -> ENGL G100: Freshman Composition | B31: =IFERROR(IF(A31="","",INDIRECT("'Faculty Searchable'!I"&PDF!$AH31)),"") -> 46240 | C31: =IFERROR(IF(B31="","",INDIRECT("'Faculty Searchable'!BB"&PDF!$AH31)),"") -> 4 | D31: =IFERROR(IF(A31="","",INDIRECT("'Faculty Searchable'!AE"&PDF!$AH31)),"") -> 9 hours arranged | E31: =IFERROR(IF(A31="","",IF(D31="Online","",SUBSTITUTE(INDIRECT("'Faculty Searchable'!AF"&PDF!$AH31),"0","--"))),"") ->  | F31: =IFERROR(IF(A31="","",INDIRECT("'Faculty Searchable'!EB"&PDF!$AH31)),"") -> Online | G31: =IFERROR(IF(A31="","",IFERROR(INDIRECT("'Faculty Searchable'!FG"&PDF!$AH31),INDIRECT("'Faculty Searchable'!FG"&PDF!$AH31))),"") -> [Sandowicz R D] | H31: =IFERROR(IF(A31="","",IF(TEXT(INDIRECT("'Faculty Searchable'!G"&PDF!$AH31),"##%")="%","",TEXT(INDIRECT("'Faculty Searchable'!G"&PDF!$AH31),"##%"))),"") -> 97% | I31: =IFERROR(IF(A31="","",IF(RIGHT(INDIRECT("'Faculty Searchable'!FO"&PDF!$AH31),5)="Major","--",RIGHT(INDIRECT("'Faculty Searchable'!FO"&PDF!$AH31),2))),"--") -> A2 | J31: =IFERROR(IF(A31="","",RIGHT(INDIRECT("'Faculty Searchable'!FP"&PDF!$AH31),2)),"") -> 1A | K31: =IFERROR(IF(A31="","",IFERROR(VLOOKUP(B31,'Student Searchable'!A:B,2,FALSE),"")),"") ->  | L31: =IFERROR(LEFT(IF(A31="","",IF(INDIRECT("'Faculty Searchable'!CK"&PDF!$AH31)="","16-week-term",INDIRECT("'Faculty Searchable'!CK"&PDF!$AH31))),5),"") -> 1-SPR | M31: =IFERROR(MID(IF(A31="","",IF(INDIRECT("'Faculty Searchable'!CK"&PDF!$AH31)="","16-week-term",INDIRECT("'Faculty Searchable'!CK"&PDF!$AH31))),7,20),"") -> Apr 4 for 8 weeks | N31: =IF(B31="","",_xlfn.XLOOKUP(B31,Tracking!O:O,Tracking!A:A,"")) -> 0 | O31: =IF(PDF!AH31="","",IFERROR(INDIRECT("'Faculty Searchable'!FN"&PDF!$AH31),ROW())) -> 
A32: =IF(PDF!AH32="","",IFERROR(IF(PDF!A32="","",INDIRECT("'Faculty Searchable'!H"&PDF!AH32)&": "&LEFT(INDIRECT("'Faculty Searchable'!BA"&PDF!AH32),30)),"")) -> ENGL G110: Critical Thinking, Literature | B32: =IFERROR(IF(A32="","",INDIRECT("'Faculty Searchable'!I"&PDF!$AH32)),"") -> 43322 | C32: =IFERROR(IF(B32="","",INDIRECT("'Faculty Searchable'!BB"&PDF!$AH32)),"") -> 4 | D32: =IFERROR(IF(A32="","",INDIRECT("'Faculty Searchable'!AE"&PDF!$AH32)),"") -> 6:00pm - 8:05pm | E32: =IFERROR(IF(A32="","",IF(D32="Online","",SUBSTITUTE(INDIRECT("'Faculty Searchable'!AF"&PDF!$AH32),"0","--"))),"") -> MW | F32: =IFERROR(IF(A32="","",INDIRECT("'Faculty Searchable'!EB"&PDF!$AH32)),"") -> LiveOnline | G32: =IFERROR(IF(A32="","",IFERROR(INDIRECT("'Faculty Searchable'!FG"&PDF!$AH32),INDIRECT("'Faculty Searchable'!FG"&PDF!$AH32))),"") -> [Jereb C L] | H32: =IFERROR(IF(A32="","",IF(TEXT(INDIRECT("'Faculty Searchable'!G"&PDF!$AH32),"##%")="%","",TEXT(INDIRECT("'Faculty Searchable'!G"&PDF!$AH32),"##%"))),"") -> 77% | I32: =IFERROR(IF(A32="","",IF(RIGHT(INDIRECT("'Faculty Searchable'!FO"&PDF!$AH32),5)="Major","--",RIGHT(INDIRECT("'Faculty Searchable'!FO"&PDF!$AH32),2))),"--") -> A3 | J32: =IFERROR(IF(A32="","",RIGHT(INDIRECT("'Faculty Searchable'!FP"&PDF!$AH32),2)),"") -> 1B | K32: =IFERROR(IF(A32="","",IFERROR(VLOOKUP(B32,'Student Searchable'!A:B,2,FALSE),"")),"") ->  | L32: =IFERROR(LEFT(IF(A32="","",IF(INDIRECT("'Faculty Searchable'!CK"&PDF!$AH32)="","16-week-term",INDIRECT("'Faculty Searchable'!CK"&PDF!$AH32))),5),"") -> 1-SPR | M32: =IFERROR(MID(IF(A32="","",IF(INDIRECT("'Faculty Searchable'!CK"&PDF!$AH32)="","16-week-term",INDIRECT("'Faculty Searchable'!CK"&PDF!$AH32))),7,20),"") -> Apr 4 for 8 weeks | N32: =IF(B32="","",_xlfn.XLOOKUP(B32,Tracking!O:O,Tracking!A:A,"")) -> 0 | O32: =IF(PDF!AH32="","",IFERROR(INDIRECT("'Faculty Searchable'!FN"&PDF!$AH32),ROW())) -> 
A33: =IF(PDF!AH33="","",IFERROR(IF(PDF!A33="","",INDIRECT("'Faculty Searchable'!H"&PDF!AH33)&": "&LEFT(INDIRECT("'Faculty Searchable'!BA"&PDF!AH33),30)),"")) -> GEOG G185: Human Geography | B33: =IFERROR(IF(A33="","",INDIRECT("'Faculty Searchable'!I"&PDF!$AH33)),"") -> 43096 | C33: =IFERROR(IF(B33="","",INDIRECT("'Faculty Searchable'!BB"&PDF!$AH33)),"") -> 3 | D33: =IFERROR(IF(A33="","",INDIRECT("'Faculty Searchable'!AE"&PDF!$AH33)),"") -> 6.8 hours arranged | E33: =IFERROR(IF(A33="","",IF(D33="Online","",SUBSTITUTE(INDIRECT("'Faculty Searchable'!AF"&PDF!$AH33),"0","--"))),"") ->  | F33: =IFERROR(IF(A33="","",INDIRECT("'Faculty Searchable'!EB"&PDF!$AH33)),"") -> Online | G33: =IFERROR(IF(A33="","",IFERROR(INDIRECT("'Faculty Searchable'!FG"&PDF!$AH33),INDIRECT("'Faculty Searchable'!FG"&PDF!$AH33))),"") -> [Palma M E] | H33: =IFERROR(IF(A33="","",IF(TEXT(INDIRECT("'Faculty Searchable'!G"&PDF!$AH33),"##%")="%","",TEXT(INDIRECT("'Faculty Searchable'!G"&PDF!$AH33),"##%"))),"") -> 71% | I33: =IFERROR(IF(A33="","",IF(RIGHT(INDIRECT("'Faculty Searchable'!FO"&PDF!$AH33),5)="Major","--",RIGHT(INDIRECT("'Faculty Searchable'!FO"&PDF!$AH33),2))),"--") -> D5 | J33: =IFERROR(IF(A33="","",RIGHT(INDIRECT("'Faculty Searchable'!FP"&PDF!$AH33),2)),"") -> 4E | K33: =IFERROR(IF(A33="","",IFERROR(VLOOKUP(B33,'Student Searchable'!A:B,2,FALSE),"")),"") ->  | L33: =IFERROR(LEFT(IF(A33="","",IF(INDIRECT("'Faculty Searchable'!CK"&PDF!$AH33)="","16-week-term",INDIRECT("'Faculty Searchable'!CK"&PDF!$AH33))),5),"") -> 1-SPR | M33: =IFERROR(MID(IF(A33="","",IF(INDIRECT("'Faculty Searchable'!CK"&PDF!$AH33)="","16-week-term",INDIRECT("'Faculty Searchable'!CK"&PDF!$AH33))),7,20),"") -> Apr 4 for 8 weeks | N33: =IF(B33="","",_xlfn.XLOOKUP(B33,Tracking!O:O,Tracking!A:A,"")) -> 0.04 | O33: =IF(PDF!AH33="","",IFERROR(INDIRECT("'Faculty Searchable'!FN"&PDF!$AH33),ROW())) -> 
A34: =IF(PDF!AH34="","",IFERROR(IF(PDF!A34="","",INDIRECT("'Faculty Searchable'!H"&PDF!AH34)&": "&LEFT(INDIRECT("'Faculty Searchable'!BA"&PDF!AH34),30)),"")) -> HIT G103: Medical Term for Health Pro | B34: =IFERROR(IF(A34="","",INDIRECT("'Faculty Searchable'!I"&PDF!$AH34)),"") -> 47476 | C34: =IFERROR(IF(B34="","",INDIRECT("'Faculty Searchable'!BB"&PDF!$AH34)),"") -> 3 | D34: =IFERROR(IF(A34="","",INDIRECT("'Faculty Searchable'!AE"&PDF!$AH34)),"") -> 6.8 hours arranged | E34: =IFERROR(IF(A34="","",IF(D34="Online","",SUBSTITUTE(INDIRECT("'Faculty Searchable'!AF"&PDF!$AH34),"0","--"))),"") ->  | F34: =IFERROR(IF(A34="","",INDIRECT("'Faculty Searchable'!EB"&PDF!$AH34)),"") -> Online | G34: =IFERROR(IF(A34="","",IFERROR(INDIRECT("'Faculty Searchable'!FG"&PDF!$AH34),INDIRECT("'Faculty Searchable'!FG"&PDF!$AH34))),"") -> [Hendrix D M] | H34: =IFERROR(IF(A34="","",IF(TEXT(INDIRECT("'Faculty Searchable'!G"&PDF!$AH34),"##%")="%","",TEXT(INDIRECT("'Faculty Searchable'!G"&PDF!$AH34),"##%"))),"") -> 65% | I34: =IFERROR(IF(A34="","",IF(RIGHT(INDIRECT("'Faculty Searchable'!FO"&PDF!$AH34),5)="Major","--",RIGHT(INDIRECT("'Faculty Searchable'!FO"&PDF!$AH34),2))),"--") -> -- | J34: =IFERROR(IF(A34="","",RIGHT(INDIRECT("'Faculty Searchable'!FP"&PDF!$AH34),2)),"") ->  | K34: =IFERROR(IF(A34="","",IFERROR(VLOOKUP(B34,'Student Searchable'!A:B,2,FALSE),"")),"") ->  | L34: =IFERROR(LEFT(IF(A34="","",IF(INDIRECT("'Faculty Searchable'!CK"&PDF!$AH34)="","16-week-term",INDIRECT("'Faculty Searchable'!CK"&PDF!$AH34))),5),"") -> 1-SPR | M34: =IFERROR(MID(IF(A34="","",IF(INDIRECT("'Faculty Searchable'!CK"&PDF!$AH34)="","16-week-term",INDIRECT("'Faculty Searchable'!CK"&PDF!$AH34))),7,20),"") -> Apr 4 for 8 weeks | N34: =IF(B34="","",_xlfn.XLOOKUP(B34,Tracking!O:O,Tracking!A:A,"")) -> 0.05 | O34: =IF(PDF!AH34="","",IFERROR(INDIRECT("'Faculty Searchable'!FN"&PDF!$AH34),ROW())) -> 
A35: =IF(PDF!AH35="","",IFERROR(IF(PDF!A35="","",INDIRECT("'Faculty Searchable'!H"&PDF!AH35)&": "&LEFT(INDIRECT("'Faculty Searchable'!BA"&PDF!AH35),30)),"")) -> HLED G135: Nutrition and Health | B35: =IFERROR(IF(A35="","",INDIRECT("'Faculty Searchable'!I"&PDF!$AH35)),"") -> 43049 | C35: =IFERROR(IF(B35="","",INDIRECT("'Faculty Searchable'!BB"&PDF!$AH35)),"") -> 3 | D35: =IFERROR(IF(A35="","",INDIRECT("'Faculty Searchable'!AE"&PDF!$AH35)),"") -> 6.8 hours arranged | E35: =IFERROR(IF(A35="","",IF(D35="Online","",SUBSTITUTE(INDIRECT("'Faculty Searchable'!AF"&PDF!$AH35),"0","--"))),"") ->  | F35: =IFERROR(IF(A35="","",INDIRECT("'Faculty Searchable'!EB"&PDF!$AH35)),"") -> Online | G35: =IFERROR(IF(A35="","",IFERROR(INDIRECT("'Faculty Searchable'!FG"&PDF!$AH35),INDIRECT("'Faculty Searchable'!FG"&PDF!$AH35))),"") -> [Johnson L A] | H35: =IFERROR(IF(A35="","",IF(TEXT(INDIRECT("'Faculty Searchable'!G"&PDF!$AH35),"##%")="%","",TEXT(INDIRECT("'Faculty Searchable'!G"&PDF!$AH35),"##%"))),"") -> 51% | I35: =IFERROR(IF(A35="","",IF(RIGHT(INDIRECT("'Faculty Searchable'!FO"&PDF!$AH35),5)="Major","--",RIGHT(INDIRECT("'Faculty Searchable'!FO"&PDF!$AH35),2))),"--") -> E1 | J35: =IFERROR(IF(A35="","",RIGHT(INDIRECT("'Faculty Searchable'!FP"&PDF!$AH35),2)),"") ->  | K35: =IFERROR(IF(A35="","",IFERROR(VLOOKUP(B35,'Student Searchable'!A:B,2,FALSE),"")),"") ->  | L35: =IFERROR(LEFT(IF(A35="","",IF(INDIRECT("'Faculty Searchable'!CK"&PDF!$AH35)="","16-week-term",INDIRECT("'Faculty Searchable'!CK"&PDF!$AH35))),5),"") -> 1-SPR | M35: =IFERROR(MID(IF(A35="","",IF(INDIRECT("'Faculty Searchable'!CK"&PDF!$AH35)="","16-week-term",INDIRECT("'Faculty Searchable'!CK"&PDF!$AH35))),7,20),"") -> Apr 4 for 8 weeks | N35: =IF(B35="","",_xlfn.XLOOKUP(B35,Tracking!O:O,Tracking!A:A,"")) -> 0.05 | O35: =IF(PDF!AH35="","",IFERROR(INDIRECT("'Faculty Searchable'!FN"&PDF!$AH35),ROW())) -> 
A36: =IF(PDF!AH36="","",IFERROR(IF(PDF!A36="","",INDIRECT("'Faculty Searchable'!H"&PDF!AH36)&": "&LEFT(INDIRECT("'Faculty Searchable'!BA"&PDF!AH36),30)),"")) -> KIN G100: Introduction to Kinesiology | B36: =IFERROR(IF(A36="","",INDIRECT("'Faculty Searchable'!I"&PDF!$AH36)),"") -> 43252 | C36: =IFERROR(IF(B36="","",INDIRECT("'Faculty Searchable'!BB"&PDF!$AH36)),"") -> 3 | D36: =IFERROR(IF(A36="","",INDIRECT("'Faculty Searchable'!AE"&PDF!$AH36)),"") -> 6.8 hours arranged | E36: =IFERROR(IF(A36="","",IF(D36="Online","",SUBSTITUTE(INDIRECT("'Faculty Searchable'!AF"&PDF!$AH36),"0","--"))),"") ->  | F36: =IFERROR(IF(A36="","",INDIRECT("'Faculty Searchable'!EB"&PDF!$AH36)),"") -> Online | G36: =IFERROR(IF(A36="","",IFERROR(INDIRECT("'Faculty Searchable'!FG"&PDF!$AH36),INDIRECT("'Faculty Searchable'!FG"&PDF!$AH36))),"") -> [Mitchell N D] | H36: =IFERROR(IF(A36="","",IF(TEXT(INDIRECT("'Faculty Searchable'!G"&PDF!$AH36),"##%")="%","",TEXT(INDIRECT("'Faculty Searchable'!G"&PDF!$AH36),"##%"))),"") -> 64% | I36: =IFERROR(IF(A36="","",IF(RIGHT(INDIRECT("'Faculty Searchable'!FO"&PDF!$AH36),5)="Major","--",RIGHT(INDIRECT("'Faculty Searchable'!FO"&PDF!$AH36),2))),"--") -> E1 | J36: =IFERROR(IF(A36="","",RIGHT(INDIRECT("'Faculty Searchable'!FP"&PDF!$AH36),2)),"") ->  | K36: =IFERROR(IF(A36="","",IFERROR(VLOOKUP(B36,'Student Searchable'!A:B,2,FALSE),"")),"") ->  | L36: =IFERROR(LEFT(IF(A36="","",IF(INDIRECT("'Faculty Searchable'!CK"&PDF!$AH36)="","16-week-term",INDIRECT("'Faculty Searchable'!CK"&PDF!$AH36))),5),"") -> 1-SPR | M36: =IFERROR(MID(IF(A36="","",IF(INDIRECT("'Faculty Searchable'!CK"&PDF!$AH36)="","16-week-term",INDIRECT("'Faculty Searchable'!CK"&PDF!$AH36))),7,20),"") -> Apr 4 for 8 weeks | N36: =IF(B36="","",_xlfn.XLOOKUP(B36,Tracking!O:O,Tracking!A:A,"")) -> 0.05 | O36: =IF(PDF!AH36="","",IFERROR(INDIRECT("'Faculty Searchable'!FN"&PDF!$AH36),ROW())) -> 
A37: =IF(PDF!AH37="","",IFERROR(IF(PDF!A37="","",INDIRECT("'Faculty Searchable'!H"&PDF!AH37)&": "&LEFT(INDIRECT("'Faculty Searchable'!BA"&PDF!AH37),30)),"")) -> KIN G101: First Aid/CPR | B37: =IFERROR(IF(A37="","",INDIRECT("'Faculty Searchable'!I"&PDF!$AH37)),"") -> 43624 | C37: =IFERROR(IF(B37="","",INDIRECT("'Faculty Searchable'!BB"&PDF!$AH37)),"") -> 3 | D37: =IFERROR(IF(A37="","",INDIRECT("'Faculty Searchable'!AE"&PDF!$AH37)),"") -> 6:30pm - 8:35pm | E37: =IFERROR(IF(A37="","",IF(D37="Online","",SUBSTITUTE(INDIRECT("'Faculty Searchable'!AF"&PDF!$AH37),"0","--"))),"") -> M | F37: =IFERROR(IF(A37="","",INDIRECT("'Faculty Searchable'!EB"&PDF!$AH37)),"") -> Onground | G37: =IFERROR(IF(A37="","",IFERROR(INDIRECT("'Faculty Searchable'!FG"&PDF!$AH37),INDIRECT("'Faculty Searchable'!FG"&PDF!$AH37))),"") -> [Mitchell N D] | H37: =IFERROR(IF(A37="","",IF(TEXT(INDIRECT("'Faculty Searchable'!G"&PDF!$AH37),"##%")="%","",TEXT(INDIRECT("'Faculty Searchable'!G"&PDF!$AH37),"##%"))),"") -> 68% | I37: =IFERROR(IF(A37="","",IF(RIGHT(INDIRECT("'Faculty Searchable'!FO"&PDF!$AH37),5)="Major","--",RIGHT(INDIRECT("'Faculty Searchable'!FO"&PDF!$AH37),2))),"--") -> E1 | J37: =IFERROR(IF(A37="","",RIGHT(INDIRECT("'Faculty Searchable'!FP"&PDF!$AH37),2)),"") ->  | K37: =IFERROR(IF(A37="","",IFERROR(VLOOKUP(B37,'Student Searchable'!A:B,2,FALSE),"")),"") ->  | L37: =IFERROR(LEFT(IF(A37="","",IF(INDIRECT("'Faculty Searchable'!CK"&PDF!$AH37)="","16-week-term",INDIRECT("'Faculty Searchable'!CK"&PDF!$AH37))),5),"") -> 1-SPR | M37: =IFERROR(MID(IF(A37="","",IF(INDIRECT("'Faculty Searchable'!CK"&PDF!$AH37)="","16-week-term",INDIRECT("'Faculty Searchable'!CK"&PDF!$AH37))),7,20),"") -> Apr 4 for 8 weeks | N37: =IF(B37="","",_xlfn.XLOOKUP(B37,Tracking!O:O,Tracking!A:A,"")) -> 0.03 | O37: =IF(PDF!AH37="","",IFERROR(INDIRECT("'Faculty Searchable'!FN"&PDF!$AH37),ROW())) -> 
A38: =IF(PDF!AH38="","",IFERROR(IF(PDF!A38="","",INDIRECT("'Faculty Searchable'!H"&PDF!AH38)&": "&LEFT(INDIRECT("'Faculty Searchable'!BA"&PDF!AH38),30)),"")) -> KIN G279: Sports Management | B38: =IFERROR(IF(A38="","",INDIRECT("'Faculty Searchable'!I"&PDF!$AH38)),"") -> 47571 | C38: =IFERROR(IF(B38="","",INDIRECT("'Faculty Searchable'!BB"&PDF!$AH38)),"") -> 3 | D38: =IFERROR(IF(A38="","",INDIRECT("'Faculty Searchable'!AE"&PDF!$AH38)),"") -> 6.8 hours arranged | E38: =IFERROR(IF(A38="","",IF(D38="Online","",SUBSTITUTE(INDIRECT("'Faculty Searchable'!AF"&PDF!$AH38),"0","--"))),"") ->  | F38: =IFERROR(IF(A38="","",INDIRECT("'Faculty Searchable'!EB"&PDF!$AH38)),"") -> Online | G38: =IFERROR(IF(A38="","",IFERROR(INDIRECT("'Faculty Searchable'!FG"&PDF!$AH38),INDIRECT("'Faculty Searchable'!FG"&PDF!$AH38))),"") -> [Barone K S] | H38: =IFERROR(IF(A38="","",IF(TEXT(INDIRECT("'Faculty Searchable'!G"&PDF!$AH38),"##%")="%","",TEXT(INDIRECT("'Faculty Searchable'!G"&PDF!$AH38),"##%"))),"") -> 50% | I38: =IFERROR(IF(A38="","",IF(RIGHT(INDIRECT("'Faculty Searchable'!FO"&PDF!$AH38),5)="Major","--",RIGHT(INDIRECT("'Faculty Searchable'!FO"&PDF!$AH38),2))),"--") -> -- | J38: =IFERROR(IF(A38="","",RIGHT(INDIRECT("'Faculty Searchable'!FP"&PDF!$AH38),2)),"") ->  | K38: =IFERROR(IF(A38="","",IFERROR(VLOOKUP(B38,'Student Searchable'!A:B,2,FALSE),"")),"") ->  | L38: =IFERROR(LEFT(IF(A38="","",IF(INDIRECT("'Faculty Searchable'!CK"&PDF!$AH38)="","16-week-term",INDIRECT("'Faculty Searchable'!CK"&PDF!$AH38))),5),"") -> 1-SPR | M38: =IFERROR(MID(IF(A38="","",IF(INDIRECT("'Faculty Searchable'!CK"&PDF!$AH38)="","16-week-term",INDIRECT("'Faculty Searchable'!CK"&PDF!$AH38))),7,20),"") -> Apr 4 for 8 weeks | N38: =IF(B38="","",_xlfn.XLOOKUP(B38,Tracking!O:O,Tracking!A:A,"")) -> 0 | O38: =IF(PDF!AH38="","",IFERROR(INDIRECT("'Faculty Searchable'!FN"&PDF!$AH38),ROW())) -> 
A39: =IF(PDF!AH39="","",IFERROR(IF(PDF!A39="","",INDIRECT("'Faculty Searchable'!H"&PDF!AH39)&": "&LEFT(INDIRECT("'Faculty Searchable'!BA"&PDF!AH39),30)),"")) -> LIBR G110: Info Comptncy & Libr Research | B39: =IFERROR(IF(A39="","",INDIRECT("'Faculty Searchable'!I"&PDF!$AH39)),"") -> 42835 | C39: =IFERROR(IF(B39="","",INDIRECT("'Faculty Searchable'!BB"&PDF!$AH39)),"") -> 1 | D39: =IFERROR(IF(A39="","",INDIRECT("'Faculty Searchable'!AE"&PDF!$AH39)),"") -> 2.3 hours arranged | E39: =IFERROR(IF(A39="","",IF(D39="Online","",SUBSTITUTE(INDIRECT("'Faculty Searchable'!AF"&PDF!$AH39),"0","--"))),"") ->  | F39: =IFERROR(IF(A39="","",INDIRECT("'Faculty Searchable'!EB"&PDF!$AH39)),"") -> Online | G39: =IFERROR(IF(A39="","",IFERROR(INDIRECT("'Faculty Searchable'!FG"&PDF!$AH39),INDIRECT("'Faculty Searchable'!FG"&PDF!$AH39))),"") -> [Schenk L M] | H39: =IFERROR(IF(A39="","",IF(TEXT(INDIRECT("'Faculty Searchable'!G"&PDF!$AH39),"##%")="%","",TEXT(INDIRECT("'Faculty Searchable'!G"&PDF!$AH39),"##%"))),"") -> 60% | I39: =IFERROR(IF(A39="","",IF(RIGHT(INDIRECT("'Faculty Searchable'!FO"&PDF!$AH39),5)="Major","--",RIGHT(INDIRECT("'Faculty Searchable'!FO"&PDF!$AH39),2))),"--") -> -- | J39: =IFERROR(IF(A39="","",RIGHT(INDIRECT("'Faculty Searchable'!FP"&PDF!$AH39),2)),"") ->  | K39: =IFERROR(IF(A39="","",IFERROR(VLOOKUP(B39,'Student Searchable'!A:B,2,FALSE),"")),"") ->  | L39: =IFERROR(LEFT(IF(A39="","",IF(INDIRECT("'Faculty Searchable'!CK"&PDF!$AH39)="","16-week-term",INDIRECT("'Faculty Searchable'!CK"&PDF!$AH39))),5),"") -> 1-SPR | M39: =IFERROR(MID(IF(A39="","",IF(INDIRECT("'Faculty Searchable'!CK"&PDF!$AH39)="","16-week-term",INDIRECT("'Faculty Searchable'!CK"&PDF!$AH39))),7,20),"") -> Apr 4 for 8 weeks | N39: =IF(B39="","",_xlfn.XLOOKUP(B39,Tracking!O:O,Tracking!A:A,"")) -> 0.03 | O39: =IF(PDF!AH39="","",IFERROR(INDIRECT("'Faculty Searchable'!FN"&PDF!$AH39),ROW())) -> 
A40: =IF(PDF!AH40="","",IFERROR(IF(PDF!A40="","",INDIRECT("'Faculty Searchable'!H"&PDF!AH40)&": "&LEFT(INDIRECT("'Faculty Searchable'!BA"&PDF!AH40),30)),"")) -> LIBR G120: Libraries & The Internet | B40: =IFERROR(IF(A40="","",INDIRECT("'Faculty Searchable'!I"&PDF!$AH40)),"") -> 42887 | C40: =IFERROR(IF(B40="","",INDIRECT("'Faculty Searchable'!BB"&PDF!$AH40)),"") -> 1 | D40: =IFERROR(IF(A40="","",INDIRECT("'Faculty Searchable'!AE"&PDF!$AH40)),"") -> 2.3 hours arranged | E40: =IFERROR(IF(A40="","",IF(D40="Online","",SUBSTITUTE(INDIRECT("'Faculty Searchable'!AF"&PDF!$AH40),"0","--"))),"") ->  | F40: =IFERROR(IF(A40="","",INDIRECT("'Faculty Searchable'!EB"&PDF!$AH40)),"") -> Online | G40: =IFERROR(IF(A40="","",IFERROR(INDIRECT("'Faculty Searchable'!FG"&PDF!$AH40),INDIRECT("'Faculty Searchable'!FG"&PDF!$AH40))),"") -> [Garcia G L] | H40: =IFERROR(IF(A40="","",IF(TEXT(INDIRECT("'Faculty Searchable'!G"&PDF!$AH40),"##%")="%","",TEXT(INDIRECT("'Faculty Searchable'!G"&PDF!$AH40),"##%"))),"") -> 51% | I40: =IFERROR(IF(A40="","",IF(RIGHT(INDIRECT("'Faculty Searchable'!FO"&PDF!$AH40),5)="Major","--",RIGHT(INDIRECT("'Faculty Searchable'!FO"&PDF!$AH40),2))),"--") -> -- | J40: =IFERROR(IF(A40="","",RIGHT(INDIRECT("'Faculty Searchable'!FP"&PDF!$AH40),2)),"") ->  | K40: =IFERROR(IF(A40="","",IFERROR(VLOOKUP(B40,'Student Searchable'!A:B,2,FALSE),"")),"") ->  | L40: =IFERROR(LEFT(IF(A40="","",IF(INDIRECT("'Faculty Searchable'!CK"&PDF!$AH40)="","16-week-term",INDIRECT("'Faculty Searchable'!CK"&PDF!$AH40))),5),"") -> 1-SPR | M40: =IFERROR(MID(IF(A40="","",IF(INDIRECT("'Faculty Searchable'!CK"&PDF!$AH40)="","16-week-term",INDIRECT("'Faculty Searchable'!CK"&PDF!$AH40))),7,20),"") -> Apr 4 for 8 weeks | N40: =IF(B40="","",_xlfn.XLOOKUP(B40,Tracking!O:O,Tracking!A:A,"")) -> 0 | O40: =IF(PDF!AH40="","",IFERROR(INDIRECT("'Faculty Searchable'!FN"&PDF!$AH40),ROW())) -> 
A41: =IF(PDF!AH41="","",IFERROR(IF(PDF!A41="","",INDIRECT("'Faculty Searchable'!H"&PDF!AH41)&": "&LEFT(INDIRECT("'Faculty Searchable'!BA"&PDF!AH41),30)),"")) -> MGMT G130: Team Building/Group Dynamic | B41: =IFERROR(IF(A41="","",INDIRECT("'Faculty Searchable'!I"&PDF!$AH41)),"") -> 47259 | C41: =IFERROR(IF(B41="","",INDIRECT("'Faculty Searchable'!BB"&PDF!$AH41)),"") -> 3 | D41: =IFERROR(IF(A41="","",INDIRECT("'Faculty Searchable'!AE"&PDF!$AH41)),"") -> 6.8 hours arranged | E41: =IFERROR(IF(A41="","",IF(D41="Online","",SUBSTITUTE(INDIRECT("'Faculty Searchable'!AF"&PDF!$AH41),"0","--"))),"") ->  | F41: =IFERROR(IF(A41="","",INDIRECT("'Faculty Searchable'!EB"&PDF!$AH41)),"") -> Online | G41: =IFERROR(IF(A41="","",IFERROR(INDIRECT("'Faculty Searchable'!FG"&PDF!$AH41),INDIRECT("'Faculty Searchable'!FG"&PDF!$AH41))),"") -> [Hoon S N] | H41: =IFERROR(IF(A41="","",IF(TEXT(INDIRECT("'Faculty Searchable'!G"&PDF!$AH41),"##%")="%","",TEXT(INDIRECT("'Faculty Searchable'!G"&PDF!$AH41),"##%"))),"") -> 38% | I41: =IFERROR(IF(A41="","",IF(RIGHT(INDIRECT("'Faculty Searchable'!FO"&PDF!$AH41),5)="Major","--",RIGHT(INDIRECT("'Faculty Searchable'!FO"&PDF!$AH41),2))),"--") -> -- | J41: =IFERROR(IF(A41="","",RIGHT(INDIRECT("'Faculty Searchable'!FP"&PDF!$AH41),2)),"") ->  | K41: =IFERROR(IF(A41="","",IFERROR(VLOOKUP(B41,'Student Searchable'!A:B,2,FALSE),"")),"") ->  | L41: =IFERROR(LEFT(IF(A41="","",IF(INDIRECT("'Faculty Searchable'!CK"&PDF!$AH41)="","16-week-term",INDIRECT("'Faculty Searchable'!CK"&PDF!$AH41))),5),"") -> 1-SPR | M41: =IFERROR(MID(IF(A41="","",IF(INDIRECT("'Faculty Searchable'!CK"&PDF!$AH41)="","16-week-term",INDIRECT("'Faculty Searchable'!CK"&PDF!$AH41))),7,20),"") -> Apr 4 for 8 weeks | N41: =IF(B41="","",_xlfn.XLOOKUP(B41,Tracking!O:O,Tracking!A:A,"")) -> 0 | O41: =IF(PDF!AH41="","",IFERROR(INDIRECT("'Faculty Searchable'!FN"&PDF!$AH41),ROW())) -> 
A42: =IF(PDF!AH42="","",IFERROR(IF(PDF!A42="","",INDIRECT("'Faculty Searchable'!H"&PDF!AH42)&": "&LEFT(INDIRECT("'Faculty Searchable'!BA"&PDF!AH42),30)),"")) -> MGMT G162: Managing a Small Business | B42: =IFERROR(IF(A42="","",INDIRECT("'Faculty Searchable'!I"&PDF!$AH42)),"") -> 43429 | C42: =IFERROR(IF(B42="","",INDIRECT("'Faculty Searchable'!BB"&PDF!$AH42)),"") -> 3 | D42: =IFERROR(IF(A42="","",INDIRECT("'Faculty Searchable'!AE"&PDF!$AH42)),"") -> 6.8 hours arranged | E42: =IFERROR(IF(A42="","",IF(D42="Online","",SUBSTITUTE(INDIRECT("'Faculty Searchable'!AF"&PDF!$AH42),"0","--"))),"") ->  | F42: =IFERROR(IF(A42="","",INDIRECT("'Faculty Searchable'!EB"&PDF!$AH42)),"") -> Online | G42: =IFERROR(IF(A42="","",IFERROR(INDIRECT("'Faculty Searchable'!FG"&PDF!$AH42),INDIRECT("'Faculty Searchable'!FG"&PDF!$AH42))),"") -> [Atherton S] | H42: =IFERROR(IF(A42="","",IF(TEXT(INDIRECT("'Faculty Searchable'!G"&PDF!$AH42),"##%")="%","",TEXT(INDIRECT("'Faculty Searchable'!G"&PDF!$AH42),"##%"))),"") -> 47% | I42: =IFERROR(IF(A42="","",IF(RIGHT(INDIRECT("'Faculty Searchable'!FO"&PDF!$AH42),5)="Major","--",RIGHT(INDIRECT("'Faculty Searchable'!FO"&PDF!$AH42),2))),"--") -> -- | J42: =IFERROR(IF(A42="","",RIGHT(INDIRECT("'Faculty Searchable'!FP"&PDF!$AH42),2)),"") ->  | K42: =IFERROR(IF(A42="","",IFERROR(VLOOKUP(B42,'Student Searchable'!A:B,2,FALSE),"")),"") ->  | L42: =IFERROR(LEFT(IF(A42="","",IF(INDIRECT("'Faculty Searchable'!CK"&PDF!$AH42)="","16-week-term",INDIRECT("'Faculty Searchable'!CK"&PDF!$AH42))),5),"") -> 1-SPR | M42: =IFERROR(MID(IF(A42="","",IF(INDIRECT("'Faculty Searchable'!CK"&PDF!$AH42)="","16-week-term",INDIRECT("'Faculty Searchable'!CK"&PDF!$AH42))),7,20),"") -> Apr 4 for 8 weeks | N42: =IF(B42="","",_xlfn.XLOOKUP(B42,Tracking!O:O,Tracking!A:A,"")) -> 0.03 | O42: =IF(PDF!AH42="","",IFERROR(INDIRECT("'Faculty Searchable'!FN"&PDF!$AH42),ROW())) -> 
A43: =IF(PDF!AH43="","",IFERROR(IF(PDF!A43="","",INDIRECT("'Faculty Searchable'!H"&PDF!AH43)&": "&LEFT(INDIRECT("'Faculty Searchable'!BA"&PDF!AH43),30)),"")) -> MGMT G163: Acct Concepts for Small Bus | B43: =IFERROR(IF(A43="","",INDIRECT("'Faculty Searchable'!I"&PDF!$AH43)),"") -> 46460 | C43: =IFERROR(IF(B43="","",INDIRECT("'Faculty Searchable'!BB"&PDF!$AH43)),"") -> 1.5 | D43: =IFERROR(IF(A43="","",INDIRECT("'Faculty Searchable'!AE"&PDF!$AH43)),"") -> 3.4 hours arranged | E43: =IFERROR(IF(A43="","",IF(D43="Online","",SUBSTITUTE(INDIRECT("'Faculty Searchable'!AF"&PDF!$AH43),"0","--"))),"") ->  | F43: =IFERROR(IF(A43="","",INDIRECT("'Faculty Searchable'!EB"&PDF!$AH43)),"") -> Online | G43: =IFERROR(IF(A43="","",IFERROR(INDIRECT("'Faculty Searchable'!FG"&PDF!$AH43),INDIRECT("'Faculty Searchable'!FG"&PDF!$AH43))),"") -> [Nguyen A T] | H43: =IFERROR(IF(A43="","",IF(TEXT(INDIRECT("'Faculty Searchable'!G"&PDF!$AH43),"##%")="%","",TEXT(INDIRECT("'Faculty Searchable'!G"&PDF!$AH43),"##%"))),"") -> 82% | I43: =IFERROR(IF(A43="","",IF(RIGHT(INDIRECT("'Faculty Searchable'!FO"&PDF!$AH43),5)="Major","--",RIGHT(INDIRECT("'Faculty Searchable'!FO"&PDF!$AH43),2))),"--") -> -- | J43: =IFERROR(IF(A43="","",RIGHT(INDIRECT("'Faculty Searchable'!FP"&PDF!$AH43),2)),"") ->  | K43: =IFERROR(IF(A43="","",IFERROR(VLOOKUP(B43,'Student Searchable'!A:B,2,FALSE),"")),"") ->  | L43: =IFERROR(LEFT(IF(A43="","",IF(INDIRECT("'Faculty Searchable'!CK"&PDF!$AH43)="","16-week-term",INDIRECT("'Faculty Searchable'!CK"&PDF!$AH43))),5),"") -> 1-SPR | M43: =IFERROR(MID(IF(A43="","",IF(INDIRECT("'Faculty Searchable'!CK"&PDF!$AH43)="","16-week-term",INDIRECT("'Faculty Searchable'!CK"&PDF!$AH43))),7,20),"") -> Apr 4 for 8 weeks | N43: =IF(B43="","",_xlfn.XLOOKUP(B43,Tracking!O:O,Tracking!A:A,"")) -> 0 | O43: =IF(PDF!AH43="","",IFERROR(INDIRECT("'Faculty Searchable'!FN"&PDF!$AH43),ROW())) -> 
A44: =IF(PDF!AH44="","",IFERROR(IF(PDF!A44="","",INDIRECT("'Faculty Searchable'!H"&PDF!AH44)&": "&LEFT(INDIRECT("'Faculty Searchable'!BA"&PDF!AH44),30)),"")) -> MUS G139: History of Rock Music | B44: =IFERROR(IF(A44="","",INDIRECT("'Faculty Searchable'!I"&PDF!$AH44)),"") -> 46484 | C44: =IFERROR(IF(B44="","",INDIRECT("'Faculty Searchable'!BB"&PDF!$AH44)),"") -> 3 | D44: =IFERROR(IF(A44="","",INDIRECT("'Faculty Searchable'!AE"&PDF!$AH44)),"") -> 6.8 hours arranged | E44: =IFERROR(IF(A44="","",IF(D44="Online","",SUBSTITUTE(INDIRECT("'Faculty Searchable'!AF"&PDF!$AH44),"0","--"))),"") ->  | F44: =IFERROR(IF(A44="","",INDIRECT("'Faculty Searchable'!EB"&PDF!$AH44)),"") -> Online | G44: =IFERROR(IF(A44="","",IFERROR(INDIRECT("'Faculty Searchable'!FG"&PDF!$AH44),INDIRECT("'Faculty Searchable'!FG"&PDF!$AH44))),"") -> [Henderson H A] | H44: =IFERROR(IF(A44="","",IF(TEXT(INDIRECT("'Faculty Searchable'!G"&PDF!$AH44),"##%")="%","",TEXT(INDIRECT("'Faculty Searchable'!G"&PDF!$AH44),"##%"))),"") -> 93% | I44: =IFERROR(IF(A44="","",IF(RIGHT(INDIRECT("'Faculty Searchable'!FO"&PDF!$AH44),5)="Major","--",RIGHT(INDIRECT("'Faculty Searchable'!FO"&PDF!$AH44),2))),"--") -> C1 | J44: =IFERROR(IF(A44="","",RIGHT(INDIRECT("'Faculty Searchable'!FP"&PDF!$AH44),2)),"") -> 3A | K44: =IFERROR(IF(A44="","",IFERROR(VLOOKUP(B44,'Student Searchable'!A:B,2,FALSE),"")),"") ->  | L44: =IFERROR(LEFT(IF(A44="","",IF(INDIRECT("'Faculty Searchable'!CK"&PDF!$AH44)="","16-week-term",INDIRECT("'Faculty Searchable'!CK"&PDF!$AH44))),5),"") -> 1-SPR | M44: =IFERROR(MID(IF(A44="","",IF(INDIRECT("'Faculty Searchable'!CK"&PDF!$AH44)="","16-week-term",INDIRECT("'Faculty Searchable'!CK"&PDF!$AH44))),7,20),"") -> Apr 4 for 8 weeks | N44: =IF(B44="","",_xlfn.XLOOKUP(B44,Tracking!O:O,Tracking!A:A,"")) -> 0.04 | O44: =IF(PDF!AH44="","",IFERROR(INDIRECT("'Faculty Searchable'!FN"&PDF!$AH44),ROW())) -> 
A45: =IF(PDF!AH45="","",IFERROR(IF(PDF!A45="","",INDIRECT("'Faculty Searchable'!H"&PDF!AH45)&": "&LEFT(INDIRECT("'Faculty Searchable'!BA"&PDF!AH45),30)),"")) -> PE G192: Soccer | B45: =IFERROR(IF(A45="","",INDIRECT("'Faculty Searchable'!I"&PDF!$AH45)),"") -> 47271 | C45: =IFERROR(IF(B45="","",INDIRECT("'Faculty Searchable'!BB"&PDF!$AH45)),"") -> 1 | D45: =IFERROR(IF(A45="","",INDIRECT("'Faculty Searchable'!AE"&PDF!$AH45)),"") -> 7:00pm - 10:05pm | E45: =IFERROR(IF(A45="","",IF(D45="Online","",SUBSTITUTE(INDIRECT("'Faculty Searchable'!AF"&PDF!$AH45),"0","--"))),"") -> TTh | F45: =IFERROR(IF(A45="","",INDIRECT("'Faculty Searchable'!EB"&PDF!$AH45)),"") -> Onground | G45: =IFERROR(IF(A45="","",IFERROR(INDIRECT("'Faculty Searchable'!FG"&PDF!$AH45),INDIRECT("'Faculty Searchable'!FG"&PDF!$AH45))),"") -> [Barone K S] | H45: =IFERROR(IF(A45="","",IF(TEXT(INDIRECT("'Faculty Searchable'!G"&PDF!$AH45),"##%")="%","",TEXT(INDIRECT("'Faculty Searchable'!G"&PDF!$AH45),"##%"))),"") -> 90% | I45: =IFERROR(IF(A45="","",IF(RIGHT(INDIRECT("'Faculty Searchable'!FO"&PDF!$AH45),5)="Major","--",RIGHT(INDIRECT("'Faculty Searchable'!FO"&PDF!$AH45),2))),"--") -> E2 | J45: =IFERROR(IF(A45="","",RIGHT(INDIRECT("'Faculty Searchable'!FP"&PDF!$AH45),2)),"") ->  | K45: =IFERROR(IF(A45="","",IFERROR(VLOOKUP(B45,'Student Searchable'!A:B,2,FALSE),"")),"") ->  | L45: =IFERROR(LEFT(IF(A45="","",IF(INDIRECT("'Faculty Searchable'!CK"&PDF!$AH45)="","16-week-term",INDIRECT("'Faculty Searchable'!CK"&PDF!$AH45))),5),"") -> 1-SPR | M45: =IFERROR(MID(IF(A45="","",IF(INDIRECT("'Faculty Searchable'!CK"&PDF!$AH45)="","16-week-term",INDIRECT("'Faculty Searchable'!CK"&PDF!$AH45))),7,20),"") -> Apr 4 for 8 weeks | N45: =IF(B45="","",_xlfn.XLOOKUP(B45,Tracking!O:O,Tracking!A:A,"")) -> 0.03 | O45: =IF(PDF!AH45="","",IFERROR(INDIRECT("'Faculty Searchable'!FN"&PDF!$AH45),ROW())) -> 
A46: =IF(PDF!AH46="","",IFERROR(IF(PDF!A46="","",INDIRECT("'Faculty Searchable'!H"&PDF!AH46)&": "&LEFT(INDIRECT("'Faculty Searchable'!BA"&PDF!AH46),30)),"")) -> PHIL G115: Logic and Critical Thinking | B46: =IFERROR(IF(A46="","",INDIRECT("'Faculty Searchable'!I"&PDF!$AH46)),"") -> 42885 | C46: =IFERROR(IF(B46="","",INDIRECT("'Faculty Searchable'!BB"&PDF!$AH46)),"") -> 3 | D46: =IFERROR(IF(A46="","",INDIRECT("'Faculty Searchable'!AE"&PDF!$AH46)),"") -> 6.8 hours arranged | E46: =IFERROR(IF(A46="","",IF(D46="Online","",SUBSTITUTE(INDIRECT("'Faculty Searchable'!AF"&PDF!$AH46),"0","--"))),"") ->  | F46: =IFERROR(IF(A46="","",INDIRECT("'Faculty Searchable'!EB"&PDF!$AH46)),"") -> Online | G46: =IFERROR(IF(A46="","",IFERROR(INDIRECT("'Faculty Searchable'!FG"&PDF!$AH46),INDIRECT("'Faculty Searchable'!FG"&PDF!$AH46))),"") -> [Sheley J D] | H46: =IFERROR(IF(A46="","",IF(TEXT(INDIRECT("'Faculty Searchable'!G"&PDF!$AH46),"##%")="%","",TEXT(INDIRECT("'Faculty Searchable'!G"&PDF!$AH46),"##%"))),"") -> 96% | I46: =IFERROR(IF(A46="","",IF(RIGHT(INDIRECT("'Faculty Searchable'!FO"&PDF!$AH46),5)="Major","--",RIGHT(INDIRECT("'Faculty Searchable'!FO"&PDF!$AH46),2))),"--") -> A3 | J46: =IFERROR(IF(A46="","",RIGHT(INDIRECT("'Faculty Searchable'!FP"&PDF!$AH46),2)),"") ->  | K46: =IFERROR(IF(A46="","",IFERROR(VLOOKUP(B46,'Student Searchable'!A:B,2,FALSE),"")),"") -> Free! | L46: =IFERROR(LEFT(IF(A46="","",IF(INDIRECT("'Faculty Searchable'!CK"&PDF!$AH46)="","16-week-term",INDIRECT("'Faculty Searchable'!CK"&PDF!$AH46))),5),"") -> 1-SPR | M46: =IFERROR(MID(IF(A46="","",IF(INDIRECT("'Faculty Searchable'!CK"&PDF!$AH46)="","16-week-term",INDIRECT("'Faculty Searchable'!CK"&PDF!$AH46))),7,20),"") -> Apr 4 for 8 weeks | N46: =IF(B46="","",_xlfn.XLOOKUP(B46,Tracking!O:O,Tracking!A:A,"")) -> 0 | O46: =IF(PDF!AH46="","",IFERROR(INDIRECT("'Faculty Searchable'!FN"&PDF!$AH46),ROW())) -> 
A47: =IF(PDF!AH47="","",IFERROR(IF(PDF!A47="","",INDIRECT("'Faculty Searchable'!H"&PDF!AH47)&": "&LEFT(INDIRECT("'Faculty Searchable'!BA"&PDF!AH47),30)),"")) -> PSYC G100: Introduction to Psychology | B47: =IFERROR(IF(A47="","",INDIRECT("'Faculty Searchable'!I"&PDF!$AH47)),"") -> 46224 | C47: =IFERROR(IF(B47="","",INDIRECT("'Faculty Searchable'!BB"&PDF!$AH47)),"") -> 3 | D47: =IFERROR(IF(A47="","",INDIRECT("'Faculty Searchable'!AE"&PDF!$AH47)),"") -> 6:35pm - 9:25pm | E47: =IFERROR(IF(A47="","",IF(D47="Online","",SUBSTITUTE(INDIRECT("'Faculty Searchable'!AF"&PDF!$AH47),"0","--"))),"") -> M | F47: =IFERROR(IF(A47="","",INDIRECT("'Faculty Searchable'!EB"&PDF!$AH47)),"") -> Onground | G47: =IFERROR(IF(A47="","",IFERROR(INDIRECT("'Faculty Searchable'!FG"&PDF!$AH47),INDIRECT("'Faculty Searchable'!FG"&PDF!$AH47))),"") -> [Agnew C L] | H47: =IFERROR(IF(A47="","",IF(TEXT(INDIRECT("'Faculty Searchable'!G"&PDF!$AH47),"##%")="%","",TEXT(INDIRECT("'Faculty Searchable'!G"&PDF!$AH47),"##%"))),"") -> 89% | I47: =IFERROR(IF(A47="","",IF(RIGHT(INDIRECT("'Faculty Searchable'!FO"&PDF!$AH47),5)="Major","--",RIGHT(INDIRECT("'Faculty Searchable'!FO"&PDF!$AH47),2))),"--") -> D9 | J47: =IFERROR(IF(A47="","",RIGHT(INDIRECT("'Faculty Searchable'!FP"&PDF!$AH47),2)),"") -> 4I | K47: =IFERROR(IF(A47="","",IFERROR(VLOOKUP(B47,'Student Searchable'!A:B,2,FALSE),"")),"") -> Free! | L47: =IFERROR(LEFT(IF(A47="","",IF(INDIRECT("'Faculty Searchable'!CK"&PDF!$AH47)="","16-week-term",INDIRECT("'Faculty Searchable'!CK"&PDF!$AH47))),5),"") -> 1-SPR | M47: =IFERROR(MID(IF(A47="","",IF(INDIRECT("'Faculty Searchable'!CK"&PDF!$AH47)="","16-week-term",INDIRECT("'Faculty Searchable'!CK"&PDF!$AH47))),7,20),"") -> Apr 4 for 8 weeks | N47: =IF(B47="","",_xlfn.XLOOKUP(B47,Tracking!O:O,Tracking!A:A,"")) -> 0.05 | O47: =IF(PDF!AH47="","",IFERROR(INDIRECT("'Faculty Searchable'!FN"&PDF!$AH47),ROW())) -> 
A48: =IF(PDF!AH48="","",IFERROR(IF(PDF!A48="","",INDIRECT("'Faculty Searchable'!H"&PDF!AH48)&": "&LEFT(INDIRECT("'Faculty Searchable'!BA"&PDF!AH48),30)),"")) -> PSYC G116: Child Growth and Development | B48: =IFERROR(IF(A48="","",INDIRECT("'Faculty Searchable'!I"&PDF!$AH48)),"") -> 45710 | C48: =IFERROR(IF(B48="","",INDIRECT("'Faculty Searchable'!BB"&PDF!$AH48)),"") -> 3 | D48: =IFERROR(IF(A48="","",INDIRECT("'Faculty Searchable'!AE"&PDF!$AH48)),"") -> 6.8 hours arranged | E48: =IFERROR(IF(A48="","",IF(D48="Online","",SUBSTITUTE(INDIRECT("'Faculty Searchable'!AF"&PDF!$AH48),"0","--"))),"") ->  | F48: =IFERROR(IF(A48="","",INDIRECT("'Faculty Searchable'!EB"&PDF!$AH48)),"") -> Online | G48: =IFERROR(IF(A48="","",IFERROR(INDIRECT("'Faculty Searchable'!FG"&PDF!$AH48),INDIRECT("'Faculty Searchable'!FG"&PDF!$AH48))),"") -> [Mendoza J L] | H48: =IFERROR(IF(A48="","",IF(TEXT(INDIRECT("'Faculty Searchable'!G"&PDF!$AH48),"##%")="%","",TEXT(INDIRECT("'Faculty Searchable'!G"&PDF!$AH48),"##%"))),"") -> 99% | I48: =IFERROR(IF(A48="","",IF(RIGHT(INDIRECT("'Faculty Searchable'!FO"&PDF!$AH48),5)="Major","--",RIGHT(INDIRECT("'Faculty Searchable'!FO"&PDF!$AH48),2))),"--") -> D9 | J48: =IFERROR(IF(A48="","",RIGHT(INDIRECT("'Faculty Searchable'!FP"&PDF!$AH48),2)),"") -> 4I | K48: =IFERROR(IF(A48="","",IFERROR(VLOOKUP(B48,'Student Searchable'!A:B,2,FALSE),"")),"") ->  | L48: =IFERROR(LEFT(IF(A48="","",IF(INDIRECT("'Faculty Searchable'!CK"&PDF!$AH48)="","16-week-term",INDIRECT("'Faculty Searchable'!CK"&PDF!$AH48))),5),"") -> 1-SPR | M48: =IFERROR(MID(IF(A48="","",IF(INDIRECT("'Faculty Searchable'!CK"&PDF!$AH48)="","16-week-term",INDIRECT("'Faculty Searchable'!CK"&PDF!$AH48))),7,20),"") -> Apr 4 for 8 weeks | N48: =IF(B48="","",_xlfn.XLOOKUP(B48,Tracking!O:O,Tracking!A:A,"")) ->  | O48: =IF(PDF!AH48="","",IFERROR(INDIRECT("'Faculty Searchable'!FN"&PDF!$AH48),ROW())) -> 
A49: =IF(PDF!AH49="","",IFERROR(IF(PDF!A49="","",INDIRECT("'Faculty Searchable'!H"&PDF!AH49)&": "&LEFT(INDIRECT("'Faculty Searchable'!BA"&PDF!AH49),30)),"")) -> PSYC G255: Abnormal Psychology | B49: =IFERROR(IF(A49="","",INDIRECT("'Faculty Searchable'!I"&PDF!$AH49)),"") -> 43453 | C49: =IFERROR(IF(B49="","",INDIRECT("'Faculty Searchable'!BB"&PDF!$AH49)),"") -> 3 | D49: =IFERROR(IF(A49="","",INDIRECT("'Faculty Searchable'!AE"&PDF!$AH49)),"") -> 6.8 hours arranged | E49: =IFERROR(IF(A49="","",IF(D49="Online","",SUBSTITUTE(INDIRECT("'Faculty Searchable'!AF"&PDF!$AH49),"0","--"))),"") ->  | F49: =IFERROR(IF(A49="","",INDIRECT("'Faculty Searchable'!EB"&PDF!$AH49)),"") -> Online | G49: =IFERROR(IF(A49="","",IFERROR(INDIRECT("'Faculty Searchable'!FG"&PDF!$AH49),INDIRECT("'Faculty Searchable'!FG"&PDF!$AH49))),"") -> [Butler J A] | H49: =IFERROR(IF(A49="","",IF(TEXT(INDIRECT("'Faculty Searchable'!G"&PDF!$AH49),"##%")="%","",TEXT(INDIRECT("'Faculty Searchable'!G"&PDF!$AH49),"##%"))),"") -> 96% | I49: =IFERROR(IF(A49="","",IF(RIGHT(INDIRECT("'Faculty Searchable'!FO"&PDF!$AH49),5)="Major","--",RIGHT(INDIRECT("'Faculty Searchable'!FO"&PDF!$AH49),2))),"--") -> D9 | J49: =IFERROR(IF(A49="","",RIGHT(INDIRECT("'Faculty Searchable'!FP"&PDF!$AH49),2)),"") -> 4I | K49: =IFERROR(IF(A49="","",IFERROR(VLOOKUP(B49,'Student Searchable'!A:B,2,FALSE),"")),"") ->  | L49: =IFERROR(LEFT(IF(A49="","",IF(INDIRECT("'Faculty Searchable'!CK"&PDF!$AH49)="","16-week-term",INDIRECT("'Faculty Searchable'!CK"&PDF!$AH49))),5),"") -> 1-SPR | M49: =IFERROR(MID(IF(A49="","",IF(INDIRECT("'Faculty Searchable'!CK"&PDF!$AH49)="","16-week-term",INDIRECT("'Faculty Searchable'!CK"&PDF!$AH49))),7,20),"") -> Apr 4 for 8 weeks | N49: =IF(B49="","",_xlfn.XLOOKUP(B49,Tracking!O:O,Tracking!A:A,"")) -> 0.05 | O49: =IF(PDF!AH49="","",IFERROR(INDIRECT("'Faculty Searchable'!FN"&PDF!$AH49),ROW())) -> 
A50: =IF(PDF!AH50="","",IFERROR(IF(PDF!A50="","",INDIRECT("'Faculty Searchable'!H"&PDF!AH50)&": "&LEFT(INDIRECT("'Faculty Searchable'!BA"&PDF!AH50),30)),"")) -> SIGN G010: Fingerspelling | B50: =IFERROR(IF(A50="","",INDIRECT("'Faculty Searchable'!I"&PDF!$AH50)),"") -> 43340 | C50: =IFERROR(IF(B50="","",INDIRECT("'Faculty Searchable'!BB"&PDF!$AH50)),"") -> 1 | D50: =IFERROR(IF(A50="","",INDIRECT("'Faculty Searchable'!AE"&PDF!$AH50)),"") -> 4:10pm - 6:00pm | E50: =IFERROR(IF(A50="","",IF(D50="Online","",SUBSTITUTE(INDIRECT("'Faculty Searchable'!AF"&PDF!$AH50),"0","--"))),"") -> M | F50: =IFERROR(IF(A50="","",INDIRECT("'Faculty Searchable'!EB"&PDF!$AH50)),"") -> Onground | G50: =IFERROR(IF(A50="","",IFERROR(INDIRECT("'Faculty Searchable'!FG"&PDF!$AH50),INDIRECT("'Faculty Searchable'!FG"&PDF!$AH50))),"") -> [Morford V S] | H50: =IFERROR(IF(A50="","",IF(TEXT(INDIRECT("'Faculty Searchable'!G"&PDF!$AH50),"##%")="%","",TEXT(INDIRECT("'Faculty Searchable'!G"&PDF!$AH50),"##%"))),"") -> 25% | I50: =IFERROR(IF(A50="","",IF(RIGHT(INDIRECT("'Faculty Searchable'!FO"&PDF!$AH50),5)="Major","--",RIGHT(INDIRECT("'Faculty Searchable'!FO"&PDF!$AH50),2))),"--") -> -- | J50: =IFERROR(IF(A50="","",RIGHT(INDIRECT("'Faculty Searchable'!FP"&PDF!$AH50),2)),"") ->  | K50: =IFERROR(IF(A50="","",IFERROR(VLOOKUP(B50,'Student Searchable'!A:B,2,FALSE),"")),"") ->  | L50: =IFERROR(LEFT(IF(A50="","",IF(INDIRECT("'Faculty Searchable'!CK"&PDF!$AH50)="","16-week-term",INDIRECT("'Faculty Searchable'!CK"&PDF!$AH50))),5),"") -> 1-SPR | M50: =IFERROR(MID(IF(A50="","",IF(INDIRECT("'Faculty Searchable'!CK"&PDF!$AH50)="","16-week-term",INDIRECT("'Faculty Searchable'!CK"&PDF!$AH50))),7,20),"") -> Apr 4 for 8 weeks | N50: =IF(B50="","",_xlfn.XLOOKUP(B50,Tracking!O:O,Tracking!A:A,"")) ->  | O50: =IF(PDF!AH50="","",IFERROR(INDIRECT("'Faculty Searchable'!FN"&PDF!$AH50),ROW())) -> 
A51: =IF(PDF!AH51="","",IFERROR(IF(PDF!A51="","",INDIRECT("'Faculty Searchable'!H"&PDF!AH51)&": "&LEFT(INDIRECT("'Faculty Searchable'!BA"&PDF!AH51),30)),"")) -> SPAN G165: Spanish for Spanish Speakers 2 | B51: =IFERROR(IF(A51="","",INDIRECT("'Faculty Searchable'!I"&PDF!$AH51)),"") -> 46440 | C51: =IFERROR(IF(B51="","",INDIRECT("'Faculty Searchable'!BB"&PDF!$AH51)),"") -> 5 | D51: =IFERROR(IF(A51="","",INDIRECT("'Faculty Searchable'!AE"&PDF!$AH51)),"") -> 11.3 hours arranged | E51: =IFERROR(IF(A51="","",IF(D51="Online","",SUBSTITUTE(INDIRECT("'Faculty Searchable'!AF"&PDF!$AH51),"0","--"))),"") ->  | F51: =IFERROR(IF(A51="","",INDIRECT("'Faculty Searchable'!EB"&PDF!$AH51)),"") -> Online | G51: =IFERROR(IF(A51="","",IFERROR(INDIRECT("'Faculty Searchable'!FG"&PDF!$AH51),INDIRECT("'Faculty Searchable'!FG"&PDF!$AH51))),"") -> [Tiernes Cruz C] | H51: =IFERROR(IF(A51="","",IF(TEXT(INDIRECT("'Faculty Searchable'!G"&PDF!$AH51),"##%")="%","",TEXT(INDIRECT("'Faculty Searchable'!G"&PDF!$AH51),"##%"))),"") -> 22% | I51: =IFERROR(IF(A51="","",IF(RIGHT(INDIRECT("'Faculty Searchable'!FO"&PDF!$AH51),5)="Major","--",RIGHT(INDIRECT("'Faculty Searchable'!FO"&PDF!$AH51),2))),"--") -> -- | J51: =IFERROR(IF(A51="","",RIGHT(INDIRECT("'Faculty Searchable'!FP"&PDF!$AH51),2)),"") ->  | K51: =IFERROR(IF(A51="","",IFERROR(VLOOKUP(B51,'Student Searchable'!A:B,2,FALSE),"")),"") ->  | L51: =IFERROR(LEFT(IF(A51="","",IF(INDIRECT("'Faculty Searchable'!CK"&PDF!$AH51)="","16-week-term",INDIRECT("'Faculty Searchable'!CK"&PDF!$AH51))),5),"") -> 1-SPR | M51: =IFERROR(MID(IF(A51="","",IF(INDIRECT("'Faculty Searchable'!CK"&PDF!$AH51)="","16-week-term",INDIRECT("'Faculty Searchable'!CK"&PDF!$AH51))),7,20),"") -> Apr 4 for 8 weeks | N51: =IF(B51="","",_xlfn.XLOOKUP(B51,Tracking!O:O,Tracking!A:A,"")) -> 0 | O51: =IF(PDF!AH51="","",IFERROR(INDIRECT("'Faculty Searchable'!FN"&PDF!$AH51),ROW())) -> Prereq SPAN G110
A52: =IF(PDF!AH52="","",IFERROR(IF(PDF!A52="","",INDIRECT("'Faculty Searchable'!H"&PDF!AH52)&": "&LEFT(INDIRECT("'Faculty Searchable'!BA"&PDF!AH52),30)),"")) -> SPAN G185: Elementary Spanish 2 | B52: =IFERROR(IF(A52="","",INDIRECT("'Faculty Searchable'!I"&PDF!$AH52)),"") -> 42941 | C52: =IFERROR(IF(B52="","",INDIRECT("'Faculty Searchable'!BB"&PDF!$AH52)),"") -> 5 | D52: =IFERROR(IF(A52="","",INDIRECT("'Faculty Searchable'!AE"&PDF!$AH52)),"") -> 11.3 hours arranged | E52: =IFERROR(IF(A52="","",IF(D52="Online","",SUBSTITUTE(INDIRECT("'Faculty Searchable'!AF"&PDF!$AH52),"0","--"))),"") ->  | F52: =IFERROR(IF(A52="","",INDIRECT("'Faculty Searchable'!EB"&PDF!$AH52)),"") -> Online | G52: =IFERROR(IF(A52="","",IFERROR(INDIRECT("'Faculty Searchable'!FG"&PDF!$AH52),INDIRECT("'Faculty Searchable'!FG"&PDF!$AH52))),"") -> [Pizano V B] | H52: =IFERROR(IF(A52="","",IF(TEXT(INDIRECT("'Faculty Searchable'!G"&PDF!$AH52),"##%")="%","",TEXT(INDIRECT("'Faculty Searchable'!G"&PDF!$AH52),"##%"))),"") -> 97% | I52: =IFERROR(IF(A52="","",IF(RIGHT(INDIRECT("'Faculty Searchable'!FO"&PDF!$AH52),5)="Major","--",RIGHT(INDIRECT("'Faculty Searchable'!FO"&PDF!$AH52),2))),"--") -> C2 | J52: =IFERROR(IF(A52="","",RIGHT(INDIRECT("'Faculty Searchable'!FP"&PDF!$AH52),2)),"") -> 3B | K52: =IFERROR(IF(A52="","",IFERROR(VLOOKUP(B52,'Student Searchable'!A:B,2,FALSE),"")),"") ->  | L52: =IFERROR(LEFT(IF(A52="","",IF(INDIRECT("'Faculty Searchable'!CK"&PDF!$AH52)="","16-week-term",INDIRECT("'Faculty Searchable'!CK"&PDF!$AH52))),5),"") -> 1-SPR | M52: =IFERROR(MID(IF(A52="","",IF(INDIRECT("'Faculty Searchable'!CK"&PDF!$AH52)="","16-week-term",INDIRECT("'Faculty Searchable'!CK"&PDF!$AH52))),7,20),"") -> Apr 4 for 8 weeks | N52: =IF(B52="","",_xlfn.XLOOKUP(B52,Tracking!O:O,Tracking!A:A,"")) ->  | O52: =IF(PDF!AH52="","",IFERROR(INDIRECT("'Faculty Searchable'!FN"&PDF!$AH52),ROW())) -> Prereq SPAN G180
A53: =IF(PDF!AH53="","",IFERROR(IF(PDF!A53="","",INDIRECT("'Faculty Searchable'!H"&PDF!AH53)&": "&LEFT(INDIRECT("'Faculty Searchable'!BA"&PDF!AH53),30)),"")) -> SPAN G185: Elementary Spanish 2 | B53: =IFERROR(IF(A53="","",INDIRECT("'Faculty Searchable'!I"&PDF!$AH53)),"") -> 47631 | C53: =IFERROR(IF(B53="","",INDIRECT("'Faculty Searchable'!BB"&PDF!$AH53)),"") -> 5 | D53: =IFERROR(IF(A53="","",INDIRECT("'Faculty Searchable'!AE"&PDF!$AH53)),"") -> 11.3 hours arranged | E53: =IFERROR(IF(A53="","",IF(D53="Online","",SUBSTITUTE(INDIRECT("'Faculty Searchable'!AF"&PDF!$AH53),"0","--"))),"") ->  | F53: =IFERROR(IF(A53="","",INDIRECT("'Faculty Searchable'!EB"&PDF!$AH53)),"") -> Online | G53: =IFERROR(IF(A53="","",IFERROR(INDIRECT("'Faculty Searchable'!FG"&PDF!$AH53),INDIRECT("'Faculty Searchable'!FG"&PDF!$AH53))),"") -> [Soqui-Lopez S] | H53: =IFERROR(IF(A53="","",IF(TEXT(INDIRECT("'Faculty Searchable'!G"&PDF!$AH53),"##%")="%","",TEXT(INDIRECT("'Faculty Searchable'!G"&PDF!$AH53),"##%"))),"") -> 41% | I53: =IFERROR(IF(A53="","",IF(RIGHT(INDIRECT("'Faculty Searchable'!FO"&PDF!$AH53),5)="Major","--",RIGHT(INDIRECT("'Faculty Searchable'!FO"&PDF!$AH53),2))),"--") -> C2 | J53: =IFERROR(IF(A53="","",RIGHT(INDIRECT("'Faculty Searchable'!FP"&PDF!$AH53),2)),"") -> 3B | K53: =IFERROR(IF(A53="","",IFERROR(VLOOKUP(B53,'Student Searchable'!A:B,2,FALSE),"")),"") ->  | L53: =IFERROR(LEFT(IF(A53="","",IF(INDIRECT("'Faculty Searchable'!CK"&PDF!$AH53)="","16-week-term",INDIRECT("'Faculty Searchable'!CK"&PDF!$AH53))),5),"") -> 1-SPR | M53: =IFERROR(MID(IF(A53="","",IF(INDIRECT("'Faculty Searchable'!CK"&PDF!$AH53)="","16-week-term",INDIRECT("'Faculty Searchable'!CK"&PDF!$AH53))),7,20),"") -> Apr 4 for 8 weeks | N53: =IF(B53="","",_xlfn.XLOOKUP(B53,Tracking!O:O,Tracking!A:A,"")) -> 0 | O53: =IF(PDF!AH53="","",IFERROR(INDIRECT("'Faculty Searchable'!FN"&PDF!$AH53),ROW())) -> Prereq SPAN G180
A54: =IF(PDF!AH54="","",IFERROR(IF(PDF!A54="","",INDIRECT("'Faculty Searchable'!H"&PDF!AH54)&": "&LEFT(INDIRECT("'Faculty Searchable'!BA"&PDF!AH54),30)),"")) -> THEA G102: Hist & Appr of the Cinema | B54: =IFERROR(IF(A54="","",INDIRECT("'Faculty Searchable'!I"&PDF!$AH54)),"") -> 43599 | C54: =IFERROR(IF(B54="","",INDIRECT("'Faculty Searchable'!BB"&PDF!$AH54)),"") -> 3 | D54: =IFERROR(IF(A54="","",INDIRECT("'Faculty Searchable'!AE"&PDF!$AH54)),"") -> 12:50pm - 4:00pm | E54: =IFERROR(IF(A54="","",IF(D54="Online","",SUBSTITUTE(INDIRECT("'Faculty Searchable'!AF"&PDF!$AH54),"0","--"))),"") -> MW | F54: =IFERROR(IF(A54="","",INDIRECT("'Faculty Searchable'!EB"&PDF!$AH54)),"") -> Onground | G54: =IFERROR(IF(A54="","",IFERROR(INDIRECT("'Faculty Searchable'!FG"&PDF!$AH54),INDIRECT("'Faculty Searchable'!FG"&PDF!$AH54))),"") -> [Cowan R W] | H54: =IFERROR(IF(A54="","",IF(TEXT(INDIRECT("'Faculty Searchable'!G"&PDF!$AH54),"##%")="%","",TEXT(INDIRECT("'Faculty Searchable'!G"&PDF!$AH54),"##%"))),"") -> 33% | I54: =IFERROR(IF(A54="","",IF(RIGHT(INDIRECT("'Faculty Searchable'!FO"&PDF!$AH54),5)="Major","--",RIGHT(INDIRECT("'Faculty Searchable'!FO"&PDF!$AH54),2))),"--") -> C1 | J54: =IFERROR(IF(A54="","",RIGHT(INDIRECT("'Faculty Searchable'!FP"&PDF!$AH54),2)),"") -> 3A | K54: =IFERROR(IF(A54="","",IFERROR(VLOOKUP(B54,'Student Searchable'!A:B,2,FALSE),"")),"") ->  | L54: =IFERROR(LEFT(IF(A54="","",IF(INDIRECT("'Faculty Searchable'!CK"&PDF!$AH54)="","16-week-term",INDIRECT("'Faculty Searchable'!CK"&PDF!$AH54))),5),"") -> 1-SPR | M54: =IFERROR(MID(IF(A54="","",IF(INDIRECT("'Faculty Searchable'!CK"&PDF!$AH54)="","16-week-term",INDIRECT("'Faculty Searchable'!CK"&PDF!$AH54))),7,20),"") -> Apr 4 for 8 weeks | N54: =IF(B54="","",_xlfn.XLOOKUP(B54,Tracking!O:O,Tracking!A:A,"")) -> 0 | O54: =IF(PDF!AH54="","",IFERROR(INDIRECT("'Faculty Searchable'!FN"&PDF!$AH54),ROW())) -> 
A55: =IF(PDF!AH55="","",IFERROR(IF(PDF!A55="","",INDIRECT("'Faculty Searchable'!H"&PDF!AH55)&": "&LEFT(INDIRECT("'Faculty Searchable'!BA"&PDF!AH55),30)),"")) -> THEA G102: Hist & Appr of the Cinema | B55: =IFERROR(IF(A55="","",INDIRECT("'Faculty Searchable'!I"&PDF!$AH55)),"") -> 47524 | C55: =IFERROR(IF(B55="","",INDIRECT("'Faculty Searchable'!BB"&PDF!$AH55)),"") -> 3 | D55: =IFERROR(IF(A55="","",INDIRECT("'Faculty Searchable'!AE"&PDF!$AH55)),"") -> 6.8 hours arranged | E55: =IFERROR(IF(A55="","",IF(D55="Online","",SUBSTITUTE(INDIRECT("'Faculty Searchable'!AF"&PDF!$AH55),"0","--"))),"") ->  | F55: =IFERROR(IF(A55="","",INDIRECT("'Faculty Searchable'!EB"&PDF!$AH55)),"") -> Online | G55: =IFERROR(IF(A55="","",IFERROR(INDIRECT("'Faculty Searchable'!FG"&PDF!$AH55),INDIRECT("'Faculty Searchable'!FG"&PDF!$AH55))),"") -> [Mueller T T] | H55: =IFERROR(IF(A55="","",IF(TEXT(INDIRECT("'Faculty Searchable'!G"&PDF!$AH55),"##%")="%","",TEXT(INDIRECT("'Faculty Searchable'!G"&PDF!$AH55),"##%"))),"") -> 85% | I55: =IFERROR(IF(A55="","",IF(RIGHT(INDIRECT("'Faculty Searchable'!FO"&PDF!$AH55),5)="Major","--",RIGHT(INDIRECT("'Faculty Searchable'!FO"&PDF!$AH55),2))),"--") -> C1 | J55: =IFERROR(IF(A55="","",RIGHT(INDIRECT("'Faculty Searchable'!FP"&PDF!$AH55),2)),"") -> 3A | K55: =IFERROR(IF(A55="","",IFERROR(VLOOKUP(B55,'Student Searchable'!A:B,2,FALSE),"")),"") ->  | L55: =IFERROR(LEFT(IF(A55="","",IF(INDIRECT("'Faculty Searchable'!CK"&PDF!$AH55)="","16-week-term",INDIRECT("'Faculty Searchable'!CK"&PDF!$AH55))),5),"") -> 1-SPR | M55: =IFERROR(MID(IF(A55="","",IF(INDIRECT("'Faculty Searchable'!CK"&PDF!$AH55)="","16-week-term",INDIRECT("'Faculty Searchable'!CK"&PDF!$AH55))),7,20),"") -> Apr 4 for 8 weeks | N55: =IF(B55="","",_xlfn.XLOOKUP(B55,Tracking!O:O,Tracking!A:A,"")) ->  | O55: =IF(PDF!AH55="","",IFERROR(INDIRECT("'Faculty Searchable'!FN"&PDF!$AH55),ROW())) -> 
A56: =IF(PDF!AH56="","",IFERROR(IF(PDF!A56="","",INDIRECT("'Faculty Searchable'!H"&PDF!AH56)&": "&LEFT(INDIRECT("'Faculty Searchable'!BA"&PDF!AH56),30)),"")) -> ACCT G101: Financial Accounting | B56: =IFERROR(IF(A56="","",INDIRECT("'Faculty Searchable'!I"&PDF!$AH56)),"") -> 10592 | C56: =IFERROR(IF(B56="","",INDIRECT("'Faculty Searchable'!BB"&PDF!$AH56)),"") -> 4 | D56: =IFERROR(IF(A56="","",INDIRECT("'Faculty Searchable'!AE"&PDF!$AH56)),"") -> 9 hours arranged | E56: =IFERROR(IF(A56="","",IF(D56="Online","",SUBSTITUTE(INDIRECT("'Faculty Searchable'!AF"&PDF!$AH56),"0","--"))),"") ->  | F56: =IFERROR(IF(A56="","",INDIRECT("'Faculty Searchable'!EB"&PDF!$AH56)),"") -> Online | G56: =IFERROR(IF(A56="","",IFERROR(INDIRECT("'Faculty Searchable'!FG"&PDF!$AH56),INDIRECT("'Faculty Searchable'!FG"&PDF!$AH56))),"") -> [Rivera A K] | H56: =IFERROR(IF(A56="","",IF(TEXT(INDIRECT("'Faculty Searchable'!G"&PDF!$AH56),"##%")="%","",TEXT(INDIRECT("'Faculty Searchable'!G"&PDF!$AH56),"##%"))),"") ->  | I56: =IFERROR(IF(A56="","",IF(RIGHT(INDIRECT("'Faculty Searchable'!FO"&PDF!$AH56),5)="Major","--",RIGHT(INDIRECT("'Faculty Searchable'!FO"&PDF!$AH56),2))),"--") -> -- | J56: =IFERROR(IF(A56="","",RIGHT(INDIRECT("'Faculty Searchable'!FP"&PDF!$AH56),2)),"") ->  | K56: =IFERROR(IF(A56="","",IFERROR(VLOOKUP(B56,'Student Searchable'!A:B,2,FALSE),"")),"") ->  | L56: =IFERROR(LEFT(IF(A56="","",IF(INDIRECT("'Faculty Searchable'!CK"&PDF!$AH56)="","16-week-term",INDIRECT("'Faculty Searchable'!CK"&PDF!$AH56))),5),"") -> 2-SUM | M56: =IFERROR(MID(IF(A56="","",IF(INDIRECT("'Faculty Searchable'!CK"&PDF!$AH56)="","16-week-term",INDIRECT("'Faculty Searchable'!CK"&PDF!$AH56))),7,20),"") -> Jun 13 for 10 weeks | N56: =IF(B56="","",_xlfn.XLOOKUP(B56,Tracking!O:O,Tracking!A:A,"")) -> 0.07 | O56: =IF(PDF!AH56="","",IFERROR(INDIRECT("'Faculty Searchable'!FN"&PDF!$AH56),ROW())) -> 
A57: =IF(PDF!AH57="","",IFERROR(IF(PDF!A57="","",INDIRECT("'Faculty Searchable'!H"&PDF!AH57)&": "&LEFT(INDIRECT("'Faculty Searchable'!BA"&PDF!AH57),30)),"")) -> ACCT G102: Managerial Accounting | B57: =IFERROR(IF(A57="","",INDIRECT("'Faculty Searchable'!I"&PDF!$AH57)),"") -> 10581 | C57: =IFERROR(IF(B57="","",INDIRECT("'Faculty Searchable'!BB"&PDF!$AH57)),"") -> 4 | D57: =IFERROR(IF(A57="","",INDIRECT("'Faculty Searchable'!AE"&PDF!$AH57)),"") -> 11.25 hours arranged | E57: =IFERROR(IF(A57="","",IF(D57="Online","",SUBSTITUTE(INDIRECT("'Faculty Searchable'!AF"&PDF!$AH57),"0","--"))),"") ->  | F57: =IFERROR(IF(A57="","",INDIRECT("'Faculty Searchable'!EB"&PDF!$AH57)),"") -> Online | G57: =IFERROR(IF(A57="","",IFERROR(INDIRECT("'Faculty Searchable'!FG"&PDF!$AH57),INDIRECT("'Faculty Searchable'!FG"&PDF!$AH57))),"") -> [Rivera A K] | H57: =IFERROR(IF(A57="","",IF(TEXT(INDIRECT("'Faculty Searchable'!G"&PDF!$AH57),"##%")="%","",TEXT(INDIRECT("'Faculty Searchable'!G"&PDF!$AH57),"##%"))),"") ->  | I57: =IFERROR(IF(A57="","",IF(RIGHT(INDIRECT("'Faculty Searchable'!FO"&PDF!$AH57),5)="Major","--",RIGHT(INDIRECT("'Faculty Searchable'!FO"&PDF!$AH57),2))),"--") -> -- | J57: =IFERROR(IF(A57="","",RIGHT(INDIRECT("'Faculty Searchable'!FP"&PDF!$AH57),2)),"") ->  | K57: =IFERROR(IF(A57="","",IFERROR(VLOOKUP(B57,'Student Searchable'!A:B,2,FALSE),"")),"") ->  | L57: =IFERROR(LEFT(IF(A57="","",IF(INDIRECT("'Faculty Searchable'!CK"&PDF!$AH57)="","16-week-term",INDIRECT("'Faculty Searchable'!CK"&PDF!$AH57))),5),"") -> 2-SUM | M57: =IFERROR(MID(IF(A57="","",IF(INDIRECT("'Faculty Searchable'!CK"&PDF!$AH57)="","16-week-term",INDIRECT("'Faculty Searchable'!CK"&PDF!$AH57))),7,20),"") -> Jun 13 for 8 weeks | N57: =IF(B57="","",_xlfn.XLOOKUP(B57,Tracking!O:O,Tracking!A:A,"")) -> 0 | O57: =IF(PDF!AH57="","",IFERROR(INDIRECT("'Faculty Searchable'!FN"&PDF!$AH57),ROW())) -> Prereq ACCT G101
A58: =IF(PDF!AH58="","",IFERROR(IF(PDF!A58="","",INDIRECT("'Faculty Searchable'!H"&PDF!AH58)&": "&LEFT(INDIRECT("'Faculty Searchable'!BA"&PDF!AH58),30)),"")) -> ANTH G100: Intro to Cultural Anthropology | B58: =IFERROR(IF(A58="","",INDIRECT("'Faculty Searchable'!I"&PDF!$AH58)),"") -> 10540 | C58: =IFERROR(IF(B58="","",INDIRECT("'Faculty Searchable'!BB"&PDF!$AH58)),"") -> 3 | D58: =IFERROR(IF(A58="","",INDIRECT("'Faculty Searchable'!AE"&PDF!$AH58)),"") -> 9 hours arranged | E58: =IFERROR(IF(A58="","",IF(D58="Online","",SUBSTITUTE(INDIRECT("'Faculty Searchable'!AF"&PDF!$AH58),"0","--"))),"") ->  | F58: =IFERROR(IF(A58="","",INDIRECT("'Faculty Searchable'!EB"&PDF!$AH58)),"") -> Online | G58: =IFERROR(IF(A58="","",IFERROR(INDIRECT("'Faculty Searchable'!FG"&PDF!$AH58),INDIRECT("'Faculty Searchable'!FG"&PDF!$AH58))),"") -> [Walden-Hurtge L C] | H58: =IFERROR(IF(A58="","",IF(TEXT(INDIRECT("'Faculty Searchable'!G"&PDF!$AH58),"##%")="%","",TEXT(INDIRECT("'Faculty Searchable'!G"&PDF!$AH58),"##%"))),"") ->  | I58: =IFERROR(IF(A58="","",IF(RIGHT(INDIRECT("'Faculty Searchable'!FO"&PDF!$AH58),5)="Major","--",RIGHT(INDIRECT("'Faculty Searchable'!FO"&PDF!$AH58),2))),"--") -> D1 | J58: =IFERROR(IF(A58="","",RIGHT(INDIRECT("'Faculty Searchable'!FP"&PDF!$AH58),2)),"") -> 4A | K58: =IFERROR(IF(A58="","",IFERROR(VLOOKUP(B58,'Student Searchable'!A:B,2,FALSE),"")),"") ->  | L58: =IFERROR(LEFT(IF(A58="","",IF(INDIRECT("'Faculty Searchable'!CK"&PDF!$AH58)="","16-week-term",INDIRECT("'Faculty Searchable'!CK"&PDF!$AH58))),5),"") -> 2-SUM | M58: =IFERROR(MID(IF(A58="","",IF(INDIRECT("'Faculty Searchable'!CK"&PDF!$AH58)="","16-week-term",INDIRECT("'Faculty Searchable'!CK"&PDF!$AH58))),7,20),"") -> Jun 13 for 6 weeks | N58: =IF(B58="","",_xlfn.XLOOKUP(B58,Tracking!O:O,Tracking!A:A,"")) -> 0.01 | O58: =IF(PDF!AH58="","",IFERROR(INDIRECT("'Faculty Searchable'!FN"&PDF!$AH58),ROW())) -> 
A59: =IF(PDF!AH59="","",IFERROR(IF(PDF!A59="","",INDIRECT("'Faculty Searchable'!H"&PDF!AH59)&": "&LEFT(INDIRECT("'Faculty Searchable'!BA"&PDF!AH59),30)),"")) -> ANTH G100: Intro to Cultural Anthropology | B59: =IFERROR(IF(A59="","",INDIRECT("'Faculty Searchable'!I"&PDF!$AH59)),"") -> 10481 | C59: =IFERROR(IF(B59="","",INDIRECT("'Faculty Searchable'!BB"&PDF!$AH59)),"") -> 3 | D59: =IFERROR(IF(A59="","",INDIRECT("'Faculty Searchable'!AE"&PDF!$AH59)),"") -> 9 hours arranged | E59: =IFERROR(IF(A59="","",IF(D59="Online","",SUBSTITUTE(INDIRECT("'Faculty Searchable'!AF"&PDF!$AH59),"0","--"))),"") ->  | F59: =IFERROR(IF(A59="","",INDIRECT("'Faculty Searchable'!EB"&PDF!$AH59)),"") -> Online | G59: =IFERROR(IF(A59="","",IFERROR(INDIRECT("'Faculty Searchable'!FG"&PDF!$AH59),INDIRECT("'Faculty Searchable'!FG"&PDF!$AH59))),"") -> [Fini K] | H59: =IFERROR(IF(A59="","",IF(TEXT(INDIRECT("'Faculty Searchable'!G"&PDF!$AH59),"##%")="%","",TEXT(INDIRECT("'Faculty Searchable'!G"&PDF!$AH59),"##%"))),"") ->  | I59: =IFERROR(IF(A59="","",IF(RIGHT(INDIRECT("'Faculty Searchable'!FO"&PDF!$AH59),5)="Major","--",RIGHT(INDIRECT("'Faculty Searchable'!FO"&PDF!$AH59),2))),"--") -> D1 | J59: =IFERROR(IF(A59="","",RIGHT(INDIRECT("'Faculty Searchable'!FP"&PDF!$AH59),2)),"") -> 4A | K59: =IFERROR(IF(A59="","",IFERROR(VLOOKUP(B59,'Student Searchable'!A:B,2,FALSE),"")),"") ->  | L59: =IFERROR(LEFT(IF(A59="","",IF(INDIRECT("'Faculty Searchable'!CK"&PDF!$AH59)="","16-week-term",INDIRECT("'Faculty Searchable'!CK"&PDF!$AH59))),5),"") -> 2-SUM | M59: =IFERROR(MID(IF(A59="","",IF(INDIRECT("'Faculty Searchable'!CK"&PDF!$AH59)="","16-week-term",INDIRECT("'Faculty Searchable'!CK"&PDF!$AH59))),7,20),"") -> Jun 27 for 6 weeks | N59: =IF(B59="","",_xlfn.XLOOKUP(B59,Tracking!O:O,Tracking!A:A,"")) -> 0 | O59: =IF(PDF!AH59="","",IFERROR(INDIRECT("'Faculty Searchable'!FN"&PDF!$AH59),ROW())) -> 
A60: =IF(PDF!AH60="","",IFERROR(IF(PDF!A60="","",INDIRECT("'Faculty Searchable'!H"&PDF!AH60)&": "&LEFT(INDIRECT("'Faculty Searchable'!BA"&PDF!AH60),30)),"")) -> ANTH G140: Magic, Witchcraft, Religion | B60: =IFERROR(IF(A60="","",INDIRECT("'Faculty Searchable'!I"&PDF!$AH60)),"") -> 10541 | C60: =IFERROR(IF(B60="","",INDIRECT("'Faculty Searchable'!BB"&PDF!$AH60)),"") -> 3 | D60: =IFERROR(IF(A60="","",INDIRECT("'Faculty Searchable'!AE"&PDF!$AH60)),"") -> 9 hours arranged | E60: =IFERROR(IF(A60="","",IF(D60="Online","",SUBSTITUTE(INDIRECT("'Faculty Searchable'!AF"&PDF!$AH60),"0","--"))),"") ->  | F60: =IFERROR(IF(A60="","",INDIRECT("'Faculty Searchable'!EB"&PDF!$AH60)),"") -> Online | G60: =IFERROR(IF(A60="","",IFERROR(INDIRECT("'Faculty Searchable'!FG"&PDF!$AH60),INDIRECT("'Faculty Searchable'!FG"&PDF!$AH60))),"") -> [Humphrys T L] | H60: =IFERROR(IF(A60="","",IF(TEXT(INDIRECT("'Faculty Searchable'!G"&PDF!$AH60),"##%")="%","",TEXT(INDIRECT("'Faculty Searchable'!G"&PDF!$AH60),"##%"))),"") ->  | I60: =IFERROR(IF(A60="","",IF(RIGHT(INDIRECT("'Faculty Searchable'!FO"&PDF!$AH60),5)="Major","--",RIGHT(INDIRECT("'Faculty Searchable'!FO"&PDF!$AH60),2))),"--") -> -- | J60: =IFERROR(IF(A60="","",RIGHT(INDIRECT("'Faculty Searchable'!FP"&PDF!$AH60),2)),"") ->  | K60: =IFERROR(IF(A60="","",IFERROR(VLOOKUP(B60,'Student Searchable'!A:B,2,FALSE),"")),"") ->  | L60: =IFERROR(LEFT(IF(A60="","",IF(INDIRECT("'Faculty Searchable'!CK"&PDF!$AH60)="","16-week-term",INDIRECT("'Faculty Searchable'!CK"&PDF!$AH60))),5),"") -> 2-SUM | M60: =IFERROR(MID(IF(A60="","",IF(INDIRECT("'Faculty Searchable'!CK"&PDF!$AH60)="","16-week-term",INDIRECT("'Faculty Searchable'!CK"&PDF!$AH60))),7,20),"") -> Jun 27 for 6 weeks | N60: =IF(B60="","",_xlfn.XLOOKUP(B60,Tracking!O:O,Tracking!A:A,"")) -> 0 | O60: =IF(PDF!AH60="","",IFERROR(INDIRECT("'Faculty Searchable'!FN"&PDF!$AH60),ROW())) -> 
A61: =IF(PDF!AH61="","",IFERROR(IF(PDF!A61="","",INDIRECT("'Faculty Searchable'!H"&PDF!AH61)&": "&LEFT(INDIRECT("'Faculty Searchable'!BA"&PDF!AH61),30)),"")) -> ANTH G185: Physical Anthropology | B61: =IFERROR(IF(A61="","",INDIRECT("'Faculty Searchable'!I"&PDF!$AH61)),"") -> 10509 | C61: =IFERROR(IF(B61="","",INDIRECT("'Faculty Searchable'!BB"&PDF!$AH61)),"") -> 3 | D61: =IFERROR(IF(A61="","",INDIRECT("'Faculty Searchable'!AE"&PDF!$AH61)),"") -> 9 hours arranged | E61: =IFERROR(IF(A61="","",IF(D61="Online","",SUBSTITUTE(INDIRECT("'Faculty Searchable'!AF"&PDF!$AH61),"0","--"))),"") ->  | F61: =IFERROR(IF(A61="","",INDIRECT("'Faculty Searchable'!EB"&PDF!$AH61)),"") -> Online | G61: =IFERROR(IF(A61="","",IFERROR(INDIRECT("'Faculty Searchable'!FG"&PDF!$AH61),INDIRECT("'Faculty Searchable'!FG"&PDF!$AH61))),"") -> [Walden-Hurtge L C] | H61: =IFERROR(IF(A61="","",IF(TEXT(INDIRECT("'Faculty Searchable'!G"&PDF!$AH61),"##%")="%","",TEXT(INDIRECT("'Faculty Searchable'!G"&PDF!$AH61),"##%"))),"") ->  | I61: =IFERROR(IF(A61="","",IF(RIGHT(INDIRECT("'Faculty Searchable'!FO"&PDF!$AH61),5)="Major","--",RIGHT(INDIRECT("'Faculty Searchable'!FO"&PDF!$AH61),2))),"--") -> B2 | J61: =IFERROR(IF(A61="","",RIGHT(INDIRECT("'Faculty Searchable'!FP"&PDF!$AH61),2)),"") -> 5B | K61: =IFERROR(IF(A61="","",IFERROR(VLOOKUP(B61,'Student Searchable'!A:B,2,FALSE),"")),"") ->  | L61: =IFERROR(LEFT(IF(A61="","",IF(INDIRECT("'Faculty Searchable'!CK"&PDF!$AH61)="","16-week-term",INDIRECT("'Faculty Searchable'!CK"&PDF!$AH61))),5),"") -> 2-SUM | M61: =IFERROR(MID(IF(A61="","",IF(INDIRECT("'Faculty Searchable'!CK"&PDF!$AH61)="","16-week-term",INDIRECT("'Faculty Searchable'!CK"&PDF!$AH61))),7,20),"") -> Jun 13 for 6 weeks | N61: =IF(B61="","",_xlfn.XLOOKUP(B61,Tracking!O:O,Tracking!A:A,"")) -> 0 | O61: =IF(PDF!AH61="","",IFERROR(INDIRECT("'Faculty Searchable'!FN"&PDF!$AH61),ROW())) -> 
A62: =IF(PDF!AH62="","",IFERROR(IF(PDF!A62="","",INDIRECT("'Faculty Searchable'!H"&PDF!AH62)&": "&LEFT(INDIRECT("'Faculty Searchable'!BA"&PDF!AH62),30)),"")) -> ART G100: Introduction To Art | B62: =IFERROR(IF(A62="","",INDIRECT("'Faculty Searchable'!I"&PDF!$AH62)),"") -> 10571 | C62: =IFERROR(IF(B62="","",INDIRECT("'Faculty Searchable'!BB"&PDF!$AH62)),"") -> 3 | D62: =IFERROR(IF(A62="","",INDIRECT("'Faculty Searchable'!AE"&PDF!$AH62)),"") -> 9 hours arranged | E62: =IFERROR(IF(A62="","",IF(D62="Online","",SUBSTITUTE(INDIRECT("'Faculty Searchable'!AF"&PDF!$AH62),"0","--"))),"") ->  | F62: =IFERROR(IF(A62="","",INDIRECT("'Faculty Searchable'!EB"&PDF!$AH62)),"") -> Online | G62: =IFERROR(IF(A62="","",IFERROR(INDIRECT("'Faculty Searchable'!FG"&PDF!$AH62),INDIRECT("'Faculty Searchable'!FG"&PDF!$AH62))),"") -> [Runyen A R] | H62: =IFERROR(IF(A62="","",IF(TEXT(INDIRECT("'Faculty Searchable'!G"&PDF!$AH62),"##%")="%","",TEXT(INDIRECT("'Faculty Searchable'!G"&PDF!$AH62),"##%"))),"") ->  | I62: =IFERROR(IF(A62="","",IF(RIGHT(INDIRECT("'Faculty Searchable'!FO"&PDF!$AH62),5)="Major","--",RIGHT(INDIRECT("'Faculty Searchable'!FO"&PDF!$AH62),2))),"--") -> C1 | J62: =IFERROR(IF(A62="","",RIGHT(INDIRECT("'Faculty Searchable'!FP"&PDF!$AH62),2)),"") -> 3A | K62: =IFERROR(IF(A62="","",IFERROR(VLOOKUP(B62,'Student Searchable'!A:B,2,FALSE),"")),"") ->  | L62: =IFERROR(LEFT(IF(A62="","",IF(INDIRECT("'Faculty Searchable'!CK"&PDF!$AH62)="","16-week-term",INDIRECT("'Faculty Searchable'!CK"&PDF!$AH62))),5),"") -> 2-SUM | M62: =IFERROR(MID(IF(A62="","",IF(INDIRECT("'Faculty Searchable'!CK"&PDF!$AH62)="","16-week-term",INDIRECT("'Faculty Searchable'!CK"&PDF!$AH62))),7,20),"") -> Jun 13 for 6 weeks | N62: =IF(B62="","",_xlfn.XLOOKUP(B62,Tracking!O:O,Tracking!A:A,"")) -> 0 | O62: =IF(PDF!AH62="","",IFERROR(INDIRECT("'Faculty Searchable'!FN"&PDF!$AH62),ROW())) -> 
A63: =IF(PDF!AH63="","",IFERROR(IF(PDF!A63="","",INDIRECT("'Faculty Searchable'!H"&PDF!AH63)&": "&LEFT(INDIRECT("'Faculty Searchable'!BA"&PDF!AH63),30)),"")) -> ART G100: Introduction To Art | B63: =IFERROR(IF(A63="","",INDIRECT("'Faculty Searchable'!I"&PDF!$AH63)),"") -> 10549 | C63: =IFERROR(IF(B63="","",INDIRECT("'Faculty Searchable'!BB"&PDF!$AH63)),"") -> 3 | D63: =IFERROR(IF(A63="","",INDIRECT("'Faculty Searchable'!AE"&PDF!$AH63)),"") -> 9 hours arranged | E63: =IFERROR(IF(A63="","",IF(D63="Online","",SUBSTITUTE(INDIRECT("'Faculty Searchable'!AF"&PDF!$AH63),"0","--"))),"") ->  | F63: =IFERROR(IF(A63="","",INDIRECT("'Faculty Searchable'!EB"&PDF!$AH63)),"") -> Online | G63: =IFERROR(IF(A63="","",IFERROR(INDIRECT("'Faculty Searchable'!FG"&PDF!$AH63),INDIRECT("'Faculty Searchable'!FG"&PDF!$AH63))),"") -> [Best A] | H63: =IFERROR(IF(A63="","",IF(TEXT(INDIRECT("'Faculty Searchable'!G"&PDF!$AH63),"##%")="%","",TEXT(INDIRECT("'Faculty Searchable'!G"&PDF!$AH63),"##%"))),"") ->  | I63: =IFERROR(IF(A63="","",IF(RIGHT(INDIRECT("'Faculty Searchable'!FO"&PDF!$AH63),5)="Major","--",RIGHT(INDIRECT("'Faculty Searchable'!FO"&PDF!$AH63),2))),"--") -> C1 | J63: =IFERROR(IF(A63="","",RIGHT(INDIRECT("'Faculty Searchable'!FP"&PDF!$AH63),2)),"") -> 3A | K63: =IFERROR(IF(A63="","",IFERROR(VLOOKUP(B63,'Student Searchable'!A:B,2,FALSE),"")),"") ->  | L63: =IFERROR(LEFT(IF(A63="","",IF(INDIRECT("'Faculty Searchable'!CK"&PDF!$AH63)="","16-week-term",INDIRECT("'Faculty Searchable'!CK"&PDF!$AH63))),5),"") -> 2-SUM | M63: =IFERROR(MID(IF(A63="","",IF(INDIRECT("'Faculty Searchable'!CK"&PDF!$AH63)="","16-week-term",INDIRECT("'Faculty Searchable'!CK"&PDF!$AH63))),7,20),"") -> Jun 27 for 6 weeks | N63: =IF(B63="","",_xlfn.XLOOKUP(B63,Tracking!O:O,Tracking!A:A,"")) -> 0 | O63: =IF(PDF!AH63="","",IFERROR(INDIRECT("'Faculty Searchable'!FN"&PDF!$AH63),ROW())) -> 
A64: =IF(PDF!AH64="","",IFERROR(IF(PDF!A64="","",INDIRECT("'Faculty Searchable'!H"&PDF!AH64)&": "&LEFT(INDIRECT("'Faculty Searchable'!BA"&PDF!AH64),30)),"")) -> ART G100: Introduction To Art | B64: =IFERROR(IF(A64="","",INDIRECT("'Faculty Searchable'!I"&PDF!$AH64)),"") -> 10601 | C64: =IFERROR(IF(B64="","",INDIRECT("'Faculty Searchable'!BB"&PDF!$AH64)),"") -> 3 | D64: =IFERROR(IF(A64="","",INDIRECT("'Faculty Searchable'!AE"&PDF!$AH64)),"") -> 9 hours arranged | E64: =IFERROR(IF(A64="","",IF(D64="Online","",SUBSTITUTE(INDIRECT("'Faculty Searchable'!AF"&PDF!$AH64),"0","--"))),"") ->  | F64: =IFERROR(IF(A64="","",INDIRECT("'Faculty Searchable'!EB"&PDF!$AH64)),"") -> Online | G64: =IFERROR(IF(A64="","",IFERROR(INDIRECT("'Faculty Searchable'!FG"&PDF!$AH64),INDIRECT("'Faculty Searchable'!FG"&PDF!$AH64))),"") -> [Jovanovich M E] | H64: =IFERROR(IF(A64="","",IF(TEXT(INDIRECT("'Faculty Searchable'!G"&PDF!$AH64),"##%")="%","",TEXT(INDIRECT("'Faculty Searchable'!G"&PDF!$AH64),"##%"))),"") ->  | I64: =IFERROR(IF(A64="","",IF(RIGHT(INDIRECT("'Faculty Searchable'!FO"&PDF!$AH64),5)="Major","--",RIGHT(INDIRECT("'Faculty Searchable'!FO"&PDF!$AH64),2))),"--") -> C1 | J64: =IFERROR(IF(A64="","",RIGHT(INDIRECT("'Faculty Searchable'!FP"&PDF!$AH64),2)),"") -> 3A | K64: =IFERROR(IF(A64="","",IFERROR(VLOOKUP(B64,'Student Searchable'!A:B,2,FALSE),"")),"") ->  | L64: =IFERROR(LEFT(IF(A64="","",IF(INDIRECT("'Faculty Searchable'!CK"&PDF!$AH64)="","16-week-term",INDIRECT("'Faculty Searchable'!CK"&PDF!$AH64))),5),"") -> 2-SUM | M64: =IFERROR(MID(IF(A64="","",IF(INDIRECT("'Faculty Searchable'!CK"&PDF!$AH64)="","16-week-term",INDIRECT("'Faculty Searchable'!CK"&PDF!$AH64))),7,20),"") -> Jun 27 for 6 weeks | N64: =IF(B64="","",_xlfn.XLOOKUP(B64,Tracking!O:O,Tracking!A:A,"")) -> 0 | O64: =IF(PDF!AH64="","",IFERROR(INDIRECT("'Faculty Searchable'!FN"&PDF!$AH64),ROW())) -> 
A65: =IF(PDF!AH65="","",IFERROR(IF(PDF!A65="","",INDIRECT("'Faculty Searchable'!H"&PDF!AH65)&": "&LEFT(INDIRECT("'Faculty Searchable'!BA"&PDF!AH65),30)),"")) -> ART G106: Art History & Appreciation 2 | B65: =IFERROR(IF(A65="","",INDIRECT("'Faculty Searchable'!I"&PDF!$AH65)),"") -> 11872 | C65: =IFERROR(IF(B65="","",INDIRECT("'Faculty Searchable'!BB"&PDF!$AH65)),"") -> 3 | D65: =IFERROR(IF(A65="","",INDIRECT("'Faculty Searchable'!AE"&PDF!$AH65)),"") -> 9 hours arranged | E65: =IFERROR(IF(A65="","",IF(D65="Online","",SUBSTITUTE(INDIRECT("'Faculty Searchable'!AF"&PDF!$AH65),"0","--"))),"") ->  | F65: =IFERROR(IF(A65="","",INDIRECT("'Faculty Searchable'!EB"&PDF!$AH65)),"") -> Online | G65: =IFERROR(IF(A65="","",IFERROR(INDIRECT("'Faculty Searchable'!FG"&PDF!$AH65),INDIRECT("'Faculty Searchable'!FG"&PDF!$AH65))),"") -> [Jovanovich M E] | H65: =IFERROR(IF(A65="","",IF(TEXT(INDIRECT("'Faculty Searchable'!G"&PDF!$AH65),"##%")="%","",TEXT(INDIRECT("'Faculty Searchable'!G"&PDF!$AH65),"##%"))),"") ->  | I65: =IFERROR(IF(A65="","",IF(RIGHT(INDIRECT("'Faculty Searchable'!FO"&PDF!$AH65),5)="Major","--",RIGHT(INDIRECT("'Faculty Searchable'!FO"&PDF!$AH65),2))),"--") -> -- | J65: =IFERROR(IF(A65="","",RIGHT(INDIRECT("'Faculty Searchable'!FP"&PDF!$AH65),2)),"") ->  | K65: =IFERROR(IF(A65="","",IFERROR(VLOOKUP(B65,'Student Searchable'!A:B,2,FALSE),"")),"") ->  | L65: =IFERROR(LEFT(IF(A65="","",IF(INDIRECT("'Faculty Searchable'!CK"&PDF!$AH65)="","16-week-term",INDIRECT("'Faculty Searchable'!CK"&PDF!$AH65))),5),"") -> 2-SUM | M65: =IFERROR(MID(IF(A65="","",IF(INDIRECT("'Faculty Searchable'!CK"&PDF!$AH65)="","16-week-term",INDIRECT("'Faculty Searchable'!CK"&PDF!$AH65))),7,20),"") -> Jun 27 for 6 weeks | N65: =IF(B65="","",_xlfn.XLOOKUP(B65,Tracking!O:O,Tracking!A:A,"")) -> 0 | O65: =IF(PDF!AH65="","",IFERROR(INDIRECT("'Faculty Searchable'!FN"&PDF!$AH65),ROW())) -> 
A66: =IF(PDF!AH66="","",IFERROR(IF(PDF!A66="","",INDIRECT("'Faculty Searchable'!H"&PDF!AH66)&": "&LEFT(INDIRECT("'Faculty Searchable'!BA"&PDF!AH66),30)),"")) -> ART G116: Drawing 1 | B66: =IFERROR(IF(A66="","",INDIRECT("'Faculty Searchable'!I"&PDF!$AH66)),"") -> 11466 | C66: =IFERROR(IF(B66="","",INDIRECT("'Faculty Searchable'!BB"&PDF!$AH66)),"") -> 3 | D66: =IFERROR(IF(A66="","",INDIRECT("'Faculty Searchable'!AE"&PDF!$AH66)),"") -> 8:50am - 10:10am | E66: =IFERROR(IF(A66="","",IF(D66="Online","",SUBSTITUTE(INDIRECT("'Faculty Searchable'!AF"&PDF!$AH66),"0","--"))),"") -> MTWTh | F66: =IFERROR(IF(A66="","",INDIRECT("'Faculty Searchable'!EB"&PDF!$AH66)),"") -> Onground | G66: =IFERROR(IF(A66="","",IFERROR(INDIRECT("'Faculty Searchable'!FG"&PDF!$AH66),INDIRECT("'Faculty Searchable'!FG"&PDF!$AH66))),"") -> [McKinney D R] | H66: =IFERROR(IF(A66="","",IF(TEXT(INDIRECT("'Faculty Searchable'!G"&PDF!$AH66),"##%")="%","",TEXT(INDIRECT("'Faculty Searchable'!G"&PDF!$AH66),"##%"))),"") ->  | I66: =IFERROR(IF(A66="","",IF(RIGHT(INDIRECT("'Faculty Searchable'!FO"&PDF!$AH66),5)="Major","--",RIGHT(INDIRECT("'Faculty Searchable'!FO"&PDF!$AH66),2))),"--") -> -- | J66: =IFERROR(IF(A66="","",RIGHT(INDIRECT("'Faculty Searchable'!FP"&PDF!$AH66),2)),"") ->  | K66: =IFERROR(IF(A66="","",IFERROR(VLOOKUP(B66,'Student Searchable'!A:B,2,FALSE),"")),"") ->  | L66: =IFERROR(LEFT(IF(A66="","",IF(INDIRECT("'Faculty Searchable'!CK"&PDF!$AH66)="","16-week-term",INDIRECT("'Faculty Searchable'!CK"&PDF!$AH66))),5),"") -> 2-SUM | M66: =IFERROR(MID(IF(A66="","",IF(INDIRECT("'Faculty Searchable'!CK"&PDF!$AH66)="","16-week-term",INDIRECT("'Faculty Searchable'!CK"&PDF!$AH66))),7,20),"") -> Jun 13 for 6 weeks | N66: =IF(B66="","",_xlfn.XLOOKUP(B66,Tracking!O:O,Tracking!A:A,"")) -> 0 | O66: =IF(PDF!AH66="","",IFERROR(INDIRECT("'Faculty Searchable'!FN"&PDF!$AH66),ROW())) -> 
A67: =IF(PDF!AH67="","",IFERROR(IF(PDF!A67="","",INDIRECT("'Faculty Searchable'!H"&PDF!AH67)&": "&LEFT(INDIRECT("'Faculty Searchable'!BA"&PDF!AH67),30)),"")) -> ART G117: Drawing 2 | B67: =IFERROR(IF(A67="","",INDIRECT("'Faculty Searchable'!I"&PDF!$AH67)),"") -> 11467 | C67: =IFERROR(IF(B67="","",INDIRECT("'Faculty Searchable'!BB"&PDF!$AH67)),"") -> 3 | D67: =IFERROR(IF(A67="","",INDIRECT("'Faculty Searchable'!AE"&PDF!$AH67)),"") -> 8:50am - 10:10am | E67: =IFERROR(IF(A67="","",IF(D67="Online","",SUBSTITUTE(INDIRECT("'Faculty Searchable'!AF"&PDF!$AH67),"0","--"))),"") -> MTWTh | F67: =IFERROR(IF(A67="","",INDIRECT("'Faculty Searchable'!EB"&PDF!$AH67)),"") -> Onground | G67: =IFERROR(IF(A67="","",IFERROR(INDIRECT("'Faculty Searchable'!FG"&PDF!$AH67),INDIRECT("'Faculty Searchable'!FG"&PDF!$AH67))),"") -> [McKinney D R] | H67: =IFERROR(IF(A67="","",IF(TEXT(INDIRECT("'Faculty Searchable'!G"&PDF!$AH67),"##%")="%","",TEXT(INDIRECT("'Faculty Searchable'!G"&PDF!$AH67),"##%"))),"") ->  | I67: =IFERROR(IF(A67="","",IF(RIGHT(INDIRECT("'Faculty Searchable'!FO"&PDF!$AH67),5)="Major","--",RIGHT(INDIRECT("'Faculty Searchable'!FO"&PDF!$AH67),2))),"--") -> -- | J67: =IFERROR(IF(A67="","",RIGHT(INDIRECT("'Faculty Searchable'!FP"&PDF!$AH67),2)),"") ->  | K67: =IFERROR(IF(A67="","",IFERROR(VLOOKUP(B67,'Student Searchable'!A:B,2,FALSE),"")),"") ->  | L67: =IFERROR(LEFT(IF(A67="","",IF(INDIRECT("'Faculty Searchable'!CK"&PDF!$AH67)="","16-week-term",INDIRECT("'Faculty Searchable'!CK"&PDF!$AH67))),5),"") -> 2-SUM | M67: =IFERROR(MID(IF(A67="","",IF(INDIRECT("'Faculty Searchable'!CK"&PDF!$AH67)="","16-week-term",INDIRECT("'Faculty Searchable'!CK"&PDF!$AH67))),7,20),"") -> Jun 13 for 6 weeks | N67: =IF(B67="","",_xlfn.XLOOKUP(B67,Tracking!O:O,Tracking!A:A,"")) -> 0 | O67: =IF(PDF!AH67="","",IFERROR(INDIRECT("'Faculty Searchable'!FN"&PDF!$AH67),ROW())) -> Prereq ART G116
A68: =IF(PDF!AH68="","",IFERROR(IF(PDF!A68="","",INDIRECT("'Faculty Searchable'!H"&PDF!AH68)&": "&LEFT(INDIRECT("'Faculty Searchable'!BA"&PDF!AH68),30)),"")) -> ART G121: Ceramics 1 | B68: =IFERROR(IF(A68="","",INDIRECT("'Faculty Searchable'!I"&PDF!$AH68)),"") -> 11873 | C68: =IFERROR(IF(B68="","",INDIRECT("'Faculty Searchable'!BB"&PDF!$AH68)),"") -> 3 | D68: =IFERROR(IF(A68="","",INDIRECT("'Faculty Searchable'!AE"&PDF!$AH68)),"") -> 8:50am - 10:10am | E68: =IFERROR(IF(A68="","",IF(D68="Online","",SUBSTITUTE(INDIRECT("'Faculty Searchable'!AF"&PDF!$AH68),"0","--"))),"") -> MTWTh | F68: =IFERROR(IF(A68="","",INDIRECT("'Faculty Searchable'!EB"&PDF!$AH68)),"") -> Onground | G68: =IFERROR(IF(A68="","",IFERROR(INDIRECT("'Faculty Searchable'!FG"&PDF!$AH68),INDIRECT("'Faculty Searchable'!FG"&PDF!$AH68))),"") -> [Ohm C A] | H68: =IFERROR(IF(A68="","",IF(TEXT(INDIRECT("'Faculty Searchable'!G"&PDF!$AH68),"##%")="%","",TEXT(INDIRECT("'Faculty Searchable'!G"&PDF!$AH68),"##%"))),"") ->  | I68: =IFERROR(IF(A68="","",IF(RIGHT(INDIRECT("'Faculty Searchable'!FO"&PDF!$AH68),5)="Major","--",RIGHT(INDIRECT("'Faculty Searchable'!FO"&PDF!$AH68),2))),"--") -> -- | J68: =IFERROR(IF(A68="","",RIGHT(INDIRECT("'Faculty Searchable'!FP"&PDF!$AH68),2)),"") ->  | K68: =IFERROR(IF(A68="","",IFERROR(VLOOKUP(B68,'Student Searchable'!A:B,2,FALSE),"")),"") ->  | L68: =IFERROR(LEFT(IF(A68="","",IF(INDIRECT("'Faculty Searchable'!CK"&PDF!$AH68)="","16-week-term",INDIRECT("'Faculty Searchable'!CK"&PDF!$AH68))),5),"") -> 2-SUM | M68: =IFERROR(MID(IF(A68="","",IF(INDIRECT("'Faculty Searchable'!CK"&PDF!$AH68)="","16-week-term",INDIRECT("'Faculty Searchable'!CK"&PDF!$AH68))),7,20),"") -> Jun 27 for 6 weeks | N68: =IF(B68="","",_xlfn.XLOOKUP(B68,Tracking!O:O,Tracking!A:A,"")) -> 0 | O68: =IF(PDF!AH68="","",IFERROR(INDIRECT("'Faculty Searchable'!FN"&PDF!$AH68),ROW())) -> 
A69: =IF(PDF!AH69="","",IFERROR(IF(PDF!A69="","",INDIRECT("'Faculty Searchable'!H"&PDF!AH69)&": "&LEFT(INDIRECT("'Faculty Searchable'!BA"&PDF!AH69),30)),"")) -> ART G122: Ceramics 2 | B69: =IFERROR(IF(A69="","",INDIRECT("'Faculty Searchable'!I"&PDF!$AH69)),"") -> 11874 | C69: =IFERROR(IF(B69="","",INDIRECT("'Faculty Searchable'!BB"&PDF!$AH69)),"") -> 3 | D69: =IFERROR(IF(A69="","",INDIRECT("'Faculty Searchable'!AE"&PDF!$AH69)),"") -> 8:50am - 10:10am | E69: =IFERROR(IF(A69="","",IF(D69="Online","",SUBSTITUTE(INDIRECT("'Faculty Searchable'!AF"&PDF!$AH69),"0","--"))),"") -> MTWTh | F69: =IFERROR(IF(A69="","",INDIRECT("'Faculty Searchable'!EB"&PDF!$AH69)),"") -> Onground | G69: =IFERROR(IF(A69="","",IFERROR(INDIRECT("'Faculty Searchable'!FG"&PDF!$AH69),INDIRECT("'Faculty Searchable'!FG"&PDF!$AH69))),"") -> [Ohm C A] | H69: =IFERROR(IF(A69="","",IF(TEXT(INDIRECT("'Faculty Searchable'!G"&PDF!$AH69),"##%")="%","",TEXT(INDIRECT("'Faculty Searchable'!G"&PDF!$AH69),"##%"))),"") ->  | I69: =IFERROR(IF(A69="","",IF(RIGHT(INDIRECT("'Faculty Searchable'!FO"&PDF!$AH69),5)="Major","--",RIGHT(INDIRECT("'Faculty Searchable'!FO"&PDF!$AH69),2))),"--") -> -- | J69: =IFERROR(IF(A69="","",RIGHT(INDIRECT("'Faculty Searchable'!FP"&PDF!$AH69),2)),"") ->  | K69: =IFERROR(IF(A69="","",IFERROR(VLOOKUP(B69,'Student Searchable'!A:B,2,FALSE),"")),"") ->  | L69: =IFERROR(LEFT(IF(A69="","",IF(INDIRECT("'Faculty Searchable'!CK"&PDF!$AH69)="","16-week-term",INDIRECT("'Faculty Searchable'!CK"&PDF!$AH69))),5),"") -> 2-SUM | M69: =IFERROR(MID(IF(A69="","",IF(INDIRECT("'Faculty Searchable'!CK"&PDF!$AH69)="","16-week-term",INDIRECT("'Faculty Searchable'!CK"&PDF!$AH69))),7,20),"") -> Jun 27 for 6 weeks | N69: =IF(B69="","",_xlfn.XLOOKUP(B69,Tracking!O:O,Tracking!A:A,"")) -> 0 | O69: =IF(PDF!AH69="","",IFERROR(INDIRECT("'Faculty Searchable'!FN"&PDF!$AH69),ROW())) -> Prereq ART G121
A70: =IF(PDF!AH70="","",IFERROR(IF(PDF!A70="","",INDIRECT("'Faculty Searchable'!H"&PDF!AH70)&": "&LEFT(INDIRECT("'Faculty Searchable'!BA"&PDF!AH70),30)),"")) -> ART G221: Ceramics 3 | B70: =IFERROR(IF(A70="","",INDIRECT("'Faculty Searchable'!I"&PDF!$AH70)),"") -> 11875 | C70: =IFERROR(IF(B70="","",INDIRECT("'Faculty Searchable'!BB"&PDF!$AH70)),"") -> 3 | D70: =IFERROR(IF(A70="","",INDIRECT("'Faculty Searchable'!AE"&PDF!$AH70)),"") -> 8:50am - 10:10am | E70: =IFERROR(IF(A70="","",IF(D70="Online","",SUBSTITUTE(INDIRECT("'Faculty Searchable'!AF"&PDF!$AH70),"0","--"))),"") -> MTWTh | F70: =IFERROR(IF(A70="","",INDIRECT("'Faculty Searchable'!EB"&PDF!$AH70)),"") -> Onground | G70: =IFERROR(IF(A70="","",IFERROR(INDIRECT("'Faculty Searchable'!FG"&PDF!$AH70),INDIRECT("'Faculty Searchable'!FG"&PDF!$AH70))),"") -> [Ohm C A] | H70: =IFERROR(IF(A70="","",IF(TEXT(INDIRECT("'Faculty Searchable'!G"&PDF!$AH70),"##%")="%","",TEXT(INDIRECT("'Faculty Searchable'!G"&PDF!$AH70),"##%"))),"") ->  | I70: =IFERROR(IF(A70="","",IF(RIGHT(INDIRECT("'Faculty Searchable'!FO"&PDF!$AH70),5)="Major","--",RIGHT(INDIRECT("'Faculty Searchable'!FO"&PDF!$AH70),2))),"--") -> -- | J70: =IFERROR(IF(A70="","",RIGHT(INDIRECT("'Faculty Searchable'!FP"&PDF!$AH70),2)),"") ->  | K70: =IFERROR(IF(A70="","",IFERROR(VLOOKUP(B70,'Student Searchable'!A:B,2,FALSE),"")),"") ->  | L70: =IFERROR(LEFT(IF(A70="","",IF(INDIRECT("'Faculty Searchable'!CK"&PDF!$AH70)="","16-week-term",INDIRECT("'Faculty Searchable'!CK"&PDF!$AH70))),5),"") -> 2-SUM | M70: =IFERROR(MID(IF(A70="","",IF(INDIRECT("'Faculty Searchable'!CK"&PDF!$AH70)="","16-week-term",INDIRECT("'Faculty Searchable'!CK"&PDF!$AH70))),7,20),"") -> Jun 27 for 6 weeks | N70: =IF(B70="","",_xlfn.XLOOKUP(B70,Tracking!O:O,Tracking!A:A,"")) -> 0 | O70: =IF(PDF!AH70="","",IFERROR(INDIRECT("'Faculty Searchable'!FN"&PDF!$AH70),ROW())) -> Prereq ART G122
A71: =IF(PDF!AH71="","",IFERROR(IF(PDF!A71="","",INDIRECT("'Faculty Searchable'!H"&PDF!AH71)&": "&LEFT(INDIRECT("'Faculty Searchable'!BA"&PDF!AH71),30)),"")) -> ART G223: Ceramics 4 | B71: =IFERROR(IF(A71="","",INDIRECT("'Faculty Searchable'!I"&PDF!$AH71)),"") -> 11876 | C71: =IFERROR(IF(B71="","",INDIRECT("'Faculty Searchable'!BB"&PDF!$AH71)),"") -> 3 | D71: =IFERROR(IF(A71="","",INDIRECT("'Faculty Searchable'!AE"&PDF!$AH71)),"") -> 8:50am - 10:10am | E71: =IFERROR(IF(A71="","",IF(D71="Online","",SUBSTITUTE(INDIRECT("'Faculty Searchable'!AF"&PDF!$AH71),"0","--"))),"") -> MTWTh | F71: =IFERROR(IF(A71="","",INDIRECT("'Faculty Searchable'!EB"&PDF!$AH71)),"") -> Onground | G71: =IFERROR(IF(A71="","",IFERROR(INDIRECT("'Faculty Searchable'!FG"&PDF!$AH71),INDIRECT("'Faculty Searchable'!FG"&PDF!$AH71))),"") -> [Ohm C A] | H71: =IFERROR(IF(A71="","",IF(TEXT(INDIRECT("'Faculty Searchable'!G"&PDF!$AH71),"##%")="%","",TEXT(INDIRECT("'Faculty Searchable'!G"&PDF!$AH71),"##%"))),"") ->  | I71: =IFERROR(IF(A71="","",IF(RIGHT(INDIRECT("'Faculty Searchable'!FO"&PDF!$AH71),5)="Major","--",RIGHT(INDIRECT("'Faculty Searchable'!FO"&PDF!$AH71),2))),"--") -> -- | J71: =IFERROR(IF(A71="","",RIGHT(INDIRECT("'Faculty Searchable'!FP"&PDF!$AH71),2)),"") ->  | K71: =IFERROR(IF(A71="","",IFERROR(VLOOKUP(B71,'Student Searchable'!A:B,2,FALSE),"")),"") ->  | L71: =IFERROR(LEFT(IF(A71="","",IF(INDIRECT("'Faculty Searchable'!CK"&PDF!$AH71)="","16-week-term",INDIRECT("'Faculty Searchable'!CK"&PDF!$AH71))),5),"") -> 2-SUM | M71: =IFERROR(MID(IF(A71="","",IF(INDIRECT("'Faculty Searchable'!CK"&PDF!$AH71)="","16-week-term",INDIRECT("'Faculty Searchable'!CK"&PDF!$AH71))),7,20),"") -> Jun 27 for 6 weeks | N71: =IF(B71="","",_xlfn.XLOOKUP(B71,Tracking!O:O,Tracking!A:A,"")) -> 0 | O71: =IF(PDF!AH71="","",IFERROR(INDIRECT("'Faculty Searchable'!FN"&PDF!$AH71),ROW())) -> Prereq ART G221
A72: =IF(PDF!AH72="","",IFERROR(IF(PDF!A72="","",INDIRECT("'Faculty Searchable'!H"&PDF!AH72)&": "&LEFT(INDIRECT("'Faculty Searchable'!BA"&PDF!AH72),30)),"")) -> ASTR G100: Introduction to Astronomy | B72: =IFERROR(IF(A72="","",INDIRECT("'Faculty Searchable'!I"&PDF!$AH72)),"") -> 10518 | C72: =IFERROR(IF(B72="","",INDIRECT("'Faculty Searchable'!BB"&PDF!$AH72)),"") -> 3 | D72: =IFERROR(IF(A72="","",INDIRECT("'Faculty Searchable'!AE"&PDF!$AH72)),"") -> 6.75 hours arranged | E72: =IFERROR(IF(A72="","",IF(D72="Online","",SUBSTITUTE(INDIRECT("'Faculty Searchable'!AF"&PDF!$AH72),"0","--"))),"") ->  | F72: =IFERROR(IF(A72="","",INDIRECT("'Faculty Searchable'!EB"&PDF!$AH72)),"") -> Online | G72: =IFERROR(IF(A72="","",IFERROR(INDIRECT("'Faculty Searchable'!FG"&PDF!$AH72),INDIRECT("'Faculty Searchable'!FG"&PDF!$AH72))),"") -> [Christensen W J] | H72: =IFERROR(IF(A72="","",IF(TEXT(INDIRECT("'Faculty Searchable'!G"&PDF!$AH72),"##%")="%","",TEXT(INDIRECT("'Faculty Searchable'!G"&PDF!$AH72),"##%"))),"") ->  | I72: =IFERROR(IF(A72="","",IF(RIGHT(INDIRECT("'Faculty Searchable'!FO"&PDF!$AH72),5)="Major","--",RIGHT(INDIRECT("'Faculty Searchable'!FO"&PDF!$AH72),2))),"--") -> -- | J72: =IFERROR(IF(A72="","",RIGHT(INDIRECT("'Faculty Searchable'!FP"&PDF!$AH72),2)),"") ->  | K72: =IFERROR(IF(A72="","",IFERROR(VLOOKUP(B72,'Student Searchable'!A:B,2,FALSE),"")),"") ->  | L72: =IFERROR(LEFT(IF(A72="","",IF(INDIRECT("'Faculty Searchable'!CK"&PDF!$AH72)="","16-week-term",INDIRECT("'Faculty Searchable'!CK"&PDF!$AH72))),5),"") -> 2-SUM | M72: =IFERROR(MID(IF(A72="","",IF(INDIRECT("'Faculty Searchable'!CK"&PDF!$AH72)="","16-week-term",INDIRECT("'Faculty Searchable'!CK"&PDF!$AH72))),7,20),"") -> Jun 13 for 8 weeks | N72: =IF(B72="","",_xlfn.XLOOKUP(B72,Tracking!O:O,Tracking!A:A,"")) -> 0 | O72: =IF(PDF!AH72="","",IFERROR(INDIRECT("'Faculty Searchable'!FN"&PDF!$AH72),ROW())) -> 
A73: =IF(PDF!AH73="","",IFERROR(IF(PDF!A73="","",INDIRECT("'Faculty Searchable'!H"&PDF!AH73)&": "&LEFT(INDIRECT("'Faculty Searchable'!BA"&PDF!AH73),30)),"")) -> ASTR G100L: Introduction to Astronomy Lab | B73: =IFERROR(IF(A73="","",INDIRECT("'Faculty Searchable'!I"&PDF!$AH73)),"") -> 10613 | C73: =IFERROR(IF(B73="","",INDIRECT("'Faculty Searchable'!BB"&PDF!$AH73)),"") -> 1 | D73: =IFERROR(IF(A73="","",INDIRECT("'Faculty Searchable'!AE"&PDF!$AH73)),"") -> - | E73: =IFERROR(IF(A73="","",IF(D73="Online","",SUBSTITUTE(INDIRECT("'Faculty Searchable'!AF"&PDF!$AH73),"0","--"))),"") -> ONLINELAB | F73: =IFERROR(IF(A73="","",INDIRECT("'Faculty Searchable'!EB"&PDF!$AH73)),"") -> Online | G73: =IFERROR(IF(A73="","",IFERROR(INDIRECT("'Faculty Searchable'!FG"&PDF!$AH73),INDIRECT("'Faculty Searchable'!FG"&PDF!$AH73))),"") -> [Christensen W J] | H73: =IFERROR(IF(A73="","",IF(TEXT(INDIRECT("'Faculty Searchable'!G"&PDF!$AH73),"##%")="%","",TEXT(INDIRECT("'Faculty Searchable'!G"&PDF!$AH73),"##%"))),"") ->  | I73: =IFERROR(IF(A73="","",IF(RIGHT(INDIRECT("'Faculty Searchable'!FO"&PDF!$AH73),5)="Major","--",RIGHT(INDIRECT("'Faculty Searchable'!FO"&PDF!$AH73),2))),"--") -> -- | J73: =IFERROR(IF(A73="","",RIGHT(INDIRECT("'Faculty Searchable'!FP"&PDF!$AH73),2)),"") ->  | K73: =IFERROR(IF(A73="","",IFERROR(VLOOKUP(B73,'Student Searchable'!A:B,2,FALSE),"")),"") ->  | L73: =IFERROR(LEFT(IF(A73="","",IF(INDIRECT("'Faculty Searchable'!CK"&PDF!$AH73)="","16-week-term",INDIRECT("'Faculty Searchable'!CK"&PDF!$AH73))),5),"") -> 2-SUM | M73: =IFERROR(MID(IF(A73="","",IF(INDIRECT("'Faculty Searchable'!CK"&PDF!$AH73)="","16-week-term",INDIRECT("'Faculty Searchable'!CK"&PDF!$AH73))),7,20),"") -> Jun 13 for 8 weeks | N73: =IF(B73="","",_xlfn.XLOOKUP(B73,Tracking!O:O,Tracking!A:A,"")) -> 0 | O73: =IF(PDF!AH73="","",IFERROR(INDIRECT("'Faculty Searchable'!FN"&PDF!$AH73),ROW())) -> Prereq ASTR G100
A74: =IF(PDF!AH74="","",IFERROR(IF(PDF!A74="","",INDIRECT("'Faculty Searchable'!H"&PDF!AH74)&": "&LEFT(INDIRECT("'Faculty Searchable'!BA"&PDF!AH74),30)),"")) -> ASTR G100L: Introduction to Astronomy Lab | B74: =IFERROR(IF(A74="","",INDIRECT("'Faculty Searchable'!I"&PDF!$AH74)),"") -> 10664 | C74: =IFERROR(IF(B74="","",INDIRECT("'Faculty Searchable'!BB"&PDF!$AH74)),"") -> 1 | D74: =IFERROR(IF(A74="","",INDIRECT("'Faculty Searchable'!AE"&PDF!$AH74)),"") -> - | E74: =IFERROR(IF(A74="","",IF(D74="Online","",SUBSTITUTE(INDIRECT("'Faculty Searchable'!AF"&PDF!$AH74),"0","--"))),"") -> ONLINELAB | F74: =IFERROR(IF(A74="","",INDIRECT("'Faculty Searchable'!EB"&PDF!$AH74)),"") -> Online | G74: =IFERROR(IF(A74="","",IFERROR(INDIRECT("'Faculty Searchable'!FG"&PDF!$AH74),INDIRECT("'Faculty Searchable'!FG"&PDF!$AH74))),"") -> [Christensen W J] | H74: =IFERROR(IF(A74="","",IF(TEXT(INDIRECT("'Faculty Searchable'!G"&PDF!$AH74),"##%")="%","",TEXT(INDIRECT("'Faculty Searchable'!G"&PDF!$AH74),"##%"))),"") ->  | I74: =IFERROR(IF(A74="","",IF(RIGHT(INDIRECT("'Faculty Searchable'!FO"&PDF!$AH74),5)="Major","--",RIGHT(INDIRECT("'Faculty Searchable'!FO"&PDF!$AH74),2))),"--") -> -- | J74: =IFERROR(IF(A74="","",RIGHT(INDIRECT("'Faculty Searchable'!FP"&PDF!$AH74),2)),"") ->  | K74: =IFERROR(IF(A74="","",IFERROR(VLOOKUP(B74,'Student Searchable'!A:B,2,FALSE),"")),"") ->  | L74: =IFERROR(LEFT(IF(A74="","",IF(INDIRECT("'Faculty Searchable'!CK"&PDF!$AH74)="","16-week-term",INDIRECT("'Faculty Searchable'!CK"&PDF!$AH74))),5),"") -> 2-SUM | M74: =IFERROR(MID(IF(A74="","",IF(INDIRECT("'Faculty Searchable'!CK"&PDF!$AH74)="","16-week-term",INDIRECT("'Faculty Searchable'!CK"&PDF!$AH74))),7,20),"") -> Jun 13 for 8 weeks | N74: =IF(B74="","",_xlfn.XLOOKUP(B74,Tracking!O:O,Tracking!A:A,"")) -> 0 | O74: =IF(PDF!AH74="","",IFERROR(INDIRECT("'Faculty Searchable'!FN"&PDF!$AH74),ROW())) -> Prereq ASTR G100
A75: =IF(PDF!AH75="","",IFERROR(IF(PDF!A75="","",INDIRECT("'Faculty Searchable'!H"&PDF!AH75)&": "&LEFT(INDIRECT("'Faculty Searchable'!BA"&PDF!AH75),30)),"")) -> ATHL G210: Intercollegiate Sports Off Sea | B75: =IFERROR(IF(A75="","",INDIRECT("'Faculty Searchable'!I"&PDF!$AH75)),"") -> 11464 | C75: =IFERROR(IF(B75="","",INDIRECT("'Faculty Searchable'!BB"&PDF!$AH75)),"") -> 0.5 | D75: =IFERROR(IF(A75="","",INDIRECT("'Faculty Searchable'!AE"&PDF!$AH75)),"") -> 9:30am - 11:40am | E75: =IFERROR(IF(A75="","",IF(D75="Online","",SUBSTITUTE(INDIRECT("'Faculty Searchable'!AF"&PDF!$AH75),"0","--"))),"") -> TTh | F75: =IFERROR(IF(A75="","",INDIRECT("'Faculty Searchable'!EB"&PDF!$AH75)),"") -> Onground | G75: =IFERROR(IF(A75="","",IFERROR(INDIRECT("'Faculty Searchable'!FG"&PDF!$AH75),INDIRECT("'Faculty Searchable'!FG"&PDF!$AH75))),"") -> [Henderson M M] | H75: =IFERROR(IF(A75="","",IF(TEXT(INDIRECT("'Faculty Searchable'!G"&PDF!$AH75),"##%")="%","",TEXT(INDIRECT("'Faculty Searchable'!G"&PDF!$AH75),"##%"))),"") ->  | I75: =IFERROR(IF(A75="","",IF(RIGHT(INDIRECT("'Faculty Searchable'!FO"&PDF!$AH75),5)="Major","--",RIGHT(INDIRECT("'Faculty Searchable'!FO"&PDF!$AH75),2))),"--") -> -- | J75: =IFERROR(IF(A75="","",RIGHT(INDIRECT("'Faculty Searchable'!FP"&PDF!$AH75),2)),"") ->  | K75: =IFERROR(IF(A75="","",IFERROR(VLOOKUP(B75,'Student Searchable'!A:B,2,FALSE),"")),"") ->  | L75: =IFERROR(LEFT(IF(A75="","",IF(INDIRECT("'Faculty Searchable'!CK"&PDF!$AH75)="","16-week-term",INDIRECT("'Faculty Searchable'!CK"&PDF!$AH75))),5),"") -> 2-SUM | M75: =IFERROR(MID(IF(A75="","",IF(INDIRECT("'Faculty Searchable'!CK"&PDF!$AH75)="","16-week-term",INDIRECT("'Faculty Searchable'!CK"&PDF!$AH75))),7,20),"") -> Jun 27 for 6 weeks | N75: =IF(B75="","",_xlfn.XLOOKUP(B75,Tracking!O:O,Tracking!A:A,"")) -> 0 | O75: =IF(PDF!AH75="","",IFERROR(INDIRECT("'Faculty Searchable'!FN"&PDF!$AH75),ROW())) -> 
A76: =IF(PDF!AH76="","",IFERROR(IF(PDF!A76="","",INDIRECT("'Faculty Searchable'!H"&PDF!AH76)&": "&LEFT(INDIRECT("'Faculty Searchable'!BA"&PDF!AH76),30)),"")) -> ATHL G210: Intercollegiate Sports Off Sea | B76: =IFERROR(IF(A76="","",INDIRECT("'Faculty Searchable'!I"&PDF!$AH76)),"") -> 11463 | C76: =IFERROR(IF(B76="","",INDIRECT("'Faculty Searchable'!BB"&PDF!$AH76)),"") -> 1 | D76: =IFERROR(IF(A76="","",INDIRECT("'Faculty Searchable'!AE"&PDF!$AH76)),"") -> 3:00pm - 5:30pm | E76: =IFERROR(IF(A76="","",IF(D76="Online","",SUBSTITUTE(INDIRECT("'Faculty Searchable'!AF"&PDF!$AH76),"0","--"))),"") -> MTTh | F76: =IFERROR(IF(A76="","",INDIRECT("'Faculty Searchable'!EB"&PDF!$AH76)),"") -> Onground | G76: =IFERROR(IF(A76="","",IFERROR(INDIRECT("'Faculty Searchable'!FG"&PDF!$AH76),INDIRECT("'Faculty Searchable'!FG"&PDF!$AH76))),"") -> [Mitchell N D] | H76: =IFERROR(IF(A76="","",IF(TEXT(INDIRECT("'Faculty Searchable'!G"&PDF!$AH76),"##%")="%","",TEXT(INDIRECT("'Faculty Searchable'!G"&PDF!$AH76),"##%"))),"") ->  | I76: =IFERROR(IF(A76="","",IF(RIGHT(INDIRECT("'Faculty Searchable'!FO"&PDF!$AH76),5)="Major","--",RIGHT(INDIRECT("'Faculty Searchable'!FO"&PDF!$AH76),2))),"--") -> -- | J76: =IFERROR(IF(A76="","",RIGHT(INDIRECT("'Faculty Searchable'!FP"&PDF!$AH76),2)),"") ->  | K76: =IFERROR(IF(A76="","",IFERROR(VLOOKUP(B76,'Student Searchable'!A:B,2,FALSE),"")),"") ->  | L76: =IFERROR(LEFT(IF(A76="","",IF(INDIRECT("'Faculty Searchable'!CK"&PDF!$AH76)="","16-week-term",INDIRECT("'Faculty Searchable'!CK"&PDF!$AH76))),5),"") -> 2-SUM | M76: =IFERROR(MID(IF(A76="","",IF(INDIRECT("'Faculty Searchable'!CK"&PDF!$AH76)="","16-week-term",INDIRECT("'Faculty Searchable'!CK"&PDF!$AH76))),7,20),"") -> Jun 13 for 7 weeks | N76: =IF(B76="","",_xlfn.XLOOKUP(B76,Tracking!O:O,Tracking!A:A,"")) -> 0 | O76: =IF(PDF!AH76="","",IFERROR(INDIRECT("'Faculty Searchable'!FN"&PDF!$AH76),ROW())) -> 
A77: =IF(PDF!AH77="","",IFERROR(IF(PDF!A77="","",INDIRECT("'Faculty Searchable'!H"&PDF!AH77)&": "&LEFT(INDIRECT("'Faculty Searchable'!BA"&PDF!AH77),30)),"")) -> ATHL G210: Intercollegiate Sports Off Sea | B77: =IFERROR(IF(A77="","",INDIRECT("'Faculty Searchable'!I"&PDF!$AH77)),"") -> 11457 | C77: =IFERROR(IF(B77="","",INDIRECT("'Faculty Searchable'!BB"&PDF!$AH77)),"") -> 1 | D77: =IFERROR(IF(A77="","",INDIRECT("'Faculty Searchable'!AE"&PDF!$AH77)),"") -> 1:00pm - 3:00pm | E77: =IFERROR(IF(A77="","",IF(D77="Online","",SUBSTITUTE(INDIRECT("'Faculty Searchable'!AF"&PDF!$AH77),"0","--"))),"") -> TWTh | F77: =IFERROR(IF(A77="","",INDIRECT("'Faculty Searchable'!EB"&PDF!$AH77)),"") -> Onground | G77: =IFERROR(IF(A77="","",IFERROR(INDIRECT("'Faculty Searchable'!FG"&PDF!$AH77),INDIRECT("'Faculty Searchable'!FG"&PDF!$AH77))),"") -> [Jimmerson T A] | H77: =IFERROR(IF(A77="","",IF(TEXT(INDIRECT("'Faculty Searchable'!G"&PDF!$AH77),"##%")="%","",TEXT(INDIRECT("'Faculty Searchable'!G"&PDF!$AH77),"##%"))),"") ->  | I77: =IFERROR(IF(A77="","",IF(RIGHT(INDIRECT("'Faculty Searchable'!FO"&PDF!$AH77),5)="Major","--",RIGHT(INDIRECT("'Faculty Searchable'!FO"&PDF!$AH77),2))),"--") -> -- | J77: =IFERROR(IF(A77="","",RIGHT(INDIRECT("'Faculty Searchable'!FP"&PDF!$AH77),2)),"") ->  | K77: =IFERROR(IF(A77="","",IFERROR(VLOOKUP(B77,'Student Searchable'!A:B,2,FALSE),"")),"") ->  | L77: =IFERROR(LEFT(IF(A77="","",IF(INDIRECT("'Faculty Searchable'!CK"&PDF!$AH77)="","16-week-term",INDIRECT("'Faculty Searchable'!CK"&PDF!$AH77))),5),"") -> 2-SUM | M77: =IFERROR(MID(IF(A77="","",IF(INDIRECT("'Faculty Searchable'!CK"&PDF!$AH77)="","16-week-term",INDIRECT("'Faculty Searchable'!CK"&PDF!$AH77))),7,20),"") -> Jun 13 for 9 weeks | N77: =IF(B77="","",_xlfn.XLOOKUP(B77,Tracking!O:O,Tracking!A:A,"")) -> 0 | O77: =IF(PDF!AH77="","",IFERROR(INDIRECT("'Faculty Searchable'!FN"&PDF!$AH77),ROW())) -> 
A78: =IF(PDF!AH78="","",IFERROR(IF(PDF!A78="","",INDIRECT("'Faculty Searchable'!H"&PDF!AH78)&": "&LEFT(INDIRECT("'Faculty Searchable'!BA"&PDF!AH78),30)),"")) -> ATHL G210: Intercollegiate Sports Off Sea | B78: =IFERROR(IF(A78="","",INDIRECT("'Faculty Searchable'!I"&PDF!$AH78)),"") -> 11458 | C78: =IFERROR(IF(B78="","",INDIRECT("'Faculty Searchable'!BB"&PDF!$AH78)),"") -> 1 | D78: =IFERROR(IF(A78="","",INDIRECT("'Faculty Searchable'!AE"&PDF!$AH78)),"") -> 3:00pm - 5:45pm | E78: =IFERROR(IF(A78="","",IF(D78="Online","",SUBSTITUTE(INDIRECT("'Faculty Searchable'!AF"&PDF!$AH78),"0","--"))),"") -> TTh | F78: =IFERROR(IF(A78="","",INDIRECT("'Faculty Searchable'!EB"&PDF!$AH78)),"") -> Onground | G78: =IFERROR(IF(A78="","",IFERROR(INDIRECT("'Faculty Searchable'!FG"&PDF!$AH78),INDIRECT("'Faculty Searchable'!FG"&PDF!$AH78))),"") -> [Migliorini B G] | H78: =IFERROR(IF(A78="","",IF(TEXT(INDIRECT("'Faculty Searchable'!G"&PDF!$AH78),"##%")="%","",TEXT(INDIRECT("'Faculty Searchable'!G"&PDF!$AH78),"##%"))),"") ->  | I78: =IFERROR(IF(A78="","",IF(RIGHT(INDIRECT("'Faculty Searchable'!FO"&PDF!$AH78),5)="Major","--",RIGHT(INDIRECT("'Faculty Searchable'!FO"&PDF!$AH78),2))),"--") -> -- | J78: =IFERROR(IF(A78="","",RIGHT(INDIRECT("'Faculty Searchable'!FP"&PDF!$AH78),2)),"") ->  | K78: =IFERROR(IF(A78="","",IFERROR(VLOOKUP(B78,'Student Searchable'!A:B,2,FALSE),"")),"") ->  | L78: =IFERROR(LEFT(IF(A78="","",IF(INDIRECT("'Faculty Searchable'!CK"&PDF!$AH78)="","16-week-term",INDIRECT("'Faculty Searchable'!CK"&PDF!$AH78))),5),"") -> 2-SUM | M78: =IFERROR(MID(IF(A78="","",IF(INDIRECT("'Faculty Searchable'!CK"&PDF!$AH78)="","16-week-term",INDIRECT("'Faculty Searchable'!CK"&PDF!$AH78))),7,20),"") -> Jun 16 for 9 weeks | N78: =IF(B78="","",_xlfn.XLOOKUP(B78,Tracking!O:O,Tracking!A:A,"")) -> 0 | O78: =IF(PDF!AH78="","",IFERROR(INDIRECT("'Faculty Searchable'!FN"&PDF!$AH78),ROW())) -> 
A79: =IF(PDF!AH79="","",IFERROR(IF(PDF!A79="","",INDIRECT("'Faculty Searchable'!H"&PDF!AH79)&": "&LEFT(INDIRECT("'Faculty Searchable'!BA"&PDF!AH79),30)),"")) -> ATHL G210: Intercollegiate Sports Off Sea | B79: =IFERROR(IF(A79="","",INDIRECT("'Faculty Searchable'!I"&PDF!$AH79)),"") -> 11456 | C79: =IFERROR(IF(B79="","",INDIRECT("'Faculty Searchable'!BB"&PDF!$AH79)),"") -> 1 | D79: =IFERROR(IF(A79="","",INDIRECT("'Faculty Searchable'!AE"&PDF!$AH79)),"") -> 8:15am - 11:30am | E79: =IFERROR(IF(A79="","",IF(D79="Online","",SUBSTITUTE(INDIRECT("'Faculty Searchable'!AF"&PDF!$AH79),"0","--"))),"") -> MW | F79: =IFERROR(IF(A79="","",INDIRECT("'Faculty Searchable'!EB"&PDF!$AH79)),"") -> Onground | G79: =IFERROR(IF(A79="","",IFERROR(INDIRECT("'Faculty Searchable'!FG"&PDF!$AH79),INDIRECT("'Faculty Searchable'!FG"&PDF!$AH79))),"") -> [Lawler W M] | H79: =IFERROR(IF(A79="","",IF(TEXT(INDIRECT("'Faculty Searchable'!G"&PDF!$AH79),"##%")="%","",TEXT(INDIRECT("'Faculty Searchable'!G"&PDF!$AH79),"##%"))),"") ->  | I79: =IFERROR(IF(A79="","",IF(RIGHT(INDIRECT("'Faculty Searchable'!FO"&PDF!$AH79),5)="Major","--",RIGHT(INDIRECT("'Faculty Searchable'!FO"&PDF!$AH79),2))),"--") -> -- | J79: =IFERROR(IF(A79="","",RIGHT(INDIRECT("'Faculty Searchable'!FP"&PDF!$AH79),2)),"") ->  | K79: =IFERROR(IF(A79="","",IFERROR(VLOOKUP(B79,'Student Searchable'!A:B,2,FALSE),"")),"") ->  | L79: =IFERROR(LEFT(IF(A79="","",IF(INDIRECT("'Faculty Searchable'!CK"&PDF!$AH79)="","16-week-term",INDIRECT("'Faculty Searchable'!CK"&PDF!$AH79))),5),"") -> 2-SUM | M79: =IFERROR(MID(IF(A79="","",IF(INDIRECT("'Faculty Searchable'!CK"&PDF!$AH79)="","16-week-term",INDIRECT("'Faculty Searchable'!CK"&PDF!$AH79))),7,20),"") -> Jun 20 for 8 weeks | N79: =IF(B79="","",_xlfn.XLOOKUP(B79,Tracking!O:O,Tracking!A:A,"")) -> 0 | O79: =IF(PDF!AH79="","",IFERROR(INDIRECT("'Faculty Searchable'!FN"&PDF!$AH79),ROW())) -> 
A80: =IF(PDF!AH80="","",IFERROR(IF(PDF!A80="","",INDIRECT("'Faculty Searchable'!H"&PDF!AH80)&": "&LEFT(INDIRECT("'Faculty Searchable'!BA"&PDF!AH80),30)),"")) -> ATHL G210: Intercollegiate Sports Off Sea | B80: =IFERROR(IF(A80="","",INDIRECT("'Faculty Searchable'!I"&PDF!$AH80)),"") -> 11459 | C80: =IFERROR(IF(B80="","",INDIRECT("'Faculty Searchable'!BB"&PDF!$AH80)),"") -> 1 | D80: =IFERROR(IF(A80="","",INDIRECT("'Faculty Searchable'!AE"&PDF!$AH80)),"") -> 2:00pm - 3:30pm | E80: =IFERROR(IF(A80="","",IF(D80="Online","",SUBSTITUTE(INDIRECT("'Faculty Searchable'!AF"&PDF!$AH80),"0","--"))),"") -> MTWTh | F80: =IFERROR(IF(A80="","",INDIRECT("'Faculty Searchable'!EB"&PDF!$AH80)),"") -> Onground | G80: =IFERROR(IF(A80="","",IFERROR(INDIRECT("'Faculty Searchable'!FG"&PDF!$AH80),INDIRECT("'Faculty Searchable'!FG"&PDF!$AH80))),"") -> [Gimenez A E] | H80: =IFERROR(IF(A80="","",IF(TEXT(INDIRECT("'Faculty Searchable'!G"&PDF!$AH80),"##%")="%","",TEXT(INDIRECT("'Faculty Searchable'!G"&PDF!$AH80),"##%"))),"") ->  | I80: =IFERROR(IF(A80="","",IF(RIGHT(INDIRECT("'Faculty Searchable'!FO"&PDF!$AH80),5)="Major","--",RIGHT(INDIRECT("'Faculty Searchable'!FO"&PDF!$AH80),2))),"--") -> -- | J80: =IFERROR(IF(A80="","",RIGHT(INDIRECT("'Faculty Searchable'!FP"&PDF!$AH80),2)),"") ->  | K80: =IFERROR(IF(A80="","",IFERROR(VLOOKUP(B80,'Student Searchable'!A:B,2,FALSE),"")),"") ->  | L80: =IFERROR(LEFT(IF(A80="","",IF(INDIRECT("'Faculty Searchable'!CK"&PDF!$AH80)="","16-week-term",INDIRECT("'Faculty Searchable'!CK"&PDF!$AH80))),5),"") -> 2-SUM | M80: =IFERROR(MID(IF(A80="","",IF(INDIRECT("'Faculty Searchable'!CK"&PDF!$AH80)="","16-week-term",INDIRECT("'Faculty Searchable'!CK"&PDF!$AH80))),7,20),"") -> Jun 20 for 8 weeks | N80: =IF(B80="","",_xlfn.XLOOKUP(B80,Tracking!O:O,Tracking!A:A,"")) -> 0 | O80: =IF(PDF!AH80="","",IFERROR(INDIRECT("'Faculty Searchable'!FN"&PDF!$AH80),ROW())) -> 
A81: =IF(PDF!AH81="","",IFERROR(IF(PDF!A81="","",INDIRECT("'Faculty Searchable'!H"&PDF!AH81)&": "&LEFT(INDIRECT("'Faculty Searchable'!BA"&PDF!AH81),30)),"")) -> ATHL G210: Intercollegiate Sports Off Sea | B81: =IFERROR(IF(A81="","",INDIRECT("'Faculty Searchable'!I"&PDF!$AH81)),"") -> 11461 | C81: =IFERROR(IF(B81="","",INDIRECT("'Faculty Searchable'!BB"&PDF!$AH81)),"") -> 1 | D81: =IFERROR(IF(A81="","",INDIRECT("'Faculty Searchable'!AE"&PDF!$AH81)),"") -> 6:30am - 9:45am | E81: =IFERROR(IF(A81="","",IF(D81="Online","",SUBSTITUTE(INDIRECT("'Faculty Searchable'!AF"&PDF!$AH81),"0","--"))),"") -> TTh | F81: =IFERROR(IF(A81="","",INDIRECT("'Faculty Searchable'!EB"&PDF!$AH81)),"") -> Onground | G81: =IFERROR(IF(A81="","",IFERROR(INDIRECT("'Faculty Searchable'!FG"&PDF!$AH81),INDIRECT("'Faculty Searchable'!FG"&PDF!$AH81))),"") -> [Flesher M W] | H81: =IFERROR(IF(A81="","",IF(TEXT(INDIRECT("'Faculty Searchable'!G"&PDF!$AH81),"##%")="%","",TEXT(INDIRECT("'Faculty Searchable'!G"&PDF!$AH81),"##%"))),"") ->  | I81: =IFERROR(IF(A81="","",IF(RIGHT(INDIRECT("'Faculty Searchable'!FO"&PDF!$AH81),5)="Major","--",RIGHT(INDIRECT("'Faculty Searchable'!FO"&PDF!$AH81),2))),"--") -> -- | J81: =IFERROR(IF(A81="","",RIGHT(INDIRECT("'Faculty Searchable'!FP"&PDF!$AH81),2)),"") ->  | K81: =IFERROR(IF(A81="","",IFERROR(VLOOKUP(B81,'Student Searchable'!A:B,2,FALSE),"")),"") ->  | L81: =IFERROR(LEFT(IF(A81="","",IF(INDIRECT("'Faculty Searchable'!CK"&PDF!$AH81)="","16-week-term",INDIRECT("'Faculty Searchable'!CK"&PDF!$AH81))),5),"") -> 2-SUM | M81: =IFERROR(MID(IF(A81="","",IF(INDIRECT("'Faculty Searchable'!CK"&PDF!$AH81)="","16-week-term",INDIRECT("'Faculty Searchable'!CK"&PDF!$AH81))),7,20),"") -> Jun 20 for 8 weeks | N81: =IF(B81="","",_xlfn.XLOOKUP(B81,Tracking!O:O,Tracking!A:A,"")) -> 0 | O81: =IF(PDF!AH81="","",IFERROR(INDIRECT("'Faculty Searchable'!FN"&PDF!$AH81),ROW())) -> 
A82: =IF(PDF!AH82="","",IFERROR(IF(PDF!A82="","",INDIRECT("'Faculty Searchable'!H"&PDF!AH82)&": "&LEFT(INDIRECT("'Faculty Searchable'!BA"&PDF!AH82),30)),"")) -> ATHL G210: Intercollegiate Sports Off Sea | B82: =IFERROR(IF(A82="","",INDIRECT("'Faculty Searchable'!I"&PDF!$AH82)),"") -> 11462 | C82: =IFERROR(IF(B82="","",INDIRECT("'Faculty Searchable'!BB"&PDF!$AH82)),"") -> 1 | D82: =IFERROR(IF(A82="","",INDIRECT("'Faculty Searchable'!AE"&PDF!$AH82)),"") -> 6:30am - 9:45am | E82: =IFERROR(IF(A82="","",IF(D82="Online","",SUBSTITUTE(INDIRECT("'Faculty Searchable'!AF"&PDF!$AH82),"0","--"))),"") -> TTh | F82: =IFERROR(IF(A82="","",INDIRECT("'Faculty Searchable'!EB"&PDF!$AH82)),"") -> Onground | G82: =IFERROR(IF(A82="","",IFERROR(INDIRECT("'Faculty Searchable'!FG"&PDF!$AH82),INDIRECT("'Faculty Searchable'!FG"&PDF!$AH82))),"") -> [Taylor S E] | H82: =IFERROR(IF(A82="","",IF(TEXT(INDIRECT("'Faculty Searchable'!G"&PDF!$AH82),"##%")="%","",TEXT(INDIRECT("'Faculty Searchable'!G"&PDF!$AH82),"##%"))),"") ->  | I82: =IFERROR(IF(A82="","",IF(RIGHT(INDIRECT("'Faculty Searchable'!FO"&PDF!$AH82),5)="Major","--",RIGHT(INDIRECT("'Faculty Searchable'!FO"&PDF!$AH82),2))),"--") -> -- | J82: =IFERROR(IF(A82="","",RIGHT(INDIRECT("'Faculty Searchable'!FP"&PDF!$AH82),2)),"") ->  | K82: =IFERROR(IF(A82="","",IFERROR(VLOOKUP(B82,'Student Searchable'!A:B,2,FALSE),"")),"") ->  | L82: =IFERROR(LEFT(IF(A82="","",IF(INDIRECT("'Faculty Searchable'!CK"&PDF!$AH82)="","16-week-term",INDIRECT("'Faculty Searchable'!CK"&PDF!$AH82))),5),"") -> 2-SUM | M82: =IFERROR(MID(IF(A82="","",IF(INDIRECT("'Faculty Searchable'!CK"&PDF!$AH82)="","16-week-term",INDIRECT("'Faculty Searchable'!CK"&PDF!$AH82))),7,20),"") -> Jun 20 for 8 weeks | N82: =IF(B82="","",_xlfn.XLOOKUP(B82,Tracking!O:O,Tracking!A:A,"")) -> 0 | O82: =IF(PDF!AH82="","",IFERROR(INDIRECT("'Faculty Searchable'!FN"&PDF!$AH82),ROW())) -> 
A83: =IF(PDF!AH83="","",IFERROR(IF(PDF!A83="","",INDIRECT("'Faculty Searchable'!H"&PDF!AH83)&": "&LEFT(INDIRECT("'Faculty Searchable'!BA"&PDF!AH83),30)),"")) -> ATHL G210: Intercollegiate Sports Off Sea | B83: =IFERROR(IF(A83="","",INDIRECT("'Faculty Searchable'!I"&PDF!$AH83)),"") -> 11454 | C83: =IFERROR(IF(B83="","",INDIRECT("'Faculty Searchable'!BB"&PDF!$AH83)),"") -> 1 | D83: =IFERROR(IF(A83="","",INDIRECT("'Faculty Searchable'!AE"&PDF!$AH83)),"") -> 10:00am - 12:05pm | E83: =IFERROR(IF(A83="","",IF(D83="Online","",SUBSTITUTE(INDIRECT("'Faculty Searchable'!AF"&PDF!$AH83),"0","--"))),"") -> TWTh | F83: =IFERROR(IF(A83="","",INDIRECT("'Faculty Searchable'!EB"&PDF!$AH83)),"") -> Onground | G83: =IFERROR(IF(A83="","",IFERROR(INDIRECT("'Faculty Searchable'!FG"&PDF!$AH83),INDIRECT("'Faculty Searchable'!FG"&PDF!$AH83))),"") -> [Willey M K] | H83: =IFERROR(IF(A83="","",IF(TEXT(INDIRECT("'Faculty Searchable'!G"&PDF!$AH83),"##%")="%","",TEXT(INDIRECT("'Faculty Searchable'!G"&PDF!$AH83),"##%"))),"") ->  | I83: =IFERROR(IF(A83="","",IF(RIGHT(INDIRECT("'Faculty Searchable'!FO"&PDF!$AH83),5)="Major","--",RIGHT(INDIRECT("'Faculty Searchable'!FO"&PDF!$AH83),2))),"--") -> -- | J83: =IFERROR(IF(A83="","",RIGHT(INDIRECT("'Faculty Searchable'!FP"&PDF!$AH83),2)),"") ->  | K83: =IFERROR(IF(A83="","",IFERROR(VLOOKUP(B83,'Student Searchable'!A:B,2,FALSE),"")),"") ->  | L83: =IFERROR(LEFT(IF(A83="","",IF(INDIRECT("'Faculty Searchable'!CK"&PDF!$AH83)="","16-week-term",INDIRECT("'Faculty Searchable'!CK"&PDF!$AH83))),5),"") -> 2-SUM | M83: =IFERROR(MID(IF(A83="","",IF(INDIRECT("'Faculty Searchable'!CK"&PDF!$AH83)="","16-week-term",INDIRECT("'Faculty Searchable'!CK"&PDF!$AH83))),7,20),"") -> Jun 20 for 8 weeks | N83: =IF(B83="","",_xlfn.XLOOKUP(B83,Tracking!O:O,Tracking!A:A,"")) -> 0 | O83: =IF(PDF!AH83="","",IFERROR(INDIRECT("'Faculty Searchable'!FN"&PDF!$AH83),ROW())) -> 
A84: =IF(PDF!AH84="","",IFERROR(IF(PDF!A84="","",INDIRECT("'Faculty Searchable'!H"&PDF!AH84)&": "&LEFT(INDIRECT("'Faculty Searchable'!BA"&PDF!AH84),30)),"")) -> ATHL G210: Intercollegiate Sports Off Sea | B84: =IFERROR(IF(A84="","",INDIRECT("'Faculty Searchable'!I"&PDF!$AH84)),"") -> 11453 | C84: =IFERROR(IF(B84="","",INDIRECT("'Faculty Searchable'!BB"&PDF!$AH84)),"") -> 1 | D84: =IFERROR(IF(A84="","",INDIRECT("'Faculty Searchable'!AE"&PDF!$AH84)),"") -> 1:00pm - 4:00pm | E84: =IFERROR(IF(A84="","",IF(D84="Online","",SUBSTITUTE(INDIRECT("'Faculty Searchable'!AF"&PDF!$AH84),"0","--"))),"") -> MW | F84: =IFERROR(IF(A84="","",INDIRECT("'Faculty Searchable'!EB"&PDF!$AH84)),"") -> Onground | G84: =IFERROR(IF(A84="","",IFERROR(INDIRECT("'Faculty Searchable'!FG"&PDF!$AH84),INDIRECT("'Faculty Searchable'!FG"&PDF!$AH84))),"") -> [Ramos A C] | H84: =IFERROR(IF(A84="","",IF(TEXT(INDIRECT("'Faculty Searchable'!G"&PDF!$AH84),"##%")="%","",TEXT(INDIRECT("'Faculty Searchable'!G"&PDF!$AH84),"##%"))),"") ->  | I84: =IFERROR(IF(A84="","",IF(RIGHT(INDIRECT("'Faculty Searchable'!FO"&PDF!$AH84),5)="Major","--",RIGHT(INDIRECT("'Faculty Searchable'!FO"&PDF!$AH84),2))),"--") -> -- | J84: =IFERROR(IF(A84="","",RIGHT(INDIRECT("'Faculty Searchable'!FP"&PDF!$AH84),2)),"") ->  | K84: =IFERROR(IF(A84="","",IFERROR(VLOOKUP(B84,'Student Searchable'!A:B,2,FALSE),"")),"") ->  | L84: =IFERROR(LEFT(IF(A84="","",IF(INDIRECT("'Faculty Searchable'!CK"&PDF!$AH84)="","16-week-term",INDIRECT("'Faculty Searchable'!CK"&PDF!$AH84))),5),"") -> 2-SUM | M84: =IFERROR(MID(IF(A84="","",IF(INDIRECT("'Faculty Searchable'!CK"&PDF!$AH84)="","16-week-term",INDIRECT("'Faculty Searchable'!CK"&PDF!$AH84))),7,20),"") -> Jun 27 for 5 weeks | N84: =IF(B84="","",_xlfn.XLOOKUP(B84,Tracking!O:O,Tracking!A:A,"")) -> 0 | O84: =IF(PDF!AH84="","",IFERROR(INDIRECT("'Faculty Searchable'!FN"&PDF!$AH84),ROW())) -> 
A85: =IF(PDF!AH85="","",IFERROR(IF(PDF!A85="","",INDIRECT("'Faculty Searchable'!H"&PDF!AH85)&": "&LEFT(INDIRECT("'Faculty Searchable'!BA"&PDF!AH85),30)),"")) -> ATHL G210: Intercollegiate Sports Off Sea | B85: =IFERROR(IF(A85="","",INDIRECT("'Faculty Searchable'!I"&PDF!$AH85)),"") -> 11460 | C85: =IFERROR(IF(B85="","",INDIRECT("'Faculty Searchable'!BB"&PDF!$AH85)),"") -> 1 | D85: =IFERROR(IF(A85="","",INDIRECT("'Faculty Searchable'!AE"&PDF!$AH85)),"") -> 8:30am - 11:30am | E85: =IFERROR(IF(A85="","",IF(D85="Online","",SUBSTITUTE(INDIRECT("'Faculty Searchable'!AF"&PDF!$AH85),"0","--"))),"") -> TWTh | F85: =IFERROR(IF(A85="","",INDIRECT("'Faculty Searchable'!EB"&PDF!$AH85)),"") -> Onground | G85: =IFERROR(IF(A85="","",IFERROR(INDIRECT("'Faculty Searchable'!FG"&PDF!$AH85),INDIRECT("'Faculty Searchable'!FG"&PDF!$AH85))),"") -> [Barone K S] | H85: =IFERROR(IF(A85="","",IF(TEXT(INDIRECT("'Faculty Searchable'!G"&PDF!$AH85),"##%")="%","",TEXT(INDIRECT("'Faculty Searchable'!G"&PDF!$AH85),"##%"))),"") ->  | I85: =IFERROR(IF(A85="","",IF(RIGHT(INDIRECT("'Faculty Searchable'!FO"&PDF!$AH85),5)="Major","--",RIGHT(INDIRECT("'Faculty Searchable'!FO"&PDF!$AH85),2))),"--") -> -- | J85: =IFERROR(IF(A85="","",RIGHT(INDIRECT("'Faculty Searchable'!FP"&PDF!$AH85),2)),"") ->  | K85: =IFERROR(IF(A85="","",IFERROR(VLOOKUP(B85,'Student Searchable'!A:B,2,FALSE),"")),"") ->  | L85: =IFERROR(LEFT(IF(A85="","",IF(INDIRECT("'Faculty Searchable'!CK"&PDF!$AH85)="","16-week-term",INDIRECT("'Faculty Searchable'!CK"&PDF!$AH85))),5),"") -> 2-SUM | M85: =IFERROR(MID(IF(A85="","",IF(INDIRECT("'Faculty Searchable'!CK"&PDF!$AH85)="","16-week-term",INDIRECT("'Faculty Searchable'!CK"&PDF!$AH85))),7,20),"") -> Jul 4 for 6 weeks | N85: =IF(B85="","",_xlfn.XLOOKUP(B85,Tracking!O:O,Tracking!A:A,"")) -> 0 | O85: =IF(PDF!AH85="","",IFERROR(INDIRECT("'Faculty Searchable'!FN"&PDF!$AH85),ROW())) -> 
A86: =IF(PDF!AH86="","",IFERROR(IF(PDF!A86="","",INDIRECT("'Faculty Searchable'!H"&PDF!AH86)&": "&LEFT(INDIRECT("'Faculty Searchable'!BA"&PDF!AH86),30)),"")) -> ATHL G210: Intercollegiate Sports Off Sea | B86: =IFERROR(IF(A86="","",INDIRECT("'Faculty Searchable'!I"&PDF!$AH86)),"") -> 11455 | C86: =IFERROR(IF(B86="","",INDIRECT("'Faculty Searchable'!BB"&PDF!$AH86)),"") -> 1 | D86: =IFERROR(IF(A86="","",INDIRECT("'Faculty Searchable'!AE"&PDF!$AH86)),"") -> 4.5 hours arranged | E86: =IFERROR(IF(A86="","",IF(D86="Online","",SUBSTITUTE(INDIRECT("'Faculty Searchable'!AF"&PDF!$AH86),"0","--"))),"") ->  | F86: =IFERROR(IF(A86="","",INDIRECT("'Faculty Searchable'!EB"&PDF!$AH86)),"") -> Onground | G86: =IFERROR(IF(A86="","",IFERROR(INDIRECT("'Faculty Searchable'!FG"&PDF!$AH86),INDIRECT("'Faculty Searchable'!FG"&PDF!$AH86))),"") -> [Wray K H] | H86: =IFERROR(IF(A86="","",IF(TEXT(INDIRECT("'Faculty Searchable'!G"&PDF!$AH86),"##%")="%","",TEXT(INDIRECT("'Faculty Searchable'!G"&PDF!$AH86),"##%"))),"") ->  | I86: =IFERROR(IF(A86="","",IF(RIGHT(INDIRECT("'Faculty Searchable'!FO"&PDF!$AH86),5)="Major","--",RIGHT(INDIRECT("'Faculty Searchable'!FO"&PDF!$AH86),2))),"--") -> -- | J86: =IFERROR(IF(A86="","",RIGHT(INDIRECT("'Faculty Searchable'!FP"&PDF!$AH86),2)),"") ->  | K86: =IFERROR(IF(A86="","",IFERROR(VLOOKUP(B86,'Student Searchable'!A:B,2,FALSE),"")),"") ->  | L86: =IFERROR(LEFT(IF(A86="","",IF(INDIRECT("'Faculty Searchable'!CK"&PDF!$AH86)="","16-week-term",INDIRECT("'Faculty Searchable'!CK"&PDF!$AH86))),5),"") -> 2-SUM | M86: =IFERROR(MID(IF(A86="","",IF(INDIRECT("'Faculty Searchable'!CK"&PDF!$AH86)="","16-week-term",INDIRECT("'Faculty Searchable'!CK"&PDF!$AH86))),7,20),"") -> Jul 4 for 6 weeks | N86: =IF(B86="","",_xlfn.XLOOKUP(B86,Tracking!O:O,Tracking!A:A,"")) -> 0 | O86: =IF(PDF!AH86="","",IFERROR(INDIRECT("'Faculty Searchable'!FN"&PDF!$AH86),ROW())) -> 
A87: =IF(PDF!AH87="","",IFERROR(IF(PDF!A87="","",INDIRECT("'Faculty Searchable'!H"&PDF!AH87)&": "&LEFT(INDIRECT("'Faculty Searchable'!BA"&PDF!AH87),30)),"")) -> AUTO G002N: Automotive Safety | B87: =IFERROR(IF(A87="","",INDIRECT("'Faculty Searchable'!I"&PDF!$AH87)),"") -> 11856 | C87: =IFERROR(IF(B87="","",INDIRECT("'Faculty Searchable'!BB"&PDF!$AH87)),"") -> 0 | D87: =IFERROR(IF(A87="","",INDIRECT("'Faculty Searchable'!AE"&PDF!$AH87)),"") -> 9:00am - 10:05am | E87: =IFERROR(IF(A87="","",IF(D87="Online","",SUBSTITUTE(INDIRECT("'Faculty Searchable'!AF"&PDF!$AH87),"0","--"))),"") -> MTW | F87: =IFERROR(IF(A87="","",INDIRECT("'Faculty Searchable'!EB"&PDF!$AH87)),"") -> Onground | G87: =IFERROR(IF(A87="","",IFERROR(INDIRECT("'Faculty Searchable'!FG"&PDF!$AH87),INDIRECT("'Faculty Searchable'!FG"&PDF!$AH87))),"") -> [Gardner C J] | H87: =IFERROR(IF(A87="","",IF(TEXT(INDIRECT("'Faculty Searchable'!G"&PDF!$AH87),"##%")="%","",TEXT(INDIRECT("'Faculty Searchable'!G"&PDF!$AH87),"##%"))),"") ->  | I87: =IFERROR(IF(A87="","",IF(RIGHT(INDIRECT("'Faculty Searchable'!FO"&PDF!$AH87),5)="Major","--",RIGHT(INDIRECT("'Faculty Searchable'!FO"&PDF!$AH87),2))),"--") -> -- | J87: =IFERROR(IF(A87="","",RIGHT(INDIRECT("'Faculty Searchable'!FP"&PDF!$AH87),2)),"") ->  | K87: =IFERROR(IF(A87="","",IFERROR(VLOOKUP(B87,'Student Searchable'!A:B,2,FALSE),"")),"") ->  | L87: =IFERROR(LEFT(IF(A87="","",IF(INDIRECT("'Faculty Searchable'!CK"&PDF!$AH87)="","16-week-term",INDIRECT("'Faculty Searchable'!CK"&PDF!$AH87))),5),"") -> 2-SUM | M87: =IFERROR(MID(IF(A87="","",IF(INDIRECT("'Faculty Searchable'!CK"&PDF!$AH87)="","16-week-term",INDIRECT("'Faculty Searchable'!CK"&PDF!$AH87))),7,20),"") -> Jun 13 for 1 weeks | N87: =IF(B87="","",_xlfn.XLOOKUP(B87,Tracking!O:O,Tracking!A:A,"")) -> 0 | O87: =IF(PDF!AH87="","",IFERROR(INDIRECT("'Faculty Searchable'!FN"&PDF!$AH87),ROW())) -> 
A88: =IF(PDF!AH88="","",IFERROR(IF(PDF!A88="","",INDIRECT("'Faculty Searchable'!H"&PDF!AH88)&": "&LEFT(INDIRECT("'Faculty Searchable'!BA"&PDF!AH88),30)),"")) -> AUTO G003N: Automotive Lube Tech | B88: =IFERROR(IF(A88="","",INDIRECT("'Faculty Searchable'!I"&PDF!$AH88)),"") -> 11857 | C88: =IFERROR(IF(B88="","",INDIRECT("'Faculty Searchable'!BB"&PDF!$AH88)),"") -> 0 | D88: =IFERROR(IF(A88="","",INDIRECT("'Faculty Searchable'!AE"&PDF!$AH88)),"") -> 9:00am - 10:50am | E88: =IFERROR(IF(A88="","",IF(D88="Online","",SUBSTITUTE(INDIRECT("'Faculty Searchable'!AF"&PDF!$AH88),"0","--"))),"") -> MTWThF | F88: =IFERROR(IF(A88="","",INDIRECT("'Faculty Searchable'!EB"&PDF!$AH88)),"") -> Onground | G88: =IFERROR(IF(A88="","",IFERROR(INDIRECT("'Faculty Searchable'!FG"&PDF!$AH88),INDIRECT("'Faculty Searchable'!FG"&PDF!$AH88))),"") -> [Gardner C J] | H88: =IFERROR(IF(A88="","",IF(TEXT(INDIRECT("'Faculty Searchable'!G"&PDF!$AH88),"##%")="%","",TEXT(INDIRECT("'Faculty Searchable'!G"&PDF!$AH88),"##%"))),"") ->  | I88: =IFERROR(IF(A88="","",IF(RIGHT(INDIRECT("'Faculty Searchable'!FO"&PDF!$AH88),5)="Major","--",RIGHT(INDIRECT("'Faculty Searchable'!FO"&PDF!$AH88),2))),"--") -> -- | J88: =IFERROR(IF(A88="","",RIGHT(INDIRECT("'Faculty Searchable'!FP"&PDF!$AH88),2)),"") ->  | K88: =IFERROR(IF(A88="","",IFERROR(VLOOKUP(B88,'Student Searchable'!A:B,2,FALSE),"")),"") ->  | L88: =IFERROR(LEFT(IF(A88="","",IF(INDIRECT("'Faculty Searchable'!CK"&PDF!$AH88)="","16-week-term",INDIRECT("'Faculty Searchable'!CK"&PDF!$AH88))),5),"") -> 2-SUM | M88: =IFERROR(MID(IF(A88="","",IF(INDIRECT("'Faculty Searchable'!CK"&PDF!$AH88)="","16-week-term",INDIRECT("'Faculty Searchable'!CK"&PDF!$AH88))),7,20),"") -> Jun 20 for 2 weeks | N88: =IF(B88="","",_xlfn.XLOOKUP(B88,Tracking!O:O,Tracking!A:A,"")) -> 0 | O88: =IF(PDF!AH88="","",IFERROR(INDIRECT("'Faculty Searchable'!FN"&PDF!$AH88),ROW())) -> Prereq AUTO G002N
A89: =IF(PDF!AH89="","",IFERROR(IF(PDF!A89="","",INDIRECT("'Faculty Searchable'!H"&PDF!AH89)&": "&LEFT(INDIRECT("'Faculty Searchable'!BA"&PDF!AH89),30)),"")) -> AUTO G004N: Automotive Tire and Wheel | B89: =IFERROR(IF(A89="","",INDIRECT("'Faculty Searchable'!I"&PDF!$AH89)),"") -> 11858 | C89: =IFERROR(IF(B89="","",INDIRECT("'Faculty Searchable'!BB"&PDF!$AH89)),"") -> 0 | D89: =IFERROR(IF(A89="","",INDIRECT("'Faculty Searchable'!AE"&PDF!$AH89)),"") -> 9:00am - 10:50am | E89: =IFERROR(IF(A89="","",IF(D89="Online","",SUBSTITUTE(INDIRECT("'Faculty Searchable'!AF"&PDF!$AH89),"0","--"))),"") -> ThF | F89: =IFERROR(IF(A89="","",INDIRECT("'Faculty Searchable'!EB"&PDF!$AH89)),"") -> Onground | G89: =IFERROR(IF(A89="","",IFERROR(INDIRECT("'Faculty Searchable'!FG"&PDF!$AH89),INDIRECT("'Faculty Searchable'!FG"&PDF!$AH89))),"") -> [Gardner C J] | H89: =IFERROR(IF(A89="","",IF(TEXT(INDIRECT("'Faculty Searchable'!G"&PDF!$AH89),"##%")="%","",TEXT(INDIRECT("'Faculty Searchable'!G"&PDF!$AH89),"##%"))),"") ->  | I89: =IFERROR(IF(A89="","",IF(RIGHT(INDIRECT("'Faculty Searchable'!FO"&PDF!$AH89),5)="Major","--",RIGHT(INDIRECT("'Faculty Searchable'!FO"&PDF!$AH89),2))),"--") -> -- | J89: =IFERROR(IF(A89="","",RIGHT(INDIRECT("'Faculty Searchable'!FP"&PDF!$AH89),2)),"") ->  | K89: =IFERROR(IF(A89="","",IFERROR(VLOOKUP(B89,'Student Searchable'!A:B,2,FALSE),"")),"") ->  | L89: =IFERROR(LEFT(IF(A89="","",IF(INDIRECT("'Faculty Searchable'!CK"&PDF!$AH89)="","16-week-term",INDIRECT("'Faculty Searchable'!CK"&PDF!$AH89))),5),"") -> 2-SUM | M89: =IFERROR(MID(IF(A89="","",IF(INDIRECT("'Faculty Searchable'!CK"&PDF!$AH89)="","16-week-term",INDIRECT("'Faculty Searchable'!CK"&PDF!$AH89))),7,20),"") -> Jun 30 for 2 weeks | N89: =IF(B89="","",_xlfn.XLOOKUP(B89,Tracking!O:O,Tracking!A:A,"")) -> 0 | O89: =IF(PDF!AH89="","",IFERROR(INDIRECT("'Faculty Searchable'!FN"&PDF!$AH89),ROW())) -> Prereq AUTO G002N
A90: =IF(PDF!AH90="","",IFERROR(IF(PDF!A90="","",INDIRECT("'Faculty Searchable'!H"&PDF!AH90)&": "&LEFT(INDIRECT("'Faculty Searchable'!BA"&PDF!AH90),30)),"")) -> AUTO G045N: Basic Clean Air Car | B90: =IFERROR(IF(A90="","",INDIRECT("'Faculty Searchable'!I"&PDF!$AH90)),"") -> 11855 | C90: =IFERROR(IF(B90="","",INDIRECT("'Faculty Searchable'!BB"&PDF!$AH90)),"") -> 0 | D90: =IFERROR(IF(A90="","",INDIRECT("'Faculty Searchable'!AE"&PDF!$AH90)),"") -> 5:00pm - 8:05pm | E90: =IFERROR(IF(A90="","",IF(D90="Online","",SUBSTITUTE(INDIRECT("'Faculty Searchable'!AF"&PDF!$AH90),"0","--"))),"") -> MTW | F90: =IFERROR(IF(A90="","",INDIRECT("'Faculty Searchable'!EB"&PDF!$AH90)),"") -> Onground | G90: =IFERROR(IF(A90="","",IFERROR(INDIRECT("'Faculty Searchable'!FG"&PDF!$AH90),INDIRECT("'Faculty Searchable'!FG"&PDF!$AH90))),"") -> [Brinkman-Marh M] | H90: =IFERROR(IF(A90="","",IF(TEXT(INDIRECT("'Faculty Searchable'!G"&PDF!$AH90),"##%")="%","",TEXT(INDIRECT("'Faculty Searchable'!G"&PDF!$AH90),"##%"))),"") ->  | I90: =IFERROR(IF(A90="","",IF(RIGHT(INDIRECT("'Faculty Searchable'!FO"&PDF!$AH90),5)="Major","--",RIGHT(INDIRECT("'Faculty Searchable'!FO"&PDF!$AH90),2))),"--") -> -- | J90: =IFERROR(IF(A90="","",RIGHT(INDIRECT("'Faculty Searchable'!FP"&PDF!$AH90),2)),"") ->  | K90: =IFERROR(IF(A90="","",IFERROR(VLOOKUP(B90,'Student Searchable'!A:B,2,FALSE),"")),"") ->  | L90: =IFERROR(LEFT(IF(A90="","",IF(INDIRECT("'Faculty Searchable'!CK"&PDF!$AH90)="","16-week-term",INDIRECT("'Faculty Searchable'!CK"&PDF!$AH90))),5),"") -> 2-SUM | M90: =IFERROR(MID(IF(A90="","",IF(INDIRECT("'Faculty Searchable'!CK"&PDF!$AH90)="","16-week-term",INDIRECT("'Faculty Searchable'!CK"&PDF!$AH90))),7,20),"") -> Jun 13 for 6 weeks | N90: =IF(B90="","",_xlfn.XLOOKUP(B90,Tracking!O:O,Tracking!A:A,"")) -> 0 | O90: =IF(PDF!AH90="","",IFERROR(INDIRECT("'Faculty Searchable'!FN"&PDF!$AH90),ROW())) -> 
A91: =IF(PDF!AH91="","",IFERROR(IF(PDF!A91="","",INDIRECT("'Faculty Searchable'!H"&PDF!AH91)&": "&LEFT(INDIRECT("'Faculty Searchable'!BA"&PDF!AH91),30)),"")) -> AUTO G160: Heating & Air Condition | B91: =IFERROR(IF(A91="","",INDIRECT("'Faculty Searchable'!I"&PDF!$AH91)),"") -> 11879 | C91: =IFERROR(IF(B91="","",INDIRECT("'Faculty Searchable'!BB"&PDF!$AH91)),"") -> 4 | D91: =IFERROR(IF(A91="","",INDIRECT("'Faculty Searchable'!AE"&PDF!$AH91)),"") -> 8:00am - 1:15pm | E91: =IFERROR(IF(A91="","",IF(D91="Online","",SUBSTITUTE(INDIRECT("'Faculty Searchable'!AF"&PDF!$AH91),"0","--"))),"") -> MTW | F91: =IFERROR(IF(A91="","",INDIRECT("'Faculty Searchable'!EB"&PDF!$AH91)),"") -> Onground | G91: =IFERROR(IF(A91="","",IFERROR(INDIRECT("'Faculty Searchable'!FG"&PDF!$AH91),INDIRECT("'Faculty Searchable'!FG"&PDF!$AH91))),"") -> [Kasabian J] | H91: =IFERROR(IF(A91="","",IF(TEXT(INDIRECT("'Faculty Searchable'!G"&PDF!$AH91),"##%")="%","",TEXT(INDIRECT("'Faculty Searchable'!G"&PDF!$AH91),"##%"))),"") ->  | I91: =IFERROR(IF(A91="","",IF(RIGHT(INDIRECT("'Faculty Searchable'!FO"&PDF!$AH91),5)="Major","--",RIGHT(INDIRECT("'Faculty Searchable'!FO"&PDF!$AH91),2))),"--") -> -- | J91: =IFERROR(IF(A91="","",RIGHT(INDIRECT("'Faculty Searchable'!FP"&PDF!$AH91),2)),"") ->  | K91: =IFERROR(IF(A91="","",IFERROR(VLOOKUP(B91,'Student Searchable'!A:B,2,FALSE),"")),"") ->  | L91: =IFERROR(LEFT(IF(A91="","",IF(INDIRECT("'Faculty Searchable'!CK"&PDF!$AH91)="","16-week-term",INDIRECT("'Faculty Searchable'!CK"&PDF!$AH91))),5),"") -> 2-SUM | M91: =IFERROR(MID(IF(A91="","",IF(INDIRECT("'Faculty Searchable'!CK"&PDF!$AH91)="","16-week-term",INDIRECT("'Faculty Searchable'!CK"&PDF!$AH91))),7,20),"") -> Jun 13 for 4 weeks | N91: =IF(B91="","",_xlfn.XLOOKUP(B91,Tracking!O:O,Tracking!A:A,"")) -> 0 | O91: =IF(PDF!AH91="","",IFERROR(INDIRECT("'Faculty Searchable'!FN"&PDF!$AH91),ROW())) -> 
A92: =IF(PDF!AH92="","",IFERROR(IF(PDF!A92="","",INDIRECT("'Faculty Searchable'!H"&PDF!AH92)&": "&LEFT(INDIRECT("'Faculty Searchable'!BA"&PDF!AH92),30)),"")) -> BIOL G100: Introduction To Biology | B92: =IFERROR(IF(A92="","",INDIRECT("'Faculty Searchable'!I"&PDF!$AH92)),"") -> 11469 | C92: =IFERROR(IF(B92="","",INDIRECT("'Faculty Searchable'!BB"&PDF!$AH92)),"") -> 4 | D92: =IFERROR(IF(A92="","",INDIRECT("'Faculty Searchable'!AE"&PDF!$AH92)),"") -> - | E92: =IFERROR(IF(A92="","",IF(D92="Online","",SUBSTITUTE(INDIRECT("'Faculty Searchable'!AF"&PDF!$AH92),"0","--"))),"") ->  | F92: =IFERROR(IF(A92="","",INDIRECT("'Faculty Searchable'!EB"&PDF!$AH92)),"") -> Online | G92: =IFERROR(IF(A92="","",IFERROR(INDIRECT("'Faculty Searchable'!FG"&PDF!$AH92),INDIRECT("'Faculty Searchable'!FG"&PDF!$AH92))),"") -> [Lamantia M L] | H92: =IFERROR(IF(A92="","",IF(TEXT(INDIRECT("'Faculty Searchable'!G"&PDF!$AH92),"##%")="%","",TEXT(INDIRECT("'Faculty Searchable'!G"&PDF!$AH92),"##%"))),"") ->  | I92: =IFERROR(IF(A92="","",IF(RIGHT(INDIRECT("'Faculty Searchable'!FO"&PDF!$AH92),5)="Major","--",RIGHT(INDIRECT("'Faculty Searchable'!FO"&PDF!$AH92),2))),"--") -> -- | J92: =IFERROR(IF(A92="","",RIGHT(INDIRECT("'Faculty Searchable'!FP"&PDF!$AH92),2)),"") ->  | K92: =IFERROR(IF(A92="","",IFERROR(VLOOKUP(B92,'Student Searchable'!A:B,2,FALSE),"")),"") ->  | L92: =IFERROR(LEFT(IF(A92="","",IF(INDIRECT("'Faculty Searchable'!CK"&PDF!$AH92)="","16-week-term",INDIRECT("'Faculty Searchable'!CK"&PDF!$AH92))),5),"") -> 2-SUM | M92: =IFERROR(MID(IF(A92="","",IF(INDIRECT("'Faculty Searchable'!CK"&PDF!$AH92)="","16-week-term",INDIRECT("'Faculty Searchable'!CK"&PDF!$AH92))),7,20),"") -> Jun 13 for 6 weeks | N92: =IF(B92="","",_xlfn.XLOOKUP(B92,Tracking!O:O,Tracking!A:A,"")) -> 0 | O92: =IF(PDF!AH92="","",IFERROR(INDIRECT("'Faculty Searchable'!FN"&PDF!$AH92),ROW())) -> 
A93: =IF(PDF!AH93="","",IFERROR(IF(PDF!A93="","",INDIRECT("'Faculty Searchable'!H"&PDF!AH93)&": "&LEFT(INDIRECT("'Faculty Searchable'!BA"&PDF!AH93),30)),"")) -> BIOL G100: Introduction To Biology | B93: =IFERROR(IF(A93="","",INDIRECT("'Faculty Searchable'!I"&PDF!$AH93)),"") -> 10463 | C93: =IFERROR(IF(B93="","",INDIRECT("'Faculty Searchable'!BB"&PDF!$AH93)),"") -> 4 | D93: =IFERROR(IF(A93="","",INDIRECT("'Faculty Searchable'!AE"&PDF!$AH93)),"") -> - | E93: =IFERROR(IF(A93="","",IF(D93="Online","",SUBSTITUTE(INDIRECT("'Faculty Searchable'!AF"&PDF!$AH93),"0","--"))),"") ->  | F93: =IFERROR(IF(A93="","",INDIRECT("'Faculty Searchable'!EB"&PDF!$AH93)),"") -> Online | G93: =IFERROR(IF(A93="","",IFERROR(INDIRECT("'Faculty Searchable'!FG"&PDF!$AH93),INDIRECT("'Faculty Searchable'!FG"&PDF!$AH93))),"") -> [Lamantia M L] | H93: =IFERROR(IF(A93="","",IF(TEXT(INDIRECT("'Faculty Searchable'!G"&PDF!$AH93),"##%")="%","",TEXT(INDIRECT("'Faculty Searchable'!G"&PDF!$AH93),"##%"))),"") ->  | I93: =IFERROR(IF(A93="","",IF(RIGHT(INDIRECT("'Faculty Searchable'!FO"&PDF!$AH93),5)="Major","--",RIGHT(INDIRECT("'Faculty Searchable'!FO"&PDF!$AH93),2))),"--") -> -- | J93: =IFERROR(IF(A93="","",RIGHT(INDIRECT("'Faculty Searchable'!FP"&PDF!$AH93),2)),"") ->  | K93: =IFERROR(IF(A93="","",IFERROR(VLOOKUP(B93,'Student Searchable'!A:B,2,FALSE),"")),"") ->  | L93: =IFERROR(LEFT(IF(A93="","",IF(INDIRECT("'Faculty Searchable'!CK"&PDF!$AH93)="","16-week-term",INDIRECT("'Faculty Searchable'!CK"&PDF!$AH93))),5),"") -> 2-SUM | M93: =IFERROR(MID(IF(A93="","",IF(INDIRECT("'Faculty Searchable'!CK"&PDF!$AH93)="","16-week-term",INDIRECT("'Faculty Searchable'!CK"&PDF!$AH93))),7,20),"") -> Jun 13 for 6 weeks | N93: =IF(B93="","",_xlfn.XLOOKUP(B93,Tracking!O:O,Tracking!A:A,"")) -> 0 | O93: =IF(PDF!AH93="","",IFERROR(INDIRECT("'Faculty Searchable'!FN"&PDF!$AH93),ROW())) -> 
A94: =IF(PDF!AH94="","",IFERROR(IF(PDF!A94="","",INDIRECT("'Faculty Searchable'!H"&PDF!AH94)&": "&LEFT(INDIRECT("'Faculty Searchable'!BA"&PDF!AH94),30)),"")) -> BIOL G100: Introduction To Biology | B94: =IFERROR(IF(A94="","",INDIRECT("'Faculty Searchable'!I"&PDF!$AH94)),"") -> 10494 | C94: =IFERROR(IF(B94="","",INDIRECT("'Faculty Searchable'!BB"&PDF!$AH94)),"") -> 4 | D94: =IFERROR(IF(A94="","",INDIRECT("'Faculty Searchable'!AE"&PDF!$AH94)),"") -> 8:00am - 11:05am | E94: =IFERROR(IF(A94="","",IF(D94="Online","",SUBSTITUTE(INDIRECT("'Faculty Searchable'!AF"&PDF!$AH94),"0","--"))),"") -> TWTh | F94: =IFERROR(IF(A94="","",INDIRECT("'Faculty Searchable'!EB"&PDF!$AH94)),"") -> Onground | G94: =IFERROR(IF(A94="","",IFERROR(INDIRECT("'Faculty Searchable'!FG"&PDF!$AH94),INDIRECT("'Faculty Searchable'!FG"&PDF!$AH94))),"") -> [Chang W W] | H94: =IFERROR(IF(A94="","",IF(TEXT(INDIRECT("'Faculty Searchable'!G"&PDF!$AH94),"##%")="%","",TEXT(INDIRECT("'Faculty Searchable'!G"&PDF!$AH94),"##%"))),"") ->  | I94: =IFERROR(IF(A94="","",IF(RIGHT(INDIRECT("'Faculty Searchable'!FO"&PDF!$AH94),5)="Major","--",RIGHT(INDIRECT("'Faculty Searchable'!FO"&PDF!$AH94),2))),"--") -> -- | J94: =IFERROR(IF(A94="","",RIGHT(INDIRECT("'Faculty Searchable'!FP"&PDF!$AH94),2)),"") ->  | K94: =IFERROR(IF(A94="","",IFERROR(VLOOKUP(B94,'Student Searchable'!A:B,2,FALSE),"")),"") ->  | L94: =IFERROR(LEFT(IF(A94="","",IF(INDIRECT("'Faculty Searchable'!CK"&PDF!$AH94)="","16-week-term",INDIRECT("'Faculty Searchable'!CK"&PDF!$AH94))),5),"") -> 2-SUM | M94: =IFERROR(MID(IF(A94="","",IF(INDIRECT("'Faculty Searchable'!CK"&PDF!$AH94)="","16-week-term",INDIRECT("'Faculty Searchable'!CK"&PDF!$AH94))),7,20),"") -> Jun 13 for 6 weeks | N94: =IF(B94="","",_xlfn.XLOOKUP(B94,Tracking!O:O,Tracking!A:A,"")) -> 0 | O94: =IF(PDF!AH94="","",IFERROR(INDIRECT("'Faculty Searchable'!FN"&PDF!$AH94),ROW())) -> 
A95: =IF(PDF!AH95="","",IFERROR(IF(PDF!A95="","",INDIRECT("'Faculty Searchable'!H"&PDF!AH95)&": "&LEFT(INDIRECT("'Faculty Searchable'!BA"&PDF!AH95),30)),"")) -> BIOL G200: Pharmacology-Meds & Drugs | B95: =IFERROR(IF(A95="","",INDIRECT("'Faculty Searchable'!I"&PDF!$AH95)),"") -> 10531 | C95: =IFERROR(IF(B95="","",INDIRECT("'Faculty Searchable'!BB"&PDF!$AH95)),"") -> 3 | D95: =IFERROR(IF(A95="","",INDIRECT("'Faculty Searchable'!AE"&PDF!$AH95)),"") -> 9 hours arranged | E95: =IFERROR(IF(A95="","",IF(D95="Online","",SUBSTITUTE(INDIRECT("'Faculty Searchable'!AF"&PDF!$AH95),"0","--"))),"") ->  | F95: =IFERROR(IF(A95="","",INDIRECT("'Faculty Searchable'!EB"&PDF!$AH95)),"") -> Online | G95: =IFERROR(IF(A95="","",IFERROR(INDIRECT("'Faculty Searchable'!FG"&PDF!$AH95),INDIRECT("'Faculty Searchable'!FG"&PDF!$AH95))),"") -> [Egan C P] | H95: =IFERROR(IF(A95="","",IF(TEXT(INDIRECT("'Faculty Searchable'!G"&PDF!$AH95),"##%")="%","",TEXT(INDIRECT("'Faculty Searchable'!G"&PDF!$AH95),"##%"))),"") ->  | I95: =IFERROR(IF(A95="","",IF(RIGHT(INDIRECT("'Faculty Searchable'!FO"&PDF!$AH95),5)="Major","--",RIGHT(INDIRECT("'Faculty Searchable'!FO"&PDF!$AH95),2))),"--") -> -- | J95: =IFERROR(IF(A95="","",RIGHT(INDIRECT("'Faculty Searchable'!FP"&PDF!$AH95),2)),"") ->  | K95: =IFERROR(IF(A95="","",IFERROR(VLOOKUP(B95,'Student Searchable'!A:B,2,FALSE),"")),"") ->  | L95: =IFERROR(LEFT(IF(A95="","",IF(INDIRECT("'Faculty Searchable'!CK"&PDF!$AH95)="","16-week-term",INDIRECT("'Faculty Searchable'!CK"&PDF!$AH95))),5),"") -> 2-SUM | M95: =IFERROR(MID(IF(A95="","",IF(INDIRECT("'Faculty Searchable'!CK"&PDF!$AH95)="","16-week-term",INDIRECT("'Faculty Searchable'!CK"&PDF!$AH95))),7,20),"") -> Jun 13 for 6 weeks | N95: =IF(B95="","",_xlfn.XLOOKUP(B95,Tracking!O:O,Tracking!A:A,"")) -> 0 | O95: =IF(PDF!AH95="","",IFERROR(INDIRECT("'Faculty Searchable'!FN"&PDF!$AH95),ROW())) -> Prereq BIOL G225
A96: =IF(PDF!AH96="","",IFERROR(IF(PDF!A96="","",INDIRECT("'Faculty Searchable'!H"&PDF!AH96)&": "&LEFT(INDIRECT("'Faculty Searchable'!BA"&PDF!AH96),30)),"")) -> BIOL G210: General Microbiology | B96: =IFERROR(IF(A96="","",INDIRECT("'Faculty Searchable'!I"&PDF!$AH96)),"") -> 10513 | C96: =IFERROR(IF(B96="","",INDIRECT("'Faculty Searchable'!BB"&PDF!$AH96)),"") -> 5 | D96: =IFERROR(IF(A96="","",INDIRECT("'Faculty Searchable'!AE"&PDF!$AH96)),"") -> 7.7 hours arranged | E96: =IFERROR(IF(A96="","",IF(D96="Online","",SUBSTITUTE(INDIRECT("'Faculty Searchable'!AF"&PDF!$AH96),"0","--"))),"") ->  | F96: =IFERROR(IF(A96="","",INDIRECT("'Faculty Searchable'!EB"&PDF!$AH96)),"") -> Online | G96: =IFERROR(IF(A96="","",IFERROR(INDIRECT("'Faculty Searchable'!FG"&PDF!$AH96),INDIRECT("'Faculty Searchable'!FG"&PDF!$AH96))),"") -> [Valinluck M] | H96: =IFERROR(IF(A96="","",IF(TEXT(INDIRECT("'Faculty Searchable'!G"&PDF!$AH96),"##%")="%","",TEXT(INDIRECT("'Faculty Searchable'!G"&PDF!$AH96),"##%"))),"") ->  | I96: =IFERROR(IF(A96="","",IF(RIGHT(INDIRECT("'Faculty Searchable'!FO"&PDF!$AH96),5)="Major","--",RIGHT(INDIRECT("'Faculty Searchable'!FO"&PDF!$AH96),2))),"--") -> B2 | J96: =IFERROR(IF(A96="","",RIGHT(INDIRECT("'Faculty Searchable'!FP"&PDF!$AH96),2)),"") -> 5B | K96: =IFERROR(IF(A96="","",IFERROR(VLOOKUP(B96,'Student Searchable'!A:B,2,FALSE),"")),"") ->  | L96: =IFERROR(LEFT(IF(A96="","",IF(INDIRECT("'Faculty Searchable'!CK"&PDF!$AH96)="","16-week-term",INDIRECT("'Faculty Searchable'!CK"&PDF!$AH96))),5),"") -> 2-SUM | M96: =IFERROR(MID(IF(A96="","",IF(INDIRECT("'Faculty Searchable'!CK"&PDF!$AH96)="","16-week-term",INDIRECT("'Faculty Searchable'!CK"&PDF!$AH96))),7,20),"") -> Jun 13 for 7 weeks | N96: =IF(B96="","",_xlfn.XLOOKUP(B96,Tracking!O:O,Tracking!A:A,"")) -> 0 | O96: =IF(PDF!AH96="","",IFERROR(INDIRECT("'Faculty Searchable'!FN"&PDF!$AH96),ROW())) -> 
A97: =IF(PDF!AH97="","",IFERROR(IF(PDF!A97="","",INDIRECT("'Faculty Searchable'!H"&PDF!AH97)&": "&LEFT(INDIRECT("'Faculty Searchable'!BA"&PDF!AH97),30)),"")) -> BIOL G210: General Microbiology | B97: =IFERROR(IF(A97="","",INDIRECT("'Faculty Searchable'!I"&PDF!$AH97)),"") -> 11472 | C97: =IFERROR(IF(B97="","",INDIRECT("'Faculty Searchable'!BB"&PDF!$AH97)),"") -> 5 | D97: =IFERROR(IF(A97="","",INDIRECT("'Faculty Searchable'!AE"&PDF!$AH97)),"") -> 7.7 hours arranged | E97: =IFERROR(IF(A97="","",IF(D97="Online","",SUBSTITUTE(INDIRECT("'Faculty Searchable'!AF"&PDF!$AH97),"0","--"))),"") ->  | F97: =IFERROR(IF(A97="","",INDIRECT("'Faculty Searchable'!EB"&PDF!$AH97)),"") -> Online | G97: =IFERROR(IF(A97="","",IFERROR(INDIRECT("'Faculty Searchable'!FG"&PDF!$AH97),INDIRECT("'Faculty Searchable'!FG"&PDF!$AH97))),"") -> [Valinluck M] | H97: =IFERROR(IF(A97="","",IF(TEXT(INDIRECT("'Faculty Searchable'!G"&PDF!$AH97),"##%")="%","",TEXT(INDIRECT("'Faculty Searchable'!G"&PDF!$AH97),"##%"))),"") ->  | I97: =IFERROR(IF(A97="","",IF(RIGHT(INDIRECT("'Faculty Searchable'!FO"&PDF!$AH97),5)="Major","--",RIGHT(INDIRECT("'Faculty Searchable'!FO"&PDF!$AH97),2))),"--") -> B2 | J97: =IFERROR(IF(A97="","",RIGHT(INDIRECT("'Faculty Searchable'!FP"&PDF!$AH97),2)),"") -> 5B | K97: =IFERROR(IF(A97="","",IFERROR(VLOOKUP(B97,'Student Searchable'!A:B,2,FALSE),"")),"") ->  | L97: =IFERROR(LEFT(IF(A97="","",IF(INDIRECT("'Faculty Searchable'!CK"&PDF!$AH97)="","16-week-term",INDIRECT("'Faculty Searchable'!CK"&PDF!$AH97))),5),"") -> 2-SUM | M97: =IFERROR(MID(IF(A97="","",IF(INDIRECT("'Faculty Searchable'!CK"&PDF!$AH97)="","16-week-term",INDIRECT("'Faculty Searchable'!CK"&PDF!$AH97))),7,20),"") -> Jun 13 for 7 weeks | N97: =IF(B97="","",_xlfn.XLOOKUP(B97,Tracking!O:O,Tracking!A:A,"")) -> 0 | O97: =IF(PDF!AH97="","",IFERROR(INDIRECT("'Faculty Searchable'!FN"&PDF!$AH97),ROW())) -> 
A98: =IF(PDF!AH98="","",IFERROR(IF(PDF!A98="","",INDIRECT("'Faculty Searchable'!H"&PDF!AH98)&": "&LEFT(INDIRECT("'Faculty Searchable'!BA"&PDF!AH98),30)),"")) -> BIOL G210: General Microbiology | B98: =IFERROR(IF(A98="","",INDIRECT("'Faculty Searchable'!I"&PDF!$AH98)),"") -> 11683 | C98: =IFERROR(IF(B98="","",INDIRECT("'Faculty Searchable'!BB"&PDF!$AH98)),"") -> 5 | D98: =IFERROR(IF(A98="","",INDIRECT("'Faculty Searchable'!AE"&PDF!$AH98)),"") -> 7.7 hours arranged | E98: =IFERROR(IF(A98="","",IF(D98="Online","",SUBSTITUTE(INDIRECT("'Faculty Searchable'!AF"&PDF!$AH98),"0","--"))),"") ->  | F98: =IFERROR(IF(A98="","",INDIRECT("'Faculty Searchable'!EB"&PDF!$AH98)),"") -> Online | G98: =IFERROR(IF(A98="","",IFERROR(INDIRECT("'Faculty Searchable'!FG"&PDF!$AH98),INDIRECT("'Faculty Searchable'!FG"&PDF!$AH98))),"") -> [Levish M L] | H98: =IFERROR(IF(A98="","",IF(TEXT(INDIRECT("'Faculty Searchable'!G"&PDF!$AH98),"##%")="%","",TEXT(INDIRECT("'Faculty Searchable'!G"&PDF!$AH98),"##%"))),"") ->  | I98: =IFERROR(IF(A98="","",IF(RIGHT(INDIRECT("'Faculty Searchable'!FO"&PDF!$AH98),5)="Major","--",RIGHT(INDIRECT("'Faculty Searchable'!FO"&PDF!$AH98),2))),"--") -> B2 | J98: =IFERROR(IF(A98="","",RIGHT(INDIRECT("'Faculty Searchable'!FP"&PDF!$AH98),2)),"") -> 5B | K98: =IFERROR(IF(A98="","",IFERROR(VLOOKUP(B98,'Student Searchable'!A:B,2,FALSE),"")),"") ->  | L98: =IFERROR(LEFT(IF(A98="","",IF(INDIRECT("'Faculty Searchable'!CK"&PDF!$AH98)="","16-week-term",INDIRECT("'Faculty Searchable'!CK"&PDF!$AH98))),5),"") -> 2-SUM | M98: =IFERROR(MID(IF(A98="","",IF(INDIRECT("'Faculty Searchable'!CK"&PDF!$AH98)="","16-week-term",INDIRECT("'Faculty Searchable'!CK"&PDF!$AH98))),7,20),"") -> Jun 13 for 7 weeks | N98: =IF(B98="","",_xlfn.XLOOKUP(B98,Tracking!O:O,Tracking!A:A,"")) -> 0 | O98: =IF(PDF!AH98="","",IFERROR(INDIRECT("'Faculty Searchable'!FN"&PDF!$AH98),ROW())) -> 
A99: =IF(PDF!AH99="","",IFERROR(IF(PDF!A99="","",INDIRECT("'Faculty Searchable'!H"&PDF!AH99)&": "&LEFT(INDIRECT("'Faculty Searchable'!BA"&PDF!AH99),30)),"")) -> BIOL G219: Human Anatomy Discussion | B99: =IFERROR(IF(A99="","",INDIRECT("'Faculty Searchable'!I"&PDF!$AH99)),"") -> 10554 | C99: =IFERROR(IF(B99="","",INDIRECT("'Faculty Searchable'!BB"&PDF!$AH99)),"") -> 1 | D99: =IFERROR(IF(A99="","",INDIRECT("'Faculty Searchable'!AE"&PDF!$AH99)),"") -> 10:00am - 11:05am | E99: =IFERROR(IF(A99="","",IF(D99="Online","",SUBSTITUTE(INDIRECT("'Faculty Searchable'!AF"&PDF!$AH99),"0","--"))),"") -> MW | F99: =IFERROR(IF(A99="","",INDIRECT("'Faculty Searchable'!EB"&PDF!$AH99)),"") -> Onground | G99: =IFERROR(IF(A99="","",IFERROR(INDIRECT("'Faculty Searchable'!FG"&PDF!$AH99),INDIRECT("'Faculty Searchable'!FG"&PDF!$AH99))),"") -> [Crescimanno A] | H99: =IFERROR(IF(A99="","",IF(TEXT(INDIRECT("'Faculty Searchable'!G"&PDF!$AH99),"##%")="%","",TEXT(INDIRECT("'Faculty Searchable'!G"&PDF!$AH99),"##%"))),"") ->  | I99: =IFERROR(IF(A99="","",IF(RIGHT(INDIRECT("'Faculty Searchable'!FO"&PDF!$AH99),5)="Major","--",RIGHT(INDIRECT("'Faculty Searchable'!FO"&PDF!$AH99),2))),"--") -> -- | J99: =IFERROR(IF(A99="","",RIGHT(INDIRECT("'Faculty Searchable'!FP"&PDF!$AH99),2)),"") ->  | K99: =IFERROR(IF(A99="","",IFERROR(VLOOKUP(B99,'Student Searchable'!A:B,2,FALSE),"")),"") ->  | L99: =IFERROR(LEFT(IF(A99="","",IF(INDIRECT("'Faculty Searchable'!CK"&PDF!$AH99)="","16-week-term",INDIRECT("'Faculty Searchable'!CK"&PDF!$AH99))),5),"") -> 2-SUM | M99: =IFERROR(MID(IF(A99="","",IF(INDIRECT("'Faculty Searchable'!CK"&PDF!$AH99)="","16-week-term",INDIRECT("'Faculty Searchable'!CK"&PDF!$AH99))),7,20),"") -> Jun 13 for 7 weeks | N99: =IF(B99="","",_xlfn.XLOOKUP(B99,Tracking!O:O,Tracking!A:A,"")) -> 0 | O99: =IF(PDF!AH99="","",IFERROR(INDIRECT("'Faculty Searchable'!FN"&PDF!$AH99),ROW())) -> Co-req BIOL G220
A100: =IF(PDF!AH100="","",IFERROR(IF(PDF!A100="","",INDIRECT("'Faculty Searchable'!H"&PDF!AH100)&": "&LEFT(INDIRECT("'Faculty Searchable'!BA"&PDF!AH100),30)),"")) -> BIOL G219: Human Anatomy Discussion | B100: =IFERROR(IF(A100="","",INDIRECT("'Faculty Searchable'!I"&PDF!$AH100)),"") -> 10567 | C100: =IFERROR(IF(B100="","",INDIRECT("'Faculty Searchable'!BB"&PDF!$AH100)),"") -> 1 | D100: =IFERROR(IF(A100="","",INDIRECT("'Faculty Searchable'!AE"&PDF!$AH100)),"") -> 2.6 hours arranged | E100: =IFERROR(IF(A100="","",IF(D100="Online","",SUBSTITUTE(INDIRECT("'Faculty Searchable'!AF"&PDF!$AH100),"0","--"))),"") ->  | F100: =IFERROR(IF(A100="","",INDIRECT("'Faculty Searchable'!EB"&PDF!$AH100)),"") -> Online | G100: =IFERROR(IF(A100="","",IFERROR(INDIRECT("'Faculty Searchable'!FG"&PDF!$AH100),INDIRECT("'Faculty Searchable'!FG"&PDF!$AH100))),"") -> [Jahan R] | H100: =IFERROR(IF(A100="","",IF(TEXT(INDIRECT("'Faculty Searchable'!G"&PDF!$AH100),"##%")="%","",TEXT(INDIRECT("'Faculty Searchable'!G"&PDF!$AH100),"##%"))),"") ->  | I100: =IFERROR(IF(A100="","",IF(RIGHT(INDIRECT("'Faculty Searchable'!FO"&PDF!$AH100),5)="Major","--",RIGHT(INDIRECT("'Faculty Searchable'!FO"&PDF!$AH100),2))),"--") -> -- | J100: =IFERROR(IF(A100="","",RIGHT(INDIRECT("'Faculty Searchable'!FP"&PDF!$AH100),2)),"") ->  | K100: =IFERROR(IF(A100="","",IFERROR(VLOOKUP(B100,'Student Searchable'!A:B,2,FALSE),"")),"") ->  | L100: =IFERROR(LEFT(IF(A100="","",IF(INDIRECT("'Faculty Searchable'!CK"&PDF!$AH100)="","16-week-term",INDIRECT("'Faculty Searchable'!CK"&PDF!$AH100))),5),"") -> 2-SUM | M100: =IFERROR(MID(IF(A100="","",IF(INDIRECT("'Faculty Searchable'!CK"&PDF!$AH100)="","16-week-term",INDIRECT("'Faculty Searchable'!CK"&PDF!$AH100))),7,20),"") -> Jun 13 for 7 weeks | N100: =IF(B100="","",_xlfn.XLOOKUP(B100,Tracking!O:O,Tracking!A:A,"")) -> 0 | O100: =IF(PDF!AH100="","",IFERROR(INDIRECT("'Faculty Searchable'!FN"&PDF!$AH100),ROW())) -> Co-req BIOL G220
A101: =IF(PDF!AH101="","",IFERROR(IF(PDF!A101="","",INDIRECT("'Faculty Searchable'!H"&PDF!AH101)&": "&LEFT(INDIRECT("'Faculty Searchable'!BA"&PDF!AH101),30)),"")) -> BIOL G220: Human Anatomy | B101: =IFERROR(IF(A101="","",INDIRECT("'Faculty Searchable'!I"&PDF!$AH101)),"") -> 10497 | C101: =IFERROR(IF(B101="","",INDIRECT("'Faculty Searchable'!BB"&PDF!$AH101)),"") -> 4 | D101: =IFERROR(IF(A101="","",INDIRECT("'Faculty Searchable'!AE"&PDF!$AH101)),"") -> - | E101: =IFERROR(IF(A101="","",IF(D101="Online","",SUBSTITUTE(INDIRECT("'Faculty Searchable'!AF"&PDF!$AH101),"0","--"))),"") ->  | F101: =IFERROR(IF(A101="","",INDIRECT("'Faculty Searchable'!EB"&PDF!$AH101)),"") -> Online | G101: =IFERROR(IF(A101="","",IFERROR(INDIRECT("'Faculty Searchable'!FG"&PDF!$AH101),INDIRECT("'Faculty Searchable'!FG"&PDF!$AH101))),"") -> [Jahan R] | H101: =IFERROR(IF(A101="","",IF(TEXT(INDIRECT("'Faculty Searchable'!G"&PDF!$AH101),"##%")="%","",TEXT(INDIRECT("'Faculty Searchable'!G"&PDF!$AH101),"##%"))),"") ->  | I101: =IFERROR(IF(A101="","",IF(RIGHT(INDIRECT("'Faculty Searchable'!FO"&PDF!$AH101),5)="Major","--",RIGHT(INDIRECT("'Faculty Searchable'!FO"&PDF!$AH101),2))),"--") -> B2 | J101: =IFERROR(IF(A101="","",RIGHT(INDIRECT("'Faculty Searchable'!FP"&PDF!$AH101),2)),"") -> 5B | K101: =IFERROR(IF(A101="","",IFERROR(VLOOKUP(B101,'Student Searchable'!A:B,2,FALSE),"")),"") ->  | L101: =IFERROR(LEFT(IF(A101="","",IF(INDIRECT("'Faculty Searchable'!CK"&PDF!$AH101)="","16-week-term",INDIRECT("'Faculty Searchable'!CK"&PDF!$AH101))),5),"") -> 2-SUM | M101: =IFERROR(MID(IF(A101="","",IF(INDIRECT("'Faculty Searchable'!CK"&PDF!$AH101)="","16-week-term",INDIRECT("'Faculty Searchable'!CK"&PDF!$AH101))),7,20),"") -> Jun 13 for 7 weeks | N101: =IF(B101="","",_xlfn.XLOOKUP(B101,Tracking!O:O,Tracking!A:A,"")) -> 0 | O101: =IF(PDF!AH101="","",IFERROR(INDIRECT("'Faculty Searchable'!FN"&PDF!$AH101),ROW())) -> 
A102: =IF(PDF!AH102="","",IFERROR(IF(PDF!A102="","",INDIRECT("'Faculty Searchable'!H"&PDF!AH102)&": "&LEFT(INDIRECT("'Faculty Searchable'!BA"&PDF!AH102),30)),"")) -> BIOL G220: Human Anatomy | B102: =IFERROR(IF(A102="","",INDIRECT("'Faculty Searchable'!I"&PDF!$AH102)),"") -> 10546 | C102: =IFERROR(IF(B102="","",INDIRECT("'Faculty Searchable'!BB"&PDF!$AH102)),"") -> 4 | D102: =IFERROR(IF(A102="","",INDIRECT("'Faculty Searchable'!AE"&PDF!$AH102)),"") -> 8:45am - 9:55am | E102: =IFERROR(IF(A102="","",IF(D102="Online","",SUBSTITUTE(INDIRECT("'Faculty Searchable'!AF"&PDF!$AH102),"0","--"))),"") -> MTWTh | F102: =IFERROR(IF(A102="","",INDIRECT("'Faculty Searchable'!EB"&PDF!$AH102)),"") -> Onground | G102: =IFERROR(IF(A102="","",IFERROR(INDIRECT("'Faculty Searchable'!FG"&PDF!$AH102),INDIRECT("'Faculty Searchable'!FG"&PDF!$AH102))),"") -> [Crescimanno A] | H102: =IFERROR(IF(A102="","",IF(TEXT(INDIRECT("'Faculty Searchable'!G"&PDF!$AH102),"##%")="%","",TEXT(INDIRECT("'Faculty Searchable'!G"&PDF!$AH102),"##%"))),"") ->  | I102: =IFERROR(IF(A102="","",IF(RIGHT(INDIRECT("'Faculty Searchable'!FO"&PDF!$AH102),5)="Major","--",RIGHT(INDIRECT("'Faculty Searchable'!FO"&PDF!$AH102),2))),"--") -> B2 | J102: =IFERROR(IF(A102="","",RIGHT(INDIRECT("'Faculty Searchable'!FP"&PDF!$AH102),2)),"") -> 5B | K102: =IFERROR(IF(A102="","",IFERROR(VLOOKUP(B102,'Student Searchable'!A:B,2,FALSE),"")),"") ->  | L102: =IFERROR(LEFT(IF(A102="","",IF(INDIRECT("'Faculty Searchable'!CK"&PDF!$AH102)="","16-week-term",INDIRECT("'Faculty Searchable'!CK"&PDF!$AH102))),5),"") -> 2-SUM | M102: =IFERROR(MID(IF(A102="","",IF(INDIRECT("'Faculty Searchable'!CK"&PDF!$AH102)="","16-week-term",INDIRECT("'Faculty Searchable'!CK"&PDF!$AH102))),7,20),"") -> Jun 13 for 7 weeks | N102: =IF(B102="","",_xlfn.XLOOKUP(B102,Tracking!O:O,Tracking!A:A,"")) -> 0 | O102: =IF(PDF!AH102="","",IFERROR(INDIRECT("'Faculty Searchable'!FN"&PDF!$AH102),ROW())) -> 
A103: =IF(PDF!AH103="","",IFERROR(IF(PDF!A103="","",INDIRECT("'Faculty Searchable'!H"&PDF!AH103)&": "&LEFT(INDIRECT("'Faculty Searchable'!BA"&PDF!AH103),30)),"")) -> BIOL G220: Human Anatomy | B103: =IFERROR(IF(A103="","",INDIRECT("'Faculty Searchable'!I"&PDF!$AH103)),"") -> 11473 | C103: =IFERROR(IF(B103="","",INDIRECT("'Faculty Searchable'!BB"&PDF!$AH103)),"") -> 4 | D103: =IFERROR(IF(A103="","",INDIRECT("'Faculty Searchable'!AE"&PDF!$AH103)),"") -> 5.2 hours arranged | E103: =IFERROR(IF(A103="","",IF(D103="Online","",SUBSTITUTE(INDIRECT("'Faculty Searchable'!AF"&PDF!$AH103),"0","--"))),"") ->  | F103: =IFERROR(IF(A103="","",INDIRECT("'Faculty Searchable'!EB"&PDF!$AH103)),"") -> Online | G103: =IFERROR(IF(A103="","",IFERROR(INDIRECT("'Faculty Searchable'!FG"&PDF!$AH103),INDIRECT("'Faculty Searchable'!FG"&PDF!$AH103))),"") -> [Jahan R] | H103: =IFERROR(IF(A103="","",IF(TEXT(INDIRECT("'Faculty Searchable'!G"&PDF!$AH103),"##%")="%","",TEXT(INDIRECT("'Faculty Searchable'!G"&PDF!$AH103),"##%"))),"") ->  | I103: =IFERROR(IF(A103="","",IF(RIGHT(INDIRECT("'Faculty Searchable'!FO"&PDF!$AH103),5)="Major","--",RIGHT(INDIRECT("'Faculty Searchable'!FO"&PDF!$AH103),2))),"--") -> B2 | J103: =IFERROR(IF(A103="","",RIGHT(INDIRECT("'Faculty Searchable'!FP"&PDF!$AH103),2)),"") -> 5B | K103: =IFERROR(IF(A103="","",IFERROR(VLOOKUP(B103,'Student Searchable'!A:B,2,FALSE),"")),"") ->  | L103: =IFERROR(LEFT(IF(A103="","",IF(INDIRECT("'Faculty Searchable'!CK"&PDF!$AH103)="","16-week-term",INDIRECT("'Faculty Searchable'!CK"&PDF!$AH103))),5),"") -> 2-SUM | M103: =IFERROR(MID(IF(A103="","",IF(INDIRECT("'Faculty Searchable'!CK"&PDF!$AH103)="","16-week-term",INDIRECT("'Faculty Searchable'!CK"&PDF!$AH103))),7,20),"") -> Jun 13 for 7 weeks | N103: =IF(B103="","",_xlfn.XLOOKUP(B103,Tracking!O:O,Tracking!A:A,"")) -> 0 | O103: =IF(PDF!AH103="","",IFERROR(INDIRECT("'Faculty Searchable'!FN"&PDF!$AH103),ROW())) -> 
A104: =IF(PDF!AH104="","",IFERROR(IF(PDF!A104="","",INDIRECT("'Faculty Searchable'!H"&PDF!AH104)&": "&LEFT(INDIRECT("'Faculty Searchable'!BA"&PDF!AH104),30)),"")) -> BIOL G225: Human Physiology | B104: =IFERROR(IF(A104="","",INDIRECT("'Faculty Searchable'!I"&PDF!$AH104)),"") -> 10532 | C104: =IFERROR(IF(B104="","",INDIRECT("'Faculty Searchable'!BB"&PDF!$AH104)),"") -> 4 | D104: =IFERROR(IF(A104="","",INDIRECT("'Faculty Searchable'!AE"&PDF!$AH104)),"") -> - | E104: =IFERROR(IF(A104="","",IF(D104="Online","",SUBSTITUTE(INDIRECT("'Faculty Searchable'!AF"&PDF!$AH104),"0","--"))),"") -> ONLINELAB | F104: =IFERROR(IF(A104="","",INDIRECT("'Faculty Searchable'!EB"&PDF!$AH104)),"") -> Online | G104: =IFERROR(IF(A104="","",IFERROR(INDIRECT("'Faculty Searchable'!FG"&PDF!$AH104),INDIRECT("'Faculty Searchable'!FG"&PDF!$AH104))),"") -> [Egan C P] | H104: =IFERROR(IF(A104="","",IF(TEXT(INDIRECT("'Faculty Searchable'!G"&PDF!$AH104),"##%")="%","",TEXT(INDIRECT("'Faculty Searchable'!G"&PDF!$AH104),"##%"))),"") ->  | I104: =IFERROR(IF(A104="","",IF(RIGHT(INDIRECT("'Faculty Searchable'!FO"&PDF!$AH104),5)="Major","--",RIGHT(INDIRECT("'Faculty Searchable'!FO"&PDF!$AH104),2))),"--") -> B2 | J104: =IFERROR(IF(A104="","",RIGHT(INDIRECT("'Faculty Searchable'!FP"&PDF!$AH104),2)),"") -> 5B | K104: =IFERROR(IF(A104="","",IFERROR(VLOOKUP(B104,'Student Searchable'!A:B,2,FALSE),"")),"") ->  | L104: =IFERROR(LEFT(IF(A104="","",IF(INDIRECT("'Faculty Searchable'!CK"&PDF!$AH104)="","16-week-term",INDIRECT("'Faculty Searchable'!CK"&PDF!$AH104))),5),"") -> 2-SUM | M104: =IFERROR(MID(IF(A104="","",IF(INDIRECT("'Faculty Searchable'!CK"&PDF!$AH104)="","16-week-term",INDIRECT("'Faculty Searchable'!CK"&PDF!$AH104))),7,20),"") -> Jun 13 for 6 weeks | N104: =IF(B104="","",_xlfn.XLOOKUP(B104,Tracking!O:O,Tracking!A:A,"")) -> 0 | O104: =IF(PDF!AH104="","",IFERROR(INDIRECT("'Faculty Searchable'!FN"&PDF!$AH104),ROW())) -> Prereq BIOL G220
A105: =IF(PDF!AH105="","",IFERROR(IF(PDF!A105="","",INDIRECT("'Faculty Searchable'!H"&PDF!AH105)&": "&LEFT(INDIRECT("'Faculty Searchable'!BA"&PDF!AH105),30)),"")) -> BIOL G225: Human Physiology | B105: =IFERROR(IF(A105="","",INDIRECT("'Faculty Searchable'!I"&PDF!$AH105)),"") -> 11680 | C105: =IFERROR(IF(B105="","",INDIRECT("'Faculty Searchable'!BB"&PDF!$AH105)),"") -> 4 | D105: =IFERROR(IF(A105="","",INDIRECT("'Faculty Searchable'!AE"&PDF!$AH105)),"") -> 9:30am - 12:35pm | E105: =IFERROR(IF(A105="","",IF(D105="Online","",SUBSTITUTE(INDIRECT("'Faculty Searchable'!AF"&PDF!$AH105),"0","--"))),"") -> TWTh | F105: =IFERROR(IF(A105="","",INDIRECT("'Faculty Searchable'!EB"&PDF!$AH105)),"") -> Onground | G105: =IFERROR(IF(A105="","",IFERROR(INDIRECT("'Faculty Searchable'!FG"&PDF!$AH105),INDIRECT("'Faculty Searchable'!FG"&PDF!$AH105))),"") -> [Mirbolooki R R] | H105: =IFERROR(IF(A105="","",IF(TEXT(INDIRECT("'Faculty Searchable'!G"&PDF!$AH105),"##%")="%","",TEXT(INDIRECT("'Faculty Searchable'!G"&PDF!$AH105),"##%"))),"") ->  | I105: =IFERROR(IF(A105="","",IF(RIGHT(INDIRECT("'Faculty Searchable'!FO"&PDF!$AH105),5)="Major","--",RIGHT(INDIRECT("'Faculty Searchable'!FO"&PDF!$AH105),2))),"--") -> B2 | J105: =IFERROR(IF(A105="","",RIGHT(INDIRECT("'Faculty Searchable'!FP"&PDF!$AH105),2)),"") -> 5B | K105: =IFERROR(IF(A105="","",IFERROR(VLOOKUP(B105,'Student Searchable'!A:B,2,FALSE),"")),"") ->  | L105: =IFERROR(LEFT(IF(A105="","",IF(INDIRECT("'Faculty Searchable'!CK"&PDF!$AH105)="","16-week-term",INDIRECT("'Faculty Searchable'!CK"&PDF!$AH105))),5),"") -> 2-SUM | M105: =IFERROR(MID(IF(A105="","",IF(INDIRECT("'Faculty Searchable'!CK"&PDF!$AH105)="","16-week-term",INDIRECT("'Faculty Searchable'!CK"&PDF!$AH105))),7,20),"") -> Jun 13 for 6 weeks | N105: =IF(B105="","",_xlfn.XLOOKUP(B105,Tracking!O:O,Tracking!A:A,"")) -> 0 | O105: =IF(PDF!AH105="","",IFERROR(INDIRECT("'Faculty Searchable'!FN"&PDF!$AH105),ROW())) -> Prereq BIOL G220
A106: =IF(PDF!AH106="","",IFERROR(IF(PDF!A106="","",INDIRECT("'Faculty Searchable'!H"&PDF!AH106)&": "&LEFT(INDIRECT("'Faculty Searchable'!BA"&PDF!AH106),30)),"")) -> BIOL G225: Human Physiology | B106: =IFERROR(IF(A106="","",INDIRECT("'Faculty Searchable'!I"&PDF!$AH106)),"") -> 11681 | C106: =IFERROR(IF(B106="","",INDIRECT("'Faculty Searchable'!BB"&PDF!$AH106)),"") -> 4 | D106: =IFERROR(IF(A106="","",INDIRECT("'Faculty Searchable'!AE"&PDF!$AH106)),"") -> 9 hours arranged | E106: =IFERROR(IF(A106="","",IF(D106="Online","",SUBSTITUTE(INDIRECT("'Faculty Searchable'!AF"&PDF!$AH106),"0","--"))),"") ->  | F106: =IFERROR(IF(A106="","",INDIRECT("'Faculty Searchable'!EB"&PDF!$AH106)),"") -> Online | G106: =IFERROR(IF(A106="","",IFERROR(INDIRECT("'Faculty Searchable'!FG"&PDF!$AH106),INDIRECT("'Faculty Searchable'!FG"&PDF!$AH106))),"") -> [Egan C P] | H106: =IFERROR(IF(A106="","",IF(TEXT(INDIRECT("'Faculty Searchable'!G"&PDF!$AH106),"##%")="%","",TEXT(INDIRECT("'Faculty Searchable'!G"&PDF!$AH106),"##%"))),"") ->  | I106: =IFERROR(IF(A106="","",IF(RIGHT(INDIRECT("'Faculty Searchable'!FO"&PDF!$AH106),5)="Major","--",RIGHT(INDIRECT("'Faculty Searchable'!FO"&PDF!$AH106),2))),"--") -> B2 | J106: =IFERROR(IF(A106="","",RIGHT(INDIRECT("'Faculty Searchable'!FP"&PDF!$AH106),2)),"") -> 5B | K106: =IFERROR(IF(A106="","",IFERROR(VLOOKUP(B106,'Student Searchable'!A:B,2,FALSE),"")),"") ->  | L106: =IFERROR(LEFT(IF(A106="","",IF(INDIRECT("'Faculty Searchable'!CK"&PDF!$AH106)="","16-week-term",INDIRECT("'Faculty Searchable'!CK"&PDF!$AH106))),5),"") -> 2-SUM | M106: =IFERROR(MID(IF(A106="","",IF(INDIRECT("'Faculty Searchable'!CK"&PDF!$AH106)="","16-week-term",INDIRECT("'Faculty Searchable'!CK"&PDF!$AH106))),7,20),"") -> Jun 13 for 6 weeks | N106: =IF(B106="","",_xlfn.XLOOKUP(B106,Tracking!O:O,Tracking!A:A,"")) -> 0 | O106: =IF(PDF!AH106="","",IFERROR(INDIRECT("'Faculty Searchable'!FN"&PDF!$AH106),ROW())) -> Prereq BIOL G220
A107: =IF(PDF!AH107="","",IFERROR(IF(PDF!A107="","",INDIRECT("'Faculty Searchable'!H"&PDF!AH107)&": "&LEFT(INDIRECT("'Faculty Searchable'!BA"&PDF!AH107),30)),"")) -> BUS G100: Introduction To Business | B107: =IFERROR(IF(A107="","",INDIRECT("'Faculty Searchable'!I"&PDF!$AH107)),"") -> 10582 | C107: =IFERROR(IF(B107="","",INDIRECT("'Faculty Searchable'!BB"&PDF!$AH107)),"") -> 3 | D107: =IFERROR(IF(A107="","",INDIRECT("'Faculty Searchable'!AE"&PDF!$AH107)),"") -> 6.75 hours arranged | E107: =IFERROR(IF(A107="","",IF(D107="Online","",SUBSTITUTE(INDIRECT("'Faculty Searchable'!AF"&PDF!$AH107),"0","--"))),"") ->  | F107: =IFERROR(IF(A107="","",INDIRECT("'Faculty Searchable'!EB"&PDF!$AH107)),"") -> Online | G107: =IFERROR(IF(A107="","",IFERROR(INDIRECT("'Faculty Searchable'!FG"&PDF!$AH107),INDIRECT("'Faculty Searchable'!FG"&PDF!$AH107))),"") -> [Buker G T] | H107: =IFERROR(IF(A107="","",IF(TEXT(INDIRECT("'Faculty Searchable'!G"&PDF!$AH107),"##%")="%","",TEXT(INDIRECT("'Faculty Searchable'!G"&PDF!$AH107),"##%"))),"") ->  | I107: =IFERROR(IF(A107="","",IF(RIGHT(INDIRECT("'Faculty Searchable'!FO"&PDF!$AH107),5)="Major","--",RIGHT(INDIRECT("'Faculty Searchable'!FO"&PDF!$AH107),2))),"--") -> -- | J107: =IFERROR(IF(A107="","",RIGHT(INDIRECT("'Faculty Searchable'!FP"&PDF!$AH107),2)),"") ->  | K107: =IFERROR(IF(A107="","",IFERROR(VLOOKUP(B107,'Student Searchable'!A:B,2,FALSE),"")),"") ->  | L107: =IFERROR(LEFT(IF(A107="","",IF(INDIRECT("'Faculty Searchable'!CK"&PDF!$AH107)="","16-week-term",INDIRECT("'Faculty Searchable'!CK"&PDF!$AH107))),5),"") -> 2-SUM | M107: =IFERROR(MID(IF(A107="","",IF(INDIRECT("'Faculty Searchable'!CK"&PDF!$AH107)="","16-week-term",INDIRECT("'Faculty Searchable'!CK"&PDF!$AH107))),7,20),"") -> Jun 13 for 8 weeks | N107: =IF(B107="","",_xlfn.XLOOKUP(B107,Tracking!O:O,Tracking!A:A,"")) -> 0 | O107: =IF(PDF!AH107="","",IFERROR(INDIRECT("'Faculty Searchable'!FN"&PDF!$AH107),ROW())) -> 
A108: =IF(PDF!AH108="","",IFERROR(IF(PDF!A108="","",INDIRECT("'Faculty Searchable'!H"&PDF!AH108)&": "&LEFT(INDIRECT("'Faculty Searchable'!BA"&PDF!AH108),30)),"")) -> BUS G108: Legal Environment of Business | B108: =IFERROR(IF(A108="","",INDIRECT("'Faculty Searchable'!I"&PDF!$AH108)),"") -> 10583 | C108: =IFERROR(IF(B108="","",INDIRECT("'Faculty Searchable'!BB"&PDF!$AH108)),"") -> 3 | D108: =IFERROR(IF(A108="","",INDIRECT("'Faculty Searchable'!AE"&PDF!$AH108)),"") -> 6.75 hours arranged | E108: =IFERROR(IF(A108="","",IF(D108="Online","",SUBSTITUTE(INDIRECT("'Faculty Searchable'!AF"&PDF!$AH108),"0","--"))),"") ->  | F108: =IFERROR(IF(A108="","",INDIRECT("'Faculty Searchable'!EB"&PDF!$AH108)),"") -> Online | G108: =IFERROR(IF(A108="","",IFERROR(INDIRECT("'Faculty Searchable'!FG"&PDF!$AH108),INDIRECT("'Faculty Searchable'!FG"&PDF!$AH108))),"") -> [Letterman B L] | H108: =IFERROR(IF(A108="","",IF(TEXT(INDIRECT("'Faculty Searchable'!G"&PDF!$AH108),"##%")="%","",TEXT(INDIRECT("'Faculty Searchable'!G"&PDF!$AH108),"##%"))),"") ->  | I108: =IFERROR(IF(A108="","",IF(RIGHT(INDIRECT("'Faculty Searchable'!FO"&PDF!$AH108),5)="Major","--",RIGHT(INDIRECT("'Faculty Searchable'!FO"&PDF!$AH108),2))),"--") -> -- | J108: =IFERROR(IF(A108="","",RIGHT(INDIRECT("'Faculty Searchable'!FP"&PDF!$AH108),2)),"") ->  | K108: =IFERROR(IF(A108="","",IFERROR(VLOOKUP(B108,'Student Searchable'!A:B,2,FALSE),"")),"") ->  | L108: =IFERROR(LEFT(IF(A108="","",IF(INDIRECT("'Faculty Searchable'!CK"&PDF!$AH108)="","16-week-term",INDIRECT("'Faculty Searchable'!CK"&PDF!$AH108))),5),"") -> 2-SUM | M108: =IFERROR(MID(IF(A108="","",IF(INDIRECT("'Faculty Searchable'!CK"&PDF!$AH108)="","16-week-term",INDIRECT("'Faculty Searchable'!CK"&PDF!$AH108))),7,20),"") -> Jun 13 for 8 weeks | N108: =IF(B108="","",_xlfn.XLOOKUP(B108,Tracking!O:O,Tracking!A:A,"")) -> 0 | O108: =IF(PDF!AH108="","",IFERROR(INDIRECT("'Faculty Searchable'!FN"&PDF!$AH108),ROW())) -> 
A109: =IF(PDF!AH109="","",IFERROR(IF(PDF!A109="","",INDIRECT("'Faculty Searchable'!H"&PDF!AH109)&": "&LEFT(INDIRECT("'Faculty Searchable'!BA"&PDF!AH109),30)),"")) -> BUS G139: Business Communication | B109: =IFERROR(IF(A109="","",INDIRECT("'Faculty Searchable'!I"&PDF!$AH109)),"") -> 11882 | C109: =IFERROR(IF(B109="","",INDIRECT("'Faculty Searchable'!BB"&PDF!$AH109)),"") -> 3 | D109: =IFERROR(IF(A109="","",INDIRECT("'Faculty Searchable'!AE"&PDF!$AH109)),"") -> 9:00am - 11:50am | E109: =IFERROR(IF(A109="","",IF(D109="Online","",SUBSTITUTE(INDIRECT("'Faculty Searchable'!AF"&PDF!$AH109),"0","--"))),"") -> TWTh | F109: =IFERROR(IF(A109="","",INDIRECT("'Faculty Searchable'!EB"&PDF!$AH109)),"") -> LiveOnline | G109: =IFERROR(IF(A109="","",IFERROR(INDIRECT("'Faculty Searchable'!FG"&PDF!$AH109),INDIRECT("'Faculty Searchable'!FG"&PDF!$AH109))),"") -> [Buker G T] | H109: =IFERROR(IF(A109="","",IF(TEXT(INDIRECT("'Faculty Searchable'!G"&PDF!$AH109),"##%")="%","",TEXT(INDIRECT("'Faculty Searchable'!G"&PDF!$AH109),"##%"))),"") ->  | I109: =IFERROR(IF(A109="","",IF(RIGHT(INDIRECT("'Faculty Searchable'!FO"&PDF!$AH109),5)="Major","--",RIGHT(INDIRECT("'Faculty Searchable'!FO"&PDF!$AH109),2))),"--") -> -- | J109: =IFERROR(IF(A109="","",RIGHT(INDIRECT("'Faculty Searchable'!FP"&PDF!$AH109),2)),"") ->  | K109: =IFERROR(IF(A109="","",IFERROR(VLOOKUP(B109,'Student Searchable'!A:B,2,FALSE),"")),"") ->  | L109: =IFERROR(LEFT(IF(A109="","",IF(INDIRECT("'Faculty Searchable'!CK"&PDF!$AH109)="","16-week-term",INDIRECT("'Faculty Searchable'!CK"&PDF!$AH109))),5),"") -> 2-SUM | M109: =IFERROR(MID(IF(A109="","",IF(INDIRECT("'Faculty Searchable'!CK"&PDF!$AH109)="","16-week-term",INDIRECT("'Faculty Searchable'!CK"&PDF!$AH109))),7,20),"") -> Jul 5 for 6 weeks | N109: =IF(B109="","",_xlfn.XLOOKUP(B109,Tracking!O:O,Tracking!A:A,"")) -> 0 | O109: =IF(PDF!AH109="","",IFERROR(INDIRECT("'Faculty Searchable'!FN"&PDF!$AH109),ROW())) -> 
A110: =IF(PDF!AH110="","",IFERROR(IF(PDF!A110="","",INDIRECT("'Faculty Searchable'!H"&PDF!AH110)&": "&LEFT(INDIRECT("'Faculty Searchable'!BA"&PDF!AH110),30)),"")) -> CHEM G110: Introduction to Chemistry | B110: =IFERROR(IF(A110="","",INDIRECT("'Faculty Searchable'!I"&PDF!$AH110)),"") -> 11432 | C110: =IFERROR(IF(B110="","",INDIRECT("'Faculty Searchable'!BB"&PDF!$AH110)),"") -> 5 | D110: =IFERROR(IF(A110="","",INDIRECT("'Faculty Searchable'!AE"&PDF!$AH110)),"") -> 8:50am - 10:55am | E110: =IFERROR(IF(A110="","",IF(D110="Online","",SUBSTITUTE(INDIRECT("'Faculty Searchable'!AF"&PDF!$AH110),"0","--"))),"") -> MTWTh | F110: =IFERROR(IF(A110="","",INDIRECT("'Faculty Searchable'!EB"&PDF!$AH110)),"") -> Onground | G110: =IFERROR(IF(A110="","",IFERROR(INDIRECT("'Faculty Searchable'!FG"&PDF!$AH110),INDIRECT("'Faculty Searchable'!FG"&PDF!$AH110))),"") -> [Shimazu m S] | H110: =IFERROR(IF(A110="","",IF(TEXT(INDIRECT("'Faculty Searchable'!G"&PDF!$AH110),"##%")="%","",TEXT(INDIRECT("'Faculty Searchable'!G"&PDF!$AH110),"##%"))),"") ->  | I110: =IFERROR(IF(A110="","",IF(RIGHT(INDIRECT("'Faculty Searchable'!FO"&PDF!$AH110),5)="Major","--",RIGHT(INDIRECT("'Faculty Searchable'!FO"&PDF!$AH110),2))),"--") -> B1 | J110: =IFERROR(IF(A110="","",RIGHT(INDIRECT("'Faculty Searchable'!FP"&PDF!$AH110),2)),"") -> 5A | K110: =IFERROR(IF(A110="","",IFERROR(VLOOKUP(B110,'Student Searchable'!A:B,2,FALSE),"")),"") ->  | L110: =IFERROR(LEFT(IF(A110="","",IF(INDIRECT("'Faculty Searchable'!CK"&PDF!$AH110)="","16-week-term",INDIRECT("'Faculty Searchable'!CK"&PDF!$AH110))),5),"") -> 2-SUM | M110: =IFERROR(MID(IF(A110="","",IF(INDIRECT("'Faculty Searchable'!CK"&PDF!$AH110)="","16-week-term",INDIRECT("'Faculty Searchable'!CK"&PDF!$AH110))),7,20),"") -> Jun 13 for 8 weeks | N110: =IF(B110="","",_xlfn.XLOOKUP(B110,Tracking!O:O,Tracking!A:A,"")) -> 0 | O110: =IF(PDF!AH110="","",IFERROR(INDIRECT("'Faculty Searchable'!FN"&PDF!$AH110),ROW())) -> 
A111: =IF(PDF!AH111="","",IFERROR(IF(PDF!A111="","",INDIRECT("'Faculty Searchable'!H"&PDF!AH111)&": "&LEFT(INDIRECT("'Faculty Searchable'!BA"&PDF!AH111),30)),"")) -> CHEM G110: Introduction to Chemistry | B111: =IFERROR(IF(A111="","",INDIRECT("'Faculty Searchable'!I"&PDF!$AH111)),"") -> 11433 | C111: =IFERROR(IF(B111="","",INDIRECT("'Faculty Searchable'!BB"&PDF!$AH111)),"") -> 5 | D111: =IFERROR(IF(A111="","",INDIRECT("'Faculty Searchable'!AE"&PDF!$AH111)),"") -> 11:10am - 1:15pm | E111: =IFERROR(IF(A111="","",IF(D111="Online","",SUBSTITUTE(INDIRECT("'Faculty Searchable'!AF"&PDF!$AH111),"0","--"))),"") -> MTWTh | F111: =IFERROR(IF(A111="","",INDIRECT("'Faculty Searchable'!EB"&PDF!$AH111)),"") -> Onground | G111: =IFERROR(IF(A111="","",IFERROR(INDIRECT("'Faculty Searchable'!FG"&PDF!$AH111),INDIRECT("'Faculty Searchable'!FG"&PDF!$AH111))),"") -> [Shimazu m S] | H111: =IFERROR(IF(A111="","",IF(TEXT(INDIRECT("'Faculty Searchable'!G"&PDF!$AH111),"##%")="%","",TEXT(INDIRECT("'Faculty Searchable'!G"&PDF!$AH111),"##%"))),"") ->  | I111: =IFERROR(IF(A111="","",IF(RIGHT(INDIRECT("'Faculty Searchable'!FO"&PDF!$AH111),5)="Major","--",RIGHT(INDIRECT("'Faculty Searchable'!FO"&PDF!$AH111),2))),"--") -> B1 | J111: =IFERROR(IF(A111="","",RIGHT(INDIRECT("'Faculty Searchable'!FP"&PDF!$AH111),2)),"") -> 5A | K111: =IFERROR(IF(A111="","",IFERROR(VLOOKUP(B111,'Student Searchable'!A:B,2,FALSE),"")),"") ->  | L111: =IFERROR(LEFT(IF(A111="","",IF(INDIRECT("'Faculty Searchable'!CK"&PDF!$AH111)="","16-week-term",INDIRECT("'Faculty Searchable'!CK"&PDF!$AH111))),5),"") -> 2-SUM | M111: =IFERROR(MID(IF(A111="","",IF(INDIRECT("'Faculty Searchable'!CK"&PDF!$AH111)="","16-week-term",INDIRECT("'Faculty Searchable'!CK"&PDF!$AH111))),7,20),"") -> Jun 13 for 8 weeks | N111: =IF(B111="","",_xlfn.XLOOKUP(B111,Tracking!O:O,Tracking!A:A,"")) -> 0 | O111: =IF(PDF!AH111="","",IFERROR(INDIRECT("'Faculty Searchable'!FN"&PDF!$AH111),ROW())) -> 
A112: =IF(PDF!AH112="","",IFERROR(IF(PDF!A112="","",INDIRECT("'Faculty Searchable'!H"&PDF!AH112)&": "&LEFT(INDIRECT("'Faculty Searchable'!BA"&PDF!AH112),30)),"")) -> CHEM G110: Introduction to Chemistry | B112: =IFERROR(IF(A112="","",INDIRECT("'Faculty Searchable'!I"&PDF!$AH112)),"") -> 11870 | C112: =IFERROR(IF(B112="","",INDIRECT("'Faculty Searchable'!BB"&PDF!$AH112)),"") -> 5 | D112: =IFERROR(IF(A112="","",INDIRECT("'Faculty Searchable'!AE"&PDF!$AH112)),"") -> 6:00pm - 8:05pm | E112: =IFERROR(IF(A112="","",IF(D112="Online","",SUBSTITUTE(INDIRECT("'Faculty Searchable'!AF"&PDF!$AH112),"0","--"))),"") -> MTWTh | F112: =IFERROR(IF(A112="","",INDIRECT("'Faculty Searchable'!EB"&PDF!$AH112)),"") -> Onground | G112: =IFERROR(IF(A112="","",IFERROR(INDIRECT("'Faculty Searchable'!FG"&PDF!$AH112),INDIRECT("'Faculty Searchable'!FG"&PDF!$AH112))),"") -> [Shimazu m S] | H112: =IFERROR(IF(A112="","",IF(TEXT(INDIRECT("'Faculty Searchable'!G"&PDF!$AH112),"##%")="%","",TEXT(INDIRECT("'Faculty Searchable'!G"&PDF!$AH112),"##%"))),"") ->  | I112: =IFERROR(IF(A112="","",IF(RIGHT(INDIRECT("'Faculty Searchable'!FO"&PDF!$AH112),5)="Major","--",RIGHT(INDIRECT("'Faculty Searchable'!FO"&PDF!$AH112),2))),"--") -> B1 | J112: =IFERROR(IF(A112="","",RIGHT(INDIRECT("'Faculty Searchable'!FP"&PDF!$AH112),2)),"") -> 5A | K112: =IFERROR(IF(A112="","",IFERROR(VLOOKUP(B112,'Student Searchable'!A:B,2,FALSE),"")),"") ->  | L112: =IFERROR(LEFT(IF(A112="","",IF(INDIRECT("'Faculty Searchable'!CK"&PDF!$AH112)="","16-week-term",INDIRECT("'Faculty Searchable'!CK"&PDF!$AH112))),5),"") -> 2-SUM | M112: =IFERROR(MID(IF(A112="","",IF(INDIRECT("'Faculty Searchable'!CK"&PDF!$AH112)="","16-week-term",INDIRECT("'Faculty Searchable'!CK"&PDF!$AH112))),7,20),"") -> Jun 13 for 8 weeks | N112: =IF(B112="","",_xlfn.XLOOKUP(B112,Tracking!O:O,Tracking!A:A,"")) -> 0 | O112: =IF(PDF!AH112="","",IFERROR(INDIRECT("'Faculty Searchable'!FN"&PDF!$AH112),ROW())) -> 
A113: =IF(PDF!AH113="","",IFERROR(IF(PDF!A113="","",INDIRECT("'Faculty Searchable'!H"&PDF!AH113)&": "&LEFT(INDIRECT("'Faculty Searchable'!BA"&PDF!AH113),30)),"")) -> CHEM G130: Prep for General Chemistry | B113: =IFERROR(IF(A113="","",INDIRECT("'Faculty Searchable'!I"&PDF!$AH113)),"") -> 10534 | C113: =IFERROR(IF(B113="","",INDIRECT("'Faculty Searchable'!BB"&PDF!$AH113)),"") -> 4 | D113: =IFERROR(IF(A113="","",INDIRECT("'Faculty Searchable'!AE"&PDF!$AH113)),"") -> 8:50am - 10:55am | E113: =IFERROR(IF(A113="","",IF(D113="Online","",SUBSTITUTE(INDIRECT("'Faculty Searchable'!AF"&PDF!$AH113),"0","--"))),"") -> MTWTh | F113: =IFERROR(IF(A113="","",INDIRECT("'Faculty Searchable'!EB"&PDF!$AH113)),"") -> Onground | G113: =IFERROR(IF(A113="","",IFERROR(INDIRECT("'Faculty Searchable'!FG"&PDF!$AH113),INDIRECT("'Faculty Searchable'!FG"&PDF!$AH113))),"") -> [Jara R A] | H113: =IFERROR(IF(A113="","",IF(TEXT(INDIRECT("'Faculty Searchable'!G"&PDF!$AH113),"##%")="%","",TEXT(INDIRECT("'Faculty Searchable'!G"&PDF!$AH113),"##%"))),"") ->  | I113: =IFERROR(IF(A113="","",IF(RIGHT(INDIRECT("'Faculty Searchable'!FO"&PDF!$AH113),5)="Major","--",RIGHT(INDIRECT("'Faculty Searchable'!FO"&PDF!$AH113),2))),"--") -> B1 | J113: =IFERROR(IF(A113="","",RIGHT(INDIRECT("'Faculty Searchable'!FP"&PDF!$AH113),2)),"") -> 5A | K113: =IFERROR(IF(A113="","",IFERROR(VLOOKUP(B113,'Student Searchable'!A:B,2,FALSE),"")),"") ->  | L113: =IFERROR(LEFT(IF(A113="","",IF(INDIRECT("'Faculty Searchable'!CK"&PDF!$AH113)="","16-week-term",INDIRECT("'Faculty Searchable'!CK"&PDF!$AH113))),5),"") -> 2-SUM | M113: =IFERROR(MID(IF(A113="","",IF(INDIRECT("'Faculty Searchable'!CK"&PDF!$AH113)="","16-week-term",INDIRECT("'Faculty Searchable'!CK"&PDF!$AH113))),7,20),"") -> Jun 13 for 8 weeks | N113: =IF(B113="","",_xlfn.XLOOKUP(B113,Tracking!O:O,Tracking!A:A,"")) -> 0 | O113: =IF(PDF!AH113="","",IFERROR(INDIRECT("'Faculty Searchable'!FN"&PDF!$AH113),ROW())) -> 
A114: =IF(PDF!AH114="","",IFERROR(IF(PDF!A114="","",INDIRECT("'Faculty Searchable'!H"&PDF!AH114)&": "&LEFT(INDIRECT("'Faculty Searchable'!BA"&PDF!AH114),30)),"")) -> CHEM G180: General Chemistry A | B114: =IFERROR(IF(A114="","",INDIRECT("'Faculty Searchable'!I"&PDF!$AH114)),"") -> 10484 | C114: =IFERROR(IF(B114="","",INDIRECT("'Faculty Searchable'!BB"&PDF!$AH114)),"") -> 5 | D114: =IFERROR(IF(A114="","",INDIRECT("'Faculty Searchable'!AE"&PDF!$AH114)),"") -> 7:55am - 11:05am | E114: =IFERROR(IF(A114="","",IF(D114="Online","",SUBSTITUTE(INDIRECT("'Faculty Searchable'!AF"&PDF!$AH114),"0","--"))),"") -> MTWTh | F114: =IFERROR(IF(A114="","",INDIRECT("'Faculty Searchable'!EB"&PDF!$AH114)),"") -> Onground | G114: =IFERROR(IF(A114="","",IFERROR(INDIRECT("'Faculty Searchable'!FG"&PDF!$AH114),INDIRECT("'Faculty Searchable'!FG"&PDF!$AH114))),"") -> [Almy J B] | H114: =IFERROR(IF(A114="","",IF(TEXT(INDIRECT("'Faculty Searchable'!G"&PDF!$AH114),"##%")="%","",TEXT(INDIRECT("'Faculty Searchable'!G"&PDF!$AH114),"##%"))),"") ->  | I114: =IFERROR(IF(A114="","",IF(RIGHT(INDIRECT("'Faculty Searchable'!FO"&PDF!$AH114),5)="Major","--",RIGHT(INDIRECT("'Faculty Searchable'!FO"&PDF!$AH114),2))),"--") -> B1 | J114: =IFERROR(IF(A114="","",RIGHT(INDIRECT("'Faculty Searchable'!FP"&PDF!$AH114),2)),"") -> 5A | K114: =IFERROR(IF(A114="","",IFERROR(VLOOKUP(B114,'Student Searchable'!A:B,2,FALSE),"")),"") ->  | L114: =IFERROR(LEFT(IF(A114="","",IF(INDIRECT("'Faculty Searchable'!CK"&PDF!$AH114)="","16-week-term",INDIRECT("'Faculty Searchable'!CK"&PDF!$AH114))),5),"") -> 2-SUM | M114: =IFERROR(MID(IF(A114="","",IF(INDIRECT("'Faculty Searchable'!CK"&PDF!$AH114)="","16-week-term",INDIRECT("'Faculty Searchable'!CK"&PDF!$AH114))),7,20),"") -> Jun 13 for 8 weeks | N114: =IF(B114="","",_xlfn.XLOOKUP(B114,Tracking!O:O,Tracking!A:A,"")) -> 0 | O114: =IF(PDF!AH114="","",IFERROR(INDIRECT("'Faculty Searchable'!FN"&PDF!$AH114),ROW())) -> 
A115: =IF(PDF!AH115="","",IFERROR(IF(PDF!A115="","",INDIRECT("'Faculty Searchable'!H"&PDF!AH115)&": "&LEFT(INDIRECT("'Faculty Searchable'!BA"&PDF!AH115),30)),"")) -> CHEM G180: General Chemistry A | B115: =IFERROR(IF(A115="","",INDIRECT("'Faculty Searchable'!I"&PDF!$AH115)),"") -> 11478 | C115: =IFERROR(IF(B115="","",INDIRECT("'Faculty Searchable'!BB"&PDF!$AH115)),"") -> 5 | D115: =IFERROR(IF(A115="","",INDIRECT("'Faculty Searchable'!AE"&PDF!$AH115)),"") -> 11:15am - 1:20pm | E115: =IFERROR(IF(A115="","",IF(D115="Online","",SUBSTITUTE(INDIRECT("'Faculty Searchable'!AF"&PDF!$AH115),"0","--"))),"") -> MTWTh | F115: =IFERROR(IF(A115="","",INDIRECT("'Faculty Searchable'!EB"&PDF!$AH115)),"") -> Onground | G115: =IFERROR(IF(A115="","",IFERROR(INDIRECT("'Faculty Searchable'!FG"&PDF!$AH115),INDIRECT("'Faculty Searchable'!FG"&PDF!$AH115))),"") -> [Almy J B] | H115: =IFERROR(IF(A115="","",IF(TEXT(INDIRECT("'Faculty Searchable'!G"&PDF!$AH115),"##%")="%","",TEXT(INDIRECT("'Faculty Searchable'!G"&PDF!$AH115),"##%"))),"") ->  | I115: =IFERROR(IF(A115="","",IF(RIGHT(INDIRECT("'Faculty Searchable'!FO"&PDF!$AH115),5)="Major","--",RIGHT(INDIRECT("'Faculty Searchable'!FO"&PDF!$AH115),2))),"--") -> B1 | J115: =IFERROR(IF(A115="","",RIGHT(INDIRECT("'Faculty Searchable'!FP"&PDF!$AH115),2)),"") -> 5A | K115: =IFERROR(IF(A115="","",IFERROR(VLOOKUP(B115,'Student Searchable'!A:B,2,FALSE),"")),"") ->  | L115: =IFERROR(LEFT(IF(A115="","",IF(INDIRECT("'Faculty Searchable'!CK"&PDF!$AH115)="","16-week-term",INDIRECT("'Faculty Searchable'!CK"&PDF!$AH115))),5),"") -> 2-SUM | M115: =IFERROR(MID(IF(A115="","",IF(INDIRECT("'Faculty Searchable'!CK"&PDF!$AH115)="","16-week-term",INDIRECT("'Faculty Searchable'!CK"&PDF!$AH115))),7,20),"") -> Jun 13 for 8 weeks | N115: =IF(B115="","",_xlfn.XLOOKUP(B115,Tracking!O:O,Tracking!A:A,"")) -> 0 | O115: =IF(PDF!AH115="","",IFERROR(INDIRECT("'Faculty Searchable'!FN"&PDF!$AH115),ROW())) -> 
A116: =IF(PDF!AH116="","",IFERROR(IF(PDF!A116="","",INDIRECT("'Faculty Searchable'!H"&PDF!AH116)&": "&LEFT(INDIRECT("'Faculty Searchable'!BA"&PDF!AH116),30)),"")) -> CHEM G185: General Chemistry B | B116: =IFERROR(IF(A116="","",INDIRECT("'Faculty Searchable'!I"&PDF!$AH116)),"") -> 10487 | C116: =IFERROR(IF(B116="","",INDIRECT("'Faculty Searchable'!BB"&PDF!$AH116)),"") -> 5 | D116: =IFERROR(IF(A116="","",INDIRECT("'Faculty Searchable'!AE"&PDF!$AH116)),"") -> 7:55am - 11:05am | E116: =IFERROR(IF(A116="","",IF(D116="Online","",SUBSTITUTE(INDIRECT("'Faculty Searchable'!AF"&PDF!$AH116),"0","--"))),"") -> MTWTh | F116: =IFERROR(IF(A116="","",INDIRECT("'Faculty Searchable'!EB"&PDF!$AH116)),"") -> Onground | G116: =IFERROR(IF(A116="","",IFERROR(INDIRECT("'Faculty Searchable'!FG"&PDF!$AH116),INDIRECT("'Faculty Searchable'!FG"&PDF!$AH116))),"") -> [Carlson M K] | H116: =IFERROR(IF(A116="","",IF(TEXT(INDIRECT("'Faculty Searchable'!G"&PDF!$AH116),"##%")="%","",TEXT(INDIRECT("'Faculty Searchable'!G"&PDF!$AH116),"##%"))),"") ->  | I116: =IFERROR(IF(A116="","",IF(RIGHT(INDIRECT("'Faculty Searchable'!FO"&PDF!$AH116),5)="Major","--",RIGHT(INDIRECT("'Faculty Searchable'!FO"&PDF!$AH116),2))),"--") -> B1 | J116: =IFERROR(IF(A116="","",RIGHT(INDIRECT("'Faculty Searchable'!FP"&PDF!$AH116),2)),"") -> 5A | K116: =IFERROR(IF(A116="","",IFERROR(VLOOKUP(B116,'Student Searchable'!A:B,2,FALSE),"")),"") ->  | L116: =IFERROR(LEFT(IF(A116="","",IF(INDIRECT("'Faculty Searchable'!CK"&PDF!$AH116)="","16-week-term",INDIRECT("'Faculty Searchable'!CK"&PDF!$AH116))),5),"") -> 2-SUM | M116: =IFERROR(MID(IF(A116="","",IF(INDIRECT("'Faculty Searchable'!CK"&PDF!$AH116)="","16-week-term",INDIRECT("'Faculty Searchable'!CK"&PDF!$AH116))),7,20),"") -> Jun 13 for 8 weeks | N116: =IF(B116="","",_xlfn.XLOOKUP(B116,Tracking!O:O,Tracking!A:A,"")) -> 0 | O116: =IF(PDF!AH116="","",IFERROR(INDIRECT("'Faculty Searchable'!FN"&PDF!$AH116),ROW())) -> Prereq CHEM G180
A117: =IF(PDF!AH117="","",IFERROR(IF(PDF!A117="","",INDIRECT("'Faculty Searchable'!H"&PDF!AH117)&": "&LEFT(INDIRECT("'Faculty Searchable'!BA"&PDF!AH117),30)),"")) -> CHEM G185: General Chemistry B | B117: =IFERROR(IF(A117="","",INDIRECT("'Faculty Searchable'!I"&PDF!$AH117)),"") -> 11479 | C117: =IFERROR(IF(B117="","",INDIRECT("'Faculty Searchable'!BB"&PDF!$AH117)),"") -> 5 | D117: =IFERROR(IF(A117="","",INDIRECT("'Faculty Searchable'!AE"&PDF!$AH117)),"") -> 11:55am - 1:20pm | E117: =IFERROR(IF(A117="","",IF(D117="Online","",SUBSTITUTE(INDIRECT("'Faculty Searchable'!AF"&PDF!$AH117),"0","--"))),"") -> MTWTh | F117: =IFERROR(IF(A117="","",INDIRECT("'Faculty Searchable'!EB"&PDF!$AH117)),"") -> Onground | G117: =IFERROR(IF(A117="","",IFERROR(INDIRECT("'Faculty Searchable'!FG"&PDF!$AH117),INDIRECT("'Faculty Searchable'!FG"&PDF!$AH117))),"") -> [Carlson M K] | H117: =IFERROR(IF(A117="","",IF(TEXT(INDIRECT("'Faculty Searchable'!G"&PDF!$AH117),"##%")="%","",TEXT(INDIRECT("'Faculty Searchable'!G"&PDF!$AH117),"##%"))),"") ->  | I117: =IFERROR(IF(A117="","",IF(RIGHT(INDIRECT("'Faculty Searchable'!FO"&PDF!$AH117),5)="Major","--",RIGHT(INDIRECT("'Faculty Searchable'!FO"&PDF!$AH117),2))),"--") -> B1 | J117: =IFERROR(IF(A117="","",RIGHT(INDIRECT("'Faculty Searchable'!FP"&PDF!$AH117),2)),"") -> 5A | K117: =IFERROR(IF(A117="","",IFERROR(VLOOKUP(B117,'Student Searchable'!A:B,2,FALSE),"")),"") ->  | L117: =IFERROR(LEFT(IF(A117="","",IF(INDIRECT("'Faculty Searchable'!CK"&PDF!$AH117)="","16-week-term",INDIRECT("'Faculty Searchable'!CK"&PDF!$AH117))),5),"") -> 2-SUM | M117: =IFERROR(MID(IF(A117="","",IF(INDIRECT("'Faculty Searchable'!CK"&PDF!$AH117)="","16-week-term",INDIRECT("'Faculty Searchable'!CK"&PDF!$AH117))),7,20),"") -> Jun 13 for 8 weeks | N117: =IF(B117="","",_xlfn.XLOOKUP(B117,Tracking!O:O,Tracking!A:A,"")) -> 0 | O117: =IF(PDF!AH117="","",IFERROR(INDIRECT("'Faculty Searchable'!FN"&PDF!$AH117),ROW())) -> Prereq CHEM G180
A118: =IF(PDF!AH118="","",IFERROR(IF(PDF!A118="","",INDIRECT("'Faculty Searchable'!H"&PDF!AH118)&": "&LEFT(INDIRECT("'Faculty Searchable'!BA"&PDF!AH118),30)),"")) -> CJ G064: Police Academy Reg Basic Cours | B118: =IFERROR(IF(A118="","",INDIRECT("'Faculty Searchable'!I"&PDF!$AH118)),"") -> 11672 | C118: =IFERROR(IF(B118="","",INDIRECT("'Faculty Searchable'!BB"&PDF!$AH118)),"") -> 33 | D118: =IFERROR(IF(A118="","",INDIRECT("'Faculty Searchable'!AE"&PDF!$AH118)),"") -> - | E118: =IFERROR(IF(A118="","",IF(D118="Online","",SUBSTITUTE(INDIRECT("'Faculty Searchable'!AF"&PDF!$AH118),"0","--"))),"") ->  | F118: =IFERROR(IF(A118="","",INDIRECT("'Faculty Searchable'!EB"&PDF!$AH118)),"") -> Onground | G118: =IFERROR(IF(A118="","",IFERROR(INDIRECT("'Faculty Searchable'!FG"&PDF!$AH118),INDIRECT("'Faculty Searchable'!FG"&PDF!$AH118))),"") -> [Wolfe J P] | H118: =IFERROR(IF(A118="","",IF(TEXT(INDIRECT("'Faculty Searchable'!G"&PDF!$AH118),"##%")="%","",TEXT(INDIRECT("'Faculty Searchable'!G"&PDF!$AH118),"##%"))),"") ->  | I118: =IFERROR(IF(A118="","",IF(RIGHT(INDIRECT("'Faculty Searchable'!FO"&PDF!$AH118),5)="Major","--",RIGHT(INDIRECT("'Faculty Searchable'!FO"&PDF!$AH118),2))),"--") -> -- | J118: =IFERROR(IF(A118="","",RIGHT(INDIRECT("'Faculty Searchable'!FP"&PDF!$AH118),2)),"") ->  | K118: =IFERROR(IF(A118="","",IFERROR(VLOOKUP(B118,'Student Searchable'!A:B,2,FALSE),"")),"") ->  | L118: =IFERROR(LEFT(IF(A118="","",IF(INDIRECT("'Faculty Searchable'!CK"&PDF!$AH118)="","16-week-term",INDIRECT("'Faculty Searchable'!CK"&PDF!$AH118))),5),"") -> 2-SUM | M118: =IFERROR(MID(IF(A118="","",IF(INDIRECT("'Faculty Searchable'!CK"&PDF!$AH118)="","16-week-term",INDIRECT("'Faculty Searchable'!CK"&PDF!$AH118))),7,20),"") -> Jul 2 for 24 weeks | N118: =IF(B118="","",_xlfn.XLOOKUP(B118,Tracking!O:O,Tracking!A:A,"")) -> 0 | O118: =IF(PDF!AH118="","",IFERROR(INDIRECT("'Faculty Searchable'!FN"&PDF!$AH118),ROW())) -> Prereq CJ G054
A119: =IF(PDF!AH119="","",IFERROR(IF(PDF!A119="","",INDIRECT("'Faculty Searchable'!H"&PDF!AH119)&": "&LEFT(INDIRECT("'Faculty Searchable'!BA"&PDF!AH119),30)),"")) -> CJ G079: Public Safe Dispatch Basic Ext | B119: =IFERROR(IF(A119="","",INDIRECT("'Faculty Searchable'!I"&PDF!$AH119)),"") -> 10548 | C119: =IFERROR(IF(B119="","",INDIRECT("'Faculty Searchable'!BB"&PDF!$AH119)),"") -> 6.5 | D119: =IFERROR(IF(A119="","",INDIRECT("'Faculty Searchable'!AE"&PDF!$AH119)),"") -> 6:00pm - 9:20pm | E119: =IFERROR(IF(A119="","",IF(D119="Online","",SUBSTITUTE(INDIRECT("'Faculty Searchable'!AF"&PDF!$AH119),"0","--"))),"") -> MWTh | F119: =IFERROR(IF(A119="","",INDIRECT("'Faculty Searchable'!EB"&PDF!$AH119)),"") -> LiveOnline | G119: =IFERROR(IF(A119="","",IFERROR(INDIRECT("'Faculty Searchable'!FG"&PDF!$AH119),INDIRECT("'Faculty Searchable'!FG"&PDF!$AH119))),"") -> [Wheatley D L] | H119: =IFERROR(IF(A119="","",IF(TEXT(INDIRECT("'Faculty Searchable'!G"&PDF!$AH119),"##%")="%","",TEXT(INDIRECT("'Faculty Searchable'!G"&PDF!$AH119),"##%"))),"") ->  | I119: =IFERROR(IF(A119="","",IF(RIGHT(INDIRECT("'Faculty Searchable'!FO"&PDF!$AH119),5)="Major","--",RIGHT(INDIRECT("'Faculty Searchable'!FO"&PDF!$AH119),2))),"--") -> -- | J119: =IFERROR(IF(A119="","",RIGHT(INDIRECT("'Faculty Searchable'!FP"&PDF!$AH119),2)),"") ->  | K119: =IFERROR(IF(A119="","",IFERROR(VLOOKUP(B119,'Student Searchable'!A:B,2,FALSE),"")),"") ->  | L119: =IFERROR(LEFT(IF(A119="","",IF(INDIRECT("'Faculty Searchable'!CK"&PDF!$AH119)="","16-week-term",INDIRECT("'Faculty Searchable'!CK"&PDF!$AH119))),5),"") -> 2-SUM | M119: =IFERROR(MID(IF(A119="","",IF(INDIRECT("'Faculty Searchable'!CK"&PDF!$AH119)="","16-week-term",INDIRECT("'Faculty Searchable'!CK"&PDF!$AH119))),7,20),"") -> Jun 13 for 9 weeks | N119: =IF(B119="","",_xlfn.XLOOKUP(B119,Tracking!O:O,Tracking!A:A,"")) -> 0 | O119: =IF(PDF!AH119="","",IFERROR(INDIRECT("'Faculty Searchable'!FN"&PDF!$AH119),ROW())) -> 
A120: =IF(PDF!AH120="","",IFERROR(IF(PDF!A120="","",INDIRECT("'Faculty Searchable'!H"&PDF!AH120)&": "&LEFT(INDIRECT("'Faculty Searchable'!BA"&PDF!AH120),30)),"")) -> CJ G092: SWAT, Special Weapon, Tactics | B120: =IFERROR(IF(A120="","",INDIRECT("'Faculty Searchable'!I"&PDF!$AH120)),"") -> 10602 | C120: =IFERROR(IF(B120="","",INDIRECT("'Faculty Searchable'!BB"&PDF!$AH120)),"") -> 4 | D120: =IFERROR(IF(A120="","",INDIRECT("'Faculty Searchable'!AE"&PDF!$AH120)),"") -> - | E120: =IFERROR(IF(A120="","",IF(D120="Online","",SUBSTITUTE(INDIRECT("'Faculty Searchable'!AF"&PDF!$AH120),"0","--"))),"") ->  | F120: =IFERROR(IF(A120="","",INDIRECT("'Faculty Searchable'!EB"&PDF!$AH120)),"") ->  | G120: =IFERROR(IF(A120="","",IFERROR(INDIRECT("'Faculty Searchable'!FG"&PDF!$AH120),INDIRECT("'Faculty Searchable'!FG"&PDF!$AH120))),"") -> [STAFF] | H120: =IFERROR(IF(A120="","",IF(TEXT(INDIRECT("'Faculty Searchable'!G"&PDF!$AH120),"##%")="%","",TEXT(INDIRECT("'Faculty Searchable'!G"&PDF!$AH120),"##%"))),"") ->  | I120: =IFERROR(IF(A120="","",IF(RIGHT(INDIRECT("'Faculty Searchable'!FO"&PDF!$AH120),5)="Major","--",RIGHT(INDIRECT("'Faculty Searchable'!FO"&PDF!$AH120),2))),"--") -> -- | J120: =IFERROR(IF(A120="","",RIGHT(INDIRECT("'Faculty Searchable'!FP"&PDF!$AH120),2)),"") ->  | K120: =IFERROR(IF(A120="","",IFERROR(VLOOKUP(B120,'Student Searchable'!A:B,2,FALSE),"")),"") ->  | L120: =IFERROR(LEFT(IF(A120="","",IF(INDIRECT("'Faculty Searchable'!CK"&PDF!$AH120)="","16-week-term",INDIRECT("'Faculty Searchable'!CK"&PDF!$AH120))),5),"") -> 2-SUM | M120: =IFERROR(MID(IF(A120="","",IF(INDIRECT("'Faculty Searchable'!CK"&PDF!$AH120)="","16-week-term",INDIRECT("'Faculty Searchable'!CK"&PDF!$AH120))),7,20),"") -> Jun 13 for 10 weeks | N120: =IF(B120="","",_xlfn.XLOOKUP(B120,Tracking!O:O,Tracking!A:A,"")) -> 0 | O120: =IF(PDF!AH120="","",IFERROR(INDIRECT("'Faculty Searchable'!FN"&PDF!$AH120),ROW())) -> 
A121: =IF(PDF!AH121="","",IFERROR(IF(PDF!A121="","",INDIRECT("'Faculty Searchable'!H"&PDF!AH121)&": "&LEFT(INDIRECT("'Faculty Searchable'!BA"&PDF!AH121),30)),"")) -> CJ G137: Comm Rela/Special Issues in CJ | B121: =IFERROR(IF(A121="","",INDIRECT("'Faculty Searchable'!I"&PDF!$AH121)),"") -> 11853 | C121: =IFERROR(IF(B121="","",INDIRECT("'Faculty Searchable'!BB"&PDF!$AH121)),"") -> 3 | D121: =IFERROR(IF(A121="","",INDIRECT("'Faculty Searchable'!AE"&PDF!$AH121)),"") -> 9 hours arranged | E121: =IFERROR(IF(A121="","",IF(D121="Online","",SUBSTITUTE(INDIRECT("'Faculty Searchable'!AF"&PDF!$AH121),"0","--"))),"") ->  | F121: =IFERROR(IF(A121="","",INDIRECT("'Faculty Searchable'!EB"&PDF!$AH121)),"") -> Online | G121: =IFERROR(IF(A121="","",IFERROR(INDIRECT("'Faculty Searchable'!FG"&PDF!$AH121),INDIRECT("'Faculty Searchable'!FG"&PDF!$AH121))),"") -> [Madrigal H G] | H121: =IFERROR(IF(A121="","",IF(TEXT(INDIRECT("'Faculty Searchable'!G"&PDF!$AH121),"##%")="%","",TEXT(INDIRECT("'Faculty Searchable'!G"&PDF!$AH121),"##%"))),"") ->  | I121: =IFERROR(IF(A121="","",IF(RIGHT(INDIRECT("'Faculty Searchable'!FO"&PDF!$AH121),5)="Major","--",RIGHT(INDIRECT("'Faculty Searchable'!FO"&PDF!$AH121),2))),"--") -> -- | J121: =IFERROR(IF(A121="","",RIGHT(INDIRECT("'Faculty Searchable'!FP"&PDF!$AH121),2)),"") ->  | K121: =IFERROR(IF(A121="","",IFERROR(VLOOKUP(B121,'Student Searchable'!A:B,2,FALSE),"")),"") ->  | L121: =IFERROR(LEFT(IF(A121="","",IF(INDIRECT("'Faculty Searchable'!CK"&PDF!$AH121)="","16-week-term",INDIRECT("'Faculty Searchable'!CK"&PDF!$AH121))),5),"") -> 2-SUM | M121: =IFERROR(MID(IF(A121="","",IF(INDIRECT("'Faculty Searchable'!CK"&PDF!$AH121)="","16-week-term",INDIRECT("'Faculty Searchable'!CK"&PDF!$AH121))),7,20),"") -> Jun 13 for 6 weeks | N121: =IF(B121="","",_xlfn.XLOOKUP(B121,Tracking!O:O,Tracking!A:A,"")) -> 0 | O121: =IF(PDF!AH121="","",IFERROR(INDIRECT("'Faculty Searchable'!FN"&PDF!$AH121),ROW())) -> 
A122: =IF(PDF!AH122="","",IFERROR(IF(PDF!A122="","",INDIRECT("'Faculty Searchable'!H"&PDF!AH122)&": "&LEFT(INDIRECT("'Faculty Searchable'!BA"&PDF!AH122),30)),"")) -> CJ G140: Intro to Criminal Justice | B122: =IFERROR(IF(A122="","",INDIRECT("'Faculty Searchable'!I"&PDF!$AH122)),"") -> 11854 | C122: =IFERROR(IF(B122="","",INDIRECT("'Faculty Searchable'!BB"&PDF!$AH122)),"") -> 3 | D122: =IFERROR(IF(A122="","",INDIRECT("'Faculty Searchable'!AE"&PDF!$AH122)),"") -> 9 hours arranged | E122: =IFERROR(IF(A122="","",IF(D122="Online","",SUBSTITUTE(INDIRECT("'Faculty Searchable'!AF"&PDF!$AH122),"0","--"))),"") ->  | F122: =IFERROR(IF(A122="","",INDIRECT("'Faculty Searchable'!EB"&PDF!$AH122)),"") -> Online | G122: =IFERROR(IF(A122="","",IFERROR(INDIRECT("'Faculty Searchable'!FG"&PDF!$AH122),INDIRECT("'Faculty Searchable'!FG"&PDF!$AH122))),"") -> [Quiros V R] | H122: =IFERROR(IF(A122="","",IF(TEXT(INDIRECT("'Faculty Searchable'!G"&PDF!$AH122),"##%")="%","",TEXT(INDIRECT("'Faculty Searchable'!G"&PDF!$AH122),"##%"))),"") ->  | I122: =IFERROR(IF(A122="","",IF(RIGHT(INDIRECT("'Faculty Searchable'!FO"&PDF!$AH122),5)="Major","--",RIGHT(INDIRECT("'Faculty Searchable'!FO"&PDF!$AH122),2))),"--") -> D0 | J122: =IFERROR(IF(A122="","",RIGHT(INDIRECT("'Faculty Searchable'!FP"&PDF!$AH122),2)),"") -> 4J | K122: =IFERROR(IF(A122="","",IFERROR(VLOOKUP(B122,'Student Searchable'!A:B,2,FALSE),"")),"") ->  | L122: =IFERROR(LEFT(IF(A122="","",IF(INDIRECT("'Faculty Searchable'!CK"&PDF!$AH122)="","16-week-term",INDIRECT("'Faculty Searchable'!CK"&PDF!$AH122))),5),"") -> 2-SUM | M122: =IFERROR(MID(IF(A122="","",IF(INDIRECT("'Faculty Searchable'!CK"&PDF!$AH122)="","16-week-term",INDIRECT("'Faculty Searchable'!CK"&PDF!$AH122))),7,20),"") -> Jun 13 for 6 weeks | N122: =IF(B122="","",_xlfn.XLOOKUP(B122,Tracking!O:O,Tracking!A:A,"")) -> 0 | O122: =IF(PDF!AH122="","",IFERROR(INDIRECT("'Faculty Searchable'!FN"&PDF!$AH122),ROW())) -> 
A123: =IF(PDF!AH123="","",IFERROR(IF(PDF!A123="","",INDIRECT("'Faculty Searchable'!H"&PDF!AH123)&": "&LEFT(INDIRECT("'Faculty Searchable'!BA"&PDF!AH123),30)),"")) -> CJ G172: P.C. 832 - Laws of Arrest | B123: =IFERROR(IF(A123="","",INDIRECT("'Faculty Searchable'!I"&PDF!$AH123)),"") -> 11685 | C123: =IFERROR(IF(B123="","",INDIRECT("'Faculty Searchable'!BB"&PDF!$AH123)),"") -> 2 | D123: =IFERROR(IF(A123="","",INDIRECT("'Faculty Searchable'!AE"&PDF!$AH123)),"") -> 7:00am - 1:10pm | E123: =IFERROR(IF(A123="","",IF(D123="Online","",SUBSTITUTE(INDIRECT("'Faculty Searchable'!AF"&PDF!$AH123),"0","--"))),"") -> MTWThF | F123: =IFERROR(IF(A123="","",INDIRECT("'Faculty Searchable'!EB"&PDF!$AH123)),"") -> Onground | G123: =IFERROR(IF(A123="","",IFERROR(INDIRECT("'Faculty Searchable'!FG"&PDF!$AH123),INDIRECT("'Faculty Searchable'!FG"&PDF!$AH123))),"") -> [Smith R A] | H123: =IFERROR(IF(A123="","",IF(TEXT(INDIRECT("'Faculty Searchable'!G"&PDF!$AH123),"##%")="%","",TEXT(INDIRECT("'Faculty Searchable'!G"&PDF!$AH123),"##%"))),"") ->  | I123: =IFERROR(IF(A123="","",IF(RIGHT(INDIRECT("'Faculty Searchable'!FO"&PDF!$AH123),5)="Major","--",RIGHT(INDIRECT("'Faculty Searchable'!FO"&PDF!$AH123),2))),"--") -> -- | J123: =IFERROR(IF(A123="","",RIGHT(INDIRECT("'Faculty Searchable'!FP"&PDF!$AH123),2)),"") ->  | K123: =IFERROR(IF(A123="","",IFERROR(VLOOKUP(B123,'Student Searchable'!A:B,2,FALSE),"")),"") ->  | L123: =IFERROR(LEFT(IF(A123="","",IF(INDIRECT("'Faculty Searchable'!CK"&PDF!$AH123)="","16-week-term",INDIRECT("'Faculty Searchable'!CK"&PDF!$AH123))),5),"") -> 2-SUM | M123: =IFERROR(MID(IF(A123="","",IF(INDIRECT("'Faculty Searchable'!CK"&PDF!$AH123)="","16-week-term",INDIRECT("'Faculty Searchable'!CK"&PDF!$AH123))),7,20),"") -> Jun 20 for 1 weeks | N123: =IF(B123="","",_xlfn.XLOOKUP(B123,Tracking!O:O,Tracking!A:A,"")) -> 0 | O123: =IF(PDF!AH123="","",IFERROR(INDIRECT("'Faculty Searchable'!FN"&PDF!$AH123),ROW())) -> 
A124: =IF(PDF!AH124="","",IFERROR(IF(PDF!A124="","",INDIRECT("'Faculty Searchable'!H"&PDF!AH124)&": "&LEFT(INDIRECT("'Faculty Searchable'!BA"&PDF!AH124),30)),"")) -> CJ G172: P.C. 832 - Laws of Arrest | B124: =IFERROR(IF(A124="","",INDIRECT("'Faculty Searchable'!I"&PDF!$AH124)),"") -> 11850 | C124: =IFERROR(IF(B124="","",INDIRECT("'Faculty Searchable'!BB"&PDF!$AH124)),"") -> 2 | D124: =IFERROR(IF(A124="","",INDIRECT("'Faculty Searchable'!AE"&PDF!$AH124)),"") -> 7:00am - 1:10pm | E124: =IFERROR(IF(A124="","",IF(D124="Online","",SUBSTITUTE(INDIRECT("'Faculty Searchable'!AF"&PDF!$AH124),"0","--"))),"") -> MTWThF | F124: =IFERROR(IF(A124="","",INDIRECT("'Faculty Searchable'!EB"&PDF!$AH124)),"") -> Onground | G124: =IFERROR(IF(A124="","",IFERROR(INDIRECT("'Faculty Searchable'!FG"&PDF!$AH124),INDIRECT("'Faculty Searchable'!FG"&PDF!$AH124))),"") -> [Smith R A] | H124: =IFERROR(IF(A124="","",IF(TEXT(INDIRECT("'Faculty Searchable'!G"&PDF!$AH124),"##%")="%","",TEXT(INDIRECT("'Faculty Searchable'!G"&PDF!$AH124),"##%"))),"") ->  | I124: =IFERROR(IF(A124="","",IF(RIGHT(INDIRECT("'Faculty Searchable'!FO"&PDF!$AH124),5)="Major","--",RIGHT(INDIRECT("'Faculty Searchable'!FO"&PDF!$AH124),2))),"--") -> -- | J124: =IFERROR(IF(A124="","",RIGHT(INDIRECT("'Faculty Searchable'!FP"&PDF!$AH124),2)),"") ->  | K124: =IFERROR(IF(A124="","",IFERROR(VLOOKUP(B124,'Student Searchable'!A:B,2,FALSE),"")),"") ->  | L124: =IFERROR(LEFT(IF(A124="","",IF(INDIRECT("'Faculty Searchable'!CK"&PDF!$AH124)="","16-week-term",INDIRECT("'Faculty Searchable'!CK"&PDF!$AH124))),5),"") -> 2-SUM | M124: =IFERROR(MID(IF(A124="","",IF(INDIRECT("'Faculty Searchable'!CK"&PDF!$AH124)="","16-week-term",INDIRECT("'Faculty Searchable'!CK"&PDF!$AH124))),7,20),"") -> Jul 25 for 1 weeks | N124: =IF(B124="","",_xlfn.XLOOKUP(B124,Tracking!O:O,Tracking!A:A,"")) -> 0 | O124: =IF(PDF!AH124="","",IFERROR(INDIRECT("'Faculty Searchable'!FN"&PDF!$AH124),ROW())) -> 
A125: =IF(PDF!AH125="","",IFERROR(IF(PDF!A125="","",INDIRECT("'Faculty Searchable'!H"&PDF!AH125)&": "&LEFT(INDIRECT("'Faculty Searchable'!BA"&PDF!AH125),30)),"")) -> CJ G172: P.C. 832 - Laws of Arrest | B125: =IFERROR(IF(A125="","",INDIRECT("'Faculty Searchable'!I"&PDF!$AH125)),"") -> 11860 | C125: =IFERROR(IF(B125="","",INDIRECT("'Faculty Searchable'!BB"&PDF!$AH125)),"") -> 2 | D125: =IFERROR(IF(A125="","",INDIRECT("'Faculty Searchable'!AE"&PDF!$AH125)),"") -> 7:00am - 1:10pm | E125: =IFERROR(IF(A125="","",IF(D125="Online","",SUBSTITUTE(INDIRECT("'Faculty Searchable'!AF"&PDF!$AH125),"0","--"))),"") -> MTWThF | F125: =IFERROR(IF(A125="","",INDIRECT("'Faculty Searchable'!EB"&PDF!$AH125)),"") -> Onground | G125: =IFERROR(IF(A125="","",IFERROR(INDIRECT("'Faculty Searchable'!FG"&PDF!$AH125),INDIRECT("'Faculty Searchable'!FG"&PDF!$AH125))),"") -> [Smith R A] | H125: =IFERROR(IF(A125="","",IF(TEXT(INDIRECT("'Faculty Searchable'!G"&PDF!$AH125),"##%")="%","",TEXT(INDIRECT("'Faculty Searchable'!G"&PDF!$AH125),"##%"))),"") ->  | I125: =IFERROR(IF(A125="","",IF(RIGHT(INDIRECT("'Faculty Searchable'!FO"&PDF!$AH125),5)="Major","--",RIGHT(INDIRECT("'Faculty Searchable'!FO"&PDF!$AH125),2))),"--") -> -- | J125: =IFERROR(IF(A125="","",RIGHT(INDIRECT("'Faculty Searchable'!FP"&PDF!$AH125),2)),"") ->  | K125: =IFERROR(IF(A125="","",IFERROR(VLOOKUP(B125,'Student Searchable'!A:B,2,FALSE),"")),"") ->  | L125: =IFERROR(LEFT(IF(A125="","",IF(INDIRECT("'Faculty Searchable'!CK"&PDF!$AH125)="","16-week-term",INDIRECT("'Faculty Searchable'!CK"&PDF!$AH125))),5),"") -> 3-FAL | M125: =IFERROR(MID(IF(A125="","",IF(INDIRECT("'Faculty Searchable'!CK"&PDF!$AH125)="","16-week-term",INDIRECT("'Faculty Searchable'!CK"&PDF!$AH125))),7,20),"") -> Aug 1 for 1 weeks | N125: =IF(B125="","",_xlfn.XLOOKUP(B125,Tracking!O:O,Tracking!A:A,"")) -> 0 | O125: =IF(PDF!AH125="","",IFERROR(INDIRECT("'Faculty Searchable'!FN"&PDF!$AH125),ROW())) -> 
A126: =IF(PDF!AH126="","",IFERROR(IF(PDF!A126="","",INDIRECT("'Faculty Searchable'!H"&PDF!AH126)&": "&LEFT(INDIRECT("'Faculty Searchable'!BA"&PDF!AH126),30)),"")) -> COLL G100: Becoming a Successful Student | B126: =IFERROR(IF(A126="","",INDIRECT("'Faculty Searchable'!I"&PDF!$AH126)),"") -> 11627 | C126: =IFERROR(IF(B126="","",INDIRECT("'Faculty Searchable'!BB"&PDF!$AH126)),"") -> 3 | D126: =IFERROR(IF(A126="","",INDIRECT("'Faculty Searchable'!AE"&PDF!$AH126)),"") -> 9:30am - 11:00am | E126: =IFERROR(IF(A126="","",IF(D126="Online","",SUBSTITUTE(INDIRECT("'Faculty Searchable'!AF"&PDF!$AH126),"0","--"))),"") -> T | F126: =IFERROR(IF(A126="","",INDIRECT("'Faculty Searchable'!EB"&PDF!$AH126)),"") -> LiveOnline | G126: =IFERROR(IF(A126="","",IFERROR(INDIRECT("'Faculty Searchable'!FG"&PDF!$AH126),INDIRECT("'Faculty Searchable'!FG"&PDF!$AH126))),"") -> [Thai M] | H126: =IFERROR(IF(A126="","",IF(TEXT(INDIRECT("'Faculty Searchable'!G"&PDF!$AH126),"##%")="%","",TEXT(INDIRECT("'Faculty Searchable'!G"&PDF!$AH126),"##%"))),"") ->  | I126: =IFERROR(IF(A126="","",IF(RIGHT(INDIRECT("'Faculty Searchable'!FO"&PDF!$AH126),5)="Major","--",RIGHT(INDIRECT("'Faculty Searchable'!FO"&PDF!$AH126),2))),"--") -> E1 | J126: =IFERROR(IF(A126="","",RIGHT(INDIRECT("'Faculty Searchable'!FP"&PDF!$AH126),2)),"") ->  | K126: =IFERROR(IF(A126="","",IFERROR(VLOOKUP(B126,'Student Searchable'!A:B,2,FALSE),"")),"") ->  | L126: =IFERROR(LEFT(IF(A126="","",IF(INDIRECT("'Faculty Searchable'!CK"&PDF!$AH126)="","16-week-term",INDIRECT("'Faculty Searchable'!CK"&PDF!$AH126))),5),"") -> 2-SUM | M126: =IFERROR(MID(IF(A126="","",IF(INDIRECT("'Faculty Searchable'!CK"&PDF!$AH126)="","16-week-term",INDIRECT("'Faculty Searchable'!CK"&PDF!$AH126))),7,20),"") -> Jun 27 for 8 weeks | N126: =IF(B126="","",_xlfn.XLOOKUP(B126,Tracking!O:O,Tracking!A:A,"")) -> 0 | O126: =IF(PDF!AH126="","",IFERROR(INDIRECT("'Faculty Searchable'!FN"&PDF!$AH126),ROW())) -> 
A127: =IF(PDF!AH127="","",IFERROR(IF(PDF!A127="","",INDIRECT("'Faculty Searchable'!H"&PDF!AH127)&": "&LEFT(INDIRECT("'Faculty Searchable'!BA"&PDF!AH127),30)),"")) -> COMM G100: Interpersonal Communication | B127: =IFERROR(IF(A127="","",INDIRECT("'Faculty Searchable'!I"&PDF!$AH127)),"") -> 10588 | C127: =IFERROR(IF(B127="","",INDIRECT("'Faculty Searchable'!BB"&PDF!$AH127)),"") -> 3 | D127: =IFERROR(IF(A127="","",INDIRECT("'Faculty Searchable'!AE"&PDF!$AH127)),"") -> 9 hours arranged | E127: =IFERROR(IF(A127="","",IF(D127="Online","",SUBSTITUTE(INDIRECT("'Faculty Searchable'!AF"&PDF!$AH127),"0","--"))),"") ->  | F127: =IFERROR(IF(A127="","",INDIRECT("'Faculty Searchable'!EB"&PDF!$AH127)),"") -> Online | G127: =IFERROR(IF(A127="","",IFERROR(INDIRECT("'Faculty Searchable'!FG"&PDF!$AH127),INDIRECT("'Faculty Searchable'!FG"&PDF!$AH127))),"") -> [Lervold II J D] | H127: =IFERROR(IF(A127="","",IF(TEXT(INDIRECT("'Faculty Searchable'!G"&PDF!$AH127),"##%")="%","",TEXT(INDIRECT("'Faculty Searchable'!G"&PDF!$AH127),"##%"))),"") ->  | I127: =IFERROR(IF(A127="","",IF(RIGHT(INDIRECT("'Faculty Searchable'!FO"&PDF!$AH127),5)="Major","--",RIGHT(INDIRECT("'Faculty Searchable'!FO"&PDF!$AH127),2))),"--") -> A1 | J127: =IFERROR(IF(A127="","",RIGHT(INDIRECT("'Faculty Searchable'!FP"&PDF!$AH127),2)),"") ->  | K127: =IFERROR(IF(A127="","",IFERROR(VLOOKUP(B127,'Student Searchable'!A:B,2,FALSE),"")),"") ->  | L127: =IFERROR(LEFT(IF(A127="","",IF(INDIRECT("'Faculty Searchable'!CK"&PDF!$AH127)="","16-week-term",INDIRECT("'Faculty Searchable'!CK"&PDF!$AH127))),5),"") -> 2-SUM | M127: =IFERROR(MID(IF(A127="","",IF(INDIRECT("'Faculty Searchable'!CK"&PDF!$AH127)="","16-week-term",INDIRECT("'Faculty Searchable'!CK"&PDF!$AH127))),7,20),"") -> Jun 13 for 6 weeks | N127: =IF(B127="","",_xlfn.XLOOKUP(B127,Tracking!O:O,Tracking!A:A,"")) -> 0 | O127: =IF(PDF!AH127="","",IFERROR(INDIRECT("'Faculty Searchable'!FN"&PDF!$AH127),ROW())) -> 
A128: =IF(PDF!AH128="","",IFERROR(IF(PDF!A128="","",INDIRECT("'Faculty Searchable'!H"&PDF!AH128)&": "&LEFT(INDIRECT("'Faculty Searchable'!BA"&PDF!AH128),30)),"")) -> COMM G100: Interpersonal Communication | B128: =IFERROR(IF(A128="","",INDIRECT("'Faculty Searchable'!I"&PDF!$AH128)),"") -> 10552 | C128: =IFERROR(IF(B128="","",INDIRECT("'Faculty Searchable'!BB"&PDF!$AH128)),"") -> 3 | D128: =IFERROR(IF(A128="","",INDIRECT("'Faculty Searchable'!AE"&PDF!$AH128)),"") -> 9 hours arranged | E128: =IFERROR(IF(A128="","",IF(D128="Online","",SUBSTITUTE(INDIRECT("'Faculty Searchable'!AF"&PDF!$AH128),"0","--"))),"") ->  | F128: =IFERROR(IF(A128="","",INDIRECT("'Faculty Searchable'!EB"&PDF!$AH128)),"") -> Online | G128: =IFERROR(IF(A128="","",IFERROR(INDIRECT("'Faculty Searchable'!FG"&PDF!$AH128),INDIRECT("'Faculty Searchable'!FG"&PDF!$AH128))),"") -> [Lervold II J D] | H128: =IFERROR(IF(A128="","",IF(TEXT(INDIRECT("'Faculty Searchable'!G"&PDF!$AH128),"##%")="%","",TEXT(INDIRECT("'Faculty Searchable'!G"&PDF!$AH128),"##%"))),"") ->  | I128: =IFERROR(IF(A128="","",IF(RIGHT(INDIRECT("'Faculty Searchable'!FO"&PDF!$AH128),5)="Major","--",RIGHT(INDIRECT("'Faculty Searchable'!FO"&PDF!$AH128),2))),"--") -> A1 | J128: =IFERROR(IF(A128="","",RIGHT(INDIRECT("'Faculty Searchable'!FP"&PDF!$AH128),2)),"") ->  | K128: =IFERROR(IF(A128="","",IFERROR(VLOOKUP(B128,'Student Searchable'!A:B,2,FALSE),"")),"") ->  | L128: =IFERROR(LEFT(IF(A128="","",IF(INDIRECT("'Faculty Searchable'!CK"&PDF!$AH128)="","16-week-term",INDIRECT("'Faculty Searchable'!CK"&PDF!$AH128))),5),"") -> 2-SUM | M128: =IFERROR(MID(IF(A128="","",IF(INDIRECT("'Faculty Searchable'!CK"&PDF!$AH128)="","16-week-term",INDIRECT("'Faculty Searchable'!CK"&PDF!$AH128))),7,20),"") -> Jun 13 for 6 weeks | N128: =IF(B128="","",_xlfn.XLOOKUP(B128,Tracking!O:O,Tracking!A:A,"")) -> 0 | O128: =IF(PDF!AH128="","",IFERROR(INDIRECT("'Faculty Searchable'!FN"&PDF!$AH128),ROW())) -> 
A129: =IF(PDF!AH129="","",IFERROR(IF(PDF!A129="","",INDIRECT("'Faculty Searchable'!H"&PDF!AH129)&": "&LEFT(INDIRECT("'Faculty Searchable'!BA"&PDF!AH129),30)),"")) -> COMM G100: Interpersonal Communication | B129: =IFERROR(IF(A129="","",INDIRECT("'Faculty Searchable'!I"&PDF!$AH129)),"") -> 10569 | C129: =IFERROR(IF(B129="","",INDIRECT("'Faculty Searchable'!BB"&PDF!$AH129)),"") -> 3 | D129: =IFERROR(IF(A129="","",INDIRECT("'Faculty Searchable'!AE"&PDF!$AH129)),"") -> 9 hours arranged | E129: =IFERROR(IF(A129="","",IF(D129="Online","",SUBSTITUTE(INDIRECT("'Faculty Searchable'!AF"&PDF!$AH129),"0","--"))),"") ->  | F129: =IFERROR(IF(A129="","",INDIRECT("'Faculty Searchable'!EB"&PDF!$AH129)),"") -> Online | G129: =IFERROR(IF(A129="","",IFERROR(INDIRECT("'Faculty Searchable'!FG"&PDF!$AH129),INDIRECT("'Faculty Searchable'!FG"&PDF!$AH129))),"") -> [Ruggeri-Dilel T A] | H129: =IFERROR(IF(A129="","",IF(TEXT(INDIRECT("'Faculty Searchable'!G"&PDF!$AH129),"##%")="%","",TEXT(INDIRECT("'Faculty Searchable'!G"&PDF!$AH129),"##%"))),"") ->  | I129: =IFERROR(IF(A129="","",IF(RIGHT(INDIRECT("'Faculty Searchable'!FO"&PDF!$AH129),5)="Major","--",RIGHT(INDIRECT("'Faculty Searchable'!FO"&PDF!$AH129),2))),"--") -> A1 | J129: =IFERROR(IF(A129="","",RIGHT(INDIRECT("'Faculty Searchable'!FP"&PDF!$AH129),2)),"") ->  | K129: =IFERROR(IF(A129="","",IFERROR(VLOOKUP(B129,'Student Searchable'!A:B,2,FALSE),"")),"") ->  | L129: =IFERROR(LEFT(IF(A129="","",IF(INDIRECT("'Faculty Searchable'!CK"&PDF!$AH129)="","16-week-term",INDIRECT("'Faculty Searchable'!CK"&PDF!$AH129))),5),"") -> 2-SUM | M129: =IFERROR(MID(IF(A129="","",IF(INDIRECT("'Faculty Searchable'!CK"&PDF!$AH129)="","16-week-term",INDIRECT("'Faculty Searchable'!CK"&PDF!$AH129))),7,20),"") -> Jun 27 for 6 weeks | N129: =IF(B129="","",_xlfn.XLOOKUP(B129,Tracking!O:O,Tracking!A:A,"")) -> 0 | O129: =IF(PDF!AH129="","",IFERROR(INDIRECT("'Faculty Searchable'!FN"&PDF!$AH129),ROW())) -> 
A130: =IF(PDF!AH130="","",IFERROR(IF(PDF!A130="","",INDIRECT("'Faculty Searchable'!H"&PDF!AH130)&": "&LEFT(INDIRECT("'Faculty Searchable'!BA"&PDF!AH130),30)),"")) -> COMM G100: Interpersonal Communication | B130: =IFERROR(IF(A130="","",INDIRECT("'Faculty Searchable'!I"&PDF!$AH130)),"") -> 10639 | C130: =IFERROR(IF(B130="","",INDIRECT("'Faculty Searchable'!BB"&PDF!$AH130)),"") -> 3 | D130: =IFERROR(IF(A130="","",INDIRECT("'Faculty Searchable'!AE"&PDF!$AH130)),"") -> 9 hours arranged | E130: =IFERROR(IF(A130="","",IF(D130="Online","",SUBSTITUTE(INDIRECT("'Faculty Searchable'!AF"&PDF!$AH130),"0","--"))),"") ->  | F130: =IFERROR(IF(A130="","",INDIRECT("'Faculty Searchable'!EB"&PDF!$AH130)),"") -> Online | G130: =IFERROR(IF(A130="","",IFERROR(INDIRECT("'Faculty Searchable'!FG"&PDF!$AH130),INDIRECT("'Faculty Searchable'!FG"&PDF!$AH130))),"") -> [Bruns K L] | H130: =IFERROR(IF(A130="","",IF(TEXT(INDIRECT("'Faculty Searchable'!G"&PDF!$AH130),"##%")="%","",TEXT(INDIRECT("'Faculty Searchable'!G"&PDF!$AH130),"##%"))),"") ->  | I130: =IFERROR(IF(A130="","",IF(RIGHT(INDIRECT("'Faculty Searchable'!FO"&PDF!$AH130),5)="Major","--",RIGHT(INDIRECT("'Faculty Searchable'!FO"&PDF!$AH130),2))),"--") -> A1 | J130: =IFERROR(IF(A130="","",RIGHT(INDIRECT("'Faculty Searchable'!FP"&PDF!$AH130),2)),"") ->  | K130: =IFERROR(IF(A130="","",IFERROR(VLOOKUP(B130,'Student Searchable'!A:B,2,FALSE),"")),"") ->  | L130: =IFERROR(LEFT(IF(A130="","",IF(INDIRECT("'Faculty Searchable'!CK"&PDF!$AH130)="","16-week-term",INDIRECT("'Faculty Searchable'!CK"&PDF!$AH130))),5),"") -> 2-SUM | M130: =IFERROR(MID(IF(A130="","",IF(INDIRECT("'Faculty Searchable'!CK"&PDF!$AH130)="","16-week-term",INDIRECT("'Faculty Searchable'!CK"&PDF!$AH130))),7,20),"") -> Jun 27 for 6 weeks | N130: =IF(B130="","",_xlfn.XLOOKUP(B130,Tracking!O:O,Tracking!A:A,"")) -> 0 | O130: =IF(PDF!AH130="","",IFERROR(INDIRECT("'Faculty Searchable'!FN"&PDF!$AH130),ROW())) -> 
A131: =IF(PDF!AH131="","",IFERROR(IF(PDF!A131="","",INDIRECT("'Faculty Searchable'!H"&PDF!AH131)&": "&LEFT(INDIRECT("'Faculty Searchable'!BA"&PDF!AH131),30)),"")) -> COMM G110: Public Speaking | B131: =IFERROR(IF(A131="","",INDIRECT("'Faculty Searchable'!I"&PDF!$AH131)),"") -> 10594 | C131: =IFERROR(IF(B131="","",INDIRECT("'Faculty Searchable'!BB"&PDF!$AH131)),"") -> 3 | D131: =IFERROR(IF(A131="","",INDIRECT("'Faculty Searchable'!AE"&PDF!$AH131)),"") -> 9 hours arranged | E131: =IFERROR(IF(A131="","",IF(D131="Online","",SUBSTITUTE(INDIRECT("'Faculty Searchable'!AF"&PDF!$AH131),"0","--"))),"") ->  | F131: =IFERROR(IF(A131="","",INDIRECT("'Faculty Searchable'!EB"&PDF!$AH131)),"") -> Online | G131: =IFERROR(IF(A131="","",IFERROR(INDIRECT("'Faculty Searchable'!FG"&PDF!$AH131),INDIRECT("'Faculty Searchable'!FG"&PDF!$AH131))),"") -> [Hubble B R] | H131: =IFERROR(IF(A131="","",IF(TEXT(INDIRECT("'Faculty Searchable'!G"&PDF!$AH131),"##%")="%","",TEXT(INDIRECT("'Faculty Searchable'!G"&PDF!$AH131),"##%"))),"") ->  | I131: =IFERROR(IF(A131="","",IF(RIGHT(INDIRECT("'Faculty Searchable'!FO"&PDF!$AH131),5)="Major","--",RIGHT(INDIRECT("'Faculty Searchable'!FO"&PDF!$AH131),2))),"--") -> A1 | J131: =IFERROR(IF(A131="","",RIGHT(INDIRECT("'Faculty Searchable'!FP"&PDF!$AH131),2)),"") -> 1C | K131: =IFERROR(IF(A131="","",IFERROR(VLOOKUP(B131,'Student Searchable'!A:B,2,FALSE),"")),"") ->  | L131: =IFERROR(LEFT(IF(A131="","",IF(INDIRECT("'Faculty Searchable'!CK"&PDF!$AH131)="","16-week-term",INDIRECT("'Faculty Searchable'!CK"&PDF!$AH131))),5),"") -> 2-SUM | M131: =IFERROR(MID(IF(A131="","",IF(INDIRECT("'Faculty Searchable'!CK"&PDF!$AH131)="","16-week-term",INDIRECT("'Faculty Searchable'!CK"&PDF!$AH131))),7,20),"") -> Jun 13 for 6 weeks | N131: =IF(B131="","",_xlfn.XLOOKUP(B131,Tracking!O:O,Tracking!A:A,"")) -> 0 | O131: =IF(PDF!AH131="","",IFERROR(INDIRECT("'Faculty Searchable'!FN"&PDF!$AH131),ROW())) -> 
A132: =IF(PDF!AH132="","",IFERROR(IF(PDF!A132="","",INDIRECT("'Faculty Searchable'!H"&PDF!AH132)&": "&LEFT(INDIRECT("'Faculty Searchable'!BA"&PDF!AH132),30)),"")) -> COMM G110: Public Speaking | B132: =IFERROR(IF(A132="","",INDIRECT("'Faculty Searchable'!I"&PDF!$AH132)),"") -> 10527 | C132: =IFERROR(IF(B132="","",INDIRECT("'Faculty Searchable'!BB"&PDF!$AH132)),"") -> 3 | D132: =IFERROR(IF(A132="","",INDIRECT("'Faculty Searchable'!AE"&PDF!$AH132)),"") -> 9 hours arranged | E132: =IFERROR(IF(A132="","",IF(D132="Online","",SUBSTITUTE(INDIRECT("'Faculty Searchable'!AF"&PDF!$AH132),"0","--"))),"") ->  | F132: =IFERROR(IF(A132="","",INDIRECT("'Faculty Searchable'!EB"&PDF!$AH132)),"") -> Online | G132: =IFERROR(IF(A132="","",IFERROR(INDIRECT("'Faculty Searchable'!FG"&PDF!$AH132),INDIRECT("'Faculty Searchable'!FG"&PDF!$AH132))),"") -> [Clancy K E] | H132: =IFERROR(IF(A132="","",IF(TEXT(INDIRECT("'Faculty Searchable'!G"&PDF!$AH132),"##%")="%","",TEXT(INDIRECT("'Faculty Searchable'!G"&PDF!$AH132),"##%"))),"") ->  | I132: =IFERROR(IF(A132="","",IF(RIGHT(INDIRECT("'Faculty Searchable'!FO"&PDF!$AH132),5)="Major","--",RIGHT(INDIRECT("'Faculty Searchable'!FO"&PDF!$AH132),2))),"--") -> A1 | J132: =IFERROR(IF(A132="","",RIGHT(INDIRECT("'Faculty Searchable'!FP"&PDF!$AH132),2)),"") -> 1C | K132: =IFERROR(IF(A132="","",IFERROR(VLOOKUP(B132,'Student Searchable'!A:B,2,FALSE),"")),"") ->  | L132: =IFERROR(LEFT(IF(A132="","",IF(INDIRECT("'Faculty Searchable'!CK"&PDF!$AH132)="","16-week-term",INDIRECT("'Faculty Searchable'!CK"&PDF!$AH132))),5),"") -> 2-SUM | M132: =IFERROR(MID(IF(A132="","",IF(INDIRECT("'Faculty Searchable'!CK"&PDF!$AH132)="","16-week-term",INDIRECT("'Faculty Searchable'!CK"&PDF!$AH132))),7,20),"") -> Jun 13 for 6 weeks | N132: =IF(B132="","",_xlfn.XLOOKUP(B132,Tracking!O:O,Tracking!A:A,"")) -> 0 | O132: =IF(PDF!AH132="","",IFERROR(INDIRECT("'Faculty Searchable'!FN"&PDF!$AH132),ROW())) -> 
A133: =IF(PDF!AH133="","",IFERROR(IF(PDF!A133="","",INDIRECT("'Faculty Searchable'!H"&PDF!AH133)&": "&LEFT(INDIRECT("'Faculty Searchable'!BA"&PDF!AH133),30)),"")) -> COMM G110: Public Speaking | B133: =IFERROR(IF(A133="","",INDIRECT("'Faculty Searchable'!I"&PDF!$AH133)),"") -> 10575 | C133: =IFERROR(IF(B133="","",INDIRECT("'Faculty Searchable'!BB"&PDF!$AH133)),"") -> 3 | D133: =IFERROR(IF(A133="","",INDIRECT("'Faculty Searchable'!AE"&PDF!$AH133)),"") -> 9 hours arranged | E133: =IFERROR(IF(A133="","",IF(D133="Online","",SUBSTITUTE(INDIRECT("'Faculty Searchable'!AF"&PDF!$AH133),"0","--"))),"") ->  | F133: =IFERROR(IF(A133="","",INDIRECT("'Faculty Searchable'!EB"&PDF!$AH133)),"") -> Online | G133: =IFERROR(IF(A133="","",IFERROR(INDIRECT("'Faculty Searchable'!FG"&PDF!$AH133),INDIRECT("'Faculty Searchable'!FG"&PDF!$AH133))),"") -> [Wegter R A] | H133: =IFERROR(IF(A133="","",IF(TEXT(INDIRECT("'Faculty Searchable'!G"&PDF!$AH133),"##%")="%","",TEXT(INDIRECT("'Faculty Searchable'!G"&PDF!$AH133),"##%"))),"") ->  | I133: =IFERROR(IF(A133="","",IF(RIGHT(INDIRECT("'Faculty Searchable'!FO"&PDF!$AH133),5)="Major","--",RIGHT(INDIRECT("'Faculty Searchable'!FO"&PDF!$AH133),2))),"--") -> A1 | J133: =IFERROR(IF(A133="","",RIGHT(INDIRECT("'Faculty Searchable'!FP"&PDF!$AH133),2)),"") -> 1C | K133: =IFERROR(IF(A133="","",IFERROR(VLOOKUP(B133,'Student Searchable'!A:B,2,FALSE),"")),"") ->  | L133: =IFERROR(LEFT(IF(A133="","",IF(INDIRECT("'Faculty Searchable'!CK"&PDF!$AH133)="","16-week-term",INDIRECT("'Faculty Searchable'!CK"&PDF!$AH133))),5),"") -> 2-SUM | M133: =IFERROR(MID(IF(A133="","",IF(INDIRECT("'Faculty Searchable'!CK"&PDF!$AH133)="","16-week-term",INDIRECT("'Faculty Searchable'!CK"&PDF!$AH133))),7,20),"") -> Jun 13 for 6 weeks | N133: =IF(B133="","",_xlfn.XLOOKUP(B133,Tracking!O:O,Tracking!A:A,"")) -> 0 | O133: =IF(PDF!AH133="","",IFERROR(INDIRECT("'Faculty Searchable'!FN"&PDF!$AH133),ROW())) -> 
A134: =IF(PDF!AH134="","",IFERROR(IF(PDF!A134="","",INDIRECT("'Faculty Searchable'!H"&PDF!AH134)&": "&LEFT(INDIRECT("'Faculty Searchable'!BA"&PDF!AH134),30)),"")) -> COMM G110: Public Speaking | B134: =IFERROR(IF(A134="","",INDIRECT("'Faculty Searchable'!I"&PDF!$AH134)),"") -> 10576 | C134: =IFERROR(IF(B134="","",INDIRECT("'Faculty Searchable'!BB"&PDF!$AH134)),"") -> 3 | D134: =IFERROR(IF(A134="","",INDIRECT("'Faculty Searchable'!AE"&PDF!$AH134)),"") -> 9 hours arranged | E134: =IFERROR(IF(A134="","",IF(D134="Online","",SUBSTITUTE(INDIRECT("'Faculty Searchable'!AF"&PDF!$AH134),"0","--"))),"") ->  | F134: =IFERROR(IF(A134="","",INDIRECT("'Faculty Searchable'!EB"&PDF!$AH134)),"") -> Online | G134: =IFERROR(IF(A134="","",IFERROR(INDIRECT("'Faculty Searchable'!FG"&PDF!$AH134),INDIRECT("'Faculty Searchable'!FG"&PDF!$AH134))),"") -> [Wegter R A] | H134: =IFERROR(IF(A134="","",IF(TEXT(INDIRECT("'Faculty Searchable'!G"&PDF!$AH134),"##%")="%","",TEXT(INDIRECT("'Faculty Searchable'!G"&PDF!$AH134),"##%"))),"") ->  | I134: =IFERROR(IF(A134="","",IF(RIGHT(INDIRECT("'Faculty Searchable'!FO"&PDF!$AH134),5)="Major","--",RIGHT(INDIRECT("'Faculty Searchable'!FO"&PDF!$AH134),2))),"--") -> A1 | J134: =IFERROR(IF(A134="","",RIGHT(INDIRECT("'Faculty Searchable'!FP"&PDF!$AH134),2)),"") -> 1C | K134: =IFERROR(IF(A134="","",IFERROR(VLOOKUP(B134,'Student Searchable'!A:B,2,FALSE),"")),"") ->  | L134: =IFERROR(LEFT(IF(A134="","",IF(INDIRECT("'Faculty Searchable'!CK"&PDF!$AH134)="","16-week-term",INDIRECT("'Faculty Searchable'!CK"&PDF!$AH134))),5),"") -> 2-SUM | M134: =IFERROR(MID(IF(A134="","",IF(INDIRECT("'Faculty Searchable'!CK"&PDF!$AH134)="","16-week-term",INDIRECT("'Faculty Searchable'!CK"&PDF!$AH134))),7,20),"") -> Jun 13 for 6 weeks | N134: =IF(B134="","",_xlfn.XLOOKUP(B134,Tracking!O:O,Tracking!A:A,"")) -> 0 | O134: =IF(PDF!AH134="","",IFERROR(INDIRECT("'Faculty Searchable'!FN"&PDF!$AH134),ROW())) -> 
A135: =IF(PDF!AH135="","",IFERROR(IF(PDF!A135="","",INDIRECT("'Faculty Searchable'!H"&PDF!AH135)&": "&LEFT(INDIRECT("'Faculty Searchable'!BA"&PDF!AH135),30)),"")) -> COMM G110: Public Speaking | B135: =IFERROR(IF(A135="","",INDIRECT("'Faculty Searchable'!I"&PDF!$AH135)),"") -> 10477 | C135: =IFERROR(IF(B135="","",INDIRECT("'Faculty Searchable'!BB"&PDF!$AH135)),"") -> 3 | D135: =IFERROR(IF(A135="","",INDIRECT("'Faculty Searchable'!AE"&PDF!$AH135)),"") -> 9 hours arranged | E135: =IFERROR(IF(A135="","",IF(D135="Online","",SUBSTITUTE(INDIRECT("'Faculty Searchable'!AF"&PDF!$AH135),"0","--"))),"") ->  | F135: =IFERROR(IF(A135="","",INDIRECT("'Faculty Searchable'!EB"&PDF!$AH135)),"") -> Online | G135: =IFERROR(IF(A135="","",IFERROR(INDIRECT("'Faculty Searchable'!FG"&PDF!$AH135),INDIRECT("'Faculty Searchable'!FG"&PDF!$AH135))),"") -> [Clancy K E] | H135: =IFERROR(IF(A135="","",IF(TEXT(INDIRECT("'Faculty Searchable'!G"&PDF!$AH135),"##%")="%","",TEXT(INDIRECT("'Faculty Searchable'!G"&PDF!$AH135),"##%"))),"") ->  | I135: =IFERROR(IF(A135="","",IF(RIGHT(INDIRECT("'Faculty Searchable'!FO"&PDF!$AH135),5)="Major","--",RIGHT(INDIRECT("'Faculty Searchable'!FO"&PDF!$AH135),2))),"--") -> A1 | J135: =IFERROR(IF(A135="","",RIGHT(INDIRECT("'Faculty Searchable'!FP"&PDF!$AH135),2)),"") -> 1C | K135: =IFERROR(IF(A135="","",IFERROR(VLOOKUP(B135,'Student Searchable'!A:B,2,FALSE),"")),"") ->  | L135: =IFERROR(LEFT(IF(A135="","",IF(INDIRECT("'Faculty Searchable'!CK"&PDF!$AH135)="","16-week-term",INDIRECT("'Faculty Searchable'!CK"&PDF!$AH135))),5),"") -> 2-SUM | M135: =IFERROR(MID(IF(A135="","",IF(INDIRECT("'Faculty Searchable'!CK"&PDF!$AH135)="","16-week-term",INDIRECT("'Faculty Searchable'!CK"&PDF!$AH135))),7,20),"") -> Jun 13 for 6 weeks | N135: =IF(B135="","",_xlfn.XLOOKUP(B135,Tracking!O:O,Tracking!A:A,"")) -> 0 | O135: =IF(PDF!AH135="","",IFERROR(INDIRECT("'Faculty Searchable'!FN"&PDF!$AH135),ROW())) -> 
A136: =IF(PDF!AH136="","",IFERROR(IF(PDF!A136="","",INDIRECT("'Faculty Searchable'!H"&PDF!AH136)&": "&LEFT(INDIRECT("'Faculty Searchable'!BA"&PDF!AH136),30)),"")) -> COMM G110: Public Speaking | B136: =IFERROR(IF(A136="","",INDIRECT("'Faculty Searchable'!I"&PDF!$AH136)),"") -> 10504 | C136: =IFERROR(IF(B136="","",INDIRECT("'Faculty Searchable'!BB"&PDF!$AH136)),"") -> 3 | D136: =IFERROR(IF(A136="","",INDIRECT("'Faculty Searchable'!AE"&PDF!$AH136)),"") -> 9 hours arranged | E136: =IFERROR(IF(A136="","",IF(D136="Online","",SUBSTITUTE(INDIRECT("'Faculty Searchable'!AF"&PDF!$AH136),"0","--"))),"") ->  | F136: =IFERROR(IF(A136="","",INDIRECT("'Faculty Searchable'!EB"&PDF!$AH136)),"") -> Online | G136: =IFERROR(IF(A136="","",IFERROR(INDIRECT("'Faculty Searchable'!FG"&PDF!$AH136),INDIRECT("'Faculty Searchable'!FG"&PDF!$AH136))),"") -> [Clancy K E] | H136: =IFERROR(IF(A136="","",IF(TEXT(INDIRECT("'Faculty Searchable'!G"&PDF!$AH136),"##%")="%","",TEXT(INDIRECT("'Faculty Searchable'!G"&PDF!$AH136),"##%"))),"") ->  | I136: =IFERROR(IF(A136="","",IF(RIGHT(INDIRECT("'Faculty Searchable'!FO"&PDF!$AH136),5)="Major","--",RIGHT(INDIRECT("'Faculty Searchable'!FO"&PDF!$AH136),2))),"--") -> A1 | J136: =IFERROR(IF(A136="","",RIGHT(INDIRECT("'Faculty Searchable'!FP"&PDF!$AH136),2)),"") -> 1C | K136: =IFERROR(IF(A136="","",IFERROR(VLOOKUP(B136,'Student Searchable'!A:B,2,FALSE),"")),"") ->  | L136: =IFERROR(LEFT(IF(A136="","",IF(INDIRECT("'Faculty Searchable'!CK"&PDF!$AH136)="","16-week-term",INDIRECT("'Faculty Searchable'!CK"&PDF!$AH136))),5),"") -> 2-SUM | M136: =IFERROR(MID(IF(A136="","",IF(INDIRECT("'Faculty Searchable'!CK"&PDF!$AH136)="","16-week-term",INDIRECT("'Faculty Searchable'!CK"&PDF!$AH136))),7,20),"") -> Jun 13 for 6 weeks | N136: =IF(B136="","",_xlfn.XLOOKUP(B136,Tracking!O:O,Tracking!A:A,"")) -> 0 | O136: =IF(PDF!AH136="","",IFERROR(INDIRECT("'Faculty Searchable'!FN"&PDF!$AH136),ROW())) -> 
A137: =IF(PDF!AH137="","",IFERROR(IF(PDF!A137="","",INDIRECT("'Faculty Searchable'!H"&PDF!AH137)&": "&LEFT(INDIRECT("'Faculty Searchable'!BA"&PDF!AH137),30)),"")) -> COMM G110: Public Speaking | B137: =IFERROR(IF(A137="","",INDIRECT("'Faculty Searchable'!I"&PDF!$AH137)),"") -> 10577 | C137: =IFERROR(IF(B137="","",INDIRECT("'Faculty Searchable'!BB"&PDF!$AH137)),"") -> 3 | D137: =IFERROR(IF(A137="","",INDIRECT("'Faculty Searchable'!AE"&PDF!$AH137)),"") -> 9 hours arranged | E137: =IFERROR(IF(A137="","",IF(D137="Online","",SUBSTITUTE(INDIRECT("'Faculty Searchable'!AF"&PDF!$AH137),"0","--"))),"") ->  | F137: =IFERROR(IF(A137="","",INDIRECT("'Faculty Searchable'!EB"&PDF!$AH137)),"") -> Online | G137: =IFERROR(IF(A137="","",IFERROR(INDIRECT("'Faculty Searchable'!FG"&PDF!$AH137),INDIRECT("'Faculty Searchable'!FG"&PDF!$AH137))),"") -> [Nielson T B] | H137: =IFERROR(IF(A137="","",IF(TEXT(INDIRECT("'Faculty Searchable'!G"&PDF!$AH137),"##%")="%","",TEXT(INDIRECT("'Faculty Searchable'!G"&PDF!$AH137),"##%"))),"") ->  | I137: =IFERROR(IF(A137="","",IF(RIGHT(INDIRECT("'Faculty Searchable'!FO"&PDF!$AH137),5)="Major","--",RIGHT(INDIRECT("'Faculty Searchable'!FO"&PDF!$AH137),2))),"--") -> A1 | J137: =IFERROR(IF(A137="","",RIGHT(INDIRECT("'Faculty Searchable'!FP"&PDF!$AH137),2)),"") -> 1C | K137: =IFERROR(IF(A137="","",IFERROR(VLOOKUP(B137,'Student Searchable'!A:B,2,FALSE),"")),"") ->  | L137: =IFERROR(LEFT(IF(A137="","",IF(INDIRECT("'Faculty Searchable'!CK"&PDF!$AH137)="","16-week-term",INDIRECT("'Faculty Searchable'!CK"&PDF!$AH137))),5),"") -> 2-SUM | M137: =IFERROR(MID(IF(A137="","",IF(INDIRECT("'Faculty Searchable'!CK"&PDF!$AH137)="","16-week-term",INDIRECT("'Faculty Searchable'!CK"&PDF!$AH137))),7,20),"") -> Jun 27 for 6 weeks | N137: =IF(B137="","",_xlfn.XLOOKUP(B137,Tracking!O:O,Tracking!A:A,"")) -> 0 | O137: =IF(PDF!AH137="","",IFERROR(INDIRECT("'Faculty Searchable'!FN"&PDF!$AH137),ROW())) -> 
A138: =IF(PDF!AH138="","",IFERROR(IF(PDF!A138="","",INDIRECT("'Faculty Searchable'!H"&PDF!AH138)&": "&LEFT(INDIRECT("'Faculty Searchable'!BA"&PDF!AH138),30)),"")) -> COMM G110: Public Speaking | B138: =IFERROR(IF(A138="","",INDIRECT("'Faculty Searchable'!I"&PDF!$AH138)),"") -> 10595 | C138: =IFERROR(IF(B138="","",INDIRECT("'Faculty Searchable'!BB"&PDF!$AH138)),"") -> 3 | D138: =IFERROR(IF(A138="","",INDIRECT("'Faculty Searchable'!AE"&PDF!$AH138)),"") -> 9 hours arranged | E138: =IFERROR(IF(A138="","",IF(D138="Online","",SUBSTITUTE(INDIRECT("'Faculty Searchable'!AF"&PDF!$AH138),"0","--"))),"") ->  | F138: =IFERROR(IF(A138="","",INDIRECT("'Faculty Searchable'!EB"&PDF!$AH138)),"") -> Online | G138: =IFERROR(IF(A138="","",IFERROR(INDIRECT("'Faculty Searchable'!FG"&PDF!$AH138),INDIRECT("'Faculty Searchable'!FG"&PDF!$AH138))),"") -> [Nielson T B] | H138: =IFERROR(IF(A138="","",IF(TEXT(INDIRECT("'Faculty Searchable'!G"&PDF!$AH138),"##%")="%","",TEXT(INDIRECT("'Faculty Searchable'!G"&PDF!$AH138),"##%"))),"") ->  | I138: =IFERROR(IF(A138="","",IF(RIGHT(INDIRECT("'Faculty Searchable'!FO"&PDF!$AH138),5)="Major","--",RIGHT(INDIRECT("'Faculty Searchable'!FO"&PDF!$AH138),2))),"--") -> A1 | J138: =IFERROR(IF(A138="","",RIGHT(INDIRECT("'Faculty Searchable'!FP"&PDF!$AH138),2)),"") -> 1C | K138: =IFERROR(IF(A138="","",IFERROR(VLOOKUP(B138,'Student Searchable'!A:B,2,FALSE),"")),"") ->  | L138: =IFERROR(LEFT(IF(A138="","",IF(INDIRECT("'Faculty Searchable'!CK"&PDF!$AH138)="","16-week-term",INDIRECT("'Faculty Searchable'!CK"&PDF!$AH138))),5),"") -> 2-SUM | M138: =IFERROR(MID(IF(A138="","",IF(INDIRECT("'Faculty Searchable'!CK"&PDF!$AH138)="","16-week-term",INDIRECT("'Faculty Searchable'!CK"&PDF!$AH138))),7,20),"") -> Jun 27 for 6 weeks | N138: =IF(B138="","",_xlfn.XLOOKUP(B138,Tracking!O:O,Tracking!A:A,"")) -> 0 | O138: =IF(PDF!AH138="","",IFERROR(INDIRECT("'Faculty Searchable'!FN"&PDF!$AH138),ROW())) -> 
A139: =IF(PDF!AH139="","",IFERROR(IF(PDF!A139="","",INDIRECT("'Faculty Searchable'!H"&PDF!AH139)&": "&LEFT(INDIRECT("'Faculty Searchable'!BA"&PDF!AH139),30)),"")) -> COMM G110: Public Speaking | B139: =IFERROR(IF(A139="","",INDIRECT("'Faculty Searchable'!I"&PDF!$AH139)),"") -> 10673 | C139: =IFERROR(IF(B139="","",INDIRECT("'Faculty Searchable'!BB"&PDF!$AH139)),"") -> 3 | D139: =IFERROR(IF(A139="","",INDIRECT("'Faculty Searchable'!AE"&PDF!$AH139)),"") -> 9 hours arranged | E139: =IFERROR(IF(A139="","",IF(D139="Online","",SUBSTITUTE(INDIRECT("'Faculty Searchable'!AF"&PDF!$AH139),"0","--"))),"") ->  | F139: =IFERROR(IF(A139="","",INDIRECT("'Faculty Searchable'!EB"&PDF!$AH139)),"") -> Online | G139: =IFERROR(IF(A139="","",IFERROR(INDIRECT("'Faculty Searchable'!FG"&PDF!$AH139),INDIRECT("'Faculty Searchable'!FG"&PDF!$AH139))),"") -> [Anderson C S] | H139: =IFERROR(IF(A139="","",IF(TEXT(INDIRECT("'Faculty Searchable'!G"&PDF!$AH139),"##%")="%","",TEXT(INDIRECT("'Faculty Searchable'!G"&PDF!$AH139),"##%"))),"") ->  | I139: =IFERROR(IF(A139="","",IF(RIGHT(INDIRECT("'Faculty Searchable'!FO"&PDF!$AH139),5)="Major","--",RIGHT(INDIRECT("'Faculty Searchable'!FO"&PDF!$AH139),2))),"--") -> A1 | J139: =IFERROR(IF(A139="","",RIGHT(INDIRECT("'Faculty Searchable'!FP"&PDF!$AH139),2)),"") -> 1C | K139: =IFERROR(IF(A139="","",IFERROR(VLOOKUP(B139,'Student Searchable'!A:B,2,FALSE),"")),"") ->  | L139: =IFERROR(LEFT(IF(A139="","",IF(INDIRECT("'Faculty Searchable'!CK"&PDF!$AH139)="","16-week-term",INDIRECT("'Faculty Searchable'!CK"&PDF!$AH139))),5),"") -> 2-SUM | M139: =IFERROR(MID(IF(A139="","",IF(INDIRECT("'Faculty Searchable'!CK"&PDF!$AH139)="","16-week-term",INDIRECT("'Faculty Searchable'!CK"&PDF!$AH139))),7,20),"") -> Jun 27 for 6 weeks | N139: =IF(B139="","",_xlfn.XLOOKUP(B139,Tracking!O:O,Tracking!A:A,"")) -> 0 | O139: =IF(PDF!AH139="","",IFERROR(INDIRECT("'Faculty Searchable'!FN"&PDF!$AH139),ROW())) -> 
A140: =IF(PDF!AH140="","",IFERROR(IF(PDF!A140="","",INDIRECT("'Faculty Searchable'!H"&PDF!AH140)&": "&LEFT(INDIRECT("'Faculty Searchable'!BA"&PDF!AH140),30)),"")) -> COMM G110: Public Speaking | B140: =IFERROR(IF(A140="","",INDIRECT("'Faculty Searchable'!I"&PDF!$AH140)),"") -> 10674 | C140: =IFERROR(IF(B140="","",INDIRECT("'Faculty Searchable'!BB"&PDF!$AH140)),"") -> 3 | D140: =IFERROR(IF(A140="","",INDIRECT("'Faculty Searchable'!AE"&PDF!$AH140)),"") -> 9 hours arranged | E140: =IFERROR(IF(A140="","",IF(D140="Online","",SUBSTITUTE(INDIRECT("'Faculty Searchable'!AF"&PDF!$AH140),"0","--"))),"") ->  | F140: =IFERROR(IF(A140="","",INDIRECT("'Faculty Searchable'!EB"&PDF!$AH140)),"") -> Online | G140: =IFERROR(IF(A140="","",IFERROR(INDIRECT("'Faculty Searchable'!FG"&PDF!$AH140),INDIRECT("'Faculty Searchable'!FG"&PDF!$AH140))),"") -> [Dinger M L] | H140: =IFERROR(IF(A140="","",IF(TEXT(INDIRECT("'Faculty Searchable'!G"&PDF!$AH140),"##%")="%","",TEXT(INDIRECT("'Faculty Searchable'!G"&PDF!$AH140),"##%"))),"") ->  | I140: =IFERROR(IF(A140="","",IF(RIGHT(INDIRECT("'Faculty Searchable'!FO"&PDF!$AH140),5)="Major","--",RIGHT(INDIRECT("'Faculty Searchable'!FO"&PDF!$AH140),2))),"--") -> A1 | J140: =IFERROR(IF(A140="","",RIGHT(INDIRECT("'Faculty Searchable'!FP"&PDF!$AH140),2)),"") -> 1C | K140: =IFERROR(IF(A140="","",IFERROR(VLOOKUP(B140,'Student Searchable'!A:B,2,FALSE),"")),"") ->  | L140: =IFERROR(LEFT(IF(A140="","",IF(INDIRECT("'Faculty Searchable'!CK"&PDF!$AH140)="","16-week-term",INDIRECT("'Faculty Searchable'!CK"&PDF!$AH140))),5),"") -> 2-SUM | M140: =IFERROR(MID(IF(A140="","",IF(INDIRECT("'Faculty Searchable'!CK"&PDF!$AH140)="","16-week-term",INDIRECT("'Faculty Searchable'!CK"&PDF!$AH140))),7,20),"") -> Jun 27 for 6 weeks | N140: =IF(B140="","",_xlfn.XLOOKUP(B140,Tracking!O:O,Tracking!A:A,"")) -> 0 | O140: =IF(PDF!AH140="","",IFERROR(INDIRECT("'Faculty Searchable'!FN"&PDF!$AH140),ROW())) -> 
A141: =IF(PDF!AH141="","",IFERROR(IF(PDF!A141="","",INDIRECT("'Faculty Searchable'!H"&PDF!AH141)&": "&LEFT(INDIRECT("'Faculty Searchable'!BA"&PDF!AH141),30)),"")) -> COMM G110: Public Speaking | B141: =IFERROR(IF(A141="","",INDIRECT("'Faculty Searchable'!I"&PDF!$AH141)),"") -> 10695 | C141: =IFERROR(IF(B141="","",INDIRECT("'Faculty Searchable'!BB"&PDF!$AH141)),"") -> 3 | D141: =IFERROR(IF(A141="","",INDIRECT("'Faculty Searchable'!AE"&PDF!$AH141)),"") -> 9 hours arranged | E141: =IFERROR(IF(A141="","",IF(D141="Online","",SUBSTITUTE(INDIRECT("'Faculty Searchable'!AF"&PDF!$AH141),"0","--"))),"") ->  | F141: =IFERROR(IF(A141="","",INDIRECT("'Faculty Searchable'!EB"&PDF!$AH141)),"") -> Online | G141: =IFERROR(IF(A141="","",IFERROR(INDIRECT("'Faculty Searchable'!FG"&PDF!$AH141),INDIRECT("'Faculty Searchable'!FG"&PDF!$AH141))),"") -> [Wagner S L] | H141: =IFERROR(IF(A141="","",IF(TEXT(INDIRECT("'Faculty Searchable'!G"&PDF!$AH141),"##%")="%","",TEXT(INDIRECT("'Faculty Searchable'!G"&PDF!$AH141),"##%"))),"") ->  | I141: =IFERROR(IF(A141="","",IF(RIGHT(INDIRECT("'Faculty Searchable'!FO"&PDF!$AH141),5)="Major","--",RIGHT(INDIRECT("'Faculty Searchable'!FO"&PDF!$AH141),2))),"--") -> A1 | J141: =IFERROR(IF(A141="","",RIGHT(INDIRECT("'Faculty Searchable'!FP"&PDF!$AH141),2)),"") -> 1C | K141: =IFERROR(IF(A141="","",IFERROR(VLOOKUP(B141,'Student Searchable'!A:B,2,FALSE),"")),"") ->  | L141: =IFERROR(LEFT(IF(A141="","",IF(INDIRECT("'Faculty Searchable'!CK"&PDF!$AH141)="","16-week-term",INDIRECT("'Faculty Searchable'!CK"&PDF!$AH141))),5),"") -> 2-SUM | M141: =IFERROR(MID(IF(A141="","",IF(INDIRECT("'Faculty Searchable'!CK"&PDF!$AH141)="","16-week-term",INDIRECT("'Faculty Searchable'!CK"&PDF!$AH141))),7,20),"") -> Jun 27 for 6 weeks | N141: =IF(B141="","",_xlfn.XLOOKUP(B141,Tracking!O:O,Tracking!A:A,"")) -> 0 | O141: =IF(PDF!AH141="","",IFERROR(INDIRECT("'Faculty Searchable'!FN"&PDF!$AH141),ROW())) -> 
A142: =IF(PDF!AH142="","",IFERROR(IF(PDF!A142="","",INDIRECT("'Faculty Searchable'!H"&PDF!AH142)&": "&LEFT(INDIRECT("'Faculty Searchable'!BA"&PDF!AH142),30)),"")) -> COSM G022: Cosmetology, Level II | B142: =IFERROR(IF(A142="","",INDIRECT("'Faculty Searchable'!I"&PDF!$AH142)),"") -> 10645 | C142: =IFERROR(IF(B142="","",INDIRECT("'Faculty Searchable'!BB"&PDF!$AH142)),"") -> 10.5 | D142: =IFERROR(IF(A142="","",INDIRECT("'Faculty Searchable'!AE"&PDF!$AH142)),"") -> 9:00am - 10:00am | E142: =IFERROR(IF(A142="","",IF(D142="Online","",SUBSTITUTE(INDIRECT("'Faculty Searchable'!AF"&PDF!$AH142),"0","--"))),"") -> MTWThF | F142: =IFERROR(IF(A142="","",INDIRECT("'Faculty Searchable'!EB"&PDF!$AH142)),"") -> Onground | G142: =IFERROR(IF(A142="","",IFERROR(INDIRECT("'Faculty Searchable'!FG"&PDF!$AH142),INDIRECT("'Faculty Searchable'!FG"&PDF!$AH142))),"") -> [Holland J R] | H142: =IFERROR(IF(A142="","",IF(TEXT(INDIRECT("'Faculty Searchable'!G"&PDF!$AH142),"##%")="%","",TEXT(INDIRECT("'Faculty Searchable'!G"&PDF!$AH142),"##%"))),"") ->  | I142: =IFERROR(IF(A142="","",IF(RIGHT(INDIRECT("'Faculty Searchable'!FO"&PDF!$AH142),5)="Major","--",RIGHT(INDIRECT("'Faculty Searchable'!FO"&PDF!$AH142),2))),"--") -> -- | J142: =IFERROR(IF(A142="","",RIGHT(INDIRECT("'Faculty Searchable'!FP"&PDF!$AH142),2)),"") ->  | K142: =IFERROR(IF(A142="","",IFERROR(VLOOKUP(B142,'Student Searchable'!A:B,2,FALSE),"")),"") ->  | L142: =IFERROR(LEFT(IF(A142="","",IF(INDIRECT("'Faculty Searchable'!CK"&PDF!$AH142)="","16-week-term",INDIRECT("'Faculty Searchable'!CK"&PDF!$AH142))),5),"") -> 2-SUM | M142: =IFERROR(MID(IF(A142="","",IF(INDIRECT("'Faculty Searchable'!CK"&PDF!$AH142)="","16-week-term",INDIRECT("'Faculty Searchable'!CK"&PDF!$AH142))),7,20),"") -> Jun 1 for 9 weeks | N142: =IF(B142="","",_xlfn.XLOOKUP(B142,Tracking!O:O,Tracking!A:A,"")) -> 0 | O142: =IF(PDF!AH142="","",IFERROR(INDIRECT("'Faculty Searchable'!FN"&PDF!$AH142),ROW())) -> Prereq COSM G021
A143: =IF(PDF!AH143="","",IFERROR(IF(PDF!A143="","",INDIRECT("'Faculty Searchable'!H"&PDF!AH143)&": "&LEFT(INDIRECT("'Faculty Searchable'!BA"&PDF!AH143),30)),"")) -> COSM G024: Cosmetology, Level IV | B143: =IFERROR(IF(A143="","",INDIRECT("'Faculty Searchable'!I"&PDF!$AH143)),"") -> 10646 | C143: =IFERROR(IF(B143="","",INDIRECT("'Faculty Searchable'!BB"&PDF!$AH143)),"") -> 8 | D143: =IFERROR(IF(A143="","",INDIRECT("'Faculty Searchable'!AE"&PDF!$AH143)),"") -> 9:00am - 12:00pm | E143: =IFERROR(IF(A143="","",IF(D143="Online","",SUBSTITUTE(INDIRECT("'Faculty Searchable'!AF"&PDF!$AH143),"0","--"))),"") -> MTWThF | F143: =IFERROR(IF(A143="","",INDIRECT("'Faculty Searchable'!EB"&PDF!$AH143)),"") -> Onground | G143: =IFERROR(IF(A143="","",IFERROR(INDIRECT("'Faculty Searchable'!FG"&PDF!$AH143),INDIRECT("'Faculty Searchable'!FG"&PDF!$AH143))),"") -> [Holland J R] | H143: =IFERROR(IF(A143="","",IF(TEXT(INDIRECT("'Faculty Searchable'!G"&PDF!$AH143),"##%")="%","",TEXT(INDIRECT("'Faculty Searchable'!G"&PDF!$AH143),"##%"))),"") ->  | I143: =IFERROR(IF(A143="","",IF(RIGHT(INDIRECT("'Faculty Searchable'!FO"&PDF!$AH143),5)="Major","--",RIGHT(INDIRECT("'Faculty Searchable'!FO"&PDF!$AH143),2))),"--") -> -- | J143: =IFERROR(IF(A143="","",RIGHT(INDIRECT("'Faculty Searchable'!FP"&PDF!$AH143),2)),"") ->  | K143: =IFERROR(IF(A143="","",IFERROR(VLOOKUP(B143,'Student Searchable'!A:B,2,FALSE),"")),"") ->  | L143: =IFERROR(LEFT(IF(A143="","",IF(INDIRECT("'Faculty Searchable'!CK"&PDF!$AH143)="","16-week-term",INDIRECT("'Faculty Searchable'!CK"&PDF!$AH143))),5),"") -> 2-SUM | M143: =IFERROR(MID(IF(A143="","",IF(INDIRECT("'Faculty Searchable'!CK"&PDF!$AH143)="","16-week-term",INDIRECT("'Faculty Searchable'!CK"&PDF!$AH143))),7,20),"") -> Jun 1 for 9 weeks | N143: =IF(B143="","",_xlfn.XLOOKUP(B143,Tracking!O:O,Tracking!A:A,"")) -> 0 | O143: =IF(PDF!AH143="","",IFERROR(INDIRECT("'Faculty Searchable'!FN"&PDF!$AH143),ROW())) -> Prereq COSM G023
A144: =IF(PDF!AH144="","",IFERROR(IF(PDF!A144="","",INDIRECT("'Faculty Searchable'!H"&PDF!AH144)&": "&LEFT(INDIRECT("'Faculty Searchable'!BA"&PDF!AH144),30)),"")) -> COUN G104: Career and Life Planning | B144: =IFERROR(IF(A144="","",INDIRECT("'Faculty Searchable'!I"&PDF!$AH144)),"") -> 10519 | C144: =IFERROR(IF(B144="","",INDIRECT("'Faculty Searchable'!BB"&PDF!$AH144)),"") -> 3 | D144: =IFERROR(IF(A144="","",INDIRECT("'Faculty Searchable'!AE"&PDF!$AH144)),"") -> 9 hours arranged | E144: =IFERROR(IF(A144="","",IF(D144="Online","",SUBSTITUTE(INDIRECT("'Faculty Searchable'!AF"&PDF!$AH144),"0","--"))),"") ->  | F144: =IFERROR(IF(A144="","",INDIRECT("'Faculty Searchable'!EB"&PDF!$AH144)),"") -> Online | G144: =IFERROR(IF(A144="","",IFERROR(INDIRECT("'Faculty Searchable'!FG"&PDF!$AH144),INDIRECT("'Faculty Searchable'!FG"&PDF!$AH144))),"") -> [Nguyen A] | H144: =IFERROR(IF(A144="","",IF(TEXT(INDIRECT("'Faculty Searchable'!G"&PDF!$AH144),"##%")="%","",TEXT(INDIRECT("'Faculty Searchable'!G"&PDF!$AH144),"##%"))),"") ->  | I144: =IFERROR(IF(A144="","",IF(RIGHT(INDIRECT("'Faculty Searchable'!FO"&PDF!$AH144),5)="Major","--",RIGHT(INDIRECT("'Faculty Searchable'!FO"&PDF!$AH144),2))),"--") -> E1 | J144: =IFERROR(IF(A144="","",RIGHT(INDIRECT("'Faculty Searchable'!FP"&PDF!$AH144),2)),"") ->  | K144: =IFERROR(IF(A144="","",IFERROR(VLOOKUP(B144,'Student Searchable'!A:B,2,FALSE),"")),"") ->  | L144: =IFERROR(LEFT(IF(A144="","",IF(INDIRECT("'Faculty Searchable'!CK"&PDF!$AH144)="","16-week-term",INDIRECT("'Faculty Searchable'!CK"&PDF!$AH144))),5),"") -> 2-SUM | M144: =IFERROR(MID(IF(A144="","",IF(INDIRECT("'Faculty Searchable'!CK"&PDF!$AH144)="","16-week-term",INDIRECT("'Faculty Searchable'!CK"&PDF!$AH144))),7,20),"") -> Jun 27 for 6 weeks | N144: =IF(B144="","",_xlfn.XLOOKUP(B144,Tracking!O:O,Tracking!A:A,"")) -> 0 | O144: =IF(PDF!AH144="","",IFERROR(INDIRECT("'Faculty Searchable'!FN"&PDF!$AH144),ROW())) -> 
A145: =IF(PDF!AH145="","",IFERROR(IF(PDF!A145="","",INDIRECT("'Faculty Searchable'!H"&PDF!AH145)&": "&LEFT(INDIRECT("'Faculty Searchable'!BA"&PDF!AH145),30)),"")) -> COUN G105: Strategies for College Success | B145: =IFERROR(IF(A145="","",INDIRECT("'Faculty Searchable'!I"&PDF!$AH145)),"") -> 11812 | C145: =IFERROR(IF(B145="","",INDIRECT("'Faculty Searchable'!BB"&PDF!$AH145)),"") -> 3 | D145: =IFERROR(IF(A145="","",INDIRECT("'Faculty Searchable'!AE"&PDF!$AH145)),"") -> 9 hours arranged | E145: =IFERROR(IF(A145="","",IF(D145="Online","",SUBSTITUTE(INDIRECT("'Faculty Searchable'!AF"&PDF!$AH145),"0","--"))),"") ->  | F145: =IFERROR(IF(A145="","",INDIRECT("'Faculty Searchable'!EB"&PDF!$AH145)),"") -> Online | G145: =IFERROR(IF(A145="","",IFERROR(INDIRECT("'Faculty Searchable'!FG"&PDF!$AH145),INDIRECT("'Faculty Searchable'!FG"&PDF!$AH145))),"") -> [Diamond N J] | H145: =IFERROR(IF(A145="","",IF(TEXT(INDIRECT("'Faculty Searchable'!G"&PDF!$AH145),"##%")="%","",TEXT(INDIRECT("'Faculty Searchable'!G"&PDF!$AH145),"##%"))),"") ->  | I145: =IFERROR(IF(A145="","",IF(RIGHT(INDIRECT("'Faculty Searchable'!FO"&PDF!$AH145),5)="Major","--",RIGHT(INDIRECT("'Faculty Searchable'!FO"&PDF!$AH145),2))),"--") -> -- | J145: =IFERROR(IF(A145="","",RIGHT(INDIRECT("'Faculty Searchable'!FP"&PDF!$AH145),2)),"") ->  | K145: =IFERROR(IF(A145="","",IFERROR(VLOOKUP(B145,'Student Searchable'!A:B,2,FALSE),"")),"") ->  | L145: =IFERROR(LEFT(IF(A145="","",IF(INDIRECT("'Faculty Searchable'!CK"&PDF!$AH145)="","16-week-term",INDIRECT("'Faculty Searchable'!CK"&PDF!$AH145))),5),"") -> 2-SUM | M145: =IFERROR(MID(IF(A145="","",IF(INDIRECT("'Faculty Searchable'!CK"&PDF!$AH145)="","16-week-term",INDIRECT("'Faculty Searchable'!CK"&PDF!$AH145))),7,20),"") -> Jun 27 for 6 weeks | N145: =IF(B145="","",_xlfn.XLOOKUP(B145,Tracking!O:O,Tracking!A:A,"")) -> 0 | O145: =IF(PDF!AH145="","",IFERROR(INDIRECT("'Faculty Searchable'!FN"&PDF!$AH145),ROW())) -> 
A146: =IF(PDF!AH146="","",IFERROR(IF(PDF!A146="","",INDIRECT("'Faculty Searchable'!H"&PDF!AH146)&": "&LEFT(INDIRECT("'Faculty Searchable'!BA"&PDF!AH146),30)),"")) -> COUN G105: Strategies for College Success | B146: =IFERROR(IF(A146="","",INDIRECT("'Faculty Searchable'!I"&PDF!$AH146)),"") -> 11813 | C146: =IFERROR(IF(B146="","",INDIRECT("'Faculty Searchable'!BB"&PDF!$AH146)),"") -> 3 | D146: =IFERROR(IF(A146="","",INDIRECT("'Faculty Searchable'!AE"&PDF!$AH146)),"") -> 9 hours arranged | E146: =IFERROR(IF(A146="","",IF(D146="Online","",SUBSTITUTE(INDIRECT("'Faculty Searchable'!AF"&PDF!$AH146),"0","--"))),"") ->  | F146: =IFERROR(IF(A146="","",INDIRECT("'Faculty Searchable'!EB"&PDF!$AH146)),"") -> Online | G146: =IFERROR(IF(A146="","",IFERROR(INDIRECT("'Faculty Searchable'!FG"&PDF!$AH146),INDIRECT("'Faculty Searchable'!FG"&PDF!$AH146))),"") -> [Strong A M] | H146: =IFERROR(IF(A146="","",IF(TEXT(INDIRECT("'Faculty Searchable'!G"&PDF!$AH146),"##%")="%","",TEXT(INDIRECT("'Faculty Searchable'!G"&PDF!$AH146),"##%"))),"") ->  | I146: =IFERROR(IF(A146="","",IF(RIGHT(INDIRECT("'Faculty Searchable'!FO"&PDF!$AH146),5)="Major","--",RIGHT(INDIRECT("'Faculty Searchable'!FO"&PDF!$AH146),2))),"--") -> -- | J146: =IFERROR(IF(A146="","",RIGHT(INDIRECT("'Faculty Searchable'!FP"&PDF!$AH146),2)),"") ->  | K146: =IFERROR(IF(A146="","",IFERROR(VLOOKUP(B146,'Student Searchable'!A:B,2,FALSE),"")),"") ->  | L146: =IFERROR(LEFT(IF(A146="","",IF(INDIRECT("'Faculty Searchable'!CK"&PDF!$AH146)="","16-week-term",INDIRECT("'Faculty Searchable'!CK"&PDF!$AH146))),5),"") -> 2-SUM | M146: =IFERROR(MID(IF(A146="","",IF(INDIRECT("'Faculty Searchable'!CK"&PDF!$AH146)="","16-week-term",INDIRECT("'Faculty Searchable'!CK"&PDF!$AH146))),7,20),"") -> Jun 27 for 6 weeks | N146: =IF(B146="","",_xlfn.XLOOKUP(B146,Tracking!O:O,Tracking!A:A,"")) -> 0 | O146: =IF(PDF!AH146="","",IFERROR(INDIRECT("'Faculty Searchable'!FN"&PDF!$AH146),ROW())) -> 
A147: =IF(PDF!AH147="","",IFERROR(IF(PDF!A147="","",INDIRECT("'Faculty Searchable'!H"&PDF!AH147)&": "&LEFT(INDIRECT("'Faculty Searchable'!BA"&PDF!AH147),30)),"")) -> CS G130: Survey Of Comp Sci/Info Tech | B147: =IFERROR(IF(A147="","",INDIRECT("'Faculty Searchable'!I"&PDF!$AH147)),"") -> 10584 | C147: =IFERROR(IF(B147="","",INDIRECT("'Faculty Searchable'!BB"&PDF!$AH147)),"") -> 4 | D147: =IFERROR(IF(A147="","",INDIRECT("'Faculty Searchable'!AE"&PDF!$AH147)),"") -> 6.75 hours arranged | E147: =IFERROR(IF(A147="","",IF(D147="Online","",SUBSTITUTE(INDIRECT("'Faculty Searchable'!AF"&PDF!$AH147),"0","--"))),"") ->  | F147: =IFERROR(IF(A147="","",INDIRECT("'Faculty Searchable'!EB"&PDF!$AH147)),"") -> Online | G147: =IFERROR(IF(A147="","",IFERROR(INDIRECT("'Faculty Searchable'!FG"&PDF!$AH147),INDIRECT("'Faculty Searchable'!FG"&PDF!$AH147))),"") -> [Zeighami F] | H147: =IFERROR(IF(A147="","",IF(TEXT(INDIRECT("'Faculty Searchable'!G"&PDF!$AH147),"##%")="%","",TEXT(INDIRECT("'Faculty Searchable'!G"&PDF!$AH147),"##%"))),"") ->  | I147: =IFERROR(IF(A147="","",IF(RIGHT(INDIRECT("'Faculty Searchable'!FO"&PDF!$AH147),5)="Major","--",RIGHT(INDIRECT("'Faculty Searchable'!FO"&PDF!$AH147),2))),"--") -> -- | J147: =IFERROR(IF(A147="","",RIGHT(INDIRECT("'Faculty Searchable'!FP"&PDF!$AH147),2)),"") ->  | K147: =IFERROR(IF(A147="","",IFERROR(VLOOKUP(B147,'Student Searchable'!A:B,2,FALSE),"")),"") ->  | L147: =IFERROR(LEFT(IF(A147="","",IF(INDIRECT("'Faculty Searchable'!CK"&PDF!$AH147)="","16-week-term",INDIRECT("'Faculty Searchable'!CK"&PDF!$AH147))),5),"") -> 2-SUM | M147: =IFERROR(MID(IF(A147="","",IF(INDIRECT("'Faculty Searchable'!CK"&PDF!$AH147)="","16-week-term",INDIRECT("'Faculty Searchable'!CK"&PDF!$AH147))),7,20),"") -> Jun 13 for 8 weeks | N147: =IF(B147="","",_xlfn.XLOOKUP(B147,Tracking!O:O,Tracking!A:A,"")) -> 0 | O147: =IF(PDF!AH147="","",IFERROR(INDIRECT("'Faculty Searchable'!FN"&PDF!$AH147),ROW())) -> 
A148: =IF(PDF!AH148="","",IFERROR(IF(PDF!A148="","",INDIRECT("'Faculty Searchable'!H"&PDF!AH148)&": "&LEFT(INDIRECT("'Faculty Searchable'!BA"&PDF!AH148),30)),"")) -> CS G175: C++ Programming | B148: =IFERROR(IF(A148="","",INDIRECT("'Faculty Searchable'!I"&PDF!$AH148)),"") -> 10585 | C148: =IFERROR(IF(B148="","",INDIRECT("'Faculty Searchable'!BB"&PDF!$AH148)),"") -> 4 | D148: =IFERROR(IF(A148="","",INDIRECT("'Faculty Searchable'!AE"&PDF!$AH148)),"") -> 6.75 hours arranged | E148: =IFERROR(IF(A148="","",IF(D148="Online","",SUBSTITUTE(INDIRECT("'Faculty Searchable'!AF"&PDF!$AH148),"0","--"))),"") ->  | F148: =IFERROR(IF(A148="","",INDIRECT("'Faculty Searchable'!EB"&PDF!$AH148)),"") -> Online | G148: =IFERROR(IF(A148="","",IFERROR(INDIRECT("'Faculty Searchable'!FG"&PDF!$AH148),INDIRECT("'Faculty Searchable'!FG"&PDF!$AH148))),"") -> [Tauro L L] | H148: =IFERROR(IF(A148="","",IF(TEXT(INDIRECT("'Faculty Searchable'!G"&PDF!$AH148),"##%")="%","",TEXT(INDIRECT("'Faculty Searchable'!G"&PDF!$AH148),"##%"))),"") ->  | I148: =IFERROR(IF(A148="","",IF(RIGHT(INDIRECT("'Faculty Searchable'!FO"&PDF!$AH148),5)="Major","--",RIGHT(INDIRECT("'Faculty Searchable'!FO"&PDF!$AH148),2))),"--") -> -- | J148: =IFERROR(IF(A148="","",RIGHT(INDIRECT("'Faculty Searchable'!FP"&PDF!$AH148),2)),"") ->  | K148: =IFERROR(IF(A148="","",IFERROR(VLOOKUP(B148,'Student Searchable'!A:B,2,FALSE),"")),"") ->  | L148: =IFERROR(LEFT(IF(A148="","",IF(INDIRECT("'Faculty Searchable'!CK"&PDF!$AH148)="","16-week-term",INDIRECT("'Faculty Searchable'!CK"&PDF!$AH148))),5),"") -> 2-SUM | M148: =IFERROR(MID(IF(A148="","",IF(INDIRECT("'Faculty Searchable'!CK"&PDF!$AH148)="","16-week-term",INDIRECT("'Faculty Searchable'!CK"&PDF!$AH148))),7,20),"") -> Jun 13 for 8 weeks | N148: =IF(B148="","",_xlfn.XLOOKUP(B148,Tracking!O:O,Tracking!A:A,"")) -> 0 | O148: =IF(PDF!AH148="","",IFERROR(INDIRECT("'Faculty Searchable'!FN"&PDF!$AH148),ROW())) -> 
A149: =IF(PDF!AH149="","",IFERROR(IF(PDF!A149="","",INDIRECT("'Faculty Searchable'!H"&PDF!AH149)&": "&LEFT(INDIRECT("'Faculty Searchable'!BA"&PDF!AH149),30)),"")) -> ECON G170: Principles of Microeconomics | B149: =IFERROR(IF(A149="","",INDIRECT("'Faculty Searchable'!I"&PDF!$AH149)),"") -> 10510 | C149: =IFERROR(IF(B149="","",INDIRECT("'Faculty Searchable'!BB"&PDF!$AH149)),"") -> 3 | D149: =IFERROR(IF(A149="","",INDIRECT("'Faculty Searchable'!AE"&PDF!$AH149)),"") -> 9 hours arranged | E149: =IFERROR(IF(A149="","",IF(D149="Online","",SUBSTITUTE(INDIRECT("'Faculty Searchable'!AF"&PDF!$AH149),"0","--"))),"") ->  | F149: =IFERROR(IF(A149="","",INDIRECT("'Faculty Searchable'!EB"&PDF!$AH149)),"") -> Online | G149: =IFERROR(IF(A149="","",IFERROR(INDIRECT("'Faculty Searchable'!FG"&PDF!$AH149),INDIRECT("'Faculty Searchable'!FG"&PDF!$AH149))),"") -> [Bailly J N] | H149: =IFERROR(IF(A149="","",IF(TEXT(INDIRECT("'Faculty Searchable'!G"&PDF!$AH149),"##%")="%","",TEXT(INDIRECT("'Faculty Searchable'!G"&PDF!$AH149),"##%"))),"") ->  | I149: =IFERROR(IF(A149="","",IF(RIGHT(INDIRECT("'Faculty Searchable'!FO"&PDF!$AH149),5)="Major","--",RIGHT(INDIRECT("'Faculty Searchable'!FO"&PDF!$AH149),2))),"--") -> D2 | J149: =IFERROR(IF(A149="","",RIGHT(INDIRECT("'Faculty Searchable'!FP"&PDF!$AH149),2)),"") -> 4B | K149: =IFERROR(IF(A149="","",IFERROR(VLOOKUP(B149,'Student Searchable'!A:B,2,FALSE),"")),"") ->  | L149: =IFERROR(LEFT(IF(A149="","",IF(INDIRECT("'Faculty Searchable'!CK"&PDF!$AH149)="","16-week-term",INDIRECT("'Faculty Searchable'!CK"&PDF!$AH149))),5),"") -> 2-SUM | M149: =IFERROR(MID(IF(A149="","",IF(INDIRECT("'Faculty Searchable'!CK"&PDF!$AH149)="","16-week-term",INDIRECT("'Faculty Searchable'!CK"&PDF!$AH149))),7,20),"") -> Jun 13 for 6 weeks | N149: =IF(B149="","",_xlfn.XLOOKUP(B149,Tracking!O:O,Tracking!A:A,"")) -> 0 | O149: =IF(PDF!AH149="","",IFERROR(INDIRECT("'Faculty Searchable'!FN"&PDF!$AH149),ROW())) -> 
A150: =IF(PDF!AH150="","",IFERROR(IF(PDF!A150="","",INDIRECT("'Faculty Searchable'!H"&PDF!AH150)&": "&LEFT(INDIRECT("'Faculty Searchable'!BA"&PDF!AH150),30)),"")) -> ECON G170: Principles of Microeconomics | B150: =IFERROR(IF(A150="","",INDIRECT("'Faculty Searchable'!I"&PDF!$AH150)),"") -> 11468 | C150: =IFERROR(IF(B150="","",INDIRECT("'Faculty Searchable'!BB"&PDF!$AH150)),"") -> 3 | D150: =IFERROR(IF(A150="","",INDIRECT("'Faculty Searchable'!AE"&PDF!$AH150)),"") -> 9 hours arranged | E150: =IFERROR(IF(A150="","",IF(D150="Online","",SUBSTITUTE(INDIRECT("'Faculty Searchable'!AF"&PDF!$AH150),"0","--"))),"") ->  | F150: =IFERROR(IF(A150="","",INDIRECT("'Faculty Searchable'!EB"&PDF!$AH150)),"") -> Online | G150: =IFERROR(IF(A150="","",IFERROR(INDIRECT("'Faculty Searchable'!FG"&PDF!$AH150),INDIRECT("'Faculty Searchable'!FG"&PDF!$AH150))),"") -> [Redmon B J] | H150: =IFERROR(IF(A150="","",IF(TEXT(INDIRECT("'Faculty Searchable'!G"&PDF!$AH150),"##%")="%","",TEXT(INDIRECT("'Faculty Searchable'!G"&PDF!$AH150),"##%"))),"") ->  | I150: =IFERROR(IF(A150="","",IF(RIGHT(INDIRECT("'Faculty Searchable'!FO"&PDF!$AH150),5)="Major","--",RIGHT(INDIRECT("'Faculty Searchable'!FO"&PDF!$AH150),2))),"--") -> D2 | J150: =IFERROR(IF(A150="","",RIGHT(INDIRECT("'Faculty Searchable'!FP"&PDF!$AH150),2)),"") -> 4B | K150: =IFERROR(IF(A150="","",IFERROR(VLOOKUP(B150,'Student Searchable'!A:B,2,FALSE),"")),"") ->  | L150: =IFERROR(LEFT(IF(A150="","",IF(INDIRECT("'Faculty Searchable'!CK"&PDF!$AH150)="","16-week-term",INDIRECT("'Faculty Searchable'!CK"&PDF!$AH150))),5),"") -> 2-SUM | M150: =IFERROR(MID(IF(A150="","",IF(INDIRECT("'Faculty Searchable'!CK"&PDF!$AH150)="","16-week-term",INDIRECT("'Faculty Searchable'!CK"&PDF!$AH150))),7,20),"") -> Jun 27 for 6 weeks | N150: =IF(B150="","",_xlfn.XLOOKUP(B150,Tracking!O:O,Tracking!A:A,"")) -> 0 | O150: =IF(PDF!AH150="","",IFERROR(INDIRECT("'Faculty Searchable'!FN"&PDF!$AH150),ROW())) -> 
A151: =IF(PDF!AH151="","",IFERROR(IF(PDF!A151="","",INDIRECT("'Faculty Searchable'!H"&PDF!AH151)&": "&LEFT(INDIRECT("'Faculty Searchable'!BA"&PDF!AH151),30)),"")) -> ECON G175: Principles of Macroeconomics | B151: =IFERROR(IF(A151="","",INDIRECT("'Faculty Searchable'!I"&PDF!$AH151)),"") -> 10543 | C151: =IFERROR(IF(B151="","",INDIRECT("'Faculty Searchable'!BB"&PDF!$AH151)),"") -> 3 | D151: =IFERROR(IF(A151="","",INDIRECT("'Faculty Searchable'!AE"&PDF!$AH151)),"") -> 9 hours arranged | E151: =IFERROR(IF(A151="","",IF(D151="Online","",SUBSTITUTE(INDIRECT("'Faculty Searchable'!AF"&PDF!$AH151),"0","--"))),"") ->  | F151: =IFERROR(IF(A151="","",INDIRECT("'Faculty Searchable'!EB"&PDF!$AH151)),"") -> Online | G151: =IFERROR(IF(A151="","",IFERROR(INDIRECT("'Faculty Searchable'!FG"&PDF!$AH151),INDIRECT("'Faculty Searchable'!FG"&PDF!$AH151))),"") -> [Bailly J N] | H151: =IFERROR(IF(A151="","",IF(TEXT(INDIRECT("'Faculty Searchable'!G"&PDF!$AH151),"##%")="%","",TEXT(INDIRECT("'Faculty Searchable'!G"&PDF!$AH151),"##%"))),"") ->  | I151: =IFERROR(IF(A151="","",IF(RIGHT(INDIRECT("'Faculty Searchable'!FO"&PDF!$AH151),5)="Major","--",RIGHT(INDIRECT("'Faculty Searchable'!FO"&PDF!$AH151),2))),"--") -> D2 | J151: =IFERROR(IF(A151="","",RIGHT(INDIRECT("'Faculty Searchable'!FP"&PDF!$AH151),2)),"") -> 4B | K151: =IFERROR(IF(A151="","",IFERROR(VLOOKUP(B151,'Student Searchable'!A:B,2,FALSE),"")),"") ->  | L151: =IFERROR(LEFT(IF(A151="","",IF(INDIRECT("'Faculty Searchable'!CK"&PDF!$AH151)="","16-week-term",INDIRECT("'Faculty Searchable'!CK"&PDF!$AH151))),5),"") -> 2-SUM | M151: =IFERROR(MID(IF(A151="","",IF(INDIRECT("'Faculty Searchable'!CK"&PDF!$AH151)="","16-week-term",INDIRECT("'Faculty Searchable'!CK"&PDF!$AH151))),7,20),"") -> Jun 13 for 6 weeks | N151: =IF(B151="","",_xlfn.XLOOKUP(B151,Tracking!O:O,Tracking!A:A,"")) -> 0 | O151: =IF(PDF!AH151="","",IFERROR(INDIRECT("'Faculty Searchable'!FN"&PDF!$AH151),ROW())) -> 
A152: =IF(PDF!AH152="","",IFERROR(IF(PDF!A152="","",INDIRECT("'Faculty Searchable'!H"&PDF!AH152)&": "&LEFT(INDIRECT("'Faculty Searchable'!BA"&PDF!AH152),30)),"")) -> ECON G175: Principles of Macroeconomics | B152: =IFERROR(IF(A152="","",INDIRECT("'Faculty Searchable'!I"&PDF!$AH152)),"") -> 10682 | C152: =IFERROR(IF(B152="","",INDIRECT("'Faculty Searchable'!BB"&PDF!$AH152)),"") -> 3 | D152: =IFERROR(IF(A152="","",INDIRECT("'Faculty Searchable'!AE"&PDF!$AH152)),"") -> 9 hours arranged | E152: =IFERROR(IF(A152="","",IF(D152="Online","",SUBSTITUTE(INDIRECT("'Faculty Searchable'!AF"&PDF!$AH152),"0","--"))),"") ->  | F152: =IFERROR(IF(A152="","",INDIRECT("'Faculty Searchable'!EB"&PDF!$AH152)),"") -> Online | G152: =IFERROR(IF(A152="","",IFERROR(INDIRECT("'Faculty Searchable'!FG"&PDF!$AH152),INDIRECT("'Faculty Searchable'!FG"&PDF!$AH152))),"") -> [Singh H P] | H152: =IFERROR(IF(A152="","",IF(TEXT(INDIRECT("'Faculty Searchable'!G"&PDF!$AH152),"##%")="%","",TEXT(INDIRECT("'Faculty Searchable'!G"&PDF!$AH152),"##%"))),"") ->  | I152: =IFERROR(IF(A152="","",IF(RIGHT(INDIRECT("'Faculty Searchable'!FO"&PDF!$AH152),5)="Major","--",RIGHT(INDIRECT("'Faculty Searchable'!FO"&PDF!$AH152),2))),"--") -> D2 | J152: =IFERROR(IF(A152="","",RIGHT(INDIRECT("'Faculty Searchable'!FP"&PDF!$AH152),2)),"") -> 4B | K152: =IFERROR(IF(A152="","",IFERROR(VLOOKUP(B152,'Student Searchable'!A:B,2,FALSE),"")),"") ->  | L152: =IFERROR(LEFT(IF(A152="","",IF(INDIRECT("'Faculty Searchable'!CK"&PDF!$AH152)="","16-week-term",INDIRECT("'Faculty Searchable'!CK"&PDF!$AH152))),5),"") -> 2-SUM | M152: =IFERROR(MID(IF(A152="","",IF(INDIRECT("'Faculty Searchable'!CK"&PDF!$AH152)="","16-week-term",INDIRECT("'Faculty Searchable'!CK"&PDF!$AH152))),7,20),"") -> Jun 27 for 6 weeks | N152: =IF(B152="","",_xlfn.XLOOKUP(B152,Tracking!O:O,Tracking!A:A,"")) -> 0 | O152: =IF(PDF!AH152="","",IFERROR(INDIRECT("'Faculty Searchable'!FN"&PDF!$AH152),ROW())) -> 
A153: =IF(PDF!AH153="","",IFERROR(IF(PDF!A153="","",INDIRECT("'Faculty Searchable'!H"&PDF!AH153)&": "&LEFT(INDIRECT("'Faculty Searchable'!BA"&PDF!AH153),30)),"")) -> ELL G010N: English for Communication 1 | B153: =IFERROR(IF(A153="","",INDIRECT("'Faculty Searchable'!I"&PDF!$AH153)),"") -> 10615 | C153: =IFERROR(IF(B153="","",INDIRECT("'Faculty Searchable'!BB"&PDF!$AH153)),"") -> 0 | D153: =IFERROR(IF(A153="","",INDIRECT("'Faculty Searchable'!AE"&PDF!$AH153)),"") -> 8:50am - 11:20am | E153: =IFERROR(IF(A153="","",IF(D153="Online","",SUBSTITUTE(INDIRECT("'Faculty Searchable'!AF"&PDF!$AH153),"0","--"))),"") -> MTW | F153: =IFERROR(IF(A153="","",INDIRECT("'Faculty Searchable'!EB"&PDF!$AH153)),"") ->  | G153: =IFERROR(IF(A153="","",IFERROR(INDIRECT("'Faculty Searchable'!FG"&PDF!$AH153),INDIRECT("'Faculty Searchable'!FG"&PDF!$AH153))),"") -> [Henel S] | H153: =IFERROR(IF(A153="","",IF(TEXT(INDIRECT("'Faculty Searchable'!G"&PDF!$AH153),"##%")="%","",TEXT(INDIRECT("'Faculty Searchable'!G"&PDF!$AH153),"##%"))),"") ->  | I153: =IFERROR(IF(A153="","",IF(RIGHT(INDIRECT("'Faculty Searchable'!FO"&PDF!$AH153),5)="Major","--",RIGHT(INDIRECT("'Faculty Searchable'!FO"&PDF!$AH153),2))),"--") -> -- | J153: =IFERROR(IF(A153="","",RIGHT(INDIRECT("'Faculty Searchable'!FP"&PDF!$AH153),2)),"") ->  | K153: =IFERROR(IF(A153="","",IFERROR(VLOOKUP(B153,'Student Searchable'!A:B,2,FALSE),"")),"") ->  | L153: =IFERROR(LEFT(IF(A153="","",IF(INDIRECT("'Faculty Searchable'!CK"&PDF!$AH153)="","16-week-term",INDIRECT("'Faculty Searchable'!CK"&PDF!$AH153))),5),"") -> 2-SUM | M153: =IFERROR(MID(IF(A153="","",IF(INDIRECT("'Faculty Searchable'!CK"&PDF!$AH153)="","16-week-term",INDIRECT("'Faculty Searchable'!CK"&PDF!$AH153))),7,20),"") -> Jun 13 for 9 weeks | N153: =IF(B153="","",_xlfn.XLOOKUP(B153,Tracking!O:O,Tracking!A:A,"")) -> 0 | O153: =IF(PDF!AH153="","",IFERROR(INDIRECT("'Faculty Searchable'!FN"&PDF!$AH153),ROW())) -> 
A154: =IF(PDF!AH154="","",IFERROR(IF(PDF!A154="","",INDIRECT("'Faculty Searchable'!H"&PDF!AH154)&": "&LEFT(INDIRECT("'Faculty Searchable'!BA"&PDF!AH154),30)),"")) -> ELL G016N: Pronunciation for Fluency 1 | B154: =IFERROR(IF(A154="","",INDIRECT("'Faculty Searchable'!I"&PDF!$AH154)),"") -> 10621 | C154: =IFERROR(IF(B154="","",INDIRECT("'Faculty Searchable'!BB"&PDF!$AH154)),"") -> 0 | D154: =IFERROR(IF(A154="","",INDIRECT("'Faculty Searchable'!AE"&PDF!$AH154)),"") -> 8:50am - 11:15am | E154: =IFERROR(IF(A154="","",IF(D154="Online","",SUBSTITUTE(INDIRECT("'Faculty Searchable'!AF"&PDF!$AH154),"0","--"))),"") -> Th | F154: =IFERROR(IF(A154="","",INDIRECT("'Faculty Searchable'!EB"&PDF!$AH154)),"") ->  | G154: =IFERROR(IF(A154="","",IFERROR(INDIRECT("'Faculty Searchable'!FG"&PDF!$AH154),INDIRECT("'Faculty Searchable'!FG"&PDF!$AH154))),"") -> [Lao T] | H154: =IFERROR(IF(A154="","",IF(TEXT(INDIRECT("'Faculty Searchable'!G"&PDF!$AH154),"##%")="%","",TEXT(INDIRECT("'Faculty Searchable'!G"&PDF!$AH154),"##%"))),"") ->  | I154: =IFERROR(IF(A154="","",IF(RIGHT(INDIRECT("'Faculty Searchable'!FO"&PDF!$AH154),5)="Major","--",RIGHT(INDIRECT("'Faculty Searchable'!FO"&PDF!$AH154),2))),"--") -> -- | J154: =IFERROR(IF(A154="","",RIGHT(INDIRECT("'Faculty Searchable'!FP"&PDF!$AH154),2)),"") ->  | K154: =IFERROR(IF(A154="","",IFERROR(VLOOKUP(B154,'Student Searchable'!A:B,2,FALSE),"")),"") ->  | L154: =IFERROR(LEFT(IF(A154="","",IF(INDIRECT("'Faculty Searchable'!CK"&PDF!$AH154)="","16-week-term",INDIRECT("'Faculty Searchable'!CK"&PDF!$AH154))),5),"") -> 2-SUM | M154: =IFERROR(MID(IF(A154="","",IF(INDIRECT("'Faculty Searchable'!CK"&PDF!$AH154)="","16-week-term",INDIRECT("'Faculty Searchable'!CK"&PDF!$AH154))),7,20),"") -> Jun 13 for 9 weeks | N154: =IF(B154="","",_xlfn.XLOOKUP(B154,Tracking!O:O,Tracking!A:A,"")) -> 0 | O154: =IF(PDF!AH154="","",IFERROR(INDIRECT("'Faculty Searchable'!FN"&PDF!$AH154),ROW())) -> 
A155: =IF(PDF!AH155="","",IFERROR(IF(PDF!A155="","",INDIRECT("'Faculty Searchable'!H"&PDF!AH155)&": "&LEFT(INDIRECT("'Faculty Searchable'!BA"&PDF!AH155),30)),"")) -> ELL G020N: English for Communication 2 | B155: =IFERROR(IF(A155="","",INDIRECT("'Faculty Searchable'!I"&PDF!$AH155)),"") -> 10623 | C155: =IFERROR(IF(B155="","",INDIRECT("'Faculty Searchable'!BB"&PDF!$AH155)),"") -> 0 | D155: =IFERROR(IF(A155="","",INDIRECT("'Faculty Searchable'!AE"&PDF!$AH155)),"") -> 8:50am - 11:20am | E155: =IFERROR(IF(A155="","",IF(D155="Online","",SUBSTITUTE(INDIRECT("'Faculty Searchable'!AF"&PDF!$AH155),"0","--"))),"") -> MTW | F155: =IFERROR(IF(A155="","",INDIRECT("'Faculty Searchable'!EB"&PDF!$AH155)),"") ->  | G155: =IFERROR(IF(A155="","",IFERROR(INDIRECT("'Faculty Searchable'!FG"&PDF!$AH155),INDIRECT("'Faculty Searchable'!FG"&PDF!$AH155))),"") -> [Martin D J] | H155: =IFERROR(IF(A155="","",IF(TEXT(INDIRECT("'Faculty Searchable'!G"&PDF!$AH155),"##%")="%","",TEXT(INDIRECT("'Faculty Searchable'!G"&PDF!$AH155),"##%"))),"") ->  | I155: =IFERROR(IF(A155="","",IF(RIGHT(INDIRECT("'Faculty Searchable'!FO"&PDF!$AH155),5)="Major","--",RIGHT(INDIRECT("'Faculty Searchable'!FO"&PDF!$AH155),2))),"--") -> -- | J155: =IFERROR(IF(A155="","",RIGHT(INDIRECT("'Faculty Searchable'!FP"&PDF!$AH155),2)),"") ->  | K155: =IFERROR(IF(A155="","",IFERROR(VLOOKUP(B155,'Student Searchable'!A:B,2,FALSE),"")),"") ->  | L155: =IFERROR(LEFT(IF(A155="","",IF(INDIRECT("'Faculty Searchable'!CK"&PDF!$AH155)="","16-week-term",INDIRECT("'Faculty Searchable'!CK"&PDF!$AH155))),5),"") -> 2-SUM | M155: =IFERROR(MID(IF(A155="","",IF(INDIRECT("'Faculty Searchable'!CK"&PDF!$AH155)="","16-week-term",INDIRECT("'Faculty Searchable'!CK"&PDF!$AH155))),7,20),"") -> Jun 13 for 9 weeks | N155: =IF(B155="","",_xlfn.XLOOKUP(B155,Tracking!O:O,Tracking!A:A,"")) -> 0 | O155: =IF(PDF!AH155="","",IFERROR(INDIRECT("'Faculty Searchable'!FN"&PDF!$AH155),ROW())) -> 
A156: =IF(PDF!AH156="","",IFERROR(IF(PDF!A156="","",INDIRECT("'Faculty Searchable'!H"&PDF!AH156)&": "&LEFT(INDIRECT("'Faculty Searchable'!BA"&PDF!AH156),30)),"")) -> ELL G020N: English for Communication 2 | B156: =IFERROR(IF(A156="","",INDIRECT("'Faculty Searchable'!I"&PDF!$AH156)),"") -> 10625 | C156: =IFERROR(IF(B156="","",INDIRECT("'Faculty Searchable'!BB"&PDF!$AH156)),"") -> 0 | D156: =IFERROR(IF(A156="","",INDIRECT("'Faculty Searchable'!AE"&PDF!$AH156)),"") -> 6:00pm - 8:30pm | E156: =IFERROR(IF(A156="","",IF(D156="Online","",SUBSTITUTE(INDIRECT("'Faculty Searchable'!AF"&PDF!$AH156),"0","--"))),"") -> MTW | F156: =IFERROR(IF(A156="","",INDIRECT("'Faculty Searchable'!EB"&PDF!$AH156)),"") -> LiveOnline | G156: =IFERROR(IF(A156="","",IFERROR(INDIRECT("'Faculty Searchable'!FG"&PDF!$AH156),INDIRECT("'Faculty Searchable'!FG"&PDF!$AH156))),"") -> [STAFF] | H156: =IFERROR(IF(A156="","",IF(TEXT(INDIRECT("'Faculty Searchable'!G"&PDF!$AH156),"##%")="%","",TEXT(INDIRECT("'Faculty Searchable'!G"&PDF!$AH156),"##%"))),"") ->  | I156: =IFERROR(IF(A156="","",IF(RIGHT(INDIRECT("'Faculty Searchable'!FO"&PDF!$AH156),5)="Major","--",RIGHT(INDIRECT("'Faculty Searchable'!FO"&PDF!$AH156),2))),"--") -> -- | J156: =IFERROR(IF(A156="","",RIGHT(INDIRECT("'Faculty Searchable'!FP"&PDF!$AH156),2)),"") ->  | K156: =IFERROR(IF(A156="","",IFERROR(VLOOKUP(B156,'Student Searchable'!A:B,2,FALSE),"")),"") ->  | L156: =IFERROR(LEFT(IF(A156="","",IF(INDIRECT("'Faculty Searchable'!CK"&PDF!$AH156)="","16-week-term",INDIRECT("'Faculty Searchable'!CK"&PDF!$AH156))),5),"") -> 2-SUM | M156: =IFERROR(MID(IF(A156="","",IF(INDIRECT("'Faculty Searchable'!CK"&PDF!$AH156)="","16-week-term",INDIRECT("'Faculty Searchable'!CK"&PDF!$AH156))),7,20),"") -> Jun 13 for 9 weeks | N156: =IF(B156="","",_xlfn.XLOOKUP(B156,Tracking!O:O,Tracking!A:A,"")) -> 0 | O156: =IF(PDF!AH156="","",IFERROR(INDIRECT("'Faculty Searchable'!FN"&PDF!$AH156),ROW())) -> 
A157: =IF(PDF!AH157="","",IFERROR(IF(PDF!A157="","",INDIRECT("'Faculty Searchable'!H"&PDF!AH157)&": "&LEFT(INDIRECT("'Faculty Searchable'!BA"&PDF!AH157),30)),"")) -> ELL G026N: Pronunciation for Fluency 2 | B157: =IFERROR(IF(A157="","",INDIRECT("'Faculty Searchable'!I"&PDF!$AH157)),"") -> 10629 | C157: =IFERROR(IF(B157="","",INDIRECT("'Faculty Searchable'!BB"&PDF!$AH157)),"") -> 0 | D157: =IFERROR(IF(A157="","",INDIRECT("'Faculty Searchable'!AE"&PDF!$AH157)),"") -> 8:50am - 11:15am | E157: =IFERROR(IF(A157="","",IF(D157="Online","",SUBSTITUTE(INDIRECT("'Faculty Searchable'!AF"&PDF!$AH157),"0","--"))),"") -> Th | F157: =IFERROR(IF(A157="","",INDIRECT("'Faculty Searchable'!EB"&PDF!$AH157)),"") ->  | G157: =IFERROR(IF(A157="","",IFERROR(INDIRECT("'Faculty Searchable'!FG"&PDF!$AH157),INDIRECT("'Faculty Searchable'!FG"&PDF!$AH157))),"") -> [STAFF] | H157: =IFERROR(IF(A157="","",IF(TEXT(INDIRECT("'Faculty Searchable'!G"&PDF!$AH157),"##%")="%","",TEXT(INDIRECT("'Faculty Searchable'!G"&PDF!$AH157),"##%"))),"") ->  | I157: =IFERROR(IF(A157="","",IF(RIGHT(INDIRECT("'Faculty Searchable'!FO"&PDF!$AH157),5)="Major","--",RIGHT(INDIRECT("'Faculty Searchable'!FO"&PDF!$AH157),2))),"--") -> -- | J157: =IFERROR(IF(A157="","",RIGHT(INDIRECT("'Faculty Searchable'!FP"&PDF!$AH157),2)),"") ->  | K157: =IFERROR(IF(A157="","",IFERROR(VLOOKUP(B157,'Student Searchable'!A:B,2,FALSE),"")),"") ->  | L157: =IFERROR(LEFT(IF(A157="","",IF(INDIRECT("'Faculty Searchable'!CK"&PDF!$AH157)="","16-week-term",INDIRECT("'Faculty Searchable'!CK"&PDF!$AH157))),5),"") -> 2-SUM | M157: =IFERROR(MID(IF(A157="","",IF(INDIRECT("'Faculty Searchable'!CK"&PDF!$AH157)="","16-week-term",INDIRECT("'Faculty Searchable'!CK"&PDF!$AH157))),7,20),"") -> Jun 13 for 9 weeks | N157: =IF(B157="","",_xlfn.XLOOKUP(B157,Tracking!O:O,Tracking!A:A,"")) -> 0 | O157: =IF(PDF!AH157="","",IFERROR(INDIRECT("'Faculty Searchable'!FN"&PDF!$AH157),ROW())) -> 
A158: =IF(PDF!AH158="","",IFERROR(IF(PDF!A158="","",INDIRECT("'Faculty Searchable'!H"&PDF!AH158)&": "&LEFT(INDIRECT("'Faculty Searchable'!BA"&PDF!AH158),30)),"")) -> ELL G027N: Read & Write for Citizenship | B158: =IFERROR(IF(A158="","",INDIRECT("'Faculty Searchable'!I"&PDF!$AH158)),"") -> 11801 | C158: =IFERROR(IF(B158="","",INDIRECT("'Faculty Searchable'!BB"&PDF!$AH158)),"") -> 0 | D158: =IFERROR(IF(A158="","",INDIRECT("'Faculty Searchable'!AE"&PDF!$AH158)),"") -> 8:30am - 10:35am | E158: =IFERROR(IF(A158="","",IF(D158="Online","",SUBSTITUTE(INDIRECT("'Faculty Searchable'!AF"&PDF!$AH158),"0","--"))),"") -> MWF | F158: =IFERROR(IF(A158="","",INDIRECT("'Faculty Searchable'!EB"&PDF!$AH158)),"") ->  | G158: =IFERROR(IF(A158="","",IFERROR(INDIRECT("'Faculty Searchable'!FG"&PDF!$AH158),INDIRECT("'Faculty Searchable'!FG"&PDF!$AH158))),"") -> [Flood J E] | H158: =IFERROR(IF(A158="","",IF(TEXT(INDIRECT("'Faculty Searchable'!G"&PDF!$AH158),"##%")="%","",TEXT(INDIRECT("'Faculty Searchable'!G"&PDF!$AH158),"##%"))),"") ->  | I158: =IFERROR(IF(A158="","",IF(RIGHT(INDIRECT("'Faculty Searchable'!FO"&PDF!$AH158),5)="Major","--",RIGHT(INDIRECT("'Faculty Searchable'!FO"&PDF!$AH158),2))),"--") -> -- | J158: =IFERROR(IF(A158="","",RIGHT(INDIRECT("'Faculty Searchable'!FP"&PDF!$AH158),2)),"") ->  | K158: =IFERROR(IF(A158="","",IFERROR(VLOOKUP(B158,'Student Searchable'!A:B,2,FALSE),"")),"") ->  | L158: =IFERROR(LEFT(IF(A158="","",IF(INDIRECT("'Faculty Searchable'!CK"&PDF!$AH158)="","16-week-term",INDIRECT("'Faculty Searchable'!CK"&PDF!$AH158))),5),"") -> 2-SUM | M158: =IFERROR(MID(IF(A158="","",IF(INDIRECT("'Faculty Searchable'!CK"&PDF!$AH158)="","16-week-term",INDIRECT("'Faculty Searchable'!CK"&PDF!$AH158))),7,20),"") -> Jun 13 for 9 weeks | N158: =IF(B158="","",_xlfn.XLOOKUP(B158,Tracking!O:O,Tracking!A:A,"")) -> 0 | O158: =IF(PDF!AH158="","",IFERROR(INDIRECT("'Faculty Searchable'!FN"&PDF!$AH158),ROW())) -> 
A159: =IF(PDF!AH159="","",IFERROR(IF(PDF!A159="","",INDIRECT("'Faculty Searchable'!H"&PDF!AH159)&": "&LEFT(INDIRECT("'Faculty Searchable'!BA"&PDF!AH159),30)),"")) -> ELL G028N: Listen & Speak Citizenship | B159: =IFERROR(IF(A159="","",INDIRECT("'Faculty Searchable'!I"&PDF!$AH159)),"") -> 11802 | C159: =IFERROR(IF(B159="","",INDIRECT("'Faculty Searchable'!BB"&PDF!$AH159)),"") -> 0 | D159: =IFERROR(IF(A159="","",INDIRECT("'Faculty Searchable'!AE"&PDF!$AH159)),"") -> 10:50am - 12:55pm | E159: =IFERROR(IF(A159="","",IF(D159="Online","",SUBSTITUTE(INDIRECT("'Faculty Searchable'!AF"&PDF!$AH159),"0","--"))),"") -> MWF | F159: =IFERROR(IF(A159="","",INDIRECT("'Faculty Searchable'!EB"&PDF!$AH159)),"") ->  | G159: =IFERROR(IF(A159="","",IFERROR(INDIRECT("'Faculty Searchable'!FG"&PDF!$AH159),INDIRECT("'Faculty Searchable'!FG"&PDF!$AH159))),"") -> [Flood J E] | H159: =IFERROR(IF(A159="","",IF(TEXT(INDIRECT("'Faculty Searchable'!G"&PDF!$AH159),"##%")="%","",TEXT(INDIRECT("'Faculty Searchable'!G"&PDF!$AH159),"##%"))),"") ->  | I159: =IFERROR(IF(A159="","",IF(RIGHT(INDIRECT("'Faculty Searchable'!FO"&PDF!$AH159),5)="Major","--",RIGHT(INDIRECT("'Faculty Searchable'!FO"&PDF!$AH159),2))),"--") -> -- | J159: =IFERROR(IF(A159="","",RIGHT(INDIRECT("'Faculty Searchable'!FP"&PDF!$AH159),2)),"") ->  | K159: =IFERROR(IF(A159="","",IFERROR(VLOOKUP(B159,'Student Searchable'!A:B,2,FALSE),"")),"") ->  | L159: =IFERROR(LEFT(IF(A159="","",IF(INDIRECT("'Faculty Searchable'!CK"&PDF!$AH159)="","16-week-term",INDIRECT("'Faculty Searchable'!CK"&PDF!$AH159))),5),"") -> 2-SUM | M159: =IFERROR(MID(IF(A159="","",IF(INDIRECT("'Faculty Searchable'!CK"&PDF!$AH159)="","16-week-term",INDIRECT("'Faculty Searchable'!CK"&PDF!$AH159))),7,20),"") -> Jun 13 for 9 weeks | N159: =IF(B159="","",_xlfn.XLOOKUP(B159,Tracking!O:O,Tracking!A:A,"")) -> 0 | O159: =IF(PDF!AH159="","",IFERROR(INDIRECT("'Faculty Searchable'!FN"&PDF!$AH159),ROW())) -> 
A160: =IF(PDF!AH160="","",IFERROR(IF(PDF!A160="","",INDIRECT("'Faculty Searchable'!H"&PDF!AH160)&": "&LEFT(INDIRECT("'Faculty Searchable'!BA"&PDF!AH160),30)),"")) -> ELL G030N: English for Communication 3 | B160: =IFERROR(IF(A160="","",INDIRECT("'Faculty Searchable'!I"&PDF!$AH160)),"") -> 10631 | C160: =IFERROR(IF(B160="","",INDIRECT("'Faculty Searchable'!BB"&PDF!$AH160)),"") -> 0 | D160: =IFERROR(IF(A160="","",INDIRECT("'Faculty Searchable'!AE"&PDF!$AH160)),"") -> 8:50am - 11:20am | E160: =IFERROR(IF(A160="","",IF(D160="Online","",SUBSTITUTE(INDIRECT("'Faculty Searchable'!AF"&PDF!$AH160),"0","--"))),"") -> MTW | F160: =IFERROR(IF(A160="","",INDIRECT("'Faculty Searchable'!EB"&PDF!$AH160)),"") -> LiveOnline | G160: =IFERROR(IF(A160="","",IFERROR(INDIRECT("'Faculty Searchable'!FG"&PDF!$AH160),INDIRECT("'Faculty Searchable'!FG"&PDF!$AH160))),"") -> [Le T] | H160: =IFERROR(IF(A160="","",IF(TEXT(INDIRECT("'Faculty Searchable'!G"&PDF!$AH160),"##%")="%","",TEXT(INDIRECT("'Faculty Searchable'!G"&PDF!$AH160),"##%"))),"") ->  | I160: =IFERROR(IF(A160="","",IF(RIGHT(INDIRECT("'Faculty Searchable'!FO"&PDF!$AH160),5)="Major","--",RIGHT(INDIRECT("'Faculty Searchable'!FO"&PDF!$AH160),2))),"--") -> -- | J160: =IFERROR(IF(A160="","",RIGHT(INDIRECT("'Faculty Searchable'!FP"&PDF!$AH160),2)),"") ->  | K160: =IFERROR(IF(A160="","",IFERROR(VLOOKUP(B160,'Student Searchable'!A:B,2,FALSE),"")),"") ->  | L160: =IFERROR(LEFT(IF(A160="","",IF(INDIRECT("'Faculty Searchable'!CK"&PDF!$AH160)="","16-week-term",INDIRECT("'Faculty Searchable'!CK"&PDF!$AH160))),5),"") -> 2-SUM | M160: =IFERROR(MID(IF(A160="","",IF(INDIRECT("'Faculty Searchable'!CK"&PDF!$AH160)="","16-week-term",INDIRECT("'Faculty Searchable'!CK"&PDF!$AH160))),7,20),"") -> Jun 13 for 9 weeks | N160: =IF(B160="","",_xlfn.XLOOKUP(B160,Tracking!O:O,Tracking!A:A,"")) -> 0 | O160: =IF(PDF!AH160="","",IFERROR(INDIRECT("'Faculty Searchable'!FN"&PDF!$AH160),ROW())) -> 
A161: =IF(PDF!AH161="","",IFERROR(IF(PDF!A161="","",INDIRECT("'Faculty Searchable'!H"&PDF!AH161)&": "&LEFT(INDIRECT("'Faculty Searchable'!BA"&PDF!AH161),30)),"")) -> ENGL G100: Freshman Composition | B161: =IFERROR(IF(A161="","",INDIRECT("'Faculty Searchable'!I"&PDF!$AH161)),"") -> 10590 | C161: =IFERROR(IF(B161="","",INDIRECT("'Faculty Searchable'!BB"&PDF!$AH161)),"") -> 4 | D161: =IFERROR(IF(A161="","",INDIRECT("'Faculty Searchable'!AE"&PDF!$AH161)),"") -> 12:00pm - 3:05pm | E161: =IFERROR(IF(A161="","",IF(D161="Online","",SUBSTITUTE(INDIRECT("'Faculty Searchable'!AF"&PDF!$AH161),"0","--"))),"") -> MW | F161: =IFERROR(IF(A161="","",INDIRECT("'Faculty Searchable'!EB"&PDF!$AH161)),"") -> LiveOnline | G161: =IFERROR(IF(A161="","",IFERROR(INDIRECT("'Faculty Searchable'!FG"&PDF!$AH161),INDIRECT("'Faculty Searchable'!FG"&PDF!$AH161))),"") -> [Thill B W] | H161: =IFERROR(IF(A161="","",IF(TEXT(INDIRECT("'Faculty Searchable'!G"&PDF!$AH161),"##%")="%","",TEXT(INDIRECT("'Faculty Searchable'!G"&PDF!$AH161),"##%"))),"") ->  | I161: =IFERROR(IF(A161="","",IF(RIGHT(INDIRECT("'Faculty Searchable'!FO"&PDF!$AH161),5)="Major","--",RIGHT(INDIRECT("'Faculty Searchable'!FO"&PDF!$AH161),2))),"--") -> A2 | J161: =IFERROR(IF(A161="","",RIGHT(INDIRECT("'Faculty Searchable'!FP"&PDF!$AH161),2)),"") -> 1A | K161: =IFERROR(IF(A161="","",IFERROR(VLOOKUP(B161,'Student Searchable'!A:B,2,FALSE),"")),"") ->  | L161: =IFERROR(LEFT(IF(A161="","",IF(INDIRECT("'Faculty Searchable'!CK"&PDF!$AH161)="","16-week-term",INDIRECT("'Faculty Searchable'!CK"&PDF!$AH161))),5),"") -> 2-SUM | M161: =IFERROR(MID(IF(A161="","",IF(INDIRECT("'Faculty Searchable'!CK"&PDF!$AH161)="","16-week-term",INDIRECT("'Faculty Searchable'!CK"&PDF!$AH161))),7,20),"") -> Jun 13 for 6 weeks | N161: =IF(B161="","",_xlfn.XLOOKUP(B161,Tracking!O:O,Tracking!A:A,"")) -> 0 | O161: =IF(PDF!AH161="","",IFERROR(INDIRECT("'Faculty Searchable'!FN"&PDF!$AH161),ROW())) -> 
A162: =IF(PDF!AH162="","",IFERROR(IF(PDF!A162="","",INDIRECT("'Faculty Searchable'!H"&PDF!AH162)&": "&LEFT(INDIRECT("'Faculty Searchable'!BA"&PDF!AH162),30)),"")) -> ENGL G100: Freshman Composition | B162: =IFERROR(IF(A162="","",INDIRECT("'Faculty Searchable'!I"&PDF!$AH162)),"") -> 10551 | C162: =IFERROR(IF(B162="","",INDIRECT("'Faculty Searchable'!BB"&PDF!$AH162)),"") -> 4 | D162: =IFERROR(IF(A162="","",INDIRECT("'Faculty Searchable'!AE"&PDF!$AH162)),"") -> 9:00am - 11:50am | E162: =IFERROR(IF(A162="","",IF(D162="Online","",SUBSTITUTE(INDIRECT("'Faculty Searchable'!AF"&PDF!$AH162),"0","--"))),"") -> TTh | F162: =IFERROR(IF(A162="","",INDIRECT("'Faculty Searchable'!EB"&PDF!$AH162)),"") ->  | G162: =IFERROR(IF(A162="","",IFERROR(INDIRECT("'Faculty Searchable'!FG"&PDF!$AH162),INDIRECT("'Faculty Searchable'!FG"&PDF!$AH162))),"") -> [Tarango A P] | H162: =IFERROR(IF(A162="","",IF(TEXT(INDIRECT("'Faculty Searchable'!G"&PDF!$AH162),"##%")="%","",TEXT(INDIRECT("'Faculty Searchable'!G"&PDF!$AH162),"##%"))),"") ->  | I162: =IFERROR(IF(A162="","",IF(RIGHT(INDIRECT("'Faculty Searchable'!FO"&PDF!$AH162),5)="Major","--",RIGHT(INDIRECT("'Faculty Searchable'!FO"&PDF!$AH162),2))),"--") -> A2 | J162: =IFERROR(IF(A162="","",RIGHT(INDIRECT("'Faculty Searchable'!FP"&PDF!$AH162),2)),"") -> 1A | K162: =IFERROR(IF(A162="","",IFERROR(VLOOKUP(B162,'Student Searchable'!A:B,2,FALSE),"")),"") ->  | L162: =IFERROR(LEFT(IF(A162="","",IF(INDIRECT("'Faculty Searchable'!CK"&PDF!$AH162)="","16-week-term",INDIRECT("'Faculty Searchable'!CK"&PDF!$AH162))),5),"") -> 2-SUM | M162: =IFERROR(MID(IF(A162="","",IF(INDIRECT("'Faculty Searchable'!CK"&PDF!$AH162)="","16-week-term",INDIRECT("'Faculty Searchable'!CK"&PDF!$AH162))),7,20),"") -> Jun 13 for 6 weeks | N162: =IF(B162="","",_xlfn.XLOOKUP(B162,Tracking!O:O,Tracking!A:A,"")) -> 0 | O162: =IF(PDF!AH162="","",IFERROR(INDIRECT("'Faculty Searchable'!FN"&PDF!$AH162),ROW())) -> 
